Workbook

Sheet MENUDATOS (hidden)
A1: Cuadro 1.1 | B1: COSTA RICA: POR PROVINCIA, SEGÚN PARTIDO POLÍTICO | C1: C1.1
A2: Gráfico 1.1 | B2: GRÁFICO COSTA RICA: VOTOS SEGÚN PARTIDO POLÍTICO | C2: G1.1
A3: Cuadro 1.2 | B3: COSTA RICA: POR PARTIDO POLÍTICO SEGÚN PROVINCIA, CANTÓN Y EXTRANJERO | C3: C1.2
A4: Cuadro 1.3 | B4: SAN JOSÉ: POR PARTIDO POLÍTICO, SEGÚN DISTRITO ADMINISTRATIVO | C4: C1.3
A5: Cuadro 1.4 | B5: ALAJUELA: POR PARTIDO POLÍTICO, SEGÚN DISTRITO ADMINISTRATIVO | C5: C1.4
A6: Cuadro 1.5 | B6: CARTAGO: POR PARTIDO POLÍTICO, SEGÚN DISTRITO ADMINISTRATIVO | C6: C1.5
A7: Cuadro 1.6 | B7: HEREDIA: POR PARTIDO POLÍTICO, SEGÚN DISTRITO ADMINISTRATIVO | C7: C1.6
A8: Cuadro 1.7 | B8: GUANACASTE: POR PARTIDO POLÍTICO, SEGÚN DISTRITO ADMINISTRATIVO | C8: C1.7
A9: Cuadro 1.8 | B9: PUNTARENAS: POR PARTIDO POLÍTICO, SEGÚN DISTRITO ADMINISTRATIVO | C9: C1.8
A10: Cuadro 1.9 | B10: LIMÓN: POR PARTIDO POLÍTICO, SEGÚN DISTRITO ADMINISTRATIVO | C10: C1.9
A11: Cuadro 1.10 | B11: VOTO EN EL EXTRANJERO: POR PARTIDO POLÍTICO, SEGÚN CONTINENTE Y PAÍS | C11: C1.10
A12: Mapa 1.1 | B12: MAPA PARTIDO GANADOR POR DISTRITO | C12: M1.1
A13: Mapa 1.2 | B13: MAPA PARTICIPACIÓN RELATIVA POR DISTRITO | C13: M1.2
A14: Mapa 1.3 | B14: MAPA ABSTENCIONISMO RELATIVO POR DISTRITO | C14: M1.3
A15: Cuadro 1.11 | B15: SAN JOSÉ: POR PARTIDO POLÍTICO, SEGÚN DISTRITO ELECTORAL | C15: C1.11
A16: Cuadro 1.12 | B16: ALAJUELA: POR PARTIDO POLÍTICO, SEGÚN DISTRITO ELECTORAL | C16: C1.12
A17: Cuadro 1.13 | B17: CARTAGO: POR PARTIDO POLÍTICO, SEGÚN DISTRITO ELECTORAL | C17: C1.13
A18: Cuadro 1.14 | B18: HEREDIA: POR PARTIDO POLÍTICO, SEGÚN DISTRITO ELECTORAL | C18: C1.14
A19: Cuadro 1.15 | B19: GUANACASTE: POR PARTIDO POLÍTICO, SEGÚN DISTRITO ELECTORAL | C19: C1.15
A20: Cuadro 1.16 | B20: PUNTARENAS: POR PARTIDO POLÍTICO, SEGÚN DISTRITO ELECTORAL | C20: C1.16
A21: Cuadro 1.17 | B21: LIMÓN: POR PARTIDO POLÍTICO, SEGÚN DISTRITO ELECTORAL | C21: C1.17
B22: ---- CERRAR ---- | C22: CERRAR
A29: DIPUTACIONES
A30: Cuadro 2.1 | B30: COSTA RICA: POR PROVINCIA, SEGÚN PARTIDO POLÍTICO | C30: C2.1
A31: Cuadro 2.2 | B31: COSTA RICA: POR PARTIDO POLÍTICO SEGÚN PROVINCIA Y CANTÓN | C31: C2.2
A32: Cuadro 2.3 | B32: SAN JOSÉ: POR PARTIDO POLÍTICO, SEGÚN CANTÓN Y DISTRITO ADMINISTRATIVO | C32: C2.3
A33: Cuadro 2.4 | B33: ALAJUELA: POR PARTIDO POLÍTICO, SEGÚN CANTÓN Y DISTRITO ADMINISTRATIVO | C33: C2.4
A34: Cuadro 2.5 | B34: CARTAGO: POR PARTIDO POLÍTICO, SEGÚN CANTÓN Y DISTRITO ADMINISTRATIVO | C34: C2.5
A35: Cuadro 2.6 | B35: HEREDIA: POR PARTIDO POLÍTICO, SEGÚN CANTÓN Y DISTRITO ADMINISTRATIVO | C35: C2.6
A36: Cuadro 2.7 | B36: GUANACASTE: POR PARTIDO POLÍTICO, SEGÚN CANTÓN Y DISTRITO ADMINISTRATIVO | C36: C2.7
A37: Cuadro 2.8 | B37: PUNTARENAS: POR PARTIDO POLÍTICO, SEGÚN CANTÓN Y DISTRITO ADMINISTRATIVO | C37: C2.8
A38: Cuadro 2.9 | B38: LIMÓN: POR PARTIDO POLÍTICO, SEGÚN CANTÓN Y DISTRITO ADMINISTRATIVO | C38: C2.9
A39: Cuadro 2.10 | B39: SAN JOSÉ: POR PARTIDO POLÍTICO, SEGÚN DISTRITO ELECTORAL | C39: C2.10
A40: Cuadro 2.11 | B40: ALAJUELA: POR PARTIDO POLÍTICO, SEGÚN DISTRITO ELECTORAL | C40: C2.11
A41: Cuadro 2.12 | B41: CARTAGO: POR PARTIDO POLÍTICO, SEGÚN DISTRITO ELECTORAL | C41: C2.12
A42: Cuadro 2.13 | B42: HEREDIA: POR PARTIDO POLÍTICO, SEGÚN DISTRITO ELECTORAL | C42: C2.13
A43: Cuadro 2.14 | B43: GUANACASTE: POR PARTIDO POLÍTICO, SEGÚN DISTRITO ELECTORAL | C43: C2.14
A44: Cuadro 2.15 | B44: PUNTARENAS: POR PARTIDO POLÍTICO, SEGÚN DISTRITO ELECTORAL | C44: C2.15
A45: Cuadro 2.16 | B45: LIMÓN: POR PARTIDO POLÍTICO, SEGÚN DISTRITO ELECTORAL | C45: C2.16
B46: ---- CERRAR ---- | C46: CERRAR
A59: II RONDA
A60: Cuadro 3.1 | B60: COSTA RICA: POR PROVINCIA, SEGÚN PARTIDO POLÍTICO | C60: C3.1
A61: Gráfico 3.1 | B61: GRÁFICO COSTA RICA: VOTOS SEGÚN PARTIDO POLÍTICO | C61: G3.1
A62: Gráfico 3.2 | B62: GRÁFICO COSTA RICA: VOTOS SEGÚN PROVINCIA | C62: G3.2
A63: Cuadro 3.2 | B63: COSTA RICA: POR PARTIDO POLÍTICO SEGÚN PROVINCIA, CANTÓN Y EXTRANJERO | C63: C3.2
A64: Cuadro 3.3 | B64: SAN JOSÉ: POR PARTIDO POLÍTICO, SEGÚN DISTRITO ADMINISTRATIVO | C64: C3.3
A65: Cuadro 3.4 | B65: ALAJUELA: POR PARTIDO POLÍTICO, SEGÚN DISTRITO ADMINISTRATIVO | C65: C3.4
A66: Cuadro 3.5 | B66: CARTAGO: POR PARTIDO POLÍTICO, SEGÚN DISTRITO ADMINISTRATIVO | C66: C3.5
A67: Cuadro 3.6 | B67: HEREDIA: POR PARTIDO POLÍTICO, SEGÚN DISTRITO ADMINISTRATIVO | C67: C3.6
A68: Cuadro 3.7 | B68: GUANACASTE: POR PARTIDO POLÍTICO, SEGÚN DISTRITO ADMINISTRATIVO | C68: C3.7
A69: Cuadro 3.8 | B69: PUNTARENAS: POR PARTIDO POLÍTICO, SEGÚN DISTRITO ADMINISTRATIVO | C69: C3.8
A70: Cuadro 3.9 | B70: LIMÓN: POR PARTIDO POLÍTICO, SEGÚN DISTRITO ADMINISTRATIVO | C70: C3.9
A71: Cuadro 3.10 | B71: VOTO EN EL EXTRANJERO: POR PARTIDO POLÍTICO, SEGÚN CONTINENTE Y PAÍS | C71: C3.10
A72: Mapa 3.1 | B72: MAPA DE INTENSIDAD DEL GANE POR DISTRITO | C72: M3.1
A73: Cuadro 3.11 | B73: SAN JOSÉ: POR PARTIDO POLÍTICO, SEGÚN DISTRITO ELECTORAL | C73: C3.11
A74: Cuadro 3.12 | B74: ALAJUELA: POR PARTIDO POLÍTICO, SEGÚN DISTRITO ELECTORAL | C74: C3.12
A75: Cuadro 3.13 | B75: CARTAGO: POR PARTIDO POLÍTICO, SEGÚN DISTRITO ELECTORAL | C75: C3.13
A76: Cuadro 3.14 | B76: HEREDIA: POR PARTIDO POLÍTICO, SEGÚN DISTRITO ELECTORAL | C76: C3.14
A77: Cuadro 3.15 | B77: GUANACASTE: POR PARTIDO POLÍTICO, SEGÚN DISTRITO ELECTORAL | C77: C3.15
A78: Cuadro 3.16 | B78: PUNTARENAS: POR PARTIDO POLÍTICO, SEGÚN DISTRITO ELECTORAL | C78: C3.16
A79: Cuadro 3.17 | B79: LIMÓN: POR PARTIDO POLÍTICO, SEGÚN DISTRITO ELECTORAL | C79: C3.17
B80: ---- CERRAR ---- | C80: CERRAR
A89: CANDIDATURAS
A90: Cuadro 4.1 | B90: COSTA RICA: CANDIDATURAS PRESIDENCIA Y VICEPRESIDENCIAS POR SEXO SEGÚN GRUPOS DE EDAD | C90: C4.1
A91: Cuadro 4.2 | B91: COSTA RICA: CANDIDATURAS A DIPUTACIONES POR SEXO SEGÚN GRUPOS DE EDAD | C91: C4.2
A92: Gráfico 4.1 | B92: GRÁFICO CANDIDATURAS A DIPUTACIONES POR SEXO Y GRUPOS DE EDAD | C92: G4.1
A93: Cuadro 4.3 | B93: EDAD PROMEDIO DE CANDIDATOS INCRITOS A DIPUTACIONES | C93: C4.3
A94: Cuadro 4.4 | B94: CANDIDATURAS A DIPUTACIONES 2006, 2010 Y 2014 SEGÚN PROVINCIA | C94: C4.4
A95: Cuadro 4.5 | B95: CANDIDATURAS POR SEXO , SEGÚN PUESTO | C95: C4.5
A96: Gráfico 4.2 | B96: GRÁFICO TIPOS DE CANDIDATURAS POR SEXO | C96: G4.2
A97: Cuadro 4.6 | B97: CANDIDATURAS A DIPUTACIONES EN PROPIEDAD Y SUPLENCIA POR SEXO SEGÚN PARTIDO | C97: C4.6
A98: Cuadro 4.7 | B98: CANDIDATURAS A DIPUTACIONES EN PROPIEDAD Y SUPLENCIA POR SEXO SEGÚN PROVINCIA | C98: C4.7
A99: Cuadro 4.8 | B99: DIPUTADOS/AS ELECTOS/AS POR PROVINCIA SEGÚN PARTIDO | C99: C4.8
A100: Gráfico 4.3 | B100: GRÁFICO TIPOS DE CANDIDATURAS POR SEXO | C100: G4.3
A101: Mapa 4.1 | B101: MAPA ESCAÑOS GANADOS DE DIPUTACIONES POR PARTIDO | C101: M4.1
A102: Cuadro 4.9 | B102: DIPUTADOS/AS ELECTOS/AS Y EDAD PROMEDIO POR SEXO SEGÚN PARTIDO | C102: C4.9
A103: Mapa 4.2 | B103: MAPA ESCAÑOS GANADOS DE DIPUTACIONES POR SEXO | C103: M4.2
A104: Cuadro 4.10 | B104: EDAD PROMEDIO DIPUTADOS/AS ELECTOS/AS, POR PROVINCIA SEGÚN PARTIDO | C104: C4.10
A105: Cuadro 4.11 | B105: DIPUTADOS/AS ELECTOS/AS POR GRUPO DE EDAD SEGÚN PARTIDO | C105: C4.11
A106: Cuadro 4.12 | B106: DIPUTADOS/AS ELECTOS/AS POR SEXO SEGÚN GRUPO DE EDAD | C106: C4.12
A107: Gráfico 4.4 | B107: DISTRIBUCIÓN DE FRECUENCIAS DE DIPUTACIONES SEGÚN GRUPO DE EDAD | C107: G4.4
A108: DIPUTACIONES | B108: LISTA DE DIPUTADOS/AS ELECTOS/AS POR PROVINCIA Y PARTIDO | C108: DIPUTACIONES
A109: PRESIDENCIA | B109: PRESIDENCIA Y VICEPRESIDENCIAS ELECTAS | C109: PRESIDENCIA
B110: ---- CERRAR ---- | C110: CERRAR
A119: RESULTADOS EN ZONAS ESPECIALES
A120: Cuadro 5.1 | B120: RESULTADOS PRESIDENCIA CENTROS PENITENCIARIOS POR PARTIDO POLÍTICO | C120: C5.1
A121: Cuadro 5.2 | B121: RESULTADOS PRESIDENCIA: HOGARES DE ANCIANOS POR PARTIDO POLÍTICO | C121: C5.2
A122: Cuadro 5.3 | B122: RESULTADOS PRESIDENCIA: ZONAS INDÍGENAS POR PARTIDO POLÍTICO | C122: C5.3
A123: Cuadro 5.4 | B123: RESULTADOS DIPUTACIONES: CENTROS PENITENCIARIOS POR PARTIDO POLÍTICO | C123: C5.4
A124: Cuadro 5.5 | B124: RESULTADOS DIPUTACIONES: HOGARES DE ANCIANOS POR PARTIDO POLÍTICO | C124: C5.5
A125: Cuadro 5.6 | B125: RESULTADOS DIPUTACIONES: ZONAS INDÍGENAS POR PARTIDO POLÍTICO | C125: C5.6
B126: ---- CERRAR ---- | C126: CERRAR
A149: QUIEBRE DEL VOTO
A150: Cuadro 6.1 | B150: INDICADOR 1 POR PROVINCIA SEGÚN PARTIDO | C150: C6.1
A151: Cuadro 6.2 | B151: INDICADOR 1 POR PARTIDO SEGÚN PROVINCIA Y CANTÓN | C151: C6.2
A152: Cuadro 6.3 | B152: INDICADOR 2 POR PROVINCIA SEGÚN PARTIDO | C152: C6.3
A153: Cuadro 6.4 | B153: INDICADOR 2 POR PARTIDO SEGÚN PROVINCIA Y CANTÓN | C153: C6.4
A154: Cuadro 6.5 | B154: INDICADOR 2 POR PARTIDO SEGÚN PROVINCIA, CANTÓN Y DISTRITO | C154: C6.5
A155: Mapa 6.1 | B155: MAPA DE QUIEBRE DEL VOTO INDICADOR 2 | C155: M6.1
B156: ---- CERRAR ---- | C156: CERRAR

Sheet C1.1
A2: CUADRO 1.1 COSTA RICA: JUNTAS, ELECTORADO, VOTOS POR PARTIDO, NULOS, BLANCOS Y ABSTENCIONISMO, PARA PRESIDENCIA Y
A3: VICEPRESIDENCIAS DE LA REPÚBLICA, POR PROVINCIA Y EXTRANJERO, ELECCIONES 2 DE FEBRERO 2014
A5: JUNTAS, ELECTORADO, VOTOS POR PARTIDO, NULOS, BLANCOS Y ABSTENCIONISMO | B5: COSTA RICA | C5: PROVINCIA | J5: EXTRANJERO
C6: SAN JOSÉ | D6: ALAJUELA | E6: CARTAGO | F6: HEREDIA | G6: GUANACASTE | H6: PUNTARENAS | I6: LIMÓN
A9: JUNTAS | B9: =SUM(C9:J9) -> 6515 | C9: 2104 | D9: 1259 | E9: 743 | F9: 602 | G9: 542 | H9: 692 | I9: 512 | J9: 61
A11: ELECTORADO | B11: =SUM(C11:J11) -> 3078321 | C11: 1063061 | D11: 577493 | E11: 359985 | F11: 306901 | G11: 221688 | H11: 287254 | I11: 249285 | J11: 12654
A13: VOTOS RECIBIDOS | B13: =SUM(C13:J13) -> 2099219 | C13: =C16+C30+C31 -> 745771 | D13: 407823 | E13: 264532 | F13: 223952 | G13: 140138 | H13: 167515 | I13: 146717 | J13: 2771
A14: PARTICIPACIÓN 1/ | B14: =B13/B11*100 -> 68.19363543 | C14: =C13/C11*100 -> 70.15317089 | D14: 70.61955729 | E14: 73.48417295 | F14: 72.97206591 | G14: 63.21406662 | H14: 58.31598516 | I14: 58.85512566 | J14: 21.898214
A16: VOTOS VÁLIDOS | B16: =SUM(B17:B29) -> 2055472 | C16: =SUM(C17:C29) -> 733256 | D16: 399846 | E16: 258493 | F16: 220575 | G16: 136325 | H16: 162771 | I16: 141489 | J16: 2717
A17: ACCESIBILIDAD SIN EXCLUSIÓN | B17: =SUM(C17:J17) -> 10339 | C17: 3471 | D17: 1729 | E17: 1595 | F17: 926 | G17: 495 | H17: 963 | I17: 1157 | J17: 3
A18: ACCIÓN CIUDADANA | B18: =SUM(C18:J18) -> 629866 | C18: 265637 | D18: 124172 | E18: 89965 | F18: 85093 | G18: 20277 | H18: 22956 | I18: 20619 | J18: 1147
A19: AVANCE NACIONAL | B19: 4388 | C19: 1767 | D19: 639 | E19: 514 | F19: 341 | G19: 271 | H19: 345 | I19: 506 | J19: 5
A20: DE LOS TRABAJADORES | B20: 4897 | C20: 1452 | D20: 1059 | E20: 743 | F20: 477 | G20: 284 | H20: 357 | I20: 519 | J20: 6
A21: FRENTE AMPLIO | B21: 354479 | C21: 111109 | D21: 73333 | E21: 37969 | F21: 36437 | G21: 26099 | H21: 37762 | I21: 31367 | J21: 403
A22: INTEGRACIÓN NACIONAL | B22: 3042 | C22: 1333 | D22: 458 | E22: 440 | F22: 210 | G22: 153 | H22: 246 | I22: 200 | J22: 2
A23: LIBERACIÓN NACIONAL | B23: 610634 | C23: 209006 | D23: 119081 | E23: 71981 | F23: 56900 | G23: 55598 | H23: 55963 | I23: 41368 | J23: 737
A24: MOVIMIENTO LIBERTARIO | B24: 233064 | C24: 73552 | D24: 41389 | E24: 29391 | F24: 21699 | G24: 17413 | H24: 23735 | I24: 25640 | J24: 245
A25: NUEVA GENERACIÓN | B25: 5882 | C25: 2221 | D25: 863 | E25: 893 | F25: 701 | G25: 247 | H25: 449 | I25: 504 | J25: 4
A26: PATRIA NUEVA | B26: 30816 | C26: 10621 | D26: 8511 | E26: 5492 | F26: 2668 | G26: 1212 | H26: 1169 | I26: 1112 | J26: 31
A27: RENOVACIÓN COSTARRICENSE | B27: 16721 | C27: 3857 | D27: 2592 | E27: 867 | F27: 847 | G27: 1854 | H27: 1797 | I27: 4902 | J27: 5
A28: RESTAURACIÓN NACIONAL | B28: 27691 | C28: 10416 | D28: 4577 | E28: 2286 | F28: 2738 | G28: 1732 | H28: 3260 | I28: 2666 | J28: 16
A29: UNIDAD SOCIAL CRISTIANA | B29: 123653 | C29: 38814 | D29: 21443 | E29: 16357 | F29: 11538 | G29: 10690 | H29: 13769 | I29: 10929 | J29: 113
A30: VOTOS NULOS | B30: =SUM(C30:J30) -> 38021 | C30: 11097 | D30: 7029 | E30: 5277 | F30: 2982 | G30: 3174 | H30: 4008 | I30: 4402 | J30: 52
A31: VOTOS BLANCOS | B31: =SUM(C31:J31) -> 5726 | C31: 1418 | D31: 948 | E31: 762 | F31: 395 | G31: 639 | H31: 736 | I31: 826 | J31: 2
A33: ABSTENCIONISMO | B33: =SUM(C33:J33) -> 979102 | C33: =C11-C13 -> 317290 | D33: =D11-D13 -> 169670 | E33: 95453 | F33: 82949 | G33: 81550 | H33: 119739 | I33: 102568 | J33: =J11-J13 -> 9883
B34: =B33/B11*100 -> 31.80636457 | C34: 29.84682911 | D34: 29.38044271 | E34: 26.51582705 | F34: 27.02793409 | G34: 36.78593338 | H34: 41.68401484 | I34: 41.14487434 | J34: 78.101786
A37: 1/ Porcentaje de participación: se calcula dividiendo la cantidad de votos recibidos entre el electorado inscrito.
A39: FUENTE: Tribunal Supremo de Elecciones.

Sheet G1.1
A2: GRÁFICO 1.1 COSTA RICA: PORCENTAJE DE VOTOS VÁLIDOS, PARA PRESIDENCIA Y VICEPRESIDENCIAS DE LA REPÚBLICA
A3: SEGÚN PARTIDO POLÍTICO, ELECCIONES 2 DE FEBRERO 2014
A8: INTEGRACIÓN NACIONAL | B8: 3042 | C8: =+B8/$B$22 -> 0.00147995205
A9: AVANCE NACIONAL | B9: 4388 | C9: =+B9/$B$22 -> 0.002134789479
A10: DE LOS TRABAJADORES | B10: 4897 | C10: 0.002382421167
A11: NUEVA GENERACIÓN | B11: 5882 | C11: 0.002861629835
A12: ACCESIBILIDAD SIN EXCLUSIÓN | B12: 10339 | C12: 0.005029988246
A13: RENOVACIÓN COSTARRICENSE | B13: 16721 | C13: 0.008134871212
A14: RESTAURACIÓN NACIONAL | B14: 27691 | C14: 0.01347184491
A15: PATRIA NUEVA | B15: 30816 | C15: 0.01499217698
A16: UNIDAD SOCIAL CRISTIANA | B16: 123653 | C16: 0.06015795885
A17: MOVIMIENTO LIBERTARIO | B17: 233064 | C17: 0.1133870955
A18: FRENTE AMPLIO | B18: 354479 | C18: 0.1724562534
A19: LIBERACIÓN NACIONAL | B19: 610634 | C19: 0.297077265
A20: ACCIÓN CIUDADANA | B20: 629866 | C20: 0.3064337534
B22: =SUM(B8:B21) -> 2055472
A40: FUENTE: Cuadro 1.

Sheet C1.2
A2: CUADRO 1.2 COSTA RICA: JUNTAS, ELECTORADO, PARTICIPACIÓN, VOTOS POR PARTIDO, NULOS, BLANCOS Y ABSTENCIONISMO, PARA PRESIDENCIA Y VICEPRESIDENCIAS DE LA REPÚBLICA, SEGÚN PROVINCIA, CANTÓN Y EXTRANJERO ELECCIONES 2 DE FEBRERO 2014
A4: PROVINCIA, CANTÓN Y EXTRANJERO | B4: JUNTAS | C4: ELECTORADO | D4: VOTOS RECIBIDOS | V4: ABSTENCIONISMO
D5: TOTAL GENERAL | E5: % PARTICIPACIÓN | F5: VOTOS VÁLIDOS | T5: NULOS | U5: BLANCOS | V5: ABSOLUTO | W5: %
F6: TOTAL | G6: ACCESIBILIDAD SIN EXCLUSIÓN | H6: ACCIÓN CIUDADANA | I6: AVANCE NACIONAL | J6: DE LOS TRABAJADORES | K6: FRENTE AMPLIO | L6: INTEGRACIÓN NACIONAL | M6: LIBERACIÓN NACIONAL | N6: MOVIMIENTO LIBERTARIO | O6: NUEVA GENERACIÓN | P6: PATRIA NUEVA | Q6: RENOVACIÓN COSTARRICENSE | R6: RESTAURACIÓN NACIONAL | S6: UNIDAD SOCIAL CRISTIANA
A8: COSTA RICA | B8: =B9+B30+B46+B55+B66+B78+B90+B97 -> 6515 | C8: =C9+C30+C46+C55+C66+C78+C90+C97 -> 3078321 | D8: =D9+D30+D46+D55+D66+D78+D90+D97 -> 2099219 | E8: =D8/C8*100 -> 68.19363543 | F8: =F9+F30+F46+F55+F66+F78+F90+F97 -> 2055472 | G8: 10339 | H8: 629866 | I8: 4388 | J8: 4897 | K8: 354479 | L8: 3042 | M8: 610634 | N8: 233064 | O8: 5882 | P8: 30816 | Q8: 16721 | R8: 27691 | S8: 123653 | T8: 38021 | U8: 5726 | V8: 979102 | W8: =V8/C8*100 -> 31.80636457
A9: PROVINCIA SAN JOSÉ | B9: =SUM(B10:B29) -> 2104 | C9: =SUM(C10:C29) -> 1063061 | D9: 745771 | E9: =D9/C9*100 -> 70.15317089 | F9: 733256 | G9: 3471 | H9: =SUM(H10:H29) -> 265637 | I9: 1767 | J9: 1452 | K9: 111109 | L9: 1333 | M9: 209006 | N9: 73552 | O9: 2221 | P9: =SUM(P10:P29) -> 10621 | Q9: 3857 | R9: 10416 | S9: 38814 | T9: 11097 | U9: 1418 | V9: 317290 | W9: =V9/C9*100 -> 29.84682911
A10: SAN JOSÉ | B10: 414 | C10: 228847 | D10: =F10+U10+T10 -> 157773 | E10: =D10/C10*100 -> 68.94256862 | F10: =SUM(G10:S10) -> 155226 | G10: 682 | H10: 53830 | I10: 428 | J10: 279 | K10: 23528 | L10: 266 | M10: 45998 | N10: 16014 | O10: 464 | P10: 2613 | Q10: 890 | R10: 2254 | S10: 7980 | T10: 2341 | U10: 206 | V10: 71074 | W10: =V10/C10*100 -> 31.05743138
A11: ESCAZÚ | B11: 81 | C11: 43354 | D11: 31702 | E11: =D11/C11*100 -> 73.12358721 | F11: 31285 | G11: 150 | H11: 10490 | I11: 53 | J11: 69 | K11: 3314 | L11: 27 | M11: 9661 | N11: 5069 | O11: 123 | P11: 460 | Q11: 145 | R11: 219 | S11: 1505 | T11: 381 | U11: 36 | V11: 11652 | W11: 26.87641279
A12: DESAMPARADOS | B12: 291 | C12: 152242 | D12: 106570 | E12: 70.00039411 | F12: 104722 | G12: 557 | H12: 37446 | I12: 221 | J12: 227 | K12: 16785 | L12: 298 | M12: 29244 | N12: 9961 | O12: 314 | P12: 1421 | Q12: 630 | R12: 1693 | S12: 5925 | T12: 1657 | U12: 191 | V12: 45672 | W12: 29.99960589
A13: PURISCAL | B13: 71 | C13: 26459 | D13: 18908 | E13: 71.46150648 | F13: 18544 | G13: 77 | H13: 5445 | I13: 35 | J13: 42 | K13: 2880 | L13: 24 | M13: 7255 | N13: 1247 | O13: 37 | P13: 179 | Q13: 66 | R13: 128 | S13: 1129 | T13: 282 | U13: 82 | V13: 7551 | W13: 28.53849352
A14: TARRAZÚ | B14: 27 | C14: 11458 | D14: 7499 | E14: 65.44772212 | F14: 7336 | G14: 43 | H14: 1976 | I14: 24 | J14: 16 | K14: 1594 | L14: 10 | M14: 2365 | N14: 488 | O14: 15 | P14: 68 | Q14: 30 | R14: 45 | S14: 662 | T14: 131 | U14: 32 | V14: 3959 | W14: 34.55227788
A15: ASERRÍ | B15: 81 | C15: 40321 | D15: 27861 | E15: 69.09798864 | F15: 27278 | G15: 201 | H15: 8409 | I15: 81 | J15: 56 | K15: 4841 | L15: 41 | M15: 8889 | N15: 2455 | O15: 74 | P15: 362 | Q15: 139 | R15: 228 | S15: 1502 | T15: 521 | U15: 62 | V15: 12460 | W15: 30.90201136
A16: MORA | B16: 43 | C16: 19190 | D16: 13820 | E16: 72.01667535 | F16: 13470 | G16: 68 | H16: 4569 | I16: 40 | J16: 31 | K16: 1957 | L16: 13 | M16: 4041 | N16: 1382 | O16: 69 | P16: 155 | Q16: 86 | R16: 147 | S16: 912 | T16: 303 | U16: 47 | V16: 5370 | W16: 27.98332465
A17: GOICOECHEA | B17: 160 | C17: 87701 | D17: 62019 | E17: 70.71641144 | F17: 61113 | G17: 292 | H17: 25354 | I17: 159 | J17: 123 | K17: 9265 | L17: 151 | M17: 14661 | N17: 5803 | O17: 219 | P17: 985 | Q17: 290 | R17: 972 | S17: 2839 | T17: 808 | U17: 98 | V17: 25682 | W17: 29.28358856
A18: SANTA ANA | B18: 61 | C18: 31041 | D18: 22733 | E18: 73.23539834 | F18: 22353 | G18: 55 | H18: 8030 | I18: 23 | J18: 30 | K18: 2328 | L18: 23 | M18: 6697 | N18: 3410 | O18: 43 | P18: 251 | Q18: 71 | R18: 213 | S18: 1179 | T18: 338 | U18: 42 | V18: 8308 | W18: 26.76460166
A19: ALAJUELITA | B19: 85 | C19: 47597 | D19: 31009 | E19: 65.14906402 | F19: 30259 | G19: 234 | H19: 9085 | I19: 138 | J19: 85 | K19: 5225 | L19: 80 | M19: 7946 | N19: 4107 | O19: 99 | P19: 480 | Q19: 314 | R19: 669 | S19: 1797 | T19: 703 | U19: 47 | V19: 16588 | W19: 34.85093598
A20: VÁZQUEZ DE CORONADO | B20: 94 | C20: 49673 | D20: 36702 | E20: 73.88722243 | F20: 36196 | G20: 168 | H20: 15994 | I20: 94 | J20: 89 | K20: 5333 | L20: 78 | M20: 8559 | N20: 3154 | O20: 110 | P20: 517 | Q20: 131 | R20: 450 | S20: 1519 | T20: 454 | U20: 52 | V20: 12971 | W20: 26.11277757
A21: ACOSTA | B21: 43 | C21: 15551 | D21: 10841 | E21: 69.71255868 | F21: 10603 | G21: 43 | H21: 2665 | I21: 35 | J21: 26 | K21: 2279 | L21: 5 | M21: 3998 | N21: 684 | O21: 20 | P21: 85 | Q21: 58 | R21: 62 | S21: 643 | T21: 204 | U21: 34 | V21: 4710 | W21: 30.28744132
A22: TIBÁS | B22: 103 | C22: 55540 | D22: 39801 | E22: 71.66186532 | F22: 39227 | G22: 145 | H22: 15913 | I22: 95 | J22: 61 | K22: 5236 | L22: 46 | M22: 10188 | N22: 3826 | O22: 125 | P22: 829 | Q22: 191 | R22: 694 | S22: 1878 | T22: 516 | U22: 58 | V22: 15739 | W22: 28.33813468
A23: MORAVIA | B23: 79 | C23: 42357 | D23: 31629 | E23: 74.67242723 | F23: 31266 | G23: 95 | H23: 14187 | I23: 54 | J23: 50 | K23: 4155 | L23: 47 | M23: 7461 | N23: 2916 | O23: 98 | P23: 411 | Q23: 91 | R23: 410 | S23: 1291 | T23: 325 | U23: 38 | V23: 10728 | W23: 25.32757277
A24: MONTES DE OCA | B24: 79 | C24: 41489 | D24: 31207 | E24: 75.21752754 | F24: 30887 | G24: 47 | H24: 14417 | I24: 85 | J24: 44 | K24: 4766 | L24: 86 | M24: 7007 | N24: 2557 | O24: 109 | P24: 406 | Q24: 65 | R24: 199 | S24: 1099 | T24: 292 | U24: 28 | V24: 10282 | W24: 24.78247246
A25: TURRUBARES | B25: 16 | C25: 4375 | D25: 3008 | E25: 68.75428571 | F25: 2957 | G25: 8 | H25: 572 | I25: 9 | J25: 3 | K25: 375 | L25: 4 | M25: 1503 | N25: 278 | O25: 5 | P25: 33 | Q25: 14 | R25: 4 | S25: 149 | T25: 45 | U25: 6 | V25: 1367 | W25: 31.24571429
A26: DOTA | B26: 14 | C26: 5193 | D26: 3578 | E26: 68.9004429 | F26: 3523 | G26: 14 | H26: 1391 | I26: 4 | J26: 9 | K26: 585 | L26: 7 | M26: 1156 | N26: 151 | O26: 4 | P26: 35 | Q26: 9 | R26: 14 | S26: 144 | T26: 43 | U26: 12 | V26: 1615 | W26: 31.0995571
A27: CURRIDABAT | B27: 89 | C27: 46270 | D27: 33978 | E27: 73.43419062 | F27: 33495 | G27: 159 | H27: 14052 | I27: 59 | J27: 44 | K27: 3830 | L27: 57 | M27: 8431 | N27: 4360 | O27: 92 | P27: 380 | Q27: 172 | R27: 316 | S27: 1543 | T27: 442 | U27: 41 | V27: 12292 | W27: 26.56580938
A28: PÉREZ ZELEDÓN | B28: 247 | C28: 105670 | D28: 69239 | E28: 65.52380051 | F28: 67754 | G28: 387 | H28: 20634 | I28: 121 | J28: 143 | K28: 11634 | L28: 62 | M28: 21657 | N28: 5250 | O28: 186 | P28: 911 | Q28: 439 | R28: 1663 | S28: 4667 | T28: 1216 | U28: 269 | V28: 36431 | W28: 34.47619949
A29: LEÓN CORTÉS | B29: 26 | C29: 8733 | D29: 5894 | E29: 67.49112562 | F29: 5762 | G29: 46 | H29: 1178 | I29: 9 | J29: 25 | K29: 1199 | L29: 8 | M29: 2289 | N29: 440 | O29: 15 | P29: 40 | Q29: 26 | R29: 36 | S29: 451 | T29: 95 | U29: 37 | V29: 2839 | W29: 32.50887438
A30: PROVINCIA ALAJUELA | B30: 1259 | C30: 577493 | D30: =SUM(D31:D45) -> 407823 | E30: 70.61955729 | F30: =SUM(F31:F45) -> 399846 | G30: 1729 | H30: 124172 | I30: 639 | J30: 1059 | K30: 73333 | L30: 458 | M30: 119081 | N30: 41389 | O30: 863 | P30: 8511 | Q30: 2592 | R30: 4577 | S30: 21443 | T30: 7029 | U30: 948 | V30: 169670 | W30: 29.38044271
A31: ALAJUELA | B31: 365 | C31: 185688 | D31: =F31+U31+T31 -> 128287 | E31: =D31/C31*100 -> 69.08739391 | F31: =SUM(G31:S31) -> 125921 | G31: 685 | H31: 42861 | I31: 216 | J31: 308 | K31: 20403 | L31: 149 | M31: 35541 | N31: 14668 | O31: 322 | P31: 1476 | Q31: 790 | R31: 1496 | S31: 7006 | T31: 2184 | U31: 182 | V31: 57401 | W31: 30.91260609
A32: SAN RAMÓN | B32: 130 | C32: 58067 | D32: 42476 | E32: 73.14998192 | F32: 41689 | G32: 144 | H32: 14112 | I32: 62 | J32: 130 | K32: 11614 | L32: 48 | M32: 9903 | N32: 2303 | O32: 84 | P32: 1284 | Q32: 200 | R32: 345 | S32: 1460 | T32: 663 | U32: 124 | V32: 15591 | W32: 26.85001808
A33: GRECIA | B33: 123 | C33: 55007 | D33: 40649 | E33: 73.89786754 | F33: 39923 | G33: 161 | H33: 15089 | I33: 69 | J33: 82 | K33: 6518 | L33: 40 | M33: 10781 | N33: 3982 | O33: 73 | P33: 606 | Q33: 170 | R33: 551 | S33: 1801 | T33: 645 | U33: 81 | V33: 14358 | W33: 26.10213246
A34: SAN MATEO | B34: 11 | C34: 4044 | D34: 2812 | E34: 69.53511375 | F34: 2762 | G34: 8 | H34: 458 | I34: 5 | J34: 2 | K34: 575 | L34: 4 | M34: 1240 | N34: 251 | O34: 12 | P34: 28 | Q34: 10 | R34: 9 | S34: 160 | T34: 47 | U34: 3 | V34: 1232 | W34: 30.46488625
A35: ATENAS | B35: 40 | C35: 18923 | D35: 14257 | E35: 75.34217619 | F35: 14045 | G35: 43 | H35: 5688 | I35: 15 | J35: 24 | K35: 2573 | L35: 33 | M35: 3864 | N35: 730 | O35: 24 | P35: 131 | Q35: 103 | R35: 75 | S35: 742 | T35: 179 | U35: 33 | V35: 4666 | W35: 24.65782381
A36: NARANJO | B36: 64 | C36: 29894 | D36: 21896 | E36: 73.24546732 | F36: 21433 | G36: 85 | H36: 6593 | I36: 21 | J36: 64 | K36: 4479 | L36: 38 | M36: 6354 | N36: 1894 | O36: 40 | P36: 182 | Q36: 88 | R36: 303 | S36: 1292 | T36: 401 | U36: 62 | V36: 7998 | W36: 26.75453268
A37: PALMARES | B37: 55 | C37: 27132 | D37: 20950 | E37: 77.21509656 | F37: 20545 | G37: 34 | H37: 5203 | I37: 30 | J37: 35 | K37: 4642 | L37: 9 | M37: 8785 | N37: 581 | O37: 43 | P37: 241 | Q37: 49 | R37: 238 | S37: 655 | T37: 351 | U37: 54 | V37: 6182 | W37: 22.78490344
A38: POÁS | B38: 41 | C38: 19747 | D38: 14983 | E38: 75.87481643 | F38: 14714 | G38: 68 | H38: 4686 | I38: 20 | J38: 33 | K38: 2312 | L38: 24 | M38: 4491 | N38: 1954 | O38: 29 | P38: 267 | Q38: 64 | R38: 209 | S38: 557 | T38: 240 | U38: 29 | V38: 4764 | W38: 24.12518357
A39: OROTINA | B39: 31 | C39: 14116 | D39: 9002 | E39: 63.77160669 | F39: 8828 | G39: 37 | H39: 1522 | I39: 12 | J39: 12 | K39: 1601 | L39: 4 | M39: 3823 | N39: 710 | O39: 22 | P39: 62 | Q39: 30 | R39: 90 | S39: 903 | T39: 147 | U39: 27 | V39: 5114 | W39: 36.22839331
A40: SAN CARLOS | B40: 227 | C40: 97702 | D40: 68707 | E40: 70.32302307 | F40: 67380 | G40: 281 | H40: 19998 | I40: 112 | J40: 187 | K40: 10035 | L40: 59 | M40: 19664 | N40: 8071 | O40: 125 | P40: 3787 | Q40: 642 | R40: 526 | S40: 3893 | T40: 1175 | U40: 152 | V40: 28995 | W40: 29.67697693
A41: ZARCERO | B41: 22 | C41: 8490 | D41: 7015 | E41: 82.62661955 | F41: 6907 | G41: 14 | H41: 2126 | I41: 11 | J41: 8 | K41: 1034 | L41: 6 | M41: 2734 | N41: 304 | O41: 19 | P41: 127 | Q41: 18 | R41: 35 | S41: 471 | T41: 94 | U41: 14 | V41: 1475 | W41: 17.37338045
A42: VALVERDE VEGA | B42: 30 | C42: 13710 | D42: 9646 | E42: 70.35740336 | F42: 9481 | G42: 27 | H42: 2640 | I42: 18 | J42: 11 | K42: 1864 | L42: 5 | M42: 2461 | N42: 1454 | O42: 28 | P42: 89 | Q42: 39 | R42: 260 | S42: 585 | T42: 140 | U42: 25 | V42: 4064 | W42: 29.64259664
A43: UPALA | B43: 65 | C43: 24597 | D43: 14461 | E43: 58.79172257 | F43: 13940 | G43: 86 | H43: 1581 | I43: 23 | J43: 38 | K43: 2821 | L43: 17 | M43: 5192 | N43: 2576 | O43: 21 | P43: 69 | Q43: 175 | R43: 181 | S43: 1160 | T43: 419 | U43: 102 | V43: 10136 | W43: 41.20827743
A44: LOS CHILES | B44: 29 | C44: 10457 | D44: 6306 | E44: 60.30410252 | F44: 6094 | G44: 25 | H44: 806 | I44: 13 | J44: 114 | K44: 1787 | L44: 13 | M44: 1712 | N44: 891 | O44: 11 | P44: 123 | Q44: 96 | R44: 114 | S44: 389 | T44: 178 | U44: 34 | V44: 4151 | W44: 39.69589748
A45: GUATUSO | B45: 26 | C45: 9919 | D45: 6376 | E45: 64.28067345 | F45: 6184 | G45: 31 | H45: 809 | I45: 12 | J45: 11 | K45: 1075 | L45: 9 | M45: 2536 | N45: 1020 | O45: 10 | P45: 39 | Q45: 118 | R45: 145 | S45: 369 | T45: 166 | U45: 26 | V45: 3543 | W45: 35.71932655
A46: PROVINCIA CARTAGO | B46: 743 | C46: 359985 | D46: =SUM(D47:D54) -> 264532 | E46: 73.48417295 | F46: 258493 | G46: 1595 | H46: 89965 | I46: 514 | J46: 743 | K46: 37969 | L46: 440 | M46: 71981 | N46: 29391 | O46: 893 | P46: 5492 | Q46: 867 | R46: 2286 | S46: 16357 | T46: 5277 | U46: 762 | V46: 95453 | W46: 26.51582705
A47: CARTAGO | B47: 221 | C47: 113463 | D47: =F47+U47+T47 -> 86960 | E47: =D47/C47*100 -> 76.64172462 | F47: =SUM(G47:S47) -> 85190 | G47: 517 | H47: 31893 | I47: 184 | J47: 234 | K47: 11462 | L47: 137 | M47: 23709 | N47: 9497 | O47: 307 | P47: 1841 | Q47: 194 | R47: 671 | S47: 4544 | T47: 1519 | U47: 251 | V47: 26503 | W47: 23.35827538
A48: PARAÍSO | B48: 87 | C48: 43000 | D48: 32179 | E48: 74.83488372 | F48: 31241 | G48: 170 | H48: 9947 | I48: 36 | J48: 75 | K48: 5359 | L48: 40 | M48: 7708 | N48: 3790 | O48: 87 | P48: 1346 | Q48: 80 | R48: 303 | S48: 2300 | T48: 856 | U48: 82 | V48: 10821 | W48: 25.16511628
A49: LA UNIÓN | B49: 122 | C49: 64441 | D49: 46227 | E49: 71.73538586 | F49: 45415 | G49: 267 | H49: 18051 | I49: 92 | J49: 124 | K49: 6042 | L49: 124 | M49: 11194 | N49: 5446 | O49: 158 | P49: 705 | Q49: 225 | R49: 482 | S49: 2505 | T49: 737 | U49: 75 | V49: 18214 | W49: 28.26461414
A50: JIMÉNEZ | B50: 29 | C50: 11308 | D50: 8095 | E50: 71.58648744 | F50: 7852 | G50: 85 | H50: 1791 | I50: 13 | J50: 28 | K50: 1581 | L50: 21 | M50: 2718 | N50: 832 | O50: 42 | P50: 85 | Q50: 46 | R50: 60 | S50: 550 | T50: 207 | U50: 36 | V50: 3213 | W50: 28.41351256
A51: TURRIALBA | B51: 135 | C51: 54654 | D51: 36628 | E51: 67.01796758 | F51: 35697 | G51: 214 | H51: 9931 | I51: 86 | J51: 114 | K51: 6833 | L51: 55 | M51: 11487 | N51: 3202 | O51: 110 | P51: 316 | Q51: 187 | R51: 314 | S51: 2848 | T51: 786 | U51: 145 | V51: 18026 | W51: 32.98203242
A52: ALVARADO | B52: 21 | C52: 9484 | D52: 6739 | E52: 71.05651624 | F52: 6552 | G52: 39 | H52: 2289 | I52: 12 | J52: 17 | K52: 797 | L52: 14 | M52: 1808 | N52: 819 | O52: 19 | P52: 179 | Q52: 18 | R52: 48 | S52: 493 | T52: 159 | U52: 28 | V52: 2745 | W52: 28.94348376
A53: OREAMUNO | B53: 66 | C53: 33361 | D53: 24644 | E53: 73.87068733 | F53: 24043 | G53: 159 | H53: 8531 | I53: 54 | J53: 91 | K53: 3111 | L53: 21 | M53: 6448 | N53: 3185 | O53: 85 | P53: 648 | Q53: 55 | R53: 189 | S53: 1466 | T53: 532 | U53: 69 | V53: 8717 | W53: 26.12931267
A54: EL GUARCO | B54: 62 | C54: 30274 | D54: 23060 | E54: 76.17097179 | F54: 22503 | G54: 144 | H54: 7532 | I54: 37 | J54: 60 | K54: 2784 | L54: 28 | M54: 6909 | N54: 2620 | O54: 85 | P54: 372 | Q54: 62 | R54: 219 | S54: 1651 | T54: 481 | U54: 76 | V54: 7214 | W54: 23.82902821
A55: PROVINCIA HEREDIA | B55: 602 | C55: 306901 | D55: =SUM(D56:D65) -> 223952 | E55: 72.97206591 | F55: 220575 | G55: 926 | H55: 85093 | I55: 341 | J55: 477 | K55: 36437 | L55: 210 | M55: 56900 | N55: 21699 | O55: 701 | P55: 2668 | Q55: 847 | R55: 2738 | S55: 11538 | T55: 2982 | U55: 395 | V55: 82949 | W55: 265.462344
A56: HEREDIA | B56: 170 | C56: 90600 | D56: =F56+U56+T56 -> 66176 | E56: =D56/C56*100 -> 73.0419426 | F56: =SUM(G56:S56) -> 65351 | G56: 229 | H56: 26348 | I56: 92 | J56: 169 | K56: 10388 | L56: 50 | M56: 16754 | N56: 6412 | O56: 230 | P56: 844 | Q56: 172 | R56: 680 | S56: 2983 | T56: 737 | U56: 88 | V56: 24424 | W56: =V56/C56*100 -> 26.9580574
A57: BARVA | B57: 59 | C57: 30088 | D57: 22747 | E57: 75.60156873 | F57: 22405 | G57: 77 | H57: 9391 | I57: 49 | J57: 44 | K57: 4009 | L57: 26 | M57: 5382 | N57: 1799 | O57: 60 | P57: 268 | Q57: 50 | R57: 233 | S57: 1017 | T57: 307 | U57: 35 | V57: 7341 | W57: 24.39843127
A58: SANTO DOMINGO | B58: 63 | C58: 32559 | D58: 24646 | E58: 75.69642802 | F58: 24286 | G58: 112 | H58: 10476 | I58: 39 | J58: 40 | K58: 3063 | L58: 25 | M58: 6289 | N58: 2180 | O58: 73 | P58: 299 | Q58: 84 | R58: 293 | S58: 1313 | T58: 317 | U58: 43 | V58: 7913 | W58: 24.30357198
A59: SANTA BÁRBARA | B59: 48 | C59: 24726 | D59: 17874 | E59: 72.28827954 | F59: 17561 | G59: 70 | H59: 6597 | I59: 37 | J59: 33 | K59: 2921 | L59: 21 | M59: 4680 | N59: 1704 | O59: 44 | P59: 233 | Q59: 51 | R59: 253 | S59: 917 | T59: 285 | U59: 28 | V59: 6852 | W59: 27.71172046
A60: SAN RAFAEL | B60: 60 | C60: 32186 | D60: 23079 | E60: 71.70508917 | F60: 22729 | G60: 126 | H60: 9127 | I60: 44 | J60: 48 | K60: 4262 | L60: 21 | M60: 5325 | N60: 2031 | O60: 73 | P60: 350 | Q60: 57 | R60: 248 | S60: 1017 | T60: 313 | U60: 37 | V60: 9107 | W60: 28.29491083
A61: SAN ISIDRO | B61: 28 | C61: 14503 | D61: 10822 | E61: 74.61904434 | F61: 10671 | G61: 45 | H61: 4312 | I61: 8 | J61: 26 | K61: 1655 | L61: 11 | M61: 2861 | N61: 901 | O61: 40 | P61: 127 | Q61: 40 | R61: 119 | S61: 526 | T61: 128 | U61: 23 | V61: 3681 | W61: 25.38095566
A62: BELÉN | B62: 33 | C62: 17266 | D62: 13281 | E62: 76.9199583 | F62: 13130 | G62: 33 | H62: 4749 | I62: 12 | J62: 23 | K62: 1781 | L62: 11 | M62: 3829 | N62: 1414 | O62: 32 | P62: 110 | Q62: 19 | R62: 45 | S62: 1072 | T62: 129 | U62: 22 | V62: 3985 | W62: 23.0800417
A63: FLORES | B63: 29 | C63: 15087 | D63: 11641 | E63: 77.15914363 | F63: 11512 | G63: 39 | H63: 5086 | I63: 9 | J63: 15 | K63: 1349 | L63: 14 | M63: 3106 | N63: 1011 | O63: 43 | P63: 111 | Q63: 24 | R63: 91 | S63: 614 | T63: 118 | U63: 11 | V63: 3446 | W63: 22.84085637
A64: SAN PABLO | B64: 38 | C64: 20119 | D64: 15109 | E64: 75.09816591 | F64: 14890 | G64: 52 | H64: 6208 | I64: 23 | J64: 21 | K64: 2392 | L64: 12 | M64: 3473 | N64: 1125 | O64: 58 | P64: 186 | Q64: 57 | R64: 136 | S64: 1147 | T64: 190 | U64: 29 | V64: 5010 | W64: 24.90183409
A65: SARAPIQUÍ | B65: 74 | C65: 29767 | D65: 18577 | E65: 62.40803574 | F65: 18040 | G65: 143 | H65: 2799 | I65: 28 | J65: 58 | K65: 4617 | L65: 19 | M65: 5201 | N65: 3122 | O65: 48 | P65: 140 | Q65: 293 | R65: 640 | S65: 932 | T65: 458 | U65: 79 | V65: 11190 | W65: 37.59196426
A66: PROVINCIA GUANACASTE | B66: 542 | C66: 221688 | D66: =SUM(D67:D77) -> 140138 | E66: 63.21406662 | F66: 136325 | G66: 495 | H66: 20277 | I66: 271 | J66: 284 | K66: 26099 | L66: 153 | M66: 55598 | N66: 17413 | O66: 247 | P66: 1212 | Q66: 1854 | R66: 1732 | S66: 10690 | T66: 3174 | U66: 639 | V66: 81550 | W66: 36.78593338
A67: LIBERIA | B67: 81 | C67: 41245 | D67: =F67+U67+T67 -> 24524 | E67: =D67/C67*100 -> 59.4593284 | F67: =SUM(G67:S67) -> 24023 | G67: 101 | H67: 4554 | I67: 38 | J67: 57 | K67: 4356 | L67: 20 | M67: 8734 | N67: 2960 | O67: 55 | P67: 203 | Q67: 487 | R67: 311 | S67: 2147 | T67: 406 | U67: 95 | V67: 16721 | W67: 40.5406716
A68: NICOYA | B68: 105 | C68: 38300 | D68: 26008 | E68: 67.90600522 | F68: 25268 | G68: 73 | H68: 2800 | I68: 33 | J68: 52 | K68: 5186 | L68: 36 | M68: 11069 | N68: 3321 | O68: 61 | P68: 192 | Q68: 205 | R68: 227 | S68: 2013 | T68: 625 | U68: 115 | V68: 12292 | W68: 32.09399478
A69: SANTA CRUZ | B69: 88 | C69: 37832 | D69: 23337 | E69: 61.68587439 | F69: 22601 | G69: 93 | H69: 2791 | I69: 91 | J69: 54 | K69: 4629 | L69: 29 | M69: 9345 | N69: 2752 | O69: 39 | P69: 206 | Q69: 260 | R69: 213 | S69: 2099 | T69: 599 | U69: 137 | V69: 14495 | W69: 38.31412561
A70: BAGACES | B70: 31 | C70: 12446 | D70: 7582 | E70: 60.91917082 | F70: 7332 | G70: 33 | H70: 1618 | I70: 13 | J70: 22 | K70: 1377 | L70: 15 | M70: 2492 | N70: 937 | O70: 12 | P70: 55 | Q70: 127 | R70: 110 | S70: 521 | T70: 216 | U70: 34 | V70: 4864 | W70: 39.08082918
A71: CARRILLO | B71: 47 | C71: 22180 | D71: 13097 | E71: 59.04869252 | F71: 12741 | G71: 44 | H71: 1336 | I71: 40 | J71: 15 | K71: 1542 | L71: 7 | M71: 5827 | N71: 2216 | O71: 12 | P71: 95 | Q71: 241 | R71: 118 | S71: 1248 | T71: 279 | U71: 77 | V71: 9083 | W71: 40.95130748
A72: CAÑAS | B72: 39 | C72: 18440 | D72: 11409 | E72: 61.87093275 | F72: 11052 | G72: 33 | H72: 2025 | I72: 16 | J72: 25 | K72: 2084 | L72: 13 | M72: 4516 | N72: 1148 | O72: 15 | P72: 68 | Q72: 58 | R72: 410 | S72: 641 | T72: 317 | U72: 40 | V72: 7031 | W72: 38.12906725
A73: ABANGARES | B73: 37 | C73: 12801 | D73: 8442 | E73: 65.94797281 | F73: 8203 | G73: 37 | H73: 1228 | I73: 7 | J73: 10 | K73: 1896 | L73: 10 | M73: 3365 | N73: 981 | O73: 11 | P73: 46 | Q73: 67 | R73: 102 | S73: 443 | T73: 209 | U73: 30 | V73: 4359 | W73: 34.05202719
A74: TILARÁN | B74: 39 | C74: 14132 | D74: 9941 | E74: 70.34390037 | F74: 9763 | G74: 32 | H74: 2382 | I74: 5 | J74: 17 | K74: 1908 | L74: 7 | M74: 3287 | N74: 1000 | O74: 12 | P74: 143 | Q74: 110 | R74: 84 | S74: 776 | T74: 148 | U74: 30 | V74: 4191 | W74: 29.65609963
A75: NANDAYURE | B75: 29 | C75: 7979 | D75: 5647 | E75: 70.77327986 | F75: 5470 | G75: 18 | H75: 482 | I75: 8 | J75: 9 | K75: 1376 | L75: 8 | M75: 2550 | N75: 486 | O75: 10 | P75: 164 | Q75: 77 | R75: 90 | S75: 192 | T75: 141 | U75: 36 | V75: 2332 | W75: 29.22672014
A76: LA CRUZ | B76: 28 | C76: 10846 | D76: 6165 | E76: 56.84123179 | F76: 5966 | G76: 10 | H76: 411 | I76: 16 | J76: 10 | K76: 1100 | L76: 5 | M76: 2547 | N76: 1255 | O76: 5 | P76: 16 | Q76: 130 | R76: 41 | S76: 420 | T76: 166 | U76: 33 | V76: 4681 | W76: 43.15876821
A77: HOJANCHA | B77: 18 | C77: 5487 | D77: 3986 | E77: 72.64443229 | F77: 3906 | G77: 21 | H77: 650 | I77: 4 | J77: 13 | K77: 645 | L77: 3 | M77: 1866 | N77: 357 | O77: 15 | P77: 24 | Q77: 92 | R77: 26 | S77: 190 | T77: 68 | U77: 12 | V77: 1501 | W77: 27.35556771
A78: PROVINCIA PUNTARENAS | B78: 692 | C78: 287254 | D78: =SUM(D79:D89) -> 167515 | E78: 58.31598516 | F78: 162771 | G78: 963 | H78: 22956 | I78: 345 | J78: 357 | K78: 37762 | L78: 246 | M78: 55963 | N78: 23735 | O78: 449 | P78: 1169 | Q78: 1797 | R78: 3260 | S78: 13769 | T78: 4008 | U78: 736 | V78: 119739 | W78: 41.68401484
A79: PUNTARENAS | B79: 191 | C79: 82240 | D79: =F79+U79+T79 -> 49618 | E79: =D79/C79*100 -> 60.33317121 | F79: =SUM(G79:S79) -> 48387 | G79: 245 | H79: 6341 | I79: 122 | J79: 109 | K79: 10535 | L79: 71 | M79: 17146 | N79: 7057 | O79: 102 | P79: 383 | Q79: 444 | R79: 600 | S79: 5232 | T79: 1049 | U79: 182 | V79: 32622 | W79: 39.66682879
A80: ESPARZA | B80: 46 | C80: 20599 | D80: 14141 | E80: 68.64896354 | F80: 13928 | G80: 51 | H80: 2393 | I80: 36 | J80: 18 | K80: 2890 | L80: 12 | M80: 5016 | N80: 2165 | O80: 22 | P80: 134 | Q80: 80 | R80: 98 | S80: 1013 | T80: 190 | U80: 23 | V80: 6458 | W80: 31.35103646
A81: BUENOS AIRES | B81: 79 | C81: 29985 | D81: 16994 | E81: 56.67500417 | F81: 16491 | G81: 100 | H81: 2156 | I81: 28 | J81: 35 | K81: 3877 | L81: 23 | M81: 5742 | N81: 2735 | O81: 90 | P81: 102 | Q81: 153 | R81: 357 | S81: 1093 | T81: 419 | U81: 84 | V81: 12991 | W81: 43.32499583
A82: MONTES DE ORO | B82: 24 | C82: 9616 | D82: 6664 | E82: 69.30116473 | F82: 6530 | G82: 23 | H82: 1225 | I82: 5 | J82: 11 | K82: 1492 | L82: 10 | M82: 2247 | N82: 662 | O82: 12 | P82: 57 | Q82: 65 | R82: 182 | S82: 539 | T82: 115 | U82: 19 | V82: 2952 | W82: 30.69883527
A83: OSA | B83: 54 | C83: 20090 | D83: 11213 | E83: 55.81383773 | F83: 10785 | G83: 98 | H83: 1435 | I83: 23 | J83: 30 | K83: 2690 | L83: 22 | M83: 3308 | N83: 2038 | O83: 27 | P83: 91 | Q83: 135 | R83: 238 | S83: 650 | T83: 360 | U83: 68 | V83: 8877 | W83: 44.18616227
A84: AGUIRRE | B84: 42 | C84: 18025 | D84: 10010 | E84: 55.53398058 | F84: 9726 | G84: 140 | H84: 1457 | I84: 20 | J84: 35 | K84: 1640 | L84: 12 | M84: 3161 | N84: 1844 | O84: 45 | P84: 55 | Q84: 145 | R84: 388 | S84: 784 | T84: 237 | U84: 47 | V84: 8015 | W84: 44.46601942
A85: GOLFITO | B85: 66 | C85: 27210 | D85: 14592 | E85: 53.62734289 | F85: 14058 | G85: 82 | H85: 1353 | I85: 29 | J85: 31 | K85: 4568 | L85: 33 | M85: 4409 | N85: 1585 | O85: 52 | P85: 127 | Q85: 111 | R85: 490 | S85: 1188 | T85: 465 | U85: 69 | V85: 12618 | W85: 46.37265711
A86: COTO BRUS | B86: 70 | C86: 27667 | D86: 15743 | E86: 56.90172408 | F86: 15235 | G86: 67 | H86: 2838 | I86: 25 | J86: 30 | K86: 4018 | L86: 25 | M86: 5385 | N86: 1220 | O86: 44 | P86: 96 | Q86: 191 | R86: 304 | S86: 992 | T86: 421 | U86: 87 | V86: 11924 | W86: 43.09827592
A87: PARRITA | B87: 33 | C87: 10844 | D87: 6448 | E87: 59.46145334 | F87: 6261 | G87: 55 | H87: 668 | I87: 6 | J87: 7 | K87: 647 | L87: 9 | M87: 2292 | N87: 1649 | O87: 10 | P87: 25 | Q87: 128 | R87: 135 | S87: 630 | T87: 155 | U87: 32 | V87: 4396 | W87: 40.53854666
A88: CORREDORES | B88: 67 | C88: 31122 | D88: 16761 | E88: 53.85579333 | F88: 16194 | G88: 87 | H88: 2204 | I88: 40 | J88: 41 | K88: 4679 | L88: 23 | M88: 5303 | N88: 1801 | O88: 40 | P88: 75 | Q88: 328 | R88: 412 | S88: 1161 | T88: 460 | U88: 107 | V88: 14361 | W88: 46.14420667
A89: GARABITO | B89: 20 | C89: 9856 | D89: 5331 | E89: 54.08887987 | F89: 5176 | G89: 15 | H89: 886 | I89: 11 | J89: 10 | K89: 726 | L89: 6 | M89: 1954 | N89: 979 | O89: 5 | P89: 24 | Q89: 17 | R89: 56 | S89: 487 | T89: 137 | U89: 18 | V89: 4525 | W89: 45.91112013
A90: PROVINCIA LIMÓN | B90: 512 | C90: 249285 | D90: =SUM(D91:D96) -> 146717 | E90: 58.85512566 | F90: =SUM(F91:F96) -> 141489 | G90: 1157 | H90: 20619 | I90: 506 | J90: 519 | K90: 31367 | L90: 200 | M90: 41368 | N90: 25640 | O90: 504 | P90: 1112 | Q90: 4902 | R90: 2666 | S90: 10929 | T90: 4402 | U90: 826 | V90: 102568 | W90: 41.14487434
A91: LIMÓN | B91: 131 | C91: 64961 | D91: =F91+U91+T91 -> 36263 | E91: =D91/C91*100 -> 55.8227244 | F91: =SUM(G91:S91) -> 34844 | G91: 333 | H91: 4367 | I91: 128 | J91: 148 | K91: 7713 | L91: 58 | M91: 11408 | N91: 5397 | O91: 119 | P91: 413 | Q91: 986 | R91: 706 | S91: 3068 | T91: 1137 | U91: 282 | V91: 28698 | W91: 44.1772756
A92: POCOCÍ | B92: 164 | C92: 83344 | D92: 52283 | E92: 62.73157036 | F92: 50718 | G92: 408 | H92: 10180 | I92: 207 | J92: 197 | K92: 11995 | L92: 65 | M92: 12965 | N92: 8988 | O92: 175 | P92: 381 | Q92: 1712 | R92: 759 | S92: 2686 | T92: 1383 | U92: 182 | V92: 31061 | W92: 37.26842964
A93: SIQUIRRES | B93: 82 | C93: 37389 | D93: 21514 | E93: 57.54098799 | F93: 20757 | G93: 173 | H93: 2529 | I93: 61 | J93: 63 | K93: 4218 | L93: 27 | M93: 6748 | N93: 3896 | O93: 95 | P93: 147 | Q93: 723 | R93: 485 | S93: 1592 | T93: 646 | U93: 111 | V93: 15875 | W93: 42.45901201
A94: TALAMANCA | B94: 40 | C94: 17572 | D94: 9298 | E94: 52.91372638 | F94: 8936 | G94: 36 | H94: 618 | I94: 14 | J94: 33 | K94: 2198 | L94: 8 | M94: 2527 | N94: 1478 | O94: 30 | P94: 47 | Q94: 432 | R94: 112 | S94: 1403 | T94: 273 | U94: 89 | V94: 8274 | W94: 47.08627362
A95: MATINA | B95: 43 | C95: 19837 | D95: 11705 | E95: 59.00589807 | F95: 11173 | G95: 66 | H95: 719 | I95: 22 | J95: 25 | K95: 2008 | L95: 17 | M95: 3765 | N95: 2784 | O95: 27 | P95: 43 | Q95: 506 | R95: 132 | S95: 1059 | T95: 448 | U95: 84 | V95: 8132 | W95: 40.99410193
A96: GUÁCIMO | B96: 52 | C96: 26182 | D96: 15654 | E96: 59.78916813 | F96: 15061 | G96: 141 | H96: 2206 | I96: 74 | J96: 53 | K96: 3235 | L96: 25 | M96: 3955 | N96: 3097 | O96: 58 | P96: 81 | Q96: 543 | R96: 472 | S96: 1121 | T96: 515 | U96: 78 | V96: 10528 | W96: 40.21083187
A97: EXTRANJERO | B97: 61 | C97: 12654 | D97: 2771 | E97: =D97/C97*100 -> 21.898214 | F97: 2717 | G97: 3 | H97: 1147 | I97: 5 | J97: 6 | K97: 403 | L97: 2 | M97: 737 | N97: 245 | O97: 4 | P97: 31 | Q97: 5 | R97: 16 | S97: 113 | T97: 52 | U97: 2 | V97: 9883 | W97: 78.101786
A100: FUENTE: Tribunal Supremo de Elecciones.

Sheet C1.3
A2: CUADRO 1.3 SAN JOSÉ: JUNTAS, ELECTORADO, PARTICIPACIÓN, VOTOS POR PARTIDO, NULOS, BLANCOS Y ABSTENCIONISMO, PARA PRESIDENCIA Y VICEPRESIDENCIAS DE LA REPÚBLICA, SEGÚN CANTÓN Y DISTRITO ADMINISTRATIVO ELECCIONES 2 DE FEBRERO 2014
A4: CANTÓN Y DISTRITO ADMINISTRATIVO | B4: JUNTAS | C4: ELECTORADO | D4: VOTOS RECIBIDOS | V4: ABSTENCIONISMO
D5: TOTAL GENERAL | E5: % PARTICIPACIÓN | F5: VOTOS VÁLIDOS | T5: NULOS | U5: BLANCOS | V5: ABSOLUTO | W5: %
F6: TOTAL | G6: ACCESIBILIDAD SIN EXCLUSIÓN | H6: ACCIÓN CIUDADANA | I6: AVANCE NACIONAL | J6: DE LOS TRABAJADORES | K6: FRENTE AMPLIO | L6: INTEGRACIÓN NACIONAL | M6: LIBERACIÓN NACIONAL | N6: MOVIMIENTO LIBERTARIO | O6: NUEVA GENERACIÓN | P6: PATRIA NUEVA | Q6: RENOVACIÓN COSTARRICENSE | R6: RESTAURACIÓN NACIONAL | S6: UNIDAD SOCIAL CRISTIANA
A8: PROVINCIA SAN JOSÉ | B8: =B9+B21+B25+B39+B49+B53+B61+B68+B76+B83+B89+B95+B101+B107+B111+B116+B122+B126+B131+B143 -> 2104 | C8: =C9+C21+C25+C39+C49+C53+C61+C68+C76+C83+C89+C95+C101+C107+C111+C116+C122+C126+C131+C143 -> 1063061 | D8: =D9+D21+D25+D39+D49+D53+D61+D68+D76+D83+D89+D95+D101+D107+D111+D116+D122+D126+D131+D143 -> 745771 | E8: =D8/C8*100 -> 70.15317089 | F8: =F9+F21+F25+F39+F49+F53+F61+F68+F76+F83+F89+F95+F101+F107+F111+F116+F122+F126+F131+F143 -> 733256 | G8: 3471 | H8: 265637 | I8: 1767 | J8: 1452 | K8: 111109 | L8: 1333 | M8: 209006 | N8: 73552 | O8: 2221 | P8: 10621 | Q8: 3857 | R8: 10416 | S8: 38814 | T8: 11097 | U8: 1418 | V8: 317290 | W8: =V8/C8*100 -> 29.84682911
A9: CANTÓN 1 SAN JOSÉ | B9: =SUM(B10:B20) -> 414 | C9: =SUM(C10:C20) -> 228847 | D9: =SUM(D10:D20) -> 157773 | E9: =D9/C9*100 -> 68.94256862 | F9: =SUM(F10:F20) -> 155226 | G9: =SUM(G10:G20) -> 682 | H9: =SUM(H10:H20) -> 53830 | I9: 428 | J9: 279 | K9: 23528 | L9: 266 | M9: 45998 | N9: 16014 | O9: 464 | P9: 2613 | Q9: 890 | R9: 2254 | S9: =SUM(S10:S20) -> 7980 | T9: =SUM(T10:T20) -> 2341 | U9: =SUM(U10:U20) -> 206 | V9: =SUM(V10:V20) -> 71074 | W9: =V9/C9*100 -> 31.05743138
A10: CARMEN | B10: 8 | C10: 4592 | D10: =+F10+T10+U10 -> 3034 | E10: =D10/C10*100 -> 66.07142857 | F10: =SUM(G10:S10) -> 2998 | G10: 4 | H10: 1035 | I10: 8 | J10: 2 | K10: 452 | L10: 14 | M10: 935 | N10: 318 | O10: 15 | P10: 35 | Q10: 5 | R10: 16 | S10: 159 | T10: 31 | U10: 5 | V10: 1558 | W10: =V10/C10*100 -> 33.92857143
A11: MERCED | B11: 17 | C11: 9763 | D11: =+F11+T11+U11 -> 6311 | E11: 64.64201577 | F11: =SUM(G11:S11) -> 6200 | G11: 17 | H11: 1929 | I11: 19 | J11: 10 | K11: 1052 | L11: 15 | M11: 1968 | N11: 606 | O11: 16 | P11: 127 | Q11: 25 | R11: 86 | S11: 330 | T11: 98 | U11: 13 | V11: 3452 | W11: =V11/C11*100 -> 35.35798423
A12: HOSPITAL | B12: 34 | C12: 18788 | D12: 11959 | E12: 63.65233128 | F12: 11706 | G12: 66 | H12: 3375 | I12: 50 | J12: 38 | K12: 1960 | L12: 11 | M12: 3762 | N12: 1325 | O12: 27 | P12: 222 | Q12: 64 | R12: 167 | S12: 639 | T12: 237 | U12: 16 | V12: 6829 | W12: 36.34766872
A13: CATEDRAL | B13: 29 | C13: 15258 | D13: 10514 | E13: 68.90811378 | F13: 10379 | G13: 38 | H13: 3641 | I13: 19 | J13: 16 | K13: 1889 | L13: 19 | M13: 2918 | N13: 923 | O13: 30 | P13: 217 | Q13: 38 | R13: 113 | S13: 518 | T13: 117 | U13: 18 | V13: 4744 | W13: 31.09188622
A14: ZAPOTE | B14: 33 | C14: 17937 | D14: 13442 | E14: 74.94006802 | F14: 13300 | G14: 41 | H14: 5740 | I14: 21 | J14: 23 | K14: 1821 | L14: 23 | M14: 3649 | N14: 1031 | O14: 42 | P14: 262 | Q14: 42 | R14: 127 | S14: 478 | T14: 132 | U14: 10 | V14: 4495 | W14: 25.05993198
A15: SAN FRANCISCO DE DOS RÍOS | B15: 35 | C15: 18430 | D15: 13973 | E15: 75.81660336 | F15: 13845 | G15: 21 | H15: 6407 | I15: 26 | J15: 10 | K15: 1701 | L15: 26 | M15: 3760 | N15: 987 | O15: 22 | P15: 240 | Q15: 25 | R15: 93 | S15: 527 | T15: 115 | U15: 13 | V15: 4457 | W15: 24.18339664
A16: URUCA | B16: 28 | C16: 14190 | D16: 9498 | E16: 66.93446089 | F16: 9316 | G16: 56 | H16: 2995 | I16: 19 | J16: 28 | K16: 1227 | L16: 4 | M16: 2732 | N16: 1383 | O16: 22 | P16: 144 | Q16: 68 | R16: 105 | S16: 533 | T16: 162 | U16: 20 | V16: 4692 | W16: 33.06553911
A17: MATA REDONDA | B17: 14 | C17: 7290 | D17: 5274 | E17: 72.34567901 | F17: 5219 | G17: 12 | H17: 1740 | I17: 8 | J17: 4 | K17: 483 | L17: 4 | M17: 1795 | N17: 738 | O17: 10 | P17: 88 | Q17: 18 | R17: 28 | S17: 291 | T17: 47 | U17: 8 | V17: 2016 | W17: 27.65432099
A18: PAVAS | B18: 87 | C18: 49009 | D18: 33004 | E18: 67.34273297 | F18: 32363 | G18: 151 | H18: 9575 | I18: 166 | J18: 65 | K18: 4176 | L18: 42 | M18: 10102 | N18: 4681 | O18: 121 | P18: 500 | Q18: 287 | R18: 685 | S18: 1812 | T18: 595 | U18: 46 | V18: 16005 | W18: 32.65726703
A19: HATILLO | B19: 75 | C19: 43653 | D19: 29751 | E19: 68.15339152 | F19: 29213 | G19: 175 | H19: 9645 | I19: 55 | J19: 61 | K19: 5166 | L19: 54 | M19: 8863 | N19: 2349 | O19: 109 | P19: 447 | Q19: 215 | R19: 519 | S19: 1555 | T19: 500 | U19: 38 | V19: 13902 | W19: 31.84660848
A20: SAN SEBASTIÁN | B20: 54 | C20: 29937 | D20: 21013 | E20: 70.19073387 | F20: 20687 | G20: 101 | H20: 7748 | I20: 37 | J20: 22 | K20: 3601 | L20: 54 | M20: 5514 | N20: 1673 | O20: 50 | P20: 331 | Q20: 103 | R20: 315 | S20: 1138 | T20: 307 | U20: 19 | V20: 8924 | W20: 29.80926613
A21: CANTÓN 2 ESCAZÚ | B21: 81 | C21: 43354 | D21: 31702 | E21: 73.12358721 | F21: =SUM(F22:F24) -> 31285 | G21: 150 | H21: 10490 | I21: 53 | J21: 69 | K21: 3314 | L21: 27 | M21: 9661 | N21: 5069 | O21: 123 | P21: 460 | Q21: 145 | R21: 219 | S21: 1505 | T21: 381 | U21: 36 | V21: 11652 | W21: 26.87641279
A22: ESCAZÚ | B22: 22 | C22: 11896 | D22: 8817 | E22: =D22/C22*100 -> 74.11735037 | F22: =SUM(G22:S22) -> 8694 | G22: 35 | H22: 3122 | I22: 18 | J22: 18 | K22: 1017 | L22: 7 | M22: 2718 | N22: 1057 | O22: 31 | P22: 148 | Q22: 36 | R22: 65 | S22: 422 | T22: 109 | U22: 14 | V22: 3079 | W22: 25.88264963
A23: SAN ANTONIO | B23: 26 | C23: 13934 | D23: 9756 | E23: =D23/C23*100 -> 70.01578872 | F23: =SUM(G23:S23) -> 9575 | G23: 91 | H23: 3473 | I23: 23 | J23: 31 | K23: 1407 | L23: 11 | M23: 2619 | N23: 1033 | O23: 62 | P23: 188 | Q23: 69 | R23: 87 | S23: 481 | T23: 167 | U23: 14 | V23: 4178 | W23: 29.98421128
A24: SAN RAFAEL | B24: 33 | C24: 17524 | D24: 13129 | E24: =D24/C24*100 -> 74.92010956 | F24: =SUM(G24:S24) -> 13016 | G24: 24 | H24: 3895 | I24: 12 | J24: 20 | K24: 890 | L24: 9 | M24: 4324 | N24: 2979 | O24: 30 | P24: 124 | Q24: 40 | R24: 67 | S24: 602 | T24: 105 | U24: 8 | V24: 4395 | W24: 25.07989044
A25: CANTÓN 3 DESAMPARADOS | B25: 291 | C25: 152242 | D25: 106570 | E25: =D25/C25*100 -> 70.00039411 | F25: =SUM(F26:F38) -> 104722 | G25: 557 | H25: 37446 | I25: 221 | J25: 227 | K25: 16785 | L25: 298 | M25: 29244 | N25: 9961 | O25: 314 | P25: 1421 | Q25: 630 | R25: 1693 | S25: 5925 | T25: 1657 | U25: 191 | V25: 45672 | W25: 29.99960589
A26: DESAMPARADOS | B26: 57 | C26: 30394 | D26: 22026 | E26: =D26/C26*100 -> 72.46825031 | F26: =SUM(G26:S26) -> 21729 | G26: 88 | H26: 8519 | I26: 48 | J26: 31 | K26: 3652 | L26: 42 | M26: 5840 | N26: 1601 | O26: 63 | P26: 343 | Q26: 103 | R26: 296 | S26: 1103 | T26: 265 | U26: 32 | V26: 8368 | W26: 27.53174969
A27: SAN MIGUEL | B27: 48 | C27: 26276 | D27: 17758 | E27: 67.58258487 | F27: 17437 | G27: 113 | H27: 5897 | I27: 20 | J27: 41 | K27: 2750 | L27: 103 | M27: 4840 | N27: 1910 | O27: 64 | P27: 183 | Q27: 106 | R27: 336 | S27: 1074 | T27: 299 | U27: 22 | V27: 8518 | W27: 32.41741513
A28: SAN JUAN DE DIOS | B28: 21 | C28: 12232 | D28: 8218 | E28: 67.18443427 | F28: 8070 | G28: 66 | H28: 2551 | I28: 17 | J28: 15 | K28: 1443 | L28: 25 | M28: 2084 | N28: 992 | O28: 26 | P28: 124 | Q28: 57 | R28: 114 | S28: 556 | T28: 131 | U28: 17 | V28: 4014 | W28: 32.81556573
A29: SAN RAFAEL ARRIBA | B29: 23 | C29: 11083 | D29: 7731 | E29: 69.75548137 | F29: 7615 | G29: 24 | H29: 2739 | I29: 20 | J29: 14 | K29: 1206 | L29: 16 | M29: 2161 | N29: 730 | O29: 25 | P29: 97 | Q29: 53 | R29: 105 | S29: 425 | T29: 100 | U29: 16 | V29: 3352 | W29: 30.24451863
A30: SAN ANTONIO | B30: 17 | C30: 8792 | D30: 6760 | E30: 76.88808007 | F30: 6688 | G30: 16 | H30: 2941 | I30: 12 | J30: 6 | K30: 951 | L30: 12 | M30: 1889 | N30: 451 | O30: 8 | P30: 81 | Q30: 16 | R30: 54 | S30: 251 | T30: 69 | U30: 3 | V30: 2032 | W30: 23.11191993
A31: FRAILES | B31: 7 | C31: 2776 | D31: 1956 | E31: 70.4610951 | F31: 1902 | G31: 6 | H31: 487 | I31: 20 | J31: 5 | K31: 299 | L31: 18 | M31: 833 | N31: 75 | O31: 9 | P31: 25 | Q31: 4 | R31: 25 | S31: 96 | T31: 45 | U31: 9 | V31: 820 | W31: 29.5389049
A32: PATARRÁ | B32: 12 | C32: 6141 | D32: 4094 | E32: 66.66666667 | F32: 3985 | G32: 34 | H32: 1338 | I32: 4 | J32: 14 | K32: 588 | L32: 8 | M32: 1147 | N32: 426 | O32: 16 | P32: 55 | Q32: 19 | R32: 67 | S32: 269 | T32: 100 | U32: 9 | V32: 2047 | W32: 33.33333333
A33: SAN CRISTÓBAL | B33: 7 | C33: 3016 | D33: 2236 | E33: 74.13793103 | F33: 2189 | G33: 12 | H33: 713 | I33: 8 | J33: 7 | K33: 230 | L33: 10 | M33: 941 | N33: 123 | O33: 8 | P33: 30 | Q33: 13 | R33: 15 | S33: 79 | T33: 36 | U33: 11 | V33: 780 | W33: 25.86206897
A34: ROSARIO | B34: 9 | C34: 2708 | D34: 1911 | E34: 70.56868538 | F34: 1860 | G34: 17 | H34: 359 | I34: 6 | J34: 10 | K34: 347 | L34: 2 | M34: 821 | N34: 137 | O34: 6 | P34: 17 | Q34: 6 | R34: 4 | S34: 128 | T34: 41 | U34: 10 | V34: 797 | W34: 29.43131462
A35: DAMAS | B35: 17 | C35: 8924 | D35: 6514 | E35: 72.99417302 | F35: 6396 | G35: 32 | H35: 2536 | I35: 6 | J35: 10 | K35: 1042 | L35: 15 | M35: 1553 | N35: 604 | O35: 21 | P35: 97 | Q35: 39 | R35: 121 | S35: 320 | T35: 102 | U35: 16 | V35: 2410 | W35: 27.00582698
A36: SAN RAFAEL ABAJO | B36: 29 | C36: 15403 | D36: 11064 | E36: 71.83016296 | F36: 10887 | G36: 43 | H36: 4107 | I36: 19 | J36: 27 | K36: 1854 | L36: 23 | M36: 2772 | N36: 1011 | O36: 31 | P36: 142 | Q36: 71 | R36: 162 | S36: 625 | T36: 157 | U36: 20 | V36: 4339 | W36: 28.16983704
A37: GRAVILIAS | B37: 24 | C37: 12630 | D37: 9569 | E37: 75.76405384 | F37: 9452 | G37: 34 | H37: 3871 | I37: 13 | J37: 20 | K37: 1464 | L37: 19 | M37: 2598 | N37: 679 | O37: 17 | P37: 170 | Q37: 31 | R37: 96 | S37: 440 | T37: 109 | U37: 8 | V37: 3061 | W37: 24.23594616
A38: LOS GUIDO | B38: 20 | C38: 11867 | D38: 6733 | E38: 56.7371703 | F38: 6512 | G38: 72 | H38: 1388 | I38: 28 | J38: 27 | K38: 959 | L38: 5 | M38: 1765 | N38: 1222 | O38: 20 | P38: 57 | Q38: 112 | R38: 298 | S38: 559 | T38: 203 | U38: 18 | V38: 5134 | W38: 43.2628297
A39: CANTÓN 4 PURISCAL | B39: =SUM(B40:B48) -> 71 | C39: =SUM(C40:C48) -> 26459 | D39: 18908 | E39: 71.46150648 | F39: =SUM(F40:F48) -> 18544 | G39: =SUM(G40:G48) -> 77 | H39: =SUM(H40:H48) -> 5445 | I39: =SUM(I40:I48) -> 35 | J39: =SUM(J40:J48) -> 42 | K39: 2880 | L39: 24 | M39: 7255 | N39: 1247 | O39: 37 | P39: 179 | Q39: 66 | R39: 128 | S39: 1129 | T39: 282 | U39: 82 | V39: 7551 | W39: 28.53849352
A40: SANTIAGO | B40: 22 | C40: 10045 | D40: 7356 | E40: =D40/C40*100 -> 73.23046292 | F40: 7247 | G40: 30 | H40: 2618 | I40: 11 | J40: 26 | K40: 1024 | L40: 6 | M40: 2535 | N40: 397 | O40: 14 | P40: 91 | Q40: 20 | R40: 37 | S40: 438 | T40: 86 | U40: 23 | V40: 2689 | W40: 26.76953708
A41: MERCEDES SUR | B41: 13 | C41: 4062 | D41: 2925 | E41: 72.00886263 | F41: 2856 | G41: 16 | H41: 743 | I41: 7 | J41: 3 | K41: 576 | L41: 5 | M41: 1132 | N41: 175 | O41: 9 | P41: 19 | Q41: 9 | R41: 16 | S41: 146 | T41: 55 | U41: 14 | V41: 1137 | W41: 27.99113737
A42: BARBACOAS | B42: 8 | C42: 3272 | D42: 2367 | E42: 72.34107579 | F42: 2332 | G42: 5 | H42: 596 | I42: 7 | J42: 3 | K42: 354 | L42: 2 | M42: 987 | N42: 186 | O42: 4 | P42: 24 | Q42: 11 | R42: 9 | S42: 144 | T42: 23 | U42: 12 | V42: 905 | W42: 27.65892421
A43: GRIFO ALTO | B43: 3 | C43: 908 | D43: 694 | E43: 76.43171806 | F43: 683 | G43: 2 | H43: 168 | I43: 1 | J43: 0 | K43: 122 | L43: 0 | M43: 298 | N43: 32 | O43: 1 | P43: 4 | Q43: 3 | R43: 4 | S43: 48 | T43: 10 | U43: 1 | V43: 214 | W43: 23.56828194
A44: SAN RAFAEL | B44: 3 | C44: 1246 | D44: 847 | E44: 67.97752809 | F44: 816 | G44: 5 | H44: 217 | I44: 2 | J44: 0 | K44: 126 | L44: 1 | M44: 330 | N44: 31 | O44: 2 | P44: 9 | Q44: 0 | R44: 7 | S44: 86 | T44: 21 | U44: 10 | V44: 399 | W44: 32.02247191
A45: CANDELARITA | B45: 4 | C45: 1368 | D45: 1003 | E45: 73.31871345 | F45: 971 | G45: 3 | H45: 165 | I45: 1 | J45: 1 | K45: 113 | L45: 3 | M45: 546 | N45: 65 | O45: 1 | P45: 8 | Q45: 3 | R45: 4 | S45: 58 | T45: 25 | U45: 7 | V45: 365 | W45: 26.68128655
A46: DESAMPARADITOS | B46: 1 | C46: 542 | D46: 411 | E46: 75.8302583 | F46: 406 | G46: 4 | H46: 145 | I46: 0 | J46: 1 | K46: 70 | L46: 1 | M46: 131 | N46: 15 | O46: 0 | P46: 1 | Q46: 0 | R46: 2 | S46: 36 | T46: 5 | U46: 0 | V46: 131 | W46: 24.1697417
A47: SAN ANTONIO | B47: 6 | C47: 2825 | D47: 1914 | E47: 67.75221239 | F47: 1878 | G47: 6 | H47: 623 | I47: 2 | J47: 5 | K47: 318 | L47: 6 | M47: 643 | N47: 152 | O47: 3 | P47: 12 | Q47: 9 | R47: 23 | S47: 76 | T47: 27 | U47: 9 | V47: 911 | W47: 32.24778761
A48: CHIRES | B48: 11 | C48: 2191 | D48: 1391 | E48: 63.48699224 | F48: 1355 | G48: 6 | H48: 170 | I48: 4 | J48: 3 | K48: 177 | L48: 0 | M48: 653 | N48: 194 | O48: 3 | P48: 11 | Q48: 11 | R48: 26 | S48: 97 | T48: 30 | U48: 6 | V48: 800 | W48: 36.51300776
A49: CANTÓN 5 TARRAZÚ | B49: 27 | C49: 11458 | D49: 7499 | E49: 65.44772212 | F49: =SUM(F50:F52) -> 7336 | G49: 43 | H49: 1976 | I49: 24 | J49: 16 | K49: 1594 | L49: 10 | M49: 2365 | N49: 488 | O49: 15 | P49: 68 | Q49: 30 | R49: 45 | S49: 662 | T49: 131 | U49: 32 | V49: 3959 | W49: 34.55227788
A50: SAN MARCOS | B50: 14 | C50: 7290 | D50: 4905 | E50: =D50/C50*100 -> 67.28395062 | F50: =SUM(G50:S50) -> 4803 | G50: 32 | H50: 1523 | I50: 12 | J50: 9 | K50: 1015 | L50: 8 | M50: 1422 | N50: 292 | O50: 12 | P50: 38 | Q50: 20 | R50: 17 | S50: 403 | T50: 77 | U50: 25 | V50: 2385 | W50: 32.71604938
A51: SAN LORENZO | B51: 10 | C51: 2826 | D51: 1773 | E51: =D51/C51*100 -> 62.7388535 | F51: =SUM(G51:S51) -> 1734 | G51: 5 | H51: 337 | I51: 9 | J51: 3 | K51: 357 | L51: 1 | M51: 647 | N51: 132 | O51: 3 | P51: 24 | Q51: 5 | R51: 27 | S51: 184 | T51: 34 | U51: 5 | V51: 1053 | W51: 37.2611465
A52: SAN CARLOS | B52: 3 | C52: 1342 | D52: 821 | E52: =D52/C52*100 -> 61.17734724 | F52: =SUM(G52:S52) -> 799 | G52: 6 | H52: 116 | I52: 3 | J52: 4 | K52: 222 | L52: 1 | M52: 296 | N52: 64 | O52: 0 | P52: 6 | Q52: 5 | R52: 1 | S52: 75 | T52: 20 | U52: 2 | V52: 521 | W52: =V52/C52*100 -> 38.82265276
A53: CANTÓN 6 ASERRÍ | B53: 81 | C53: 40321 | D53: 27861 | E53: =D53/C53*100 -> 69.09798864 | F53: =SUM(F54:F60) -> 27278 | G53: 201 | H53: 8409 | I53: 81 | J53: 56 | K53: 4841 | L53: 41 | M53: 8889 | N53: 2455 | O53: 74 | P53: 362 | Q53: 139 | R53: 228 | S53: 1502 | T53: 521 | U53: 62 | V53: 12460 | W53: 30.90201136
A54: ASERRÍ | B54: 40 | C54: 22902 | D54: 15903 | E54: =D54/C54*100 -> 69.43935028 | F54: =SUM(G54:S54) -> 15594 | G54: 96 | H54: 5080 | I54: 25 | J54: 31 | K54: 2855 | L54: 23 | M54: 4649 | N54: 1432 | O54: 43 | P54: 233 | Q54: 71 | R54: 152 | S54: 904 | T54: 280 | U54: 29 | V54: 6999 | W54: 30.56064972
A55: TARBACA | B55: 4 | C55: 1650 | D55: 1142 | E55: =D55/C55*100 -> 69.21212121 | F55: 1103 | G55: 16 | H55: 315 | I55: 36 | J55: 3 | K55: 163 | L55: 1 | M55: 390 | N55: 99 | O55: 1 | P55: 15 | Q55: 2 | R55: 4 | S55: 58 | T55: 34 | U55: 5 | V55: 508 | W55: 30.78787879
A56: VUELTA DE JORCO | B56: 11 | C56: 4707 | D56: 3340 | E56: 70.95814744 | F56: 3270 | G56: 29 | H56: 1061 | I56: 6 | J56: 5 | K56: 508 | L56: 5 | M56: 1190 | N56: 235 | O56: 9 | P56: 37 | Q56: 8 | R56: 11 | S56: 166 | T56: 61 | U56: 9 | V56: 1367 | W56: 29.04185256
A57: SAN GABRIEL | B57: 8 | C57: 3566 | D57: 2589 | E57: 72.60235558 | F57: 2536 | G57: 26 | H57: 690 | I57: 2 | J57: 7 | K57: 511 | L57: 5 | M57: 877 | N57: 224 | O57: 7 | P57: 21 | Q57: 24 | R57: 17 | S57: 125 | T57: 49 | U57: 4 | V57: 977 | W57: 27.39764442
A58: LEGUA | B58: 5 | C58: 1114 | D58: 734 | E58: 65.88868941 | F58: 719 | G58: 4 | H58: 198 | I58: 3 | J58: 2 | K58: 165 | L58: 0 | M58: 271 | N58: 40 | O58: 1 | P58: 2 | Q58: 2 | R58: 1 | S58: 30 | T58: 10 | U58: 5 | V58: 380 | W58: 34.11131059
A59: MONTERREY | B59: 2 | C59: 716 | D59: 492 | E59: 68.7150838 | F59: 480 | G59: 4 | H59: 75 | I59: 0 | J59: 4 | K59: 52 | L59: 0 | M59: 288 | N59: 25 | O59: 0 | P59: 6 | Q59: 2 | R59: 2 | S59: 22 | T59: 10 | U59: 2 | V59: 224 | W59: 31.2849162
A60: SALITRILLOS | B60: 11 | C60: 5666 | D60: 3661 | E60: 64.61348394 | F60: 3576 | G60: 26 | H60: 990 | I60: 9 | J60: 4 | K60: 587 | L60: 7 | M60: 1224 | N60: 400 | O60: 13 | P60: 48 | Q60: 30 | R60: 41 | S60: 197 | T60: 77 | U60: 8 | V60: 2005 | W60: 35.38651606
A61: CANTÓN 7 MORA | B61: 43 | C61: 19190 | D61: 13820 | E61: =D61/C61*100 -> 72.01667535 | F61: =SUM(G61:S61) -> 13470 | G61: 68 | H61: 4569 | I61: 40 | J61: 31 | K61: 1957 | L61: 13 | M61: 4041 | N61: 1382 | O61: 69 | P61: 155 | Q61: 86 | R61: 147 | S61: 912 | T61: 303 | U61: 47 | V61: 5370 | W61: 27.98332465
A62: COLÓN | B62: 23 | C62: 10990 | D62: 8200 | E62: 74.6132848 | F62: 8053 | G62: 36 | H62: 3136 | I62: 22 | J62: 19 | K62: 1122 | L62: 10 | M62: 2280 | N62: 781 | O62: 43 | P62: 97 | Q62: 27 | R62: 89 | S62: 391 | T62: 130 | U62: 17 | V62: 2790 | W62: 25.3867152
A63: GUAYABO | B63: 5 | C63: 2781 | D63: 1891 | E63: 67.99712334 | F63: 1825 | G63: 7 | H63: 625 | I63: 5 | J63: 2 | K63: 263 | L63: 1 | M63: 526 | N63: 219 | O63: 11 | P63: 25 | Q63: 13 | R63: 22 | S63: 106 | T63: 56 | U63: 10 | V63: 890 | W63: 32.00287666
A64: TABARCIA | B64: 10 | C64: 3809 | D64: 2619 | E64: 68.75820425 | F64: 2509 | G64: 19 | H64: 541 | I64: 12 | J64: 5 | K64: 408 | L64: 2 | M64: 782 | N64: 284 | O64: 10 | P64: 25 | Q64: 41 | R64: 30 | S64: 350 | T64: 98 | U64: 12 | V64: 1190 | W64: 31.24179575
A65: PIEDRAS NEGRAS | B65: 1 | C65: 251 | D65: 169 | E65: 67.33067729 | F65: 165 | G65: 1 | H65: 56 | I65: 0 | J65: 1 | K65: 25 | L65: 0 | M65: 58 | N65: 15 | O65: 0 | P65: 1 | Q65: 0 | R65: 0 | S65: 8 | T65: 3 | U65: 1 | V65: 82 | W65: 32.66932271
A66: PICAGRES | B66: 2 | C66: 532 | D66: 374 | E66: 70.30075188 | F66: 367 | G66: 0 | H66: 94 | I66: 0 | J66: 1 | K66: 44 | L66: 0 | M66: 180 | N66: 15 | O66: 2 | P66: 3 | Q66: 2 | R66: 1 | S66: 25 | T66: 5 | U66: 2 | V66: 158 | W66: 29.69924812
A67: JARIS | B67: 2 | C67: 827 | D67: 567 | E67: =D67/C67*100 -> 68.56106409 | F67: =SUM(G67:S67) -> 551 | G67: 5 | H67: 117 | I67: 1 | J67: 3 | K67: 95 | L67: 0 | M67: 215 | N67: 68 | O67: 3 | P67: 4 | Q67: 3 | R67: 5 | S67: 32 | T67: 11 | U67: 5 | V67: 260 | W67: 31.43893591
A68: CANTÓN 8 GOICOECHEA | B68: 160 | C68: 87701 | D68: 62019 | E68: 70.71641144 | F68: 61113 | G68: 292 | H68: 25354 | I68: 159 | J68: 123 | K68: 9265 | L68: 151 | M68: 14661 | N68: 5803 | O68: 219 | P68: 985 | Q68: 290 | R68: 972 | S68: 2839 | T68: 808 | U68: 98 | V68: 25682 | W68: 29.28358856
A69: GUADALUPE | B69: 38 | C69: 20533 | D69: 14917 | E69: =D69/C69*100 -> 72.64890664 | F69: =SUM(G69:S69) -> 14743 | G69: 63 | H69: 6478 | I69: 38 | J69: 23 | K69: 2244 | L69: 26 | M69: 3686 | N69: 1065 | O69: 38 | P69: 279 | Q69: 32 | R69: 159 | S69: 612 | T69: 154 | U69: 20 | V69: 5616 | W69: 27.35109336
A70: SAN FRANCISCO | B70: 4 | C70: 2068 | D70: 1545 | E70: 74.7098646 | F70: 1524 | G70: 8 | H70: 608 | I70: 10 | J70: 5 | K70: 219 | L70: 2 | M70: 370 | N70: 157 | O70: 7 | P70: 31 | Q70: 6 | R70: 18 | S70: 83 | T70: 21 | U70: 0 | V70: 523 | W70: 25.2901354
A71: CALLE BLANCOS | B71: 22 | C71: 11872 | D71: 8888 | E71: 74.86522911 | F71: 8795 | G71: 22 | H71: 3980 | I71: 18 | J71: 11 | K71: 1283 | L71: 19 | M71: 2032 | N71: 750 | O71: 36 | P71: 164 | Q71: 22 | R71: 80 | S71: 378 | T71: 84 | U71: 9 | V71: 2984 | W71: 25.13477089
A72: MATA DE PLÁTANO | B72: 23 | C72: 12450 | D72: 9094 | E72: 73.04417671 | F72: 8986 | G72: 24 | H72: 4212 | I72: 23 | J72: 23 | K72: 1246 | L72: 29 | M72: 2060 | N72: 728 | O72: 40 | P72: 149 | Q72: 30 | R72: 105 | S72: 317 | T72: 97 | U72: 11 | V72: 3356 | W72: 26.95582329
A73: IPÍS | B73: 41 | C73: 22463 | D73: 16085 | E73: 71.60664203 | F73: 15818 | G73: 84 | H73: 6252 | I73: 34 | J73: 39 | K73: 2536 | L73: 40 | M73: 3779 | N73: 1578 | O73: 50 | P73: 221 | Q73: 82 | R73: 330 | S73: 793 | T73: 234 | U73: 33 | V73: 6378 | W73: 28.39335797
A74: RANCHO REDONDO | B74: 6 | C74: 3075 | D74: 1985 | E74: 64.55284553 | F74: 1943 | G74: 16 | H74: 572 | I74: 3 | J74: 1 | K74: 254 | L74: 9 | M74: 566 | N74: 302 | O74: 12 | P74: 23 | Q74: 22 | R74: 23 | S74: 140 | T74: 37 | U74: 5 | V74: 1090 | W74: 35.44715447
A75: PURRAL | B75: 26 | C75: 15240 | D75: =+F75+T75+U75 -> 9505 | E75: 62.3687664 | F75: 9304 | G75: 75 | H75: 3252 | I75: 33 | J75: 21 | K75: 1483 | L75: 26 | M75: 2168 | N75: 1223 | O75: 36 | P75: 118 | Q75: 96 | R75: 257 | S75: 516 | T75: 181 | U75: 20 | V75: 5735 | W75: 37.6312336
A76: CANTÓN 9 SANTA ANA | B76: 61 | C76: 31041 | D76: 22733 | E76: 73.23539834 | F76: 22353 | G76: 55 | H76: 8030 | I76: 23 | J76: 30 | K76: 2328 | L76: 23 | M76: 6697 | N76: 3410 | O76: 43 | P76: 251 | Q76: 71 | R76: 213 | S76: 1179 | T76: 338 | U76: 42 | V76: 8308 | W76: 26.76460166
A77: SANTA ANA | B77: 15 | C77: 8084 | D77: 6167 | E77: 76.28649184 | F77: 6086 | G77: 13 | H77: 2165 | I77: 3 | J77: 8 | K77: 692 | L77: 7 | M77: 1897 | N77: 768 | O77: 12 | P77: 82 | Q77: 12 | R77: 62 | S77: 365 | T77: 72 | U77: 9 | V77: 1917 | W77: 23.71350816
A78: SALITRAL | B78: 6 | C78: 2572 | D78: 1680 | E78: 65.31881804 | F78: 1643 | G78: 2 | H78: 515 | I78: 1 | J78: 1 | K78: 132 | L78: 1 | M78: 630 | N78: 204 | O78: 3 | P78: 30 | Q78: 4 | R78: 13 | S78: 107 | T78: 36 | U78: 1 | V78: 892 | W78: 34.68118196
A79: POZOS | B79: 18 | C79: 9357 | D79: 6862 | E79: 73.33547077 | F79: 6741 | G79: 17 | H79: 2364 | I79: 6 | J79: 11 | K79: 624 | L79: 5 | M79: 1940 | N79: 1291 | O79: 16 | P79: 48 | Q79: 25 | R79: 60 | S79: 334 | T79: 99 | U79: 22 | V79: 2495 | W79: 26.66452923
A80: URUCA | B80: 10 | C80: 5120 | D80: 3697 | E80: 72.20703125 | F80: 3641 | G80: 10 | H80: 1306 | I80: 3 | J80: 5 | K80: 363 | L80: 6 | M80: 1046 | N80: 618 | O80: 5 | P80: 50 | Q80: 15 | R80: 38 | S80: 176 | T80: 51 | U80: 5 | V80: 1423 | W80: 27.79296875
A81: PIEDADES | B81: 9 | C81: 4567 | D81: 3347 | E81: 73.28662141 | F81: 3279 | G81: 12 | H81: 1312 | I81: 9 | J81: 2 | K81: 375 | L81: 4 | M81: 956 | N81: 394 | O81: 7 | P81: 33 | Q81: 11 | R81: 31 | S81: 133 | T81: 64 | U81: 4 | V81: 1220 | W81: 26.71337859
A82: BRASIL | B82: 3 | C82: 1341 | D82: 980 | E82: 73.0797912 | F82: 963 | G82: 1 | H82: 368 | I82: 1 | J82: 3 | K82: 142 | L82: 0 | M82: 228 | N82: 135 | O82: 0 | P82: 8 | Q82: 4 | R82: 9 | S82: 64 | T82: 16 | U82: 1 | V82: 361 | W82: 26.9202088
A83: CANTÓN 10 ALAJUELITA | B83: 85 | C83: 47597 | D83: 31009 | E83: 65.14906402 | F83: 30259 | G83: 234 | H83: 9085 | I83: 138 | J83: 85 | K83: 5225 | L83: 80 | M83: 7946 | N83: 4107 | O83: 99 | P83: 480 | Q83: 314 | R83: 669 | S83: 1797 | T83: 703 | U83: 47 | V83: 16588 | W83: 34.85093598
A84: ALAJUELITA | B84: 17 | C84: 9844 | D84: 6714 | E84: 68.20398212 | F84: 6574 | G84: 38 | H84: 2089 | I84: 19 | J84: 15 | K84: 1150 | L84: 11 | M84: 1837 | N84: 707 | O84: 28 | P84: 131 | Q84: 51 | R84: 110 | S84: 388 | T84: 126 | U84: 14 | V84: 3130 | W84: 31.79601788
A85: SAN JOSÉCITO | B85: 13 | C85: 7326 | D85: 4941 | E85: 67.44471744 | F85: 4840 | G85: 29 | H85: 1658 | I85: 47 | J85: 16 | K85: 838 | L85: 17 | M85: 1252 | N85: 453 | O85: 15 | P85: 68 | Q85: 37 | R85: 129 | S85: 281 | T85: 99 | U85: 2 | V85: 2385 | W85: 32.55528256
A86: SAN ANTONIO | B86: 4 | C86: 1564 | D86: 1060 | E86: 67.77493606 | F86: 1038 | G86: 7 | H86: 334 | I86: 6 | J86: 6 | K86: 187 | L86: 1 | M86: 278 | N86: 118 | O86: 5 | P86: 17 | Q86: 9 | R86: 20 | S86: 50 | T86: 20 | U86: 2 | V86: 504 | W86: 32.22506394
A87: CONCEPCIÓN | B87: 21 | C87: 11826 | D87: 7707 | E87: 65.16996449 | F87: 7512 | G87: 76 | H87: 2255 | I87: 23 | J87: 23 | K87: 1247 | L87: 11 | M87: 1934 | N87: 1102 | O87: 22 | P87: 123 | Q87: 78 | R87: 175 | S87: 443 | T87: 185 | U87: 10 | V87: 4119 | W87: 34.83003551
A88: SAN FELIPE | B88: 30 | C88: 17037 | D88: 10587 | E88: 62.14122205 | F88: 10295 | G88: 84 | H88: 2749 | I88: 43 | J88: 25 | K88: 1803 | L88: 40 | M88: 2645 | N88: 1727 | O88: 29 | P88: 141 | Q88: 139 | R88: 235 | S88: 635 | T88: 273 | U88: 19 | V88: 6450 | W88: 37.85877795
A89: CANTÓN 11 VÁZQUEZ DE CORONADO | B89: 94 | C89: 49673 | D89: 36702 | E89: 73.88722243 | F89: 36196 | G89: 168 | H89: 15994 | I89: 94 | J89: 89 | K89: 5333 | L89: 78 | M89: 8559 | N89: 3154 | O89: 110 | P89: 517 | Q89: 131 | R89: 450 | S89: 1519 | T89: 454 | U89: 52 | V89: 12971 | W89: 26.11277757
A90: SAN ISIDRO | B90: 27 | C90: 14775 | D90: 11316 | E90: 76.58883249 | F90: 11177 | G90: 48 | H90: 5049 | I90: 35 | J90: 23 | K90: 1584 | L90: 23 | M90: 2680 | N90: 908 | O90: 37 | P90: 160 | Q90: 37 | R90: 121 | S90: 472 | T90: 128 | U90: 11 | V90: 3459 | W90: 23.41116751
A91: SAN RAFAEL | B91: 11 | C91: 5350 | D91: 3801 | E91: 71.04672897 | F91: 3746 | G91: 25 | H91: 1495 | I91: 6 | J91: 11 | K91: 463 | L91: 8 | M91: 1056 | N91: 424 | O91: 9 | P91: 49 | Q91: 22 | R91: 50 | S91: 128 | T91: 50 | U91: 5 | V91: 1549 | W91: 28.95327103
A92: DULCE NOMBRE DE JESÚS | B92: 17 | C92: 8839 | D92: 6353 | E92: 71.87464645 | F92: 6238 | G92: 38 | H92: 2707 | I92: 15 | J92: 20 | K92: 984 | L92: 14 | M92: 1410 | N92: 577 | O92: 22 | P92: 81 | Q92: 25 | R92: 76 | S92: 269 | T92: 102 | U92: 13 | V92: 2486 | W92: 28.12535355
A93: PATALILLO | B93: 29 | C93: 15676 | D93: 11996 | E93: 76.52462363 | F93: 11863 | G93: 38 | H93: 5454 | I93: 21 | J93: 30 | K93: 1928 | L93: 29 | M93: 2617 | N93: 854 | O93: 26 | P93: 195 | Q93: 30 | R93: 165 | S93: 476 | T93: 118 | U93: 15 | V93: 3680 | W93: 23.47537637
A94: CASCAJAL | B94: 10 | C94: 5033 | D94: 3236 | E94: 64.29564872 | F94: 3172 | G94: 19 | H94: 1289 | I94: 17 | J94: 5 | K94: 374 | L94: 4 | M94: 796 | N94: 391 | O94: 16 | P94: 32 | Q94: 17 | R94: 38 | S94: 174 | T94: 56 | U94: 8 | V94: 1797 | W94: 35.70435128
A95: CANTÓN 12 ACOSTA | B95: 43 | C95: 15551 | D95: 10841 | E95: 69.71255868 | F95: 10603 | G95: 43 | H95: 2665 | I95: 35 | J95: 26 | K95: 2279 | L95: 5 | M95: 3998 | N95: 684 | O95: 20 | P95: 85 | Q95: 58 | R95: 62 | S95: 643 | T95: 204 | U95: 34 | V95: 4710 | W95: =V95/C95*100 -> 30.28744132
A96: SAN IGNACIO | B96: 15 | C96: 6854 | D96: 5145 | E96: 75.06565509 | F96: 5059 | G96: 20 | H96: 1573 | I96: 20 | J96: 7 | K96: 1152 | L96: 1 | M96: 1715 | N96: 245 | O96: 8 | P96: 47 | Q96: 19 | R96: 23 | S96: 229 | T96: 72 | U96: 14 | V96: 1709 | W96: 24.93434491
A97: GUAITIL | B97: 6 | C97: 1924 | D97: 1262 | E97: 65.59251559 | F97: 1236 | G97: 7 | H97: 265 | I97: 6 | J97: 1 | K97: 243 | L97: 1 | M97: 540 | N97: 71 | O97: 3 | P97: 9 | Q97: 5 | R97: 4 | S97: 81 | T97: 25 | U97: 1 | V97: 662 | W97: 34.40748441
A98: PALMICHAL | B98: 8 | C98: 3472 | D98: 2477 | E98: 71.3421659 | F98: 2418 | G98: 8 | H98: 531 | I98: 4 | J98: 4 | K98: 495 | L98: 1 | M98: 996 | N98: 143 | O98: 5 | P98: 17 | Q98: 28 | R98: 24 | S98: 162 | T98: 52 | U98: 7 | V98: 995 | W98: 28.6578341
A99: CANGREJAL | B99: 5 | C99: 1435 | D99: 888 | E99: 61.8815331 | F99: 863 | G99: 5 | H99: 190 | I99: 3 | J99: 5 | K99: 191 | L99: 1 | M99: 316 | N99: 96 | O99: 1 | P99: 6 | Q99: 2 | R99: 5 | S99: 42 | T99: 23 | U99: 2 | V99: 547 | W99: 38.1184669
A100: SABANILLAS | B100: 9 | C100: 1866 | D100: 1069 | E100: 57.28831726 | F100: 1027 | G100: 3 | H100: 106 | I100: 2 | J100: 9 | K100: 198 | L100: 1 | M100: 431 | N100: 129 | O100: 3 | P100: 6 | Q100: 4 | R100: 6 | S100: 129 | T100: 32 | U100: 10 | V100: 797 | W100: 42.71168274
A101: CANTÓN 13 TIBÁS | B101: 103 | C101: 55540 | D101: 39801 | E101: 71.66186532 | F101: 39227 | G101: 145 | H101: 15913 | I101: 95 | J101: 61 | K101: 5236 | L101: 46 | M101: 10188 | N101: 3826 | O101: 125 | P101: 829 | Q101: 191 | R101: 694 | S101: 1878 | T101: 516 | U101: 58 | V101: 15739 | W101: 28.33813468
A102: SAN JUAN | B102: 41 | C102: 21968 | D102: 16418 | E102: 74.73597961 | F102: 16262 | G102: 32 | H102: 7135 | I102: 38 | J102: 20 | K102: 2066 | L102: 20 | M102: 4302 | N102: 1300 | O102: 49 | P102: 380 | Q102: 43 | R102: 211 | S102: 666 | T102: 139 | U102: 17 | V102: 5550 | W102: 25.26402039
A103: CINCO ESQUINAS | B103: 13 | C103: 7237 | D103: 4680 | E103: 64.66767998 | F103: 4581 | G103: 29 | H103: 1634 | I103: 15 | J103: 8 | K103: 700 | L103: 9 | M103: 1234 | N103: 428 | O103: 16 | P103: 86 | Q103: 24 | R103: 99 | S103: 299 | T103: 91 | U103: 8 | V103: 2557 | W103: 35.33232002
A104: ANSELMO LLORENTE | B104: 16 | C104: 8635 | D104: 6584 | E104: 76.2478286 | F104: 6527 | G104: 11 | H104: 3057 | I104: 8 | J104: 10 | K104: 853 | L104: 4 | M104: 1577 | N104: 496 | O104: 15 | P104: 153 | Q104: 12 | R104: 82 | S104: 249 | T104: 51 | U104: 6 | V104: 2051 | W104: 23.7521714
A105: LEÓN XIII | B105: 13 | C105: 7629 | D105: 4791 | E105: 62.79984271 | F105: 4629 | G105: 52 | H105: 1042 | I105: 16 | J105: 10 | K105: 639 | L105: 7 | M105: 1251 | N105: 940 | O105: 22 | P105: 61 | Q105: 73 | R105: 167 | S105: 349 | T105: 142 | U105: 20 | V105: 2838 | W105: 37.20015729
A106: COLIMA | B106: 20 | C106: 10071 | D106: 7328 | E106: 72.76338 | F106: 7228 | G106: 21 | H106: 3045 | I106: 18 | J106: 13 | K106: 978 | L106: 6 | M106: 1824 | N106: 662 | O106: 23 | P106: 149 | Q106: 39 | R106: 135 | S106: 315 | T106: 93 | U106: 7 | V106: 2743 | W106: 27.23662
A107: CANTÓN 14 MORAVIA | B107: 79 | C107: 42357 | D107: 31629 | E107: 74.67242723 | F107: 31266 | G107: 95 | H107: 14187 | I107: 54 | J107: 50 | K107: 4155 | L107: 47 | M107: 7461 | N107: 2916 | O107: 98 | P107: 411 | Q107: 91 | R107: 410 | S107: 1291 | T107: 325 | U107: 38 | V107: 10728 | W107: 25.32757277
A108: SAN VICENTE | B108: 48 | C108: 25792 | D108: 19742 | E108: 76.54311414 | F108: 19569 | G108: 33 | H108: 9123 | I108: 34 | J108: 26 | K108: 2327 | L108: 29 | M108: 4837 | N108: 1846 | O108: 55 | P108: 262 | Q108: 27 | R108: 199 | S108: 771 | T108: 151 | U108: 22 | V108: 6050 | W108: 23.45688586
A109: SAN JERÓNIMO | B109: 7 | C109: 3812 | D109: 2634 | E109: 69.09758657 | F109: 2593 | G109: 19 | H109: 1135 | I109: 3 | J109: 7 | K109: 392 | L109: 2 | M109: 581 | N109: 253 | O109: 6 | P109: 26 | Q109: 8 | R109: 36 | S109: 125 | T109: 35 | U109: 6 | V109: 1178 | W109: 30.90241343
A110: LA TRINIDAD | B110: 24 | C110: 12753 | D110: 9253 | E110: 72.55547714 | F110: 9104 | G110: 43 | H110: 3929 | I110: 17 | J110: 17 | K110: 1436 | L110: 16 | M110: 2043 | N110: 817 | O110: 37 | P110: 123 | Q110: 56 | R110: 175 | S110: 395 | T110: 139 | U110: 10 | V110: 3500 | W110: 27.44452286
A111: CANTÓN 15 MONTES DE OCA | B111: 79 | C111: 41489 | D111: 31207 | E111: 75.21752754 | F111: 30887 | G111: 47 | H111: 14417 | I111: 85 | J111: 44 | K111: 4766 | L111: 86 | M111: 7007 | N111: 2557 | O111: 109 | P111: 406 | Q111: 65 | R111: 199 | S111: 1099 | T111: 292 | U111: 28 | V111: 10282 | W111: 24.78247246
A112: SAN PEDRO | B112: 39 | C112: 20897 | D112: 15463 | E112: 73.99626741 | F112: 15321 | G112: 19 | H112: 6943 | I112: 28 | J112: 18 | K112: 2373 | L112: 34 | M112: 3589 | N112: 1356 | O112: 48 | P112: 207 | Q112: 40 | R112: 86 | S112: 580 | T112: 129 | U112: 13 | V112: 5434 | W112: 26.00373259
A113: SABANILLA | B113: 22 | C113: 11555 | D113: 9066 | E113: 78.45954132 | F113: 8962 | G113: 13 | H113: 4424 | I113: 21 | J113: 14 | K113: 1311 | L113: 21 | M113: 1979 | N113: 677 | O113: 43 | P113: 116 | Q113: 13 | R113: 62 | S113: 268 | T113: 96 | U113: 8 | V113: 2489 | W113: 21.54045868
A114: MERCEDES | B114: 6 | C114: 2863 | D114: 2205 | E114: 77.01711491 | F114: 2185 | G114: 5 | H114: 948 | I114: 13 | J114: 3 | K114: 409 | L114: 4 | M114: 528 | N114: 141 | O114: 5 | P114: 26 | Q114: 3 | R114: 14 | S114: 86 | T114: 17 | U114: 3 | V114: 658 | W114: 22.98288509
A115: SAN RAFAEL | B115: 12 | C115: 6174 | D115: 4473 | E115: 72.44897959 | F115: 4419 | G115: 10 | H115: 2102 | I115: 23 | J115: 9 | K115: 673 | L115: 27 | M115: 911 | N115: 383 | O115: 13 | P115: 57 | Q115: 9 | R115: 37 | S115: 165 | T115: 50 | U115: 4 | V115: 1701 | W115: 27.55102041
A116: CANTÓN 16 TURRUBARES | B116: 16 | C116: 4375 | D116: 3008 | E116: 68.75428571 | F116: 2957 | G116: 8 | H116: 572 | I116: 9 | J116: 3 | K116: 375 | L116: 4 | M116: 1503 | N116: 278 | O116: 5 | P116: 33 | Q116: 14 | R116: 4 | S116: 149 | T116: 45 | U116: 6 | V116: 1367 | W116: 31.24571429
A117: SAN PABLO | B117: 3 | C117: 1189 | D117: 856 | E117: 71.99327166 | F117: 844 | G117: 3 | H117: 225 | I117: 6 | J117: 2 | K117: 131 | L117: 1 | M117: 394 | N117: 46 | O117: 2 | P117: 1 | Q117: 0 | R117: 2 | S117: 31 | T117: 9 | U117: 3 | V117: 333 | W117: 28.00672834
A118: SAN PEDRO | B118: 1 | C118: 474 | D118: 366 | E118: 77.21518987 | F118: 352 | G118: 0 | H118: 84 | I118: 0 | J118: 0 | K118: 44 | L118: 0 | M118: 169 | N118: 26 | O118: 0 | P118: 0 | Q118: 4 | R118: 0 | S118: 25 | T118: 13 | U118: 1 | V118: 108 | W118: 22.78481013
A119: SAN JUAN DE MATA | B119: 2 | C119: 879 | D119: 539 | E119: 61.31968146 | F119: 533 | G119: 1 | H119: 63 | I119: 0 | J119: 0 | K119: 69 | L119: 2 | M119: 280 | N119: 63 | O119: 1 | P119: 23 | Q119: 2 | R119: 0 | S119: 29 | T119: 6 | U119: 0 | V119: 340 | W119: 38.68031854
A120: SAN LUIS | B120: 4 | C120: 486 | D120: 327 | E120: 67.28395062 | F120: 321 | G120: 4 | H120: 39 | I120: 0 | J120: 1 | K120: 47 | L120: 0 | M120: 166 | N120: 30 | O120: 1 | P120: 5 | Q120: 1 | R120: 0 | S120: 27 | T120: 6 | U120: 0 | V120: 159 | W120: 32.71604938
A121: CARARA | B121: 6 | C121: 1347 | D121: 920 | E121: 68.29992576 | F121: 907 | G121: 0 | H121: 161 | I121: 3 | J121: 0 | K121: 84 | L121: 1 | M121: 494 | N121: 113 | O121: 1 | P121: 4 | Q121: 7 | R121: 2 | S121: 37 | T121: 11 | U121: 2 | V121: 427 | W121: 31.70007424
A122: CANTÓN 17 DOTA | B122: 14 | C122: 5193 | D122: 3578 | E122: 68.9004429 | F122: 3523 | G122: 14 | H122: 1391 | I122: 4 | J122: 9 | K122: 585 | L122: 7 | M122: 1156 | N122: 151 | O122: 4 | P122: 35 | Q122: 9 | R122: 14 | S122: 144 | T122: 43 | U122: 12 | V122: 1615 | W122: 31.0995571
A123: SANTA MARÍA | B123: 8 | C123: 3661 | D123: 2478 | E123: 67.68642447 | F123: 2444 | G123: 10 | H123: 1012 | I123: 3 | J123: 6 | K123: 445 | L123: 2 | M123: 773 | N123: 77 | O123: 2 | P123: 14 | Q123: 7 | R123: 12 | S123: 81 | T123: 27 | U123: 7 | V123: 1183 | W123: 32.31357553
A124: JARDÍN | B124: 1 | C124: 256 | D124: 150 | E124: 58.59375 | F124: 148 | G124: 0 | H124: 35 | I124: 0 | J124: 0 | K124: 17 | L124: 0 | M124: 59 | N124: 19 | O124: 2 | P124: 5 | Q124: 1 | R124: 1 | S124: 9 | T124: 2 | U124: 0 | V124: 106 | W124: 41.40625
A125: COPEY | B125: 5 | C125: 1276 | D125: 950 | E125: 74.45141066 | F125: 931 | G125: 4 | H125: 344 | I125: 1 | J125: 3 | K125: 123 | L125: 5 | M125: 324 | N125: 55 | O125: 0 | P125: 16 | Q125: 1 | R125: 1 | S125: 54 | T125: 14 | U125: 5 | V125: 326 | W125: 25.54858934
A126: CANTÓN 18 CURRIDABAT | B126: 89 | C126: 46270 | D126: 33978 | E126: 73.43419062 | F126: 33495 | G126: 159 | H126: 14052 | I126: 59 | J126: 44 | K126: 3830 | L126: 57 | M126: 8431 | N126: 4360 | O126: 92 | P126: 380 | Q126: 172 | R126: 316 | S126: 1543 | T126: 442 | U126: 41 | V126: 12292 | W126: 26.56580938
A127: CURRIDABAT | B127: 46 | C127: 23914 | D127: 18142 | E127: 75.86351091 | F127: 17940 | G127: 43 | H127: 8141 | I127: 36 | J127: 25 | K127: 2051 | L127: 26 | M127: 4567 | N127: 1880 | O127: 49 | P127: 218 | Q127: 52 | R127: 122 | S127: 730 | T127: 187 | U127: 15 | V127: 5772 | W127: 24.13648909
A128: GRANADILLA | B128: 17 | C128: 8686 | D128: 6335 | E128: 72.93345614 | F128: 6244 | G128: 22 | H128: 2622 | I128: 10 | J128: 10 | K128: 753 | L128: 10 | M128: 1481 | N128: 842 | O128: 19 | P128: 68 | Q128: 24 | R128: 61 | S128: 322 | T128: 83 | U128: 8 | V128: 2351 | W128: 27.06654386
A129: SÁNCHEZ | B129: 8 | C129: 3854 | D129: 3202 | E129: 83.08251168 | F129: 3185 | G129: 1 | H129: 1195 | I129: 2 | J129: 0 | K129: 221 | L129: 4 | M129: 886 | N129: 699 | O129: 8 | P129: 27 | Q129: 0 | R129: 11 | S129: 131 | T129: 16 | U129: 1 | V129: 652 | W129: 16.91748832
A130: TIRRASES | B130: 18 | C130: 9816 | D130: 6299 | E130: 64.17074165 | F130: 6126 | G130: 93 | H130: 2094 | I130: 11 | J130: 9 | K130: 805 | L130: 17 | M130: 1497 | N130: 939 | O130: 16 | P130: 67 | Q130: 96 | R130: 122 | S130: 360 | T130: 156 | U130: 17 | V130: 3517 | W130: 35.82925835
A131: CANTÓN 19 PÉREZ ZELEDÓN | B131: 247 | C131: 105670 | D131: 69239 | E131: 65.52380051 | F131: 67754 | G131: 387 | H131: 20634 | I131: 121 | J131: 143 | K131: 11634 | L131: 62 | M131: 21657 | N131: 5250 | O131: 186 | P131: 911 | Q131: 439 | R131: 1663 | S131: 4667 | T131: 1216 | U131: 269 | V131: 36431 | W131: 34.47619949
A132: SAN ISIDRO DE EL GENERAL | B132: 79 | C132: 38120 | D132: 25530 | E132: 66.97271773 | F132: 25046 | G132: 123 | H132: 9252 | I132: 38 | J132: 62 | K132: 4601 | L132: 25 | M132: 6678 | N132: 1611 | O132: 69 | P132: 326 | Q132: 144 | R132: 555 | S132: 1562 | T132: 410 | U132: 74 | V132: 12590 | W132: 33.02728227
A133: EL GENERAL | B133: 12 | C133: 4804 | D133: 3215 | E133: =D133/C133*100 -> 66.92339717 | F133: =SUM(G133:S133) -> 3153 | G133: 23 | H133: 1054 | I133: 5 | J133: 10 | K133: 550 | L133: 1 | M133: 1103 | N133: 163 | O133: 12 | P133: 36 | Q133: 13 | R133: 42 | S133: 141 | T133: 52 | U133: 10 | V133: 1589 | W133: 33.07660283
A134: DANIEL FLORES | B134: 50 | C134: 25469 | D134: 16719 | E134: 65.64450901 | F134: 16373 | G134: 102 | H134: 5013 | I134: 34 | J134: 31 | K134: 3134 | L134: 13 | M134: 4788 | N134: 1290 | O134: 43 | P134: 227 | Q134: 136 | R134: 467 | S134: 1095 | T134: 278 | U134: 68 | V134: 8750 | W134: 34.35549099
A135: RIVAS | B135: 16 | C135: 4830 | D135: 3343 | E135: 69.21325052 | F135: 3277 | G135: 21 | H135: 848 | I135: 0 | J135: 8 | K135: 535 | L135: 6 | M135: 1222 | N135: 163 | O135: 7 | P135: 49 | Q135: 13 | R135: 38 | S135: 367 | T135: 43 | U135: 23 | V135: 1487 | W135: 30.78674948
A136: SAN PEDRO | B136: 14 | C136: 5957 | D136: 3659 | E136: 61.42353534 | F136: 3576 | G136: 18 | H136: 713 | I136: 7 | J136: 5 | K136: 460 | L136: 2 | M136: 1318 | N136: 565 | O136: 9 | P136: 43 | Q136: 20 | R136: 140 | S136: 276 | T136: 67 | U136: 16 | V136: 2298 | W136: 38.57646466
A137: PLATANARES | B137: 16 | C137: 6023 | D137: 4006 | E137: 66.51170513 | F137: 3910 | G137: 14 | H137: 788 | I137: 8 | J137: 8 | K137: 547 | L137: 3 | M137: 1652 | N137: 321 | O137: 12 | P137: 45 | Q137: 49 | R137: 130 | S137: 333 | T137: 74 | U137: 22 | V137: 2017 | W137: 33.48829487
A138: PEJIBAYE | B138: 18 | C138: 5844 | D138: 3590 | E138: 61.43052704 | F138: 3475 | G138: 32 | H138: 769 | I138: 12 | J138: 7 | K138: 669 | L138: 1 | M138: 1291 | N138: 321 | O138: 9 | P138: 58 | Q138: 18 | R138: 57 | S138: 231 | T138: 101 | U138: 14 | V138: 2254 | W138: 38.56947296
A139: CAJÓN | B139: 15 | C139: 6842 | D139: =+F139+T139+U139 -> 4166 | E139: 60.88862906 | F139: 4054 | G139: 28 | H139: 1010 | I139: 7 | J139: 8 | K139: 557 | L139: 9 | M139: 1501 | N139: 467 | O139: 15 | P139: 43 | Q139: 14 | R139: 71 | S139: 324 | T139: 94 | U139: 18 | V139: 2676 | W139: 39.11137094
A140: BARÚ | B140: 6 | C140: 1899 | D140: 1163 | E140: 61.24275935 | F140: 1136 | G140: 4 | H140: 193 | I140: 3 | J140: 1 | K140: 184 | L140: 0 | M140: 498 | N140: 142 | O140: 3 | P140: 12 | Q140: 12 | R140: 15 | S140: 69 | T140: 24 | U140: 3 | V140: 736 | W140: 38.75724065
A141: RÍO NUEVO | B141: 8 | C141: 2330 | D141: 1460 | E141: 62.66094421 | F141: 1428 | G141: 5 | H141: 306 | I141: 4 | J141: 1 | K141: 168 | L141: 0 | M141: 728 | N141: 67 | O141: 3 | P141: 32 | Q141: 12 | R141: 38 | S141: 64 | T141: 25 | U141: 7 | V141: 870 | W141: 37.33905579
A142: PÁRAMO | B142: 13 | C142: 3552 | D142: 2388 | E142: 67.22972973 | F142: 2326 | G142: 17 | H142: 688 | I142: 3 | J142: 2 | K142: 229 | L142: 2 | M142: 878 | N142: 140 | O142: 4 | P142: 40 | Q142: 8 | R142: 110 | S142: 205 | T142: 48 | U142: 14 | V142: 1164 | W142: 32.77027027
A143: CANTÓN 20 LEÓN CORTÉS | B143: 26 | C143: 8733 | D143: 5894 | E143: 67.49112562 | F143: 5762 | G143: 46 | H143: 1178 | I143: 9 | J143: 25 | K143: 1199 | L143: 8 | M143: 2289 | N143: 440 | O143: 15 | P143: 40 | Q143: 26 | R143: 36 | S143: 451 | T143: 95 | U143: 37 | V143: 2839 | W143: 32.50887438
A144: SAN PABLO | B144: 6 | C144: 3093 | D144: 2062 | E144: 66.66666667 | F144: 2020 | G144: 15 | H144: 466 | I144: 4 | J144: 6 | K144: 490 | L144: 2 | M144: 747 | N144: 145 | O144: 3 | P144: 17 | Q144: 4 | R144: 7 | S144: 114 | T144: 33 | U144: 9 | V144: 1031 | W144: 33.33333333
A145: SAN ANDRÉS | B145: 4 | C145: 1048 | D145: 634 | E145: 60.49618321 | F145: 618 | G145: 4 | H145: 98 | I145: 0 | J145: 2 | K145: 141 | L145: 3 | M145: 216 | N145: 44 | O145: 0 | P145: 0 | Q145: 5 | R145: 20 | S145: 85 | T145: 12 | U145: 4 | V145: 414 | W145: 39.50381679
A146: LLANO BONITO | B146: 5 | C146: 1375 | D146: 925 | E146: 67.27272727 | F146: 904 | G146: 2 | H146: 159 | I146: 0 | J146: 0 | K146: 154 | L146: 0 | M146: 432 | N146: 57 | O146: 1 | P146: 2 | Q146: 4 | R146: 2 | S146: 91 | T146: 15 | U146: 6 | V146: 450 | W146: 32.72727273
A147: SAN ISIDRO | B147: 4 | C147: 1150 | D147: 783 | E147: 68.08695652 | F147: 768 | G147: 2 | H147: 115 | I147: 1 | J147: 3 | K147: 147 | L147: 0 | M147: 372 | N147: 66 | O147: 3 | P147: 8 | Q147: 6 | R147: 1 | S147: 44 | T147: 10 | U147: 5 | V147: 367 | W147: 31.91304348
A148: SANTA CRUZ | B148: 5 | C148: 1303 | D148: 954 | E148: 73.21565618 | F148: 921 | G148: 14 | H148: 262 | I148: 3 | J148: 7 | K148: 134 | L148: 2 | M148: 306 | N148: 82 | O148: 4 | P148: 9 | Q148: 4 | R148: 5 | S148: 89 | T148: 22 | U148: 11 | V148: 349 | W148: 26.78434382
A149: SAN ANTONIO | B149: 2 | C149: 764 | D149: 536 | E149: 70.15706806 | F149: 531 | G149: 9 | H149: 78 | I149: 1 | J149: 7 | K149: 133 | L149: 1 | M149: 216 | N149: 46 | O149: 4 | P149: 4 | Q149: 3 | R149: 1 | S149: 28 | T149: 3 | U149: 2 | V149: 228 | W149: 29.84293194
A152: FUENTE: Tribunal Supremo de Elecciones.

Sheet C1.4
A2: CUADRO 1.4 ALAJUELA: JUNTAS, ELECTORADO, PARTICIPACIÓN, VOTOS POR PARTIDO, NULOS, BLANCOS Y ABSTENCIONISMO, PARA PRESIDENCIA Y VICEPRESIDENCIAS DE LA REPÚBLICA, SEGÚN CANTÓN Y DISTRITO ADMINISTRATIVO ELECCIONES 2 DE FEBRERO 2014
A4: CANTÓN Y DISTRITO ADMINISTRATIVO | B4: JUNTAS | C4: ELECTORADO | D4: VOTOS RECIBIDOS | V4: ABSTENCIONISMO
D5: TOTAL GENERAL | E5: % PARTICIPACIÓN | F5: VOTOS VÁLIDOS | T5: NULOS | U5: BLANCOS | V5: ABSOLUTO | W5: %
F6: TOTAL | G6: ACCESIBILIDAD SIN EXCLUSIÓN | H6: ACCIÓN CIUDADANA | I6: AVANCE NACIONAL | J6: DE LOS TRABAJADORES | K6: FRENTE AMPLIO | L6: INTEGRACIÓN NACIONAL | M6: LIBERACIÓN NACIONAL | N6: MOVIMIENTO LIBERTARIO | O6: NUEVA GENERACIÓN | P6: PATRIA NUEVA | Q6: RENOVACIÓN COSTARRICENSE | R6: RESTAURACIÓN NACIONAL | S6: UNIDAD SOCIAL CRISTIANA
A8: PROVINCIA ALAJUELA | B8: =+B9+B24+B38+B47+B52+B61+B70+B78+B84+B90+B104+B112+B118+B127+B132 -> 1259 | C8: =+C9+C24+C38+C47+C52+C61+C70+C78+C84+C90+C104+C112+C118+C127+C132 -> 577493 | D8: =+D9+D24+D38+D47+D52+D61+D70+D78+D84+D90+D104+D112+D118+D127+D132 -> 407823 | E8: =D8/C8*100 -> 70.61955729 | F8: =+F9+F24+F38+F47+F52+F61+F70+F78+F84+F90+F104+F112+F118+F127+F132 -> 399846 | G8: 1729 | H8: 124172 | I8: 639 | J8: 1059 | K8: 73333 | L8: 458 | M8: 119081 | N8: 41389 | O8: 863 | P8: 8511 | Q8: 2592 | R8: 4577 | S8: 21443 | T8: 7029 | U8: 948 | V8: 169670 | W8: =V8/C8*100 -> 29.38044271
A9: CANTÓN 1 ALAJUELA | B9: 365 | C9: 185688 | D9: 128287 | E9: =D9/C9*100 -> 69.08739391 | F9: 125921 | G9: 685 | H9: 42861 | I9: 216 | J9: 308 | K9: 20403 | L9: 149 | M9: 35541 | N9: 14668 | O9: 322 | P9: 1476 | Q9: 790 | R9: 1496 | S9: 7006 | T9: 2184 | U9: 182 | V9: 57401 | W9: =V9/C9*100 -> 30.91260609
A10: ALAJUELA | B10: 73 | C10: 39008 | D10: 27744 | E10: =D10/C10*100 -> 71.12387203 | F10: 27366 | G10: 132 | H10: 9963 | I10: 36 | J10: 65 | K10: 4470 | L10: 33 | M10: 7973 | N10: 2507 | O10: 72 | P10: 334 | Q10: 130 | R10: 285 | S10: 1366 | T10: 351 | U10: 27 | V10: 11264 | W10: =V10/C10*100 -> 28.87612797
A11: SAN JOSÉ | B11: 57 | C11: 31198 | D11: 21745 | E11: 69.69998077 | F11: 21402 | G11: 98 | H11: 7971 | I11: 32 | J11: 56 | K11: 3444 | L11: 16 | M11: 5619 | N11: 2413 | O11: 55 | P11: 267 | Q11: 96 | R11: 303 | S11: 1032 | T11: 325 | U11: 18 | V11: 9453 | W11: 30.30001923
A12: CARRIZAL | B12: 10 | C12: 4360 | D12: 2843 | E12: 65.20642202 | F12: 2778 | G12: 10 | H12: 933 | I12: 2 | J12: 12 | K12: 385 | L12: 3 | M12: 802 | N12: 250 | O12: 8 | P12: 16 | Q12: 16 | R12: 47 | S12: 294 | T12: 61 | U12: 4 | V12: 1517 | W12: 34.79357798
A13: SAN ANTONIO | B13: 37 | C13: 20632 | D13: 14311 | E13: 69.36312524 | F13: 14027 | G13: 73 | H13: 4859 | I13: 17 | J13: 39 | K13: 2208 | L13: 21 | M13: 3845 | N13: 1800 | O13: 40 | P13: 151 | Q13: 123 | R13: 182 | S13: 669 | T13: 269 | U13: 15 | V13: 6321 | W13: 30.63687476
A14: GUÁCIMA | B14: 26 | C14: 12637 | D14: 8982 | E14: 71.07699612 | F14: 8782 | G14: 46 | H14: 2786 | I14: 22 | J14: 18 | K14: 1333 | L14: 8 | M14: 2435 | N14: 1229 | O14: 22 | P14: 90 | Q14: 98 | R14: 84 | S14: 611 | T14: 177 | U14: 23 | V14: 3655 | W14: 28.92300388
A15: SAN ISIDRO | B15: 21 | C15: 10895 | D15: 7416 | E15: 68.06792106 | F15: 7266 | G15: 50 | H15: 2447 | I15: 16 | J15: 16 | K15: 1193 | L15: 11 | M15: 2038 | N15: 761 | O15: 14 | P15: 117 | Q15: 38 | R15: 86 | S15: 479 | T15: 140 | U15: 10 | V15: 3479 | W15: 31.93207894
A16: SABANILLA | B16: 12 | C16: 4949 | D16: 3417 | E16: 69.04425136 | F16: 3344 | G16: 22 | H16: 886 | I16: 10 | J16: 7 | K16: 471 | L16: 3 | M16: 1198 | N16: 467 | O16: 10 | P16: 25 | Q16: 11 | R16: 40 | S16: 194 | T16: 68 | U16: 5 | V16: 1532 | W16: 30.95574864
A17: SAN RAFAEL | B17: 35 | C17: 16471 | D17: 10490 | E17: 63.68769352 | F17: 10257 | G17: 75 | H17: 2857 | I17: 16 | J17: 27 | K17: 1750 | L17: 10 | M17: 3060 | N17: 1496 | O17: 21 | P17: 138 | Q17: 74 | R17: 61 | S17: 672 | T17: 210 | U17: 23 | V17: 5981 | W17: 36.31230648
A18: RÍO SEGUNDO | B18: 17 | C18: 8725 | D18: 5950 | E18: 68.19484241 | F18: 5813 | G18: 42 | H18: 2038 | I18: 19 | J18: 14 | K18: 827 | L18: 12 | M18: 1682 | N18: 665 | O18: 11 | P18: 77 | Q18: 42 | R18: 70 | S18: 314 | T18: 119 | U18: 18 | V18: 2775 | W18: 31.80515759
A19: DESAMPARADOS | B19: 32 | C19: 16820 | D19: 11625 | E19: 69.11414982 | F19: 11409 | G19: 56 | H19: 3840 | I19: 23 | J19: 38 | K19: 1850 | L19: 17 | M19: 2991 | N19: 1529 | O19: 38 | P19: 143 | Q19: 94 | R19: 132 | S19: 658 | T19: 199 | U19: 17 | V19: 5195 | W19: 30.88585018
A20: TURRÚCARES | B20: 12 | C20: 5075 | D20: 3541 | E20: 69.77339901 | F20: 3467 | G20: 15 | H20: 1055 | I20: 6 | J20: 3 | K20: 839 | L20: 1 | M20: 938 | N20: 332 | O20: 13 | P20: 12 | Q20: 20 | R20: 63 | S20: 170 | T20: 69 | U20: 5 | V20: 1534 | W20: 30.22660099
A21: TAMBOR | B21: 18 | C21: 8637 | D21: 5919 | E21: 68.53073984 | F21: 5799 | G21: 35 | H21: 1897 | I21: 10 | J21: 9 | K21: 922 | L21: 10 | M21: 1725 | N21: 679 | O21: 9 | P21: 63 | Q21: 28 | R21: 93 | S21: 319 | T21: 112 | U21: 8 | V21: 2718 | W21: 31.46926016
A22: GARITA | B22: 9 | C22: 4505 | D22: 3133 | E22: 69.54495006 | F22: 3065 | G22: 19 | H22: 1025 | I22: 6 | J22: 1 | K22: 538 | L22: 3 | M22: 880 | N22: 376 | O22: 8 | P22: 31 | Q22: 9 | R22: 34 | S22: 135 | T22: 59 | U22: 9 | V22: 1372 | W22: 30.45504994
A23: SARAPIQUÍ | B23: 6 | C23: 1776 | D23: 1171 | E23: 65.93468468 | F23: 1146 | G23: 12 | H23: 304 | I23: 1 | J23: 3 | K23: 173 | L23: 1 | M23: 355 | N23: 164 | O23: 1 | P23: 12 | Q23: 11 | R23: 16 | S23: 93 | T23: 25 | U23: 0 | V23: 605 | W23: 34.06531532
A24: CANTÓN 2 SAN RAMÓN | B24: 130 | C24: 58067 | D24: 42476 | E24: 73.14998192 | F24: 41689 | G24: 144 | H24: 14112 | I24: 62 | J24: 130 | K24: 11614 | L24: 48 | M24: 9903 | N24: 2303 | O24: 84 | P24: 1284 | Q24: 200 | R24: 345 | S24: 1460 | T24: 663 | U24: 124 | V24: 15591 | W24: 26.85001808
A25: SAN RAMÓN | B25: 24 | C25: 13093 | D25: 10206 | E25: 77.95004964 | F25: 10102 | G25: 20 | H25: 4157 | I25: 4 | J25: 18 | K25: 2628 | L25: 7 | M25: 2258 | N25: 392 | O25: 15 | P25: 251 | Q25: 43 | R25: 45 | S25: 264 | T25: 94 | U25: 10 | V25: 2887 | W25: 22.04995036
A26: SANTIAGO | B26: 8 | C26: 3258 | D26: 2453 | E26: 75.29158993 | F26: 2400 | G26: 8 | H26: 784 | I26: 2 | J26: 8 | K26: 619 | L26: 2 | M26: 659 | N26: 102 | O26: 6 | P26: 97 | Q26: 12 | R26: 16 | S26: 85 | T26: 44 | U26: 9 | V26: 805 | W26: 24.70841007
A27: SAN JUAN | B27: 18 | C27: 8855 | D27: 6262 | E27: 70.71710898 | F27: 6165 | G27: 21 | H27: 2346 | I27: 12 | J27: 11 | K27: 1681 | L27: 6 | M27: 1282 | N27: 345 | O27: 19 | P27: 135 | Q27: 24 | R27: 52 | S27: 231 | T27: 81 | U27: 16 | V27: 2593 | W27: 29.28289102
A28: PIEDADES NORTE | B28: 12 | C28: 5028 | D28: 3656 | E28: 72.71280827 | F28: 3567 | G28: 15 | H28: 1103 | I28: 2 | J28: 13 | K28: 1099 | L28: 4 | M28: 866 | N28: 214 | O28: 8 | P28: 80 | Q28: 8 | R28: 25 | S28: 130 | T28: 76 | U28: 13 | V28: 1372 | W28: 27.28719173
A29: PIEDADES SUR | B29: 10 | C29: 2860 | D29: 2123 | E29: 74.23076923 | F29: 2081 | G29: 8 | H29: 727 | I29: 4 | J29: 8 | K29: 519 | L29: 2 | M29: 554 | N29: 97 | O29: 2 | P29: 57 | Q29: 11 | R29: 14 | S29: 78 | T29: 35 | U29: 7 | V29: 737 | W29: 25.76923077
A30: SAN RAFAEL | B30: 11 | C30: 5454 | D30: 3981 | E30: 72.99229923 | F30: 3913 | G30: 13 | H30: 1213 | I30: 5 | J30: 18 | K30: 1140 | L30: 6 | M30: 933 | N30: 252 | O30: 5 | P30: 94 | Q30: 19 | R30: 61 | S30: 154 | T30: 55 | U30: 13 | V30: 1473 | W30: 27.00770077
A31: SAN ISIDRO | B31: 6 | C31: 2647 | D31: 1902 | E31: 71.85493011 | F31: 1862 | G31: 8 | H31: 607 | I31: 0 | J31: 5 | K31: 536 | L31: 2 | M31: 489 | N31: 110 | O31: 3 | P31: 29 | Q31: 6 | R31: 16 | S31: 51 | T31: 34 | U31: 6 | V31: 745 | W31: 28.14506989
A32: ÁNGELES | B32: 12 | C32: 5250 | D32: 3761 | E32: 71.63809524 | F32: 3665 | G32: 13 | H32: 1000 | I32: 12 | J32: 17 | K32: 1176 | L32: 2 | M32: 776 | N32: 272 | O32: 6 | P32: 180 | Q32: 16 | R32: 59 | S32: 136 | T32: 80 | U32: 16 | V32: 1489 | W32: 28.36190476
A33: ALFARO | B33: 9 | C33: 3599 | D33: 2525 | E33: 70.15837733 | F33: 2492 | G33: 8 | H33: 871 | I33: 6 | J33: 12 | K33: 782 | L33: 1 | M33: 506 | N33: 104 | O33: 10 | P33: 73 | Q33: 16 | R33: 21 | S33: 82 | T33: 27 | U33: 6 | V33: 1074 | W33: 29.84162267
A34: VOLIO | B34: 4 | C34: 1516 | D34: 1060 | E34: 69.92084433 | F34: 1040 | G34: 7 | H34: 305 | I34: 5 | J34: 3 | K34: 291 | L34: 2 | M34: 260 | N34: 78 | O34: 5 | P34: 22 | Q34: 3 | R34: 8 | S34: 51 | T34: 18 | U34: 2 | V34: 456 | W34: 30.07915567
A35: CONCEPCIÓN | B35: 3 | C35: 1605 | D35: 1149 | E35: 71.58878505 | F35: 1122 | G35: 7 | H35: 306 | I35: 1 | J35: 7 | K35: 357 | L35: 4 | M35: 262 | N35: 90 | O35: 2 | P35: 40 | Q35: 5 | R35: 6 | S35: 35 | T35: 22 | U35: 5 | V35: 456 | W35: 28.41121495
A36: ZAPOTAL | B36: 3 | C36: 290 | D36: 213 | E36: 73.44827586 | F36: 209 | G36: 1 | H36: 34 | I36: 0 | J36: 1 | K36: 35 | L36: 1 | M36: 111 | N36: 16 | O36: 0 | P36: 2 | Q36: 0 | R36: 0 | S36: 8 | T36: 3 | U36: 1 | V36: 77 | W36: 26.55172414
A37: PEÑAS BLANCAS | B37: 10 | C37: 4612 | D37: 3185 | E37: 69.05897658 | F37: 3071 | G37: 15 | H37: 659 | I37: 9 | J37: 9 | K37: 751 | L37: 9 | M37: 947 | N37: 231 | O37: 3 | P37: 224 | Q37: 37 | R37: 22 | S37: 155 | T37: 94 | U37: 20 | V37: 1427 | W37: 30.94102342
A38: CANTÓN 3 GRECIA | B38: 123 | C38: 55007 | D38: 40649 | E38: 73.89786754 | F38: 39923 | G38: 161 | H38: 15089 | I38: 69 | J38: 82 | K38: 6518 | L38: 40 | M38: 10781 | N38: 3982 | O38: 73 | P38: 606 | Q38: 170 | R38: 551 | S38: 1801 | T38: 645 | U38: 81 | V38: 14358 | W38: 26.10213246
A39: GRECIA | B39: 27 | C39: 14286 | D39: 10719 | E39: 75.03149937 | F39: 10574 | G39: 34 | H39: 4385 | I39: 19 | J39: 13 | K39: 1779 | L39: 14 | M39: 2775 | N39: 838 | O39: 21 | P39: 167 | Q39: 32 | R39: 103 | S39: 394 | T39: 131 | U39: 14 | V39: 3567 | W39: 24.96850063
A40: SAN ISIDRO | B40: 9 | C40: 4049 | D40: 3066 | E40: 75.72240059 | F40: 3002 | G40: 17 | H40: 1186 | I40: 5 | J40: 6 | K40: 431 | L40: 2 | M40: 733 | N40: 337 | O40: 6 | P40: 41 | Q40: 16 | R40: 61 | S40: 161 | T40: 60 | U40: 4 | V40: 983 | W40: 24.27759941
A41: SAN JOSÉ | B41: 13 | C41: 5950 | D41: 4612 | E41: 77.51260504 | F41: 4519 | G41: 20 | H41: 1866 | I41: 4 | J41: 10 | K41: 693 | L41: 0 | M41: 1233 | N41: 392 | O41: 7 | P41: 70 | Q41: 18 | R41: 40 | S41: 166 | T41: 78 | U41: 15 | V41: 1338 | W41: 22.48739496
A42: SAN ROQUE | B42: 18 | C42: 8003 | D42: 6399 | E42: 79.95751593 | F42: 6318 | G42: 19 | H42: 2616 | I42: 17 | J42: 12 | K42: 1086 | L42: 5 | M42: 1635 | N42: 477 | O42: 12 | P42: 121 | Q42: 19 | R42: 62 | S42: 237 | T42: 70 | U42: 11 | V42: 1604 | W42: 20.04248407
A43: TACARES | B43: 11 | C43: 5184 | D43: 3774 | E43: 72.80092593 | F43: 3681 | G43: 19 | H43: 1323 | I43: 6 | J43: 14 | K43: 531 | L43: 7 | M43: 1027 | N43: 456 | O43: 11 | P43: 34 | Q43: 11 | R43: 35 | S43: 207 | T43: 86 | U43: 7 | V43: 1410 | W43: 27.19907407
A44: RÍO CUARTO | B44: 15 | C44: 5274 | D44: 3042 | E44: 57.67918089 | F44: 2961 | G44: 14 | H44: 692 | I44: 6 | J44: 5 | K44: 490 | L44: 5 | M44: 1046 | N44: 392 | O44: 4 | P44: 52 | Q44: 20 | R44: 50 | S44: 185 | T44: 71 | U44: 10 | V44: 2232 | W44: 42.32081911
A45: PUENTE DE PIEDRA | B45: 17 | C45: 7111 | D45: 5267 | E45: 74.06834482 | F45: 5148 | G45: 29 | H45: 1584 | I45: 7 | J45: 14 | K45: 840 | L45: 5 | M45: 1376 | N45: 730 | O45: 7 | P45: 73 | Q45: 36 | R45: 166 | S45: 281 | T45: 105 | U45: 14 | V45: 1844 | W45: 25.93165518
A46: BOLÍVAR | B46: 13 | C46: 5150 | D46: 3770 | E46: 73.2038835 | F46: 3720 | G46: 9 | H46: 1437 | I46: 5 | J46: 8 | K46: 668 | L46: 2 | M46: 956 | N46: 360 | O46: 5 | P46: 48 | Q46: 18 | R46: 34 | S46: 170 | T46: 44 | U46: 6 | V46: 1380 | W46: 26.7961165
A47: CANTÓN 4 SAN MATEO | B47: 11 | C47: 4044 | D47: 2812 | E47: 69.53511375 | F47: 2762 | G47: 8 | H47: 458 | I47: 5 | J47: 2 | K47: 575 | L47: 4 | M47: 1240 | N47: 251 | O47: 12 | P47: 28 | Q47: 10 | R47: 9 | S47: 160 | T47: 47 | U47: 3 | V47: 1232 | W47: 30.46488625
A48: SAN MATEO | B48: 6 | C48: 2046 | D48: 1431 | E48: 69.94134897 | F48: 1400 | G48: 4 | H48: 239 | I48: 0 | J48: 1 | K48: 346 | L48: 1 | M48: 583 | N48: 129 | O48: 4 | P48: 16 | Q48: 5 | R48: 5 | S48: 67 | T48: 28 | U48: 3 | V48: 615 | W48: 30.05865103
A49: DESMONTE | B49: 1 | C49: 410 | D49: 321 | E49: 78.29268293 | F49: 318 | G49: 0 | H49: 58 | I49: 2 | J49: 0 | K49: 84 | L49: 0 | M49: 129 | N49: 26 | O49: 0 | P49: 0 | Q49: 0 | R49: 1 | S49: 18 | T49: 3 | U49: 0 | V49: 89 | W49: 21.70731707
A50: JESÚS MARÍA | B50: 2 | C50: 751 | D50: 545 | E50: 72.56990679 | F50: 536 | G50: 1 | H50: 97 | I50: 1 | J50: 0 | K50: 79 | L50: 1 | M50: 262 | N50: 51 | O50: 8 | P50: 7 | Q50: 1 | R50: 1 | S50: 27 | T50: 9 | U50: 0 | V50: 206 | W50: 27.43009321
A51: LABRADOR | B51: 2 | C51: 837 | D51: 515 | E51: 61.52927121 | F51: 508 | G51: 3 | H51: 64 | I51: 2 | J51: 1 | K51: 66 | L51: 2 | M51: 266 | N51: 45 | O51: 0 | P51: 5 | Q51: 4 | R51: 2 | S51: 48 | T51: 7 | U51: 0 | V51: 322
A52: CANTÓN 5 ATENAS | B52: 40 | C52: 18923 | D52: 14257 | E52: 75.34217619 | F52: 14045 | G52: 43 | H52: 5688 | I52: 15 | J52: 24 | K52: 2573 | L52: 33 | M52: 3864 | N52: 730 | O52: 24 | P52: 131 | Q52: 103 | R52: 75 | S52: 742 | T52: 179 | U52: 33 | V52: 4666 | W52: 24.65782381
A53: ATENAS | B53: 13 | C53: 6410 | D53: 5019 | E53: 78.29953198 | F53: 4959 | G53: 6 | H53: 2289 | I53: 6 | J53: 5 | K53: 832 | L53: 7 | M53: 1228 | N53: 258 | O53: 6 | P53: 59 | Q53: 27 | R53: 18 | S53: 218 | T53: 53 | U53: 7 | V53: 1391 | W53: 21.70046802
A54: JESÚS | B54: 6 | C54: 2887 | D54: 2205 | E54: 76.37686179 | F54: 2164 | G54: 9 | H54: 936 | I54: 3 | J54: 4 | K54: 313 | L54: 11 | M54: 638 | N54: 111 | O54: 2 | P54: 21 | Q54: 15 | R54: 10 | S54: 91 | T54: 36 | U54: 5 | V54: 682 | W54: 23.62313821
A55: MERCEDES | B55: 4 | C55: 2030 | D55: 1437 | E55: 70.78817734 | F55: 1421 | G55: 5 | H55: 535 | I55: 2 | J55: 4 | K55: 336 | L55: 3 | M55: 352 | N55: 74 | O55: 4 | P55: 13 | Q55: 7 | R55: 15 | S55: 71 | T55: 13 | U55: 3 | V55: 593 | W55: 29.21182266
A56: SAN ISIDRO | B56: 5 | C56: 2071 | D56: 1518 | E56: 73.29792371 | F56: 1486 | G56: 5 | H56: 497 | I56: 1 | J56: 2 | K56: 348 | L56: 9 | M56: 396 | N56: 83 | O56: 3 | P56: 11 | Q56: 23 | R56: 5 | S56: 103 | T56: 26 | U56: 6 | V56: 553 | W56: 26.70207629
A57: CONCEPCIÓN | B57: 5 | C57: 2500 | D57: 1943 | E57: 77.72 | F57: 1914 | G57: 9 | H57: 655 | I57: 2 | J57: 3 | K57: 330 | L57: 1 | M57: 601 | N57: 101 | O57: 8 | P57: 7 | Q57: 19 | R57: 12 | S57: 166 | T57: 23 | U57: 6 | V57: 557 | W57: 22.28
A58: SAN JOSÉ | B58: 2 | C58: 1096 | D58: 764 | E58: 69.7080292 | F58: 750 | G58: 6 | H58: 292 | I58: 0 | J58: 2 | K58: 126 | L58: 1 | M58: 243 | N58: 35 | O58: 1 | P58: 8 | Q58: 3 | R58: 1 | S58: 32 | T58: 10 | U58: 4 | V58: 332 | W58: 30.2919708
A59: SANTA EULALIA | B59: 3 | C59: 1325 | D59: 931 | E59: 70.26415094 | F59: 917 | G59: 3 | H59: 371 | I59: 0 | J59: 4 | K59: 178 | L59: 1 | M59: 239 | N59: 54 | O59: 0 | P59: 9 | Q59: 8 | R59: 13 | S59: 37 | T59: 12 | U59: 2 | V59: 394 | W59: 29.73584906
A60: ESCOBAL | B60: 2 | C60: 604 | D60: 440 | E60: 72.84768212 | F60: 434 | G60: 0 | H60: 113 | I60: 1 | J60: 0 | K60: 110 | L60: 0 | M60: 167 | N60: 14 | O60: 0 | P60: 3 | Q60: 1 | R60: 1 | S60: 24 | T60: 6 | U60: 0 | V60: 164 | W60: 27.15231788
A61: CANTÓN 6 NARANJO | B61: 64 | C61: 29894 | D61: 21896 | E61: 73.24546732 | F61: 21433 | G61: 85 | H61: 6593 | I61: 21 | J61: 64 | K61: 4479 | L61: 38 | M61: 6354 | N61: 1894 | O61: 40 | P61: 182 | Q61: 88 | R61: 303 | S61: 1292 | T61: 401 | U61: 62 | V61: 7998 | W61: 26.75453268
A62: NARANJO | B62: 25 | C62: 12209 | D62: 8969 | E62: 73.46220002 | F62: 8794 | G62: 37 | H62: 2829 | I62: 8 | J62: 26 | K62: 1790 | L62: 9 | M62: 2554 | N62: 821 | O62: 16 | P62: 68 | Q62: 46 | R62: 125 | S62: 465 | T62: 153 | U62: 22 | V62: 3240 | W62: 26.53779998
A63: SAN MIGUEL | B63: 5 | C63: 2454 | D63: 1754 | E63: 71.47514262 | F63: 1705 | G63: 2 | H63: 459 | I63: 1 | J63: 3 | K63: 365 | L63: 4 | M63: 537 | N63: 173 | O63: 1 | P63: 14 | Q63: 4 | R63: 33 | S63: 109 | T63: 43 | U63: 6 | V63: 700 | W63: 28.52485738
A64: SAN JOSÉ | B64: 5 | C64: 2156 | D64: 1639 | E64: 76.02040816 | F64: 1618 | G64: 8 | H64: 485 | I64: 2 | J64: 9 | K64: 470 | L64: 2 | M64: 423 | N64: 80 | O64: 7 | P64: 20 | Q64: 7 | R64: 20 | S64: 85 | T64: 19 | U64: 2 | V64: 517 | W64: 23.97959184
A65: CIRRÍ SUR | B65: 6 | C65: 3089 | D65: 2218 | E65: 71.80317255 | F65: 2166 | G65: 9 | H65: 654 | I65: 4 | J65: 11 | K65: 455 | L65: 3 | M65: 651 | N65: 199 | O65: 3 | P65: 18 | Q65: 3 | R65: 31 | S65: 125 | T65: 47 | U65: 5 | V65: 871 | W65: 28.19682745
A66: SAN JERÓNIMO | B66: 5 | C66: 2122 | D66: 1544 | E66: 72.76154571 | F66: 1504 | G66: 5 | H66: 376 | I66: 1 | J66: 2 | K66: 283 | L66: 16 | M66: 452 | N66: 166 | O66: 5 | P66: 10 | Q66: 6 | R66: 38 | S66: 144 | T66: 30 | U66: 10 | V66: 578 | W66: 27.23845429
A67: SAN JUAN | B67: 5 | C67: 2207 | D67: 1669 | E67: 75.62301767 | F67: 1637 | G67: 7 | H67: 495 | I67: 3 | J67: 1 | K67: 362 | L67: 1 | M67: 484 | N67: 127 | O67: 2 | P67: 9 | Q67: 4 | R67: 30 | S67: 112 | T67: 26 | U67: 6 | V67: 538 | W67: 24.37698233
A68: EL ROSARIO | B68: 6 | C68: 2463 | D68: 1794 | E68: 72.83800244 | F68: 1743 | G68: 8 | H68: 506 | I68: 1 | J68: 3 | K68: 270 | L68: 2 | M68: 644 | N68: 164 | O68: 4 | P68: 14 | Q68: 8 | R68: 12 | S68: 107 | T68: 44 | U68: 7 | V68: 669 | W68: 27.16199756
A69: PALMITOS | B69: 7 | C69: 3194 | D69: 2309 | E69: 72.29179712 | F69: 2266 | G69: 9 | H69: 789 | I69: 1 | J69: 9 | K69: 484 | L69: 1 | M69: 609 | N69: 164 | O69: 2 | P69: 29 | Q69: 10 | R69: 14 | S69: 145 | T69: 39 | U69: 4 | V69: 885 | W69: 27.70820288
A70: CANTÓN 7 PALMARES | B70: 55 | C70: 27132 | D70: 20950 | E70: 77.21509656 | F70: 20545 | G70: 34 | H70: 5203 | I70: 30 | J70: 35 | K70: 4642 | L70: 9 | M70: 8785 | N70: 581 | O70: 43 | P70: 241 | Q70: 49 | R70: 238 | S70: 655 | T70: 351 | U70: 54 | V70: 6182 | W70: 22.78490344
A71: PALMARES | B71: 10 | C71: 4984 | D71: 4044 | E71: 81.13964687 | F71: 3999 | G71: 1 | H71: 1099 | I71: 8 | J71: 7 | K71: 755 | L71: 3 | M71: 1834 | N71: 90 | O71: 6 | P71: 40 | Q71: 4 | R71: 39 | S71: 113 | T71: 37 | U71: 8 | V71: 940 | W71: 18.86035313
A72: ZARAGOZA | B72: 15 | C72: 7051 | D72: 5434 | E72: 77.06708268 | F72: 5331 | G72: 7 | H72: 1429 | I72: 8 | J72: 9 | K72: 1199 | L72: 2 | M72: 2220 | N72: 154 | O72: 6 | P72: 52 | Q72: 18 | R72: 53 | S72: 174 | T72: 91 | U72: 12 | V72: 1617 | W72: 22.93291732
A73: BUENOS AIRES | B73: 9 | C73: 4884 | D73: 3804 | E73: 77.88697789 | F73: 3736 | G73: 3 | H73: 1020 | I73: 4 | J73: 4 | K73: 846 | L73: 1 | M73: 1558 | N73: 98 | O73: 18 | P73: 49 | Q73: 10 | R73: 25 | S73: 100 | T73: 60 | U73: 8 | V73: 1080 | W73: 22.11302211
A74: SANTIAGO | B74: 3 | C74: 1691 | D74: 1256 | E74: 74.27557658 | F74: 1221 | G74: 3 | H74: 270 | I74: 1 | J74: 3 | K74: 323 | L74: 1 | M74: 525 | N74: 37 | O74: 1 | P74: 10 | Q74: 3 | R74: 5 | S74: 39 | T74: 26 | U74: 9 | V74: 435 | W74: 25.72442342
A75: CANDELARIA | B75: 3 | C75: 1486 | D75: 1054 | E75: =D75/C75*100 -> 70.92866756 | F75: 1015 | G75: 3 | H75: 153 | I75: 0 | J75: 1 | K75: 319 | L75: 0 | M75: 419 | N75: 45 | O75: 4 | P75: 5 | Q75: 3 | R75: 16 | S75: 47 | T75: 36 | U75: 3 | V75: 432 | W75: =V75/C75*100 -> 29.07133244
A76: ESQUIPULAS | B76: 8 | C76: 4175 | D76: 3099 | E76: 74.22754491 | F76: 3031 | G76: 10 | H76: 620 | I76: 4 | J76: 5 | K76: 737 | L76: 0 | M76: 1291 | N76: 107 | O76: 6 | P76: 57 | Q76: 6 | R76: 66 | S76: 122 | T76: 62 | U76: 6 | V76: 1076 | W76: 25.77245509
A77: LA GRANJA | B77: 7 | C77: 2861 | D77: 2259 | E77: 78.95840615 | F77: 2212 | G77: 7 | H77: 612 | I77: 5 | J77: 6 | K77: 463 | L77: 2 | M77: 938 | N77: 50 | O77: 2 | P77: 28 | Q77: 5 | R77: 34 | S77: 60 | T77: 39 | U77: 8 | V77: 602 | W77: 21.04159385
A78: CANTÓN 8 POÁS | B78: 41 | C78: 19747 | D78: 14983 | E78: 75.87481643 | F78: 14714 | G78: 68 | H78: 4686 | I78: 20 | J78: 33 | K78: 2312 | L78: 24 | M78: 4491 | N78: 1954 | O78: 29 | P78: 267 | Q78: 64 | R78: 209 | S78: 557 | T78: 240 | U78: 29 | V78: 4764 | W78: 24.12518357
A79: SAN PEDRO | B79: 15 | C79: 6844 | D79: 5398 | E79: 78.87200468 | F79: 5315 | G79: 19 | H79: 1938 | I79: 5 | J79: 10 | K79: 868 | L79: 6 | M79: 1519 | N79: 598 | O79: 6 | P79: 89 | Q79: 17 | R79: 66 | S79: 174 | T79: 76 | U79: 7 | V79: 1446 | W79: 21.12799532
A80: SAN JUAN | B80: 5 | C80: 2117 | D80: 1557 | E80: 73.54747284 | F80: 1527 | G80: 5 | H80: 394 | I80: 2 | J80: 7 | K80: 227 | L80: 6 | M80: 516 | N80: 282 | O80: 1 | P80: 21 | Q80: 5 | R80: 18 | S80: 43 | T80: 24 | U80: 6 | V80: 560 | W80: 26.45252716
A81: SAN RAFAEL | B81: 7 | C81: 3391 | D81: 2814 | E81: 82.98437039 | F81: 2773 | G81: 14 | H81: 790 | I81: 0 | J81: 7 | K81: 416 | L81: 3 | M81: 970 | N81: 262 | O81: 3 | P81: 114 | Q81: 8 | R81: 77 | S81: 109 | T81: 37 | U81: 4 | V81: 577 | W81: 17.01562961
A82: CARRILLOS | B82: 11 | C82: 5895 | D82: 4202 | E82: 71.2807464 | F82: 4122 | G82: 25 | H82: 1337 | I82: 13 | J82: 5 | K82: 635 | L82: 6 | M82: 1206 | N82: 590 | O82: 10 | P82: 39 | Q82: 24 | R82: 40 | S82: 192 | T82: 71 | U82: 9 | V82: 1693 | W82: 28.7192536
A83: SABANA REDONDA | B83: 3 | C83: 1500 | D83: 1012 | E83: 67.46666667 | F83: 977 | G83: 5 | H83: 227 | I83: 0 | J83: 4 | K83: 166 | L83: 3 | M83: 280 | N83: 222 | O83: 9 | P83: 4 | Q83: 10 | R83: 8 | S83: 39 | T83: 32 | U83: 3 | V83: 488 | W83: 32.53333333
A84: CANTÓN 9 OROTINA | B84: 31 | C84: 14116 | D84: 9002 | E84: 63.77160669 | F84: 8828 | G84: 37 | H84: 1522 | I84: 12 | J84: 12 | K84: 1601 | L84: 4 | M84: 3823 | N84: 710 | O84: 22 | P84: 62 | Q84: 30 | R84: 90 | S84: 903 | T84: 147 | U84: 27 | V84: 5114 | W84: 36.22839331
A85: OROTINA | B85: 16 | C85: 7465 | D85: 5142 | E85: 68.88144675 | F85: 5060 | G85: 19 | H85: 1005 | I85: 4 | J85: 4 | K85: 894 | L85: 3 | M85: 2173 | N85: 343 | O85: 12 | P85: 49 | Q85: 13 | R85: 52 | S85: 489 | T85: 70 | U85: 12 | V85: 2323 | W85: 31.11855325
A86: EL MASTATE | B86: 3 | C86: 1406 | D86: 869 | E86: 61.80654339 | F86: 854 | G86: 7 | H86: 155 | I86: 2 | J86: 2 | K86: 177 | L86: 1 | M86: 317 | N86: 96 | O86: 2 | P86: 3 | Q86: 6 | R86: 2 | S86: 84 | T86: 13 | U86: 2 | V86: 537 | W86: 38.19345661
A87: HACIENDA VIEJA | B87: 2 | C87: 832 | D87: 567 | E87: 68.14903846 | F87: 553 | G87: 1 | H87: 111 | I87: 2 | J87: 0 | K87: 105 | L87: 0 | M87: 235 | N87: 47 | O87: 0 | P87: 2 | Q87: 2 | R87: 7 | S87: 41 | T87: 13 | U87: 1 | V87: 265 | W87: 31.85096154
A88: COYOLAR | B88: 7 | C88: 3297 | D88: 1800 | E88: 54.59508644 | F88: 1752 | G88: 8 | H88: 168 | I88: 4 | J88: 3 | K88: 363 | L88: 0 | M88: 773 | N88: 158 | O88: 7 | P88: 5 | Q88: 8 | R88: 18 | S88: 237 | T88: 40 | U88: 8 | V88: 1497 | W88: 45.40491356
A89: LA CEIBA | B89: 3 | C89: 1116 | D89: 624 | E89: 55.91397849 | F89: 609 | G89: 2 | H89: 83 | I89: 0 | J89: 3 | K89: 62 | L89: 0 | M89: 325 | N89: 66 | O89: 1 | P89: 3 | Q89: 1 | R89: 11 | S89: 52 | T89: 11 | U89: 4 | V89: 492 | W89: 44.08602151
A90: CANTÓN 10 SAN CARLOS | B90: 227 | C90: 97702 | D90: 68707 | E90: 70.32302307 | F90: 67380 | G90: 281 | H90: 19998 | I90: 112 | J90: 187 | K90: 10035 | L90: 59 | M90: 19664 | N90: 8071 | O90: 125 | P90: 3787 | Q90: 642 | R90: 526 | S90: 3893 | T90: 1175 | U90: 152 | V90: 28995 | W90: 29.67697693
A91: QUESADA | B91: 68 | C91: 31064 | D91: 22493 | E91: 72.40857584 | F91: 22137 | G91: 70 | H91: 8186 | I91: 25 | J91: 44 | K91: 2922 | L91: 9 | M91: 6208 | N91: 1881 | O91: 58 | P91: 1182 | Q91: 184 | R91: 142 | S91: 1226 | T91: 317 | U91: 39 | V91: 8571 | W91: 27.59142416
A92: FLORENCIA | B92: 23 | C92: 9870 | D92: 6990 | E92: 70.82066869 | F92: 6823 | G92: 43 | H92: 2018 | I92: 10 | J92: 17 | K92: 837 | L92: 11 | M92: 2019 | N92: 994 | O92: 14 | P92: 357 | Q92: 62 | R92: 36 | S92: 405 | T92: 151 | U92: 16 | V92: 2880 | W92: 29.17933131
A93: BUENAVISTA | B93: 1 | C93: 288 | D93: 203 | E93: 70.48611111 | F93: 196 | G93: 0 | H93: 65 | I93: 0 | J93: 0 | K93: 17 | L93: 0 | M93: 75 | N93: 21 | O93: 0 | P93: 7 | Q93: 1 | R93: 2 | S93: 8 | T93: 5 | U93: 2 | V93: 85 | W93: 29.51388889
A94: AGUAS ZARCAS | B94: 24 | C94: 11933 | D94: 8182 | E94: 68.56616107 | F94: 8030 | G94: 45 | H94: 2014 | I94: 9 | J94: 25 | K94: 1075 | L94: 7 | M94: 2424 | N94: 1093 | O94: 10 | P94: 662 | Q94: 68 | R94: 86 | S94: 512 | T94: 141 | U94: 11 | V94: 3751 | W94: 31.43383893
A95: VENECIA | B95: 13 | C95: 5813 | D95: 4293 | E95: 73.85171168 | F95: 4207 | G95: 14 | H95: 1285 | I95: 7 | J95: 11 | K95: 491 | L95: 5 | M95: 1226 | N95: 470 | O95: 4 | P95: 418 | Q95: 19 | R95: 50 | S95: 207 | T95: 76 | U95: 10 | V95: 1520 | W95: 26.14828832
A96: PITAL | B96: 18 | C96: 8560 | D96: 5681 | E96: 66.36682243 | F96: 5548 | G96: 31 | H96: 1336 | I96: 19 | J96: 16 | K96: 930 | L96: 4 | M96: 1534 | N96: 992 | O96: 5 | P96: 197 | Q96: 43 | R96: 19 | S96: 422 | T96: 115 | U96: 18 | V96: 2879 | W96: 33.63317757
A97: LA FORTUNA | B97: 17 | C97: 8052 | D97: 5405 | E97: 67.12617983 | F97: 5312 | G97: 20 | H97: 1632 | I97: 10 | J97: 13 | K97: 862 | L97: 4 | M97: 1361 | N97: 759 | O97: 9 | P97: 264 | Q97: 32 | R97: 28 | S97: 318 | T97: 82 | U97: 11 | V97: 2647 | W97: 32.87382017
A98: LA TIGRA | B98: 9 | C98: 3759 | D98: 2803 | E98: 74.56770418 | F98: 2719 | G98: 14 | H98: 677 | I98: 6 | J98: 8 | K98: 691 | L98: 5 | M98: 715 | N98: 236 | O98: 6 | P98: 138 | Q98: 60 | R98: 39 | S98: 124 | T98: 73 | U98: 11 | V98: 956 | W98: 25.43229582
A99: LA PALMERA | B99: 10 | C99: 3846 | D99: 2714 | E99: 70.56682267 | F99: 2663 | G99: 5 | H99: 651 | I99: 5 | J99: 16 | K99: 300 | L99: 3 | M99: 978 | N99: 324 | O99: 3 | P99: 105 | Q99: 49 | R99: 37 | S99: 187 | T99: 41 | U99: 10 | V99: 1132 | W99: 29.43317733
A100: VENADO | B100: 3 | C100: 1035 | D100: 690 | E100: 66.66666667 | F100: 675 | G100: 1 | H100: 209 | I100: 1 | J100: 1 | K100: 115 | L100: 1 | M100: 160 | N100: 128 | O100: 1 | P100: 13 | Q100: 2 | R100: 7 | S100: 36 | T100: 14 | U100: 1 | V100: 345 | W100: 33.33333333
A101: CUTRIS | B101: 14 | C101: 4282 | D101: 3046 | E101: 71.13498365 | F101: 3004 | G101: 12 | H101: 589 | I101: 5 | J101: 6 | K101: 479 | L101: 1 | M101: 1047 | N101: 377 | O101: 3 | P101: 251 | Q101: 43 | R101: 16 | S101: 175 | T101: 36 | U101: 6 | V101: 1236 | W101: 28.86501635
A102: MONTERREY | B102: 7 | C102: 2034 | D102: 1485 | E102: 73.00884956 | F102: 1464 | G102: 5 | H102: 454 | I102: 5 | J102: 8 | K102: 266 | L102: 2 | M102: 474 | N102: 108 | O102: 3 | P102: 43 | Q102: 9 | R102: 10 | S102: 77 | T102: 18 | U102: 3 | V102: 549 | W102: 26.99115044
A103: POCOSOL | B103: 20 | C103: 7166 | D103: 4722 | E103: 65.89450181 | F103: 4602 | G103: 21 | H103: 882 | I103: 10 | J103: 22 | K103: 1050 | L103: 7 | M103: 1443 | N103: 688 | O103: 9 | P103: 150 | Q103: 70 | R103: 54 | S103: 196 | T103: 106 | U103: 14 | V103: 2444 | W103: 34.10549819
A104: CANTÓN 11 ZARCERO | B104: 22 | C104: 8490 | D104: 7015 | E104: 82.62661955 | F104: 6907 | G104: 14 | H104: 2126 | I104: 11 | J104: 8 | K104: 1034 | L104: 6 | M104: 2734 | N104: 304 | O104: 19 | P104: 127 | Q104: 18 | R104: 35 | S104: 471 | T104: 94 | U104: 14 | V104: 1475 | W104: 17.37338045
A105: ZARCERO | B105: 8 | C105: 3544 | D105: 2873 | E105: 81.06659142 | F105: 2827 | G105: 6 | H105: 917 | I105: 7 | J105: 6 | K105: 544 | L105: 0 | M105: 915 | N105: 141 | O105: 8 | P105: 49 | Q105: 8 | R105: 21 | S105: 205 | T105: 42 | U105: 4 | V105: 671 | W105: 18.93340858
A106: LAGUNA | B106: 2 | C106: 1084 | D106: 890 | E106: 82.10332103 | F106: 874 | G106: 2 | H106: 245 | I106: 0 | J106: 0 | K106: 106 | L106: 1 | M106: 354 | N106: 52 | O106: 2 | P106: 18 | Q106: 4 | R106: 8 | S106: 82 | T106: 15 | U106: 1 | V106: 194 | W106: 17.89667897
A107: TAPESCO | B107: 2 | C107: 870 | D107: 753 | E107: 86.55172414 | F107: 749 | G107: 1 | H107: 218 | I107: 0 | J107: 0 | K107: 99 | L107: 0 | M107: 334 | N107: 16 | O107: 3 | P107: 9 | Q107: 1 | R107: 2 | S107: 66 | T107: 3 | U107: 1 | V107: 117 | W107: 13.44827586
A108: GUADALUPE | B108: 3 | C108: 467 | D108: 360 | E108: 77.08779443 | F108: 354 | G108: 1 | H108: 77 | I108: 1 | J108: 0 | K108: 77 | L108: 1 | M108: 161 | N108: 13 | O108: 2 | P108: 2 | Q108: 0 | R108: 2 | S108: 17 | T108: 4 | U108: 2 | V108: 107 | W108: 22.91220557
A109: PALMIRA | B109: 2 | C109: 889 | D109: 744 | E109: 83.68953881 | F109: 733 | G109: 2 | H109: 173 | I109: 3 | J109: 0 | K109: 72 | L109: 1 | M109: 360 | N109: 46 | O109: 1 | P109: 20 | Q109: 2 | R109: 1 | S109: 52 | T109: 9 | U109: 2 | V109: 145 | W109: 16.31046119
A110: ZAPOTE | B110: 2 | C110: 423 | D110: 344 | E110: 81.32387707 | F110: 339 | G110: 0 | H110: 95 | I110: 0 | J110: 1 | K110: 42 | L110: 0 | M110: 159 | N110: 16 | O110: 0 | P110: 7 | Q110: 2 | R110: 0 | S110: 17 | T110: 4 | U110: 1 | V110: 79 | W110: 18.67612293
A111: BRISAS | B111: 3 | C111: 1213 | D111: 1051 | E111: 86.64468261 | F111: 1031 | G111: 2 | H111: 401 | I111: 0 | J111: 1 | K111: 94 | L111: 3 | M111: 451 | N111: 20 | O111: 3 | P111: 22 | Q111: 1 | R111: 1 | S111: 32 | T111: 17 | U111: 3 | V111: 162 | W111: 13.35531739
A112: CANTÓN 12 VALVERDE VEGA | B112: 30 | C112: 13710 | D112: 9646 | E112: 70.35740336 | F112: 9481 | G112: 27 | H112: 2640 | I112: 18 | J112: 11 | K112: 1864 | L112: 5 | M112: 2461 | N112: 1454 | O112: 28 | P112: 89 | Q112: 39 | R112: 260 | S112: 585 | T112: 140 | U112: 25 | V112: 4064 | W112: 29.64259664
A113: SARCHÍ NORTE | B113: 13 | C113: 5892 | D113: 4108 | E113: 69.72165648 | F113: 4036 | G113: 6 | H113: 1092 | I113: 12 | J113: 8 | K113: 755 | L113: 1 | M113: 987 | N113: 726 | O113: 10 | P113: 32 | Q113: 19 | R113: 93 | S113: 295 | T113: 63 | U113: 9 | V113: 1784 | W113: 30.27834352
A114: SARCHÍ SUR | B114: 8 | C114: 4220 | D114: 2882 | E114: 68.29383886 | F114: 2829 | G114: 13 | H114: 919 | I114: 2 | J114: 3 | K114: 504 | L114: 3 | M114: 683 | N114: 376 | O114: 9 | P114: 32 | Q114: 10 | R114: 110 | S114: 165 | T114: 44 | U114: 9 | V114: 1338 | W114: 31.70616114
A115: TORO AMARILLO | B115: 1 | C115: 156 | D115: 114 | E115: 73.07692308 | F115: 112 | G115: 0 | H115: 15 | I115: 1 | J115: 0 | K115: 13 | L115: 0 | M115: 39 | N115: 39 | O115: 0 | P115: 1 | Q115: 0 | R115: 1 | S115: 3 | T115: 2 | U115: 0 | V115: 42 | W115: 26.92307692
A116: SAN PEDRO | B116: 5 | C116: 2103 | D116: 1565 | E116: 74.41749881 | F116: 1538 | G116: 7 | H116: 361 | I116: 2 | J116: 0 | K116: 347 | L116: 0 | M116: 478 | N116: 212 | O116: 7 | P116: 15 | Q116: 7 | R116: 37 | S116: 65 | T116: 22 | U116: 5 | V116: 538 | W116: 25.58250119
A117: RODRÍGUEZ | B117: 3 | C117: 1339 | D117: 977 | E117: 72.96489918 | F117: 966 | G117: 1 | H117: 253 | I117: 1 | J117: 0 | K117: 245 | L117: 1 | M117: 274 | N117: 101 | O117: 2 | P117: 9 | Q117: 3 | R117: 19 | S117: 57 | T117: 9 | U117: 2 | V117: 362 | W117: 27.03510082
A118: CANTÓN 13 UPALA | B118: 65 | C118: 24597 | D118: 14461 | E118: 58.79172257 | F118: 13940 | G118: 86 | H118: 1581 | I118: 23 | J118: 38 | K118: 2821 | L118: 17 | M118: 5192 | N118: 2576 | O118: 21 | P118: 69 | Q118: 175 | R118: 181 | S118: 1160 | T118: 419 | U118: 102 | V118: 10136 | W118: 41.20827743
A119: UPALA | B119: 15 | C119: 7132 | D119: 4258 | E119: 59.70274818 | F119: 4125 | G119: 31 | H119: 576 | I119: 6 | J119: 12 | K119: 882 | L119: 5 | M119: 1517 | N119: 611 | O119: 7 | P119: 25 | Q119: 44 | R119: 84 | S119: 325 | T119: 114 | U119: 19 | V119: 2874 | W119: 40.29725182
A120: AGUAS CLARAS | B120: 11 | C120: 3106 | D120: 2010 | E120: 64.71345782 | F120: 1932 | G120: 15 | H120: 242 | I120: 5 | J120: 7 | K120: 400 | L120: 1 | M120: 805 | N120: 235 | O120: 2 | P120: 11 | Q120: 32 | R120: 22 | S120: 155 | T120: 61 | U120: 17 | V120: 1096 | W120: 35.28654218
A121: SAN JOSÉ (PIZOTE) | B121: 10 | C121: 3696 | D121: 1877 | E121: 50.78463203 | F121: 1783 | G121: 9 | H121: 112 | I121: 4 | J121: 5 | K121: 291 | L121: 3 | M121: 600 | N121: 560 | O121: 2 | P121: 11 | Q121: 17 | R121: 14 | S121: 155 | T121: 62 | U121: 32 | V121: 1819 | W121: 49.21536797
A122: BIJAGUA | B122: 8 | C122: 2819 | D122: 1850 | E122: 65.62610855 | F122: 1789 | G122: 6 | H122: 335 | I122: 1 | J122: 4 | K122: 415 | L122: 3 | M122: 666 | N122: 198 | O122: 2 | P122: 3 | Q122: 26 | R122: 17 | S122: 113 | T122: 51 | U122: 10 | V122: 969 | W122: 34.37389145
A123: DELICIAS | B123: 4 | C123: 1915 | D123: 1046 | E123: 54.62140992 | F123: 1017 | G123: 7 | H123: 81 | I123: 0 | J123: 2 | K123: 202 | L123: 1 | M123: 343 | N123: 254 | O123: 2 | P123: 5 | Q123: 6 | R123: 20 | S123: 94 | T123: 17 | U123: 12 | V123: 869 | W123: 45.37859008
A124: DOS RÍOS | B124: 5 | C124: 1640 | D124: 861 | E124: 52.5 | F124: 822 | G124: 6 | H124: 38 | I124: 1 | J124: 2 | K124: 118 | L124: 0 | M124: 322 | N124: 247 | O124: 1 | P124: 1 | Q124: 6 | R124: 7 | S124: 73 | T124: 35 | U124: 4 | V124: 779 | W124: 47.5
A125: YOLILLAL | B125: 6 | C125: 1858 | D125: 1130 | E125: 60.81808396 | F125: 1100 | G125: 6 | H125: 53 | I125: 2 | J125: 4 | K125: 163 | L125: 1 | M125: 453 | N125: 259 | O125: 3 | P125: 3 | Q125: 11 | R125: 0 | S125: 142 | T125: 27 | U125: 3 | V125: 728 | W125: 39.18191604
A126: CANALETE | B126: 6 | C126: 2431 | D126: 1429 | E126: 58.78239408 | F126: 1372 | G126: 6 | H126: 144 | I126: 4 | J126: 2 | K126: 350 | L126: 3 | M126: 486 | N126: 212 | O126: 2 | P126: 10 | Q126: 33 | R126: 17 | S126: 103 | T126: 52 | U126: 5 | V126: 1002
A127: CANTÓN 14 LOS CHILES | B127: 29 | C127: 10457 | D127: 6306 | E127: 60.30410252 | F127: 6094 | G127: 25 | H127: 806 | I127: 13 | J127: 114 | K127: 1787 | L127: 13 | M127: 1712 | N127: 891 | O127: 11 | P127: 123 | Q127: 96 | R127: 114 | S127: 389 | T127: 178 | U127: 34 | V127: 4151 | W127: 39.69589748
A128: LOS CHILES | B128: 14 | C128: 5426 | D128: 3149 | E128: 58.03538518 | F128: 3028 | G128: 7 | H128: 322 | I128: 6 | J128: 97 | K128: 826 | L128: 2 | M128: 872 | N128: 496 | O128: 5 | P128: 34 | Q128: 63 | R128: 69 | S128: 229 | T128: 105 | U128: 16 | V128: 2277 | W128: 41.96461482
A129: CAÑO NEGRO | B129: 3 | C129: 991 | D129: 593 | E129: 59.83854692 | F129: 563 | G129: 1 | H129: 43 | I129: 2 | J129: 1 | K129: 94 | L129: 4 | M129: 266 | N129: 79 | O129: 1 | P129: 5 | Q129: 6 | R129: 16 | S129: 45 | T129: 23 | U129: 7 | V129: 398 | W129: 40.16145308
A130: EL AMPARO | B130: 8 | C130: 2682 | D130: 1683 | E130: 62.75167785 | F130: 1645 | G130: 8 | H130: 260 | I130: 4 | J130: 14 | K130: 597 | L130: 4 | M130: 402 | N130: 192 | O130: 4 | P130: 59 | Q130: 17 | R130: 16 | S130: 68 | T130: 29 | U130: 9 | V130: 999 | W130: 37.24832215
A131: SAN JORGE | B131: 4 | C131: 1358 | D131: 881 | E131: 64.87481591 | F131: 858 | G131: 9 | H131: 181 | I131: 1 | J131: 2 | K131: 270 | L131: 3 | M131: 172 | N131: 124 | O131: 1 | P131: 25 | Q131: 10 | R131: 13 | S131: 47 | T131: 21 | U131: 2 | V131: 477 | W131: 35.12518409
A132: CANTÓN 15 GUATUSO | B132: 26 | C132: 9919 | D132: 6376 | E132: 64.28067345 | F132: 6184 | G132: 31 | H132: 809 | I132: 12 | J132: 11 | K132: 1075 | L132: 9 | M132: 2536 | N132: 1020 | O132: 10 | P132: 39 | Q132: 118 | R132: 145 | S132: 369 | T132: 166 | U132: 26 | V132: 3543 | W132: 35.71932655
A133: SAN RAFAEL | B133: 14 | C133: 5160 | D133: 3258 | E133: 63.13953488 | F133: 3175 | G133: 17 | H133: 471 | I133: 8 | J133: 7 | K133: 539 | L133: 3 | M133: 1198 | N133: 539 | O133: 2 | P133: 26 | Q133: 70 | R133: 87 | S133: 208 | T133: 75 | U133: 8 | V133: 1902 | W133: 36.86046512
A134: BUENAVISTA | B134: 3 | C134: 951 | D134: 614 | E134: 64.56361725 | F134: 588 | G134: 4 | H134: 65 | I134: 2 | J134: 1 | K134: 169 | L134: 3 | M134: 177 | N134: 92 | O134: 2 | P134: 0 | Q134: 21 | R134: 14 | S134: 38 | T134: 20 | U134: 6 | V134: 337 | W134: 35.43638275
A135: COTE | B135: 1 | C135: 521 | D135: 349 | E135: 66.9865643 | F135: 341 | G135: 0 | H135: 32 | I135: 0 | J135: 1 | K135: 71 | L135: 0 | M135: 162 | N135: 28 | O135: 0 | P135: 1 | Q135: 1 | R135: 11 | S135: 34 | T135: 6 | U135: 2 | V135: 172 | W135: 33.0134357
A136: KATIRA | B136: 8 | C136: 3287 | D136: 2155 | E136: 65.5613021 | F136: 2080 | G136: 10 | H136: 241 | I136: 2 | J136: 2 | K136: 296 | L136: 3 | M136: 999 | N136: 361 | O136: 6 | P136: 12 | Q136: 26 | R136: 33 | S136: 89 | T136: 65 | U136: 10 | V136: 1132 | W136: 34.4386979
A139: FUENTE: Tribunal Supremo de Elecciones.

Sheet C1.5
A2: CUADRO 1.5 CARTAGO: JUNTAS, ELECTORADO, PARTICIPACIÓN, VOTOS POR PARTIDO, NULOS, BLANCOS Y ABSTENCIONISMO, PARA PRESIDENCIA Y VICEPRESIDENCIAS DE LA REPÚBLICA, SEGÚN CANTÓN Y DISTRITO ADMINISTRATIVO ELECCIONES 2 DE FEBRERO 2014
A4: CANTÓN Y DISTRITO ADMINISTRATIVO | B4: JUNTAS | C4: ELECTORADO | D4: VOTOS RECIBIDOS | V4: ABSTENCIONISMO
D5: TOTAL GENERAL | E5: % PARTICIPACIÓN | F5: VOTOS VÁLIDOS | T5: NULOS | U5: BLANCOS | V5: ABSOLUTO | W5: %
F6: TOTAL | G6: ACCESIBILIDAD SIN EXCLUSIÓN | H6: ACCIÓN CIUDADANA | I6: AVANCE NACIONAL | J6: DE LOS TRABAJADORES | K6: FRENTE AMPLIO | L6: INTEGRACIÓN NACIONAL | M6: LIBERACIÓN NACIONAL | N6: MOVIMIENTO LIBERTARIO | O6: NUEVA GENERACIÓN | P6: PATRIA NUEVA | Q6: RENOVACIÓN COSTARRICENSE | R6: RESTAURACIÓN NACIONAL | S6: UNIDAD SOCIAL CRISTIANA
A8: PROVINCIA CARTAGO | B8: =+B9+B21+B27+B36+B40+B53+B57+B63 -> 743 | C8: =+C9+C21+C27+C36+C40+C53+C57+C63 -> 359985 | D8: 264532 | E8: =D8/C8*100 -> 73.48417295 | F8: =+F9+F21+F27+F36+F40+F53+F57+F63 -> 258493 | G8: =+G9+G21+G27+G36+G40+G53+G57+G63 -> 1595 | H8: =+H9+H21+H27+H36+H40+H53+H57+H63 -> 89965 | I8: =+I9+I21+I27+I36+I40+I53+I57+I63 -> 514 | J8: =+J9+J21+J27+J36+J40+J53+J57+J63 -> 743 | K8: =+K9+K21+K27+K36+K40+K53+K57+K63 -> 37969 | L8: =+L9+L21+L27+L36+L40+L53+L57+L63 -> 440 | M8: =+M9+M21+M27+M36+M40+M53+M57+M63 -> 71981 | N8: =+N9+N21+N27+N36+N40+N53+N57+N63 -> 29391 | O8: =+O9+O21+O27+O36+O40+O53+O57+O63 -> 893 | P8: =+P9+P21+P27+P36+P40+P53+P57+P63 -> 5492 | Q8: =+Q9+Q21+Q27+Q36+Q40+Q53+Q57+Q63 -> 867 | R8: =+R9+R21+R27+R36+R40+R53+R57+R63 -> 2286 | S8: =+S9+S21+S27+S36+S40+S53+S57+S63 -> 16357 | T8: =+T9+T21+T27+T36+T40+T53+T57+T63 -> 5277 | U8: =+U9+U21+U27+U36+U40+U53+U57+U63 -> 762 | V8: =+V9+V21+V27+V36+V40+V53+V57+V63 -> 95453 | W8: =V8/C8*100 -> 26.51582705
A9: CANTÓN 1 CARTAGO | B9: 221 | C9: 113463 | D9: 86960 | E9: =D9/C9*100 -> 76.64172462 | F9: 85190 | G9: 517 | H9: 31893 | I9: 184 | J9: 234 | K9: 11462 | L9: 137 | M9: 23709 | N9: 9497 | O9: 307 | P9: 1841 | Q9: 194 | R9: 671 | S9: 4544 | T9: 1519 | U9: 251 | V9: 26503 | W9: =V9/C9*100 -> 23.35827538
A10: ORIENTAL | B10: 25 | C10: 13434 | D10: 10655 | E10: 79.3136817 | F10: 10549 | G10: 25 | H10: 4690 | I10: 32 | J10: 5 | K10: 1237 | L10: 11 | M10: 2886 | N10: 820 | O10: 26 | P10: 280 | Q10: 15 | R10: 53 | S10: 469 | T10: 92 | U10: 14 | V10: 2779 | W10: 20.6863183
A11: OCCIDENTAL | B11: 19 | C11: 9809 | D11: 7840 | E11: 79.92659802 | F11: 7747 | G11: 26 | H11: 3512 | I11: 13 | J11: 20 | K11: 895 | L11: 10 | M11: 2022 | N11: 663 | O11: 29 | P11: 136 | Q11: 12 | R11: 40 | S11: 369 | T11: 83 | U11: 10 | V11: 1969 | W11: 20.07340198
A12: CARMEN | B12: 24 | C12: 12616 | D12: 9717 | E12: 77.02124287 | F12: 9549 | G12: 47 | H12: 3857 | I12: 21 | J12: 22 | K12: 1300 | L12: 21 | M12: 2547 | N12: 943 | O12: 39 | P12: 191 | Q12: 19 | R12: 53 | S12: 489 | T12: 142 | U12: 26 | V12: 2899 | W12: 22.97875713
A13: SAN NICOLÁS | B13: 34 | C13: 17515 | D13: 13065 | E13: 74.59320582 | F13: 12746 | G13: 86 | H13: 4398 | I13: 25 | J13: 25 | K13: 1783 | L13: 20 | M13: 3746 | N13: 1564 | O13: 29 | P13: 262 | Q13: 44 | R13: 119 | S13: 645 | T13: 287 | U13: 32 | V13: 4450 | W13: 25.40679418
A14: AGUACALIENTE O SAN FRANCISCO | B14: 44 | C14: 22830 | D14: 17362 | E14: 76.04905826 | F14: 16936 | G14: 127 | H14: 6122 | I14: 38 | J14: 73 | K14: 2328 | L14: 30 | M14: 4010 | N14: 2498 | O14: 71 | P14: 315 | Q14: 34 | R14: 229 | S14: 1061 | T14: 363 | U14: 63 | V14: 5468 | W14: 23.95094174
A15: GUADALUPE O ARENILLA | B15: 20 | C15: 10904 | D15: 8646 | E15: 79.29200293 | F15: 8468 | G15: 48 | H15: 3324 | I15: 14 | J15: 26 | K15: 1068 | L15: 11 | M15: 2315 | N15: 944 | O15: 41 | P15: 130 | Q15: 16 | R15: 81 | S15: 450 | T15: 151 | U15: 27 | V15: 2258 | W15: 20.70799707
A16: CORRALILLO | B16: 18 | C16: 7871 | D16: 5946 | E16: 75.54313302 | F16: 5841 | G16: 43 | H16: 1273 | I16: 11 | J16: 13 | K16: 1340 | L16: 7 | M16: 2541 | N16: 287 | O16: 10 | P16: 93 | Q16: 19 | R16: 24 | S16: 180 | T16: 82 | U16: 23 | V16: 1925 | W16: 24.45686698
A17: TIERRA BLANCA | B17: 8 | C17: 4218 | D17: 3224 | E17: 76.43432907 | F17: 3114 | G17: 38 | H17: 1187 | I17: 9 | J17: 17 | K17: 287 | L17: 7 | M17: 842 | N17: 382 | O17: 13 | P17: 95 | Q17: 10 | R17: 13 | S17: 214 | T17: 96 | U17: 14 | V17: 994 | W17: 23.56567093
A18: DULCE NOMBRE | B18: 15 | C18: 7238 | D18: 5735 | E18: 79.23459519 | F18: 5618 | G18: 43 | H18: 2231 | I18: 14 | J18: 23 | K18: 772 | L18: 11 | M18: 1361 | N18: 583 | O18: 35 | P18: 136 | Q18: 15 | R18: 27 | S18: 367 | T18: 99 | U18: 18 | V18: 1503 | W18: 20.76540481
A19: LLANO GRANDE | B19: 6 | C19: 3096 | D19: 2132 | E19: 68.8630491 | F19: 2061 | G19: 14 | H19: 563 | I19: 3 | J19: 6 | K19: 179 | L19: 2 | M19: 611 | N19: 385 | O19: 7 | P19: 177 | Q19: 2 | R19: 6 | S19: 106 | T19: 61 | U19: 10 | V19: 964 | W19: 31.1369509
A20: QUEBRADILLA | B20: 8 | C20: 3932 | D20: 2638 | E20: 67.09053917 | F20: 2561 | G20: 20 | H20: 736 | I20: 4 | J20: 4 | K20: 273 | L20: 7 | M20: 828 | N20: 428 | O20: 7 | P20: 26 | Q20: 8 | R20: 26 | S20: 194 | T20: 63 | U20: 14 | V20: 1294 | W20: 32.90946083
A21: CANTÓN 2 PARAÍSO | B21: 87 | C21: 43000 | D21: 32179 | E21: 74.83488372 | F21: 31241 | G21: 170 | H21: 9947 | I21: 36 | J21: 75 | K21: 5359 | L21: 40 | M21: 7708 | N21: 3790 | O21: 87 | P21: 1346 | Q21: 80 | R21: 303 | S21: 2300 | T21: 856 | U21: 82 | V21: 10821 | W21: 25.16511628
A22: PARAÍSO | B22: 34 | C22: 17937 | D22: 13866 | E22: 77.30389697 | F22: 13579 | G22: 51 | H22: 5062 | I22: 12 | J22: 29 | K22: 2290 | L22: 17 | M22: 3270 | N22: 1143 | O22: 44 | P22: 711 | Q22: 20 | R22: 78 | S22: 852 | T22: 258 | U22: 29 | V22: 4071 | W22: 22.69610303
A23: SANTIAGO | B23: 9 | C23: 3649 | D23: 2658 | E23: 72.84187449 | F23: 2568 | G23: 10 | H23: 572 | I23: 2 | J23: 0 | K23: 342 | L23: 3 | M23: 892 | N23: 261 | O23: 9 | P23: 180 | Q23: 10 | R23: 78 | S23: 209 | T23: 83 | U23: 7 | V23: 991 | W23: 27.15812551
A24: OROSI | B24: 15 | C24: 6795 | D24: 5011 | E24: 73.74540103 | F24: 4801 | G24: 32 | H24: 1470 | I24: 4 | J24: 5 | K24: 874 | L24: 8 | M24: 1106 | N24: 690 | O24: 10 | P24: 92 | Q24: 12 | R24: 27 | S24: 471 | T24: 195 | U24: 15 | V24: 1784 | W24: 26.25459897
A25: CACHÍ | B25: 10 | C25: 4325 | D25: 3261 | E25: 75.39884393 | F25: 3163 | G25: 16 | H25: 974 | I25: 4 | J25: 8 | K25: 702 | L25: 3 | M25: 761 | N25: 272 | O25: 7 | P25: 109 | Q25: 10 | R25: 21 | S25: 276 | T25: 91 | U25: 7 | V25: 1064 | W25: 24.60115607
A26: LLANOS DE SANTA LUCÍA | B26: 19 | C26: 10294 | D26: 7383 | E26: 71.7213911 | F26: 7130 | G26: 61 | H26: 1869 | I26: 14 | J26: 33 | K26: 1151 | L26: 9 | M26: 1679 | N26: 1424 | O26: 17 | P26: 254 | Q26: 28 | R26: 99 | S26: 492 | T26: 229 | U26: 24 | V26: 2911 | W26: 28.2786089
A27: CANTÓN 3 LA UNIÓN | B27: 122 | C27: 64441 | D27: 46227 | E27: 71.73538586 | F27: 45415 | G27: 267 | H27: 18051 | I27: 92 | J27: 124 | K27: 6042 | L27: 124 | M27: 11194 | N27: 5446 | O27: 158 | P27: 705 | Q27: 225 | R27: 482 | S27: 2505 | T27: 737 | U27: 75 | V27: 18214 | W27: 28.26461414
A28: TRES RÍOS | B28: 20 | C28: 10881 | D28: 8407 | E28: 77.2631192 | F28: 8278 | G28: 38 | H28: 3595 | I28: 14 | J28: 16 | K28: 1011 | L28: 20 | M28: 2168 | N28: 705 | O28: 29 | P28: 172 | Q28: 33 | R28: 79 | S28: 398 | T28: 120 | U28: 9 | V28: 2474 | W28: 22.7368808
A29: SAN DIEGO | B29: 23 | C29: 12434 | D29: 8581 | E29: 69.01238539 | F29: 8446 | G29: 59 | H29: 3251 | I29: 27 | J29: 19 | K29: 1268 | L29: 17 | M29: 1937 | N29: 1035 | O29: 30 | P29: 113 | Q29: 61 | R29: 87 | S29: 542 | T29: 121 | U29: 14 | V29: 3853 | W29: 30.98761461
A30: SAN JUAN | B30: 16 | C30: 7896 | D30: 6179 | E30: 78.25481256 | F30: 6134 | G30: 12 | H30: 2854 | I30: 10 | J30: 12 | K30: 764 | L30: 10 | M30: 1481 | N30: 569 | O30: 28 | P30: 78 | Q30: 12 | R30: 68 | S30: 236 | T30: 40 | U30: 5 | V30: 1717 | W30: 21.74518744
A31: SAN RAFAEL | B31: 15 | C31: 7974 | D31: 5679 | E31: 71.21896163 | F31: 5567 | G31: 48 | H31: 2086 | I31: 13 | J31: 21 | K31: 667 | L31: 10 | M31: 1481 | N31: 767 | O31: 18 | P31: 81 | Q31: 36 | R31: 42 | S31: 297 | T31: 97 | U31: 15 | V31: 2295 | W31: 28.78103837
A32: CONCEPCIÓN | B32: 21 | C32: 10861 | D32: 7883 | E32: 72.58079367 | F32: 7725 | G32: 47 | H32: 3076 | I32: 16 | J32: 25 | K32: 1138 | L32: 21 | M32: 1781 | N32: 971 | O32: 20 | P32: 146 | Q32: 28 | R32: 81 | S32: 375 | T32: 139 | U32: 19 | V32: 2978 | W32: 27.41920633
A33: DULCE NOMBRE | B33: 11 | C33: 5658 | D33: 3844 | E33: 67.93920113 | F33: 3769 | G33: 32 | H33: 1254 | I33: 6 | J33: 14 | K33: 433 | L33: 12 | M33: 997 | N33: 553 | O33: 17 | P33: 49 | Q33: 26 | R33: 37 | S33: 339 | T33: 69 | U33: 6 | V33: 1814 | W33: 32.06079887
A34: SAN RAMÓN | B34: 6 | C34: 3225 | D34: 2346 | E34: 72.74418605 | F34: 2322 | G34: 5 | H34: 1086 | I34: 4 | J34: 3 | K34: 279 | L34: 4 | M34: 481 | N34: 308 | O34: 6 | P34: 33 | Q34: 8 | R34: 25 | S34: 80 | T34: 23 | U34: 1 | V34: 879 | W34: 27.25581395
A35: RÍO AZUL | B35: 10 | C35: 5512 | D35: 3308 | E35: 60.01451379 | F35: 3174 | G35: 26 | H35: 849 | I35: 2 | J35: 14 | K35: 482 | L35: 30 | M35: 868 | N35: 538 | O35: 10 | P35: 33 | Q35: 21 | R35: 63 | S35: 238 | T35: 128 | U35: 6 | V35: 2204 | W35: 39.98548621
A36: CANTÓN 4 JIMÉNEZ | B36: 29 | C36: 11308 | D36: 8095 | E36: 71.58648744 | F36: 7852 | G36: 85 | H36: 1791 | I36: 13 | J36: 28 | K36: 1581 | L36: 21 | M36: 2718 | N36: 832 | O36: 42 | P36: 85 | Q36: 46 | R36: 60 | S36: 550 | T36: 207 | U36: 36 | V36: 3213 | W36: 28.41351256
A37: JUAN VIÑAS | B37: 14 | C37: 5246 | D37: 3839 | E37: 73.17956538 | F37: 3759 | G37: 49 | H37: 876 | I37: 8 | J37: 12 | K37: 587 | L37: 10 | M37: 1478 | N37: 419 | O37: 34 | P37: 47 | Q37: 17 | R37: 33 | S37: 189 | T37: 66 | U37: 14 | V37: 1407 | W37: 26.82043462
A38: TUCURRIQUE | B38: 8 | C38: 3441 | D38: 2416 | E38: 70.21214763 | F38: 2309 | G38: 25 | H38: 508 | I38: 3 | J38: 8 | K38: 569 | L38: 8 | M38: 592 | N38: 268 | O38: 5 | P38: 23 | Q38: 15 | R38: 16 | S38: 269 | T38: 91 | U38: 16 | V38: 1025 | W38: 29.78785237
A39: PEJIBAYE | B39: 7 | C39: 2621 | D39: 1840 | E39: 70.2022129 | F39: 1784 | G39: 11 | H39: 407 | I39: 2 | J39: 8 | K39: 425 | L39: 3 | M39: 648 | N39: 145 | O39: 3 | P39: 15 | Q39: 14 | R39: 11 | S39: 92 | T39: 50 | U39: 6 | V39: 781 | W39: 29.7977871
A40: CANTÓN 5 TURRIALBA | B40: 135 | C40: 54654 | D40: 36628 | E40: 67.01796758 | F40: 35697 | G40: 214 | H40: 9931 | I40: 86 | J40: 114 | K40: 6833 | L40: 55 | M40: 11487 | N40: 3202 | O40: 110 | P40: 316 | Q40: 187 | R40: 314 | S40: 2848 | T40: 786 | U40: 145 | V40: 18026 | W40: 32.98203242
A41: TURRIALBA | B41: 47 | C41: 21637 | D41: 15603 | E41: 72.11258492 | F41: 15312 | G41: 61 | H41: 5116 | I41: 26 | J41: 41 | K41: 3052 | L41: 24 | M41: 4653 | N41: 958 | O41: 45 | P41: 141 | Q41: 63 | R41: 125 | S41: 1007 | T41: 249 | U41: 42 | V41: 6034 | W41: 27.88741508
A42: LA SUIZA | B42: 16 | C42: 6532 | D42: 4498 | E42: 68.86099204 | F42: 4368 | G42: 30 | H42: 1022 | I42: 16 | J42: 15 | K42: 903 | L42: 7 | M42: 1492 | N42: 428 | O42: 19 | P42: 40 | Q42: 29 | R42: 26 | S42: 341 | T42: 110 | U42: 20 | V42: 2034 | W42: 31.13900796
A43: PERALTA | B43: 1 | C43: 315 | D43: 202 | E43: 64.12698413 | F43: 198 | G43: 1 | H43: 7 | I43: 1 | J43: 0 | K43: 33 | L43: 0 | M43: 63 | N43: 21 | O43: 1 | P43: 1 | Q43: 1 | R43: 0 | S43: 69 | T43: 3 | U43: 1 | V43: 113 | W43: 35.87301587
A44: SANTA CRUZ | B44: 9 | C44: 2548 | D44: 1584 | E44: 62.16640502 | F44: 1526 | G44: 15 | H44: 411 | I44: 2 | J44: 7 | K44: 261 | L44: 0 | M44: 555 | N44: 175 | O44: 2 | P44: 8 | Q44: 4 | R44: 5 | S44: 81 | T44: 44 | U44: 14 | V44: 964 | W44: 37.83359498
A45: SANTA TERESITA | B45: 11 | C45: 3756 | D45: 2541 | E45: 67.65175719 | F45: 2461 | G45: 16 | H45: 387 | I45: 7 | J45: 11 | K45: 474 | L45: 1 | M45: 926 | N45: 396 | O45: 5 | P45: 16 | Q45: 12 | R45: 18 | S45: 192 | T45: 67 | U45: 13 | V45: 1215 | W45: 32.34824281
A46: PAVONES | B46: 7 | C46: 3412 | D46: 2173 | E46: 63.6869871 | F46: 2091 | G46: 17 | H46: 582 | I46: 6 | J46: 6 | K46: 341 | L46: 5 | M46: 629 | N46: 237 | O46: 6 | P46: 22 | Q46: 16 | R46: 34 | S46: 190 | T46: 68 | U46: 14 | V46: 1239 | W46: 36.3130129
A47: TUIS | B47: 6 | C47: 1764 | D47: 1173 | E47: 66.49659864 | F47: 1150 | G47: 6 | H47: 329 | I47: 2 | J47: 5 | K47: 166 | L47: 5 | M47: 416 | N47: 102 | O47: 11 | P47: 15 | Q47: 10 | R47: 6 | S47: 77 | T47: 21 | U47: 2 | V47: 591 | W47: 33.50340136
A48: TAYUTIC | B48: 5 | C48: 1709 | D48: 1105 | E48: 64.65769456 | F48: 1084 | G48: 13 | H48: 272 | I48: 3 | J48: 5 | K48: 184 | L48: 0 | M48: 402 | N48: 91 | O48: 3 | P48: 10 | Q48: 5 | R48: 6 | S48: 90 | T48: 15 | U48: 6 | V48: 604 | W48: 35.34230544
A49: SANTA ROSA | B49: 8 | C49: 4089 | D49: 2899 | E49: 70.89752996 | F49: 2831 | G49: 14 | H49: 861 | I49: 4 | J49: 5 | K49: 491 | L49: 5 | M49: 957 | N49: 248 | O49: 5 | P49: 31 | Q49: 8 | R49: 19 | S49: 183 | T49: 56 | U49: 12 | V49: 1190 | W49: 29.10247004
A50: TRES EQUIS | B50: 3 | C50: 1351 | D50: 831 | E50: 61.5099926 | F50: 794 | G50: 7 | H50: 152 | I50: 2 | J50: 3 | K50: 123 | L50: 2 | M50: 256 | N50: 148 | O50: 2 | P50: 2 | Q50: 9 | R50: 2 | S50: 86 | T50: 32 | U50: 5 | V50: 520 | W50: 38.4900074
A51: LA ISABEL | B51: 10 | C51: 4712 | D51: 3117 | E51: 66.15025467 | F51: 3032 | G51: 24 | H51: 733 | I51: 11 | J51: 13 | K51: 654 | L51: 2 | M51: 841 | N51: 292 | O51: 8 | P51: 23 | Q51: 20 | R51: 54 | S51: 357 | T51: 74 | U51: 11 | V51: 1595 | W51: 33.84974533
A52: CHIRRIPÓ | B52: 12 | C52: 2829 | D52: 902 | E52: 31.88405797 | F52: 850 | G52: 10 | H52: 59 | I52: 6 | J52: 3 | K52: 151 | L52: 4 | M52: 297 | N52: 106 | O52: 3 | P52: 7 | Q52: 10 | R52: 19 | S52: 175 | T52: 47 | U52: 5 | V52: 1927 | W52: 68.11594203
A53: CANTÓN 6 ALVARADO | B53: 21 | C53: 9484 | D53: 6739 | E53: 71.05651624 | F53: 6552 | G53: 39 | H53: 2289 | I53: 12 | J53: 17 | K53: 797 | L53: 14 | M53: 1808 | N53: 819 | O53: 19 | P53: 179 | Q53: 18 | R53: 48 | S53: 493 | T53: 159 | U53: 28 | V53: 2745 | W53: 28.94348376
A54: PACAYAS | B54: 10 | C54: 4057 | D54: 2833 | E54: 69.82992359 | F54: 2753 | G54: 21 | H54: 948 | I54: 5 | J54: 6 | K54: 304 | L54: 4 | M54: 774 | N54: 430 | O54: 5 | P54: 78 | Q54: 3 | R54: 8 | S54: 167 | T54: 68 | U54: 12 | V54: 1224 | W54: 30.17007641
A55: CERVANTES | B55: 7 | C55: 3857 | D55: 2784 | E55: 72.18045113 | F55: 2712 | G55: 8 | H55: 902 | I55: 7 | J55: 5 | K55: 380 | L55: 6 | M55: 741 | N55: 291 | O55: 11 | P55: 81 | Q55: 10 | R55: 35 | S55: 235 | T55: 60 | U55: 12 | V55: 1073 | W55: 27.81954887
A56: CAPELLADES | B56: 4 | C56: 1570 | D56: 1122 | E56: 71.46496815 | F56: 1087 | G56: 10 | H56: 439 | I56: 0 | J56: 6 | K56: 113 | L56: 4 | M56: 293 | N56: 98 | O56: 3 | P56: 20 | Q56: 5 | R56: 5 | S56: 91 | T56: 31 | U56: 4 | V56: 448 | W56: 28.53503185
A57: CANTÓN 7 OREAMUNO | B57: 66 | C57: 33361 | D57: 24644 | E57: 73.87068733 | F57: 24043 | G57: 159 | H57: 8531 | I57: 54 | J57: 91 | K57: 3111 | L57: 21 | M57: 6448 | N57: 3185 | O57: 85 | P57: 648 | Q57: 55 | R57: 189 | S57: 1466 | T57: 532 | U57: 69 | V57: 8717 | W57: 26.12931267
A58: SAN RAFAEL | B58: 40 | C58: 20685 | D58: 15684 | E58: 75.82306019 | F58: 15374 | G58: 94 | H58: 6083 | I58: 29 | J58: 53 | K58: 2077 | L58: 7 | M58: 3757 | N58: 1930 | O58: 54 | P58: 356 | Q58: 34 | R58: 112 | S58: 788 | T58: 282 | U58: 28 | V58: 5001 | W58: 24.17693981
A59: COT | B59: 13 | C59: 6591 | D59: 4827 | E59: 73.23623122 | F59: 4665 | G59: 42 | H59: 1367 | I59: 9 | J59: 27 | K59: 582 | L59: 7 | M59: 1244 | N59: 692 | O59: 11 | P59: 156 | Q59: 15 | R59: 60 | S59: 453 | T59: 145 | U59: 17 | V59: 1764 | W59: 26.76376878
A60: POTRERO CERRADO | B60: 3 | C60: 1349 | D60: 952 | E60: 70.57079318 | F60: 924 | G60: 8 | H60: 235 | I60: 7 | J60: 2 | K60: 73 | L60: 3 | M60: 382 | N60: 143 | O60: 5 | P60: 13 | Q60: 3 | R60: 4 | S60: 46 | T60: 24 | U60: 4 | V60: 397 | W60: 29.42920682
A61: CIPRESES | B61: 5 | C61: 2509 | D61: 1738 | E61: 69.27062575 | F61: 1680 | G61: 8 | H61: 536 | I61: 6 | J61: 5 | K61: 185 | L61: 1 | M61: 593 | N61: 210 | O61: 12 | P61: 54 | Q61: 2 | R61: 6 | S61: 62 | T61: 45 | U61: 13 | V61: 771 | W61: 30.72937425
A62: SANTA ROSA | B62: 5 | C62: 2227 | D62: 1443 | E62: 64.79568927 | F62: 1400 | G62: 7 | H62: 310 | I62: 3 | J62: 4 | K62: 194 | L62: 3 | M62: 472 | N62: 210 | O62: 3 | P62: 69 | Q62: 1 | R62: 7 | S62: 117 | T62: 36 | U62: 7 | V62: 784 | W62: 35.20431073
A63: CANTÓN 8 EL GUARCO | B63: 62 | C63: 30274 | D63: 23060 | E63: 76.17097179 | F63: 22503 | G63: 144 | H63: 7532 | I63: 37 | J63: 60 | K63: 2784 | L63: 28 | M63: 6909 | N63: 2620 | O63: 85 | P63: 372 | Q63: 62 | R63: 219 | S63: 1651 | T63: 481 | U63: 76 | V63: 7214 | W63: 23.82902821
A64: EL TEJAR | B64: 34 | C64: 17510 | D64: 13625 | E64: 77.81267847 | F64: 13349 | G64: 71 | H64: 5251 | I64: 18 | J64: 29 | K64: 1711 | L64: 15 | M64: 3719 | N64: 1370 | O64: 44 | P64: 195 | Q64: 34 | R64: 140 | S64: 752 | T64: 250 | U64: 26 | V64: 3885 | W64: 22.18732153
A65: SAN ISIDRO | B65: 16 | C65: 7508 | D65: 5643 | E65: 75.15982952 | F65: 5472 | G65: 52 | H65: 1368 | I65: 11 | J65: 19 | K65: 611 | L65: 4 | M65: 1962 | N65: 730 | O65: 25 | P65: 137 | Q65: 14 | R65: 43 | S65: 496 | T65: 141 | U65: 30 | V65: 1865 | W65: 24.84017048
A66: TOBOSI | B66: 10 | C66: 4864 | D66: 3506 | E66: 72.08059211 | F66: 3407 | G66: 21 | H66: 871 | I66: 6 | J66: 12 | K66: 417 | L66: 8 | M66: 1080 | N66: 501 | O66: 16 | P66: 38 | Q66: 11 | R66: 36 | S66: 390 | T66: 79 | U66: 20 | V66: 1358 | W66: 27.91940789
A67: PATIO DE AGUA | B67: 2 | C67: 392 | D67: 286 | E67: 72.95918367 | F67: 275 | G67: 0 | H67: 42 | I67: 2 | J67: 0 | K67: 45 | L67: 1 | M67: 148 | N67: 19 | O67: 0 | P67: 2 | Q67: 3 | R67: 0 | S67: 13 | T67: 11 | U67: 0 | V67: 106 | W67: 27.04081633
A70: FUENTE: Tribunal Supremo de Elecciones.

Sheet C1.6
A2: CUADRO 1.6 HEREDIA: JUNTAS, ELECTORADO, PARTICIPACIÓN, VOTOS POR PARTIDO, NULOS, BLANCOS Y ABSTENCIONISMO, PARA PRESIDENCIA Y VICEPRESIDENCIAS DE LA REPÚBLICA, SEGÚN CANTÓN Y DISTRITO ADMINISTRATIVO ELECCIONES 2 DE FEBRERO 2014
A4: CANTÓN Y DISTRITO ADMINISTRATIVO | B4: JUNTAS | C4: ELECTORADO | D4: VOTOS RECIBIDOS | V4: ABSTENCIONISMO
D5: TOTAL GENERAL | E5: % PARTICIPACIÓN | F5: VOTOS VÁLIDOS | T5: NULOS | U5: BLANCOS | V5: ABSOLUTO | W5: %
F6: TOTAL | G6: ACCESIBILIDAD SIN EXCLUSIÓN | H6: ACCIÓN CIUDADANA | I6: AVANCE NACIONAL | J6: DE LOS TRABAJADORES | K6: FRENTE AMPLIO | L6: INTEGRACIÓN NACIONAL | M6: LIBERACIÓN NACIONAL | N6: MOVIMIENTO LIBERTARIO | O6: NUEVA GENERACIÓN | P6: PATRIA NUEVA | Q6: RENOVACIÓN COSTARRICENSE | R6: RESTAURACIÓN NACIONAL | S6: UNIDAD SOCIAL CRISTIANA
A8: PROVINCIA HEREDIA | B8: =+B9+B15+B22+B31+B38+B44+B49+B53+B57+B60 -> 602 | C8: =+C9+C15+C22+C31+C38+C44+C49+C53+C57+C60 -> 306901 | D8: 223952 | E8: =D8/C8*100 -> 72.97206591 | F8: 220575 | G8: =+G9+G15+G22+G31+G38+G44+G49+G53+G57+G60 -> 926 | H8: =+H9+H15+H22+H31+H38+H44+H49+H53+H57+H60 -> 85093 | I8: =+I9+I15+I22+I31+I38+I44+I49+I53+I57+I60 -> 341 | J8: =+J9+J15+J22+J31+J38+J44+J49+J53+J57+J60 -> 477 | K8: =+K9+K15+K22+K31+K38+K44+K49+K53+K57+K60 -> 36437 | L8: =+L9+L15+L22+L31+L38+L44+L49+L53+L57+L60 -> 210 | M8: =+M9+M15+M22+M31+M38+M44+M49+M53+M57+M60 -> 56900 | N8: =+N9+N15+N22+N31+N38+N44+N49+N53+N57+N60 -> 21699 | O8: =+O9+O15+O22+O31+O38+O44+O49+O53+O57+O60 -> 701 | P8: =+P9+P15+P22+P31+P38+P44+P49+P53+P57+P60 -> 2668 | Q8: =+Q9+Q15+Q22+Q31+Q38+Q44+Q49+Q53+Q57+Q60 -> 847 | R8: =+R9+R15+R22+R31+R38+R44+R49+R53+R57+R60 -> 2738 | S8: =+S9+S15+S22+S31+S38+S44+S49+S53+S57+S60 -> 11538 | T8: =+T9+T15+T22+T31+T38+T44+T49+T53+T57+T60 -> 2982 | U8: =+U9+U15+U22+U31+U38+U44+U49+U53+U57+U60 -> 395 | V8: =+V9+V15+V22+V31+V38+V44+V49+V53+V57+V60 -> 82949 | W8: =V8/C8*100 -> 27.02793409
A9: CANTÓN 1 HEREDIA | B9: 170 | C9: 90600 | D9: 66176 | E9: =D9/C9*100 -> 73.0419426 | F9: 65351 | G9: 229 | H9: 26348 | I9: 92 | J9: 169 | K9: 10388 | L9: 50 | M9: 16754 | N9: 6412 | O9: 230 | P9: 844 | Q9: 172 | R9: 680 | S9: 2983 | T9: 737 | U9: 88 | V9: 24424 | W9: 26.9580574
A10: HEREDIA | B10: 34 | C10: 17748 | D10: 13195 | E10: 74.34640523 | F10: 13080 | G10: 20 | H10: 5480 | I10: 12 | J10: 16 | K10: 2196 | L10: 8 | M10: 3491 | N10: 907 | O10: 32 | P10: 212 | Q10: 21 | R10: 106 | S10: 579 | T10: 100 | U10: 15 | V10: 4553 | W10: 25.65359477
A11: MERCEDES | B11: 37 | C11: 19971 | D11: 15552 | E11: 77.87291573 | F11: 15390 | G11: 48 | H11: 7070 | I11: 19 | J11: 26 | K11: 2450 | L11: 9 | M11: 3726 | N11: 1099 | O11: 54 | P11: 223 | Q11: 14 | R11: 74 | S11: 578 | T11: 143 | U11: 19 | V11: 4419 | W11: 22.12708427
A12: SAN FRANCISCO | B12: 62 | C12: 34260 | D12: 23879 | E12: 69.69935785 | F12: 23509 | G12: 110 | H12: 8772 | I12: 40 | J12: 89 | K12: 3769 | L12: 19 | M12: 5835 | N12: 3000 | O12: 90 | P12: 267 | Q12: 89 | R12: 334 | S12: 1095 | T12: 334 | U12: 36 | V12: 10381 | W12: 30.30064215
A13: ULLOA | B13: 35 | C13: 18095 | D13: 13205 | E13: 72.97596021 | F13: 13034 | G13: 50 | H13: 4952 | I13: 21 | J13: 37 | K13: 1923 | L13: 14 | M13: 3594 | N13: 1373 | O13: 53 | P13: 142 | Q13: 47 | R13: 165 | S13: 663 | T13: 155 | U13: 16 | V13: 4890 | W13: 27.02403979
A14: VARABLANCA | B14: 2 | C14: 526 | D14: 345 | E14: 65.58935361 | F14: 338 | G14: 1 | H14: 74 | I14: 0 | J14: 1 | K14: 50 | L14: 0 | M14: 108 | N14: 33 | O14: 1 | P14: 0 | Q14: 1 | R14: 1 | S14: 68 | T14: 5 | U14: 2 | V14: 181 | W14: 34.41064639
A15: CANTÓN 2 BARVA | B15: 59 | C15: 30088 | D15: 22747 | E15: 75.60156873 | F15: 22405 | G15: 77 | H15: 9391 | I15: 49 | J15: 44 | K15: 4009 | L15: 26 | M15: 5382 | N15: 1799 | O15: 60 | P15: 268 | Q15: 50 | R15: 233 | S15: 1017 | T15: 307 | U15: 35 | V15: 7341 | W15: 24.39843127
A16: BARVA | B16: 11 | C16: 5816 | D16: 4528 | E16: 77.85419532 | F16: 4471 | G16: 11 | H16: 1783 | I16: 9 | J16: 8 | K16: 937 | L16: 2 | M16: 1125 | N16: 269 | O16: 10 | P16: 53 | Q16: 11 | R16: 39 | S16: 214 | T16: 51 | U16: 6 | V16: 1288 | W16: 22.14580468
A17: SAN PEDRO | B17: 14 | C17: 7549 | D17: 5373 | E17: 71.17499006 | F17: 5279 | G17: 19 | H17: 2099 | I17: 16 | J17: 11 | K17: 977 | L17: 7 | M17: 1242 | N17: 498 | O17: 16 | P17: 57 | Q17: 11 | R17: 78 | S17: 248 | T17: 79 | U17: 15 | V17: 2176 | W17: 28.82500994
A18: SAN PABLO | B18: 10 | C18: 5187 | D18: 3968 | E18: 76.49893966 | F18: 3908 | G18: 18 | H18: 1615 | I18: 9 | J18: 5 | K18: 731 | L18: 6 | M18: 926 | N18: 298 | O18: 11 | P18: 36 | Q18: 15 | R18: 48 | S18: 190 | T18: 55 | U18: 5 | V18: 1219 | W18: 23.50106034
A19: SAN ROQUE | B19: 5 | C19: 2597 | D19: 2043 | E19: 78.66769349 | F19: 2011 | G19: 10 | H19: 930 | I19: 1 | J19: 5 | K19: 306 | L19: 2 | M19: 449 | N19: 157 | O19: 5 | P19: 36 | Q19: 4 | R19: 16 | S19: 90 | T19: 30 | U19: 2 | V19: 554 | W19: 21.33230651
A20: SANTA LUCIA | B20: 9 | C20: 4925 | D20: 3914 | E20: 79.47208122 | F20: 3867 | G20: 12 | H20: 1873 | I20: 6 | J20: 9 | K20: 590 | L20: 3 | M20: 836 | N20: 301 | O20: 13 | P20: 50 | Q20: 2 | R20: 35 | S20: 137 | T20: 43 | U20: 4 | V20: 1011 | W20: 20.52791878
A21: SAN JOSÉ DE LA MONTAÑA | B21: 10 | C21: 4014 | D21: 2921 | E21: 72.77030394 | F21: 2869 | G21: 7 | H21: 1091 | I21: 8 | J21: 6 | K21: 468 | L21: 6 | M21: 804 | N21: 276 | O21: 5 | P21: 36 | Q21: 7 | R21: 17 | S21: 138 | T21: 49 | U21: 3 | V21: 1093 | W21: 27.22969606
A22: CANTÓN 3 SANTO DOMINGO | B22: 63 | C22: 32559 | D22: 24646 | E22: 75.69642802 | F22: 24286 | G22: 112 | H22: 10476 | I22: 39 | J22: 40 | K22: 3063 | L22: 25 | M22: 6289 | N22: 2180 | O22: 73 | P22: 299 | Q22: 84 | R22: 293 | S22: 1313 | T22: 317 | U22: 43 | V22: 7913 | W22: 24.30357198
A23: SANTO DOMINGO | B23: 15 | C23: 7754 | D23: 5999 | E23: 77.36652051 | F23: 5945 | G23: 9 | H23: 2600 | I23: 11 | J23: 8 | K23: 670 | L23: 7 | M23: 1727 | N23: 454 | O23: 14 | P23: 85 | Q23: 9 | R23: 26 | S23: 325 | T23: 45 | U23: 9 | V23: 1755 | W23: 22.63347949
A24: SAN VICENTE | B24: 8 | C24: 4061 | D24: 3233 | E24: 79.61093327 | F24: 3190 | G24: 12 | H24: 1563 | I24: 3 | J24: 9 | K24: 405 | L24: 1 | M24: 757 | N24: 205 | O24: 9 | P24: 36 | Q24: 4 | R24: 22 | S24: 164 | T24: 39 | U24: 4 | V24: 828 | W24: 20.38906673
A25: SAN MIGUEL | B25: 10 | C25: 4907 | D25: 3788 | E25: 77.19584267 | F25: 3737 | G25: 22 | H25: 1630 | I25: 3 | J25: 7 | K25: 438 | L25: 5 | M25: 849 | N25: 440 | O25: 16 | P25: 39 | Q25: 21 | R25: 84 | S25: 183 | T25: 39 | U25: 12 | V25: 1119 | W25: 22.80415733
A26: PARACITO | B26: 4 | C26: 2102 | D26: 1586 | E26: 75.45195052 | F26: 1534 | G26: 11 | H26: 595 | I26: 4 | J26: 2 | K26: 171 | L26: 2 | M26: 439 | N26: 165 | O26: 7 | P26: 13 | Q26: 13 | R26: 39 | S26: 73 | T26: 50 | U26: 2 | V26: 516 | W26: 24.54804948
A27: SANTO TOMÁS | B27: 7 | C27: 3671 | D27: 2798 | E27: 76.21901389 | F27: 2757 | G27: 12 | H27: 1203 | I27: 4 | J27: 3 | K27: 338 | L27: 2 | M27: 689 | N27: 263 | O27: 4 | P27: 33 | Q27: 6 | R27: 23 | S27: 177 | T27: 37 | U27: 4 | V27: 873 | W27: 23.78098611
A28: SANTA ROSA | B28: 9 | C28: 4867 | D28: 3488 | E28: 71.66632422 | F28: 3422 | G28: 23 | H28: 1396 | I28: 8 | J28: 5 | K28: 472 | L28: 4 | M28: 920 | N28: 334 | O28: 9 | P28: 44 | Q28: 11 | R28: 32 | S28: 164 | T28: 62 | U28: 4 | V28: 1379 | W28: 28.33367578
A29: TURES | B29: 5 | C29: 2670 | D29: 1922 | E29: 71.98501873 | F29: 1893 | G29: 14 | H29: 728 | I29: 0 | J29: 2 | K29: 304 | L29: 1 | M29: 518 | N29: 145 | O29: 5 | P29: 32 | Q29: 8 | R29: 13 | S29: 123 | T29: 24 | U29: 5 | V29: 748 | W29: 28.01498127
A30: PARÁ | B30: 5 | C30: 2527 | D30: 1832 | E30: 72.49703205 | F30: 1808 | G30: 9 | H30: 761 | I30: 6 | J30: 4 | K30: 265 | L30: 3 | M30: 390 | N30: 174 | O30: 9 | P30: 17 | Q30: 12 | R30: 54 | S30: 104 | T30: 21 | U30: 3 | V30: 695 | W30: 27.50296795
A31: CANTÓN 4 SANTA BÁRBARA | B31: 48 | C31: 24726 | D31: 17874 | E31: 72.28827954 | F31: 17561 | G31: 70 | H31: 6597 | I31: 37 | J31: 33 | K31: 2921 | L31: 21 | M31: 4680 | N31: 1704 | O31: 44 | P31: 233 | Q31: 51 | R31: 253 | S31: 917 | T31: 285 | U31: 28 | V31: 6852 | W31: 27.71172046
A32: SANTA BÁRBARA | B32: 12 | C32: 6491 | D32: 4753 | E32: 73.22446464 | F32: 4671 | G32: 12 | H32: 1780 | I32: 9 | J32: 10 | K32: 919 | L32: 6 | M32: 1154 | N32: 439 | O32: 13 | P32: 54 | Q32: 11 | R32: 49 | S32: 215 | T32: 75 | U32: 7 | V32: 1738 | W32: 26.77553536
A33: SAN PEDRO | B33: 5 | C33: 2695 | D33: 1929 | E33: 71.57699443 | F33: 1895 | G33: 6 | H33: 676 | I33: 4 | J33: 2 | K33: 306 | L33: 4 | M33: 543 | N33: 214 | O33: 4 | P33: 22 | Q33: 5 | R33: 17 | S33: 92 | T33: 31 | U33: 3 | V33: 766 | W33: 28.42300557
A34: SAN JUAN | B34: 9 | C34: 4889 | D34: 3629 | E34: 74.22785846 | F34: 3580 | G34: 12 | H34: 1501 | I34: 7 | J34: 9 | K34: 552 | L34: 5 | M34: 877 | N34: 335 | O34: 11 | P34: 55 | Q34: 7 | R34: 31 | S34: 178 | T34: 44 | U34: 5 | V34: 1260 | W34: 25.77214154
A35: JESÚS | B35: 11 | C35: 5648 | D35: 4008 | E35: 70.9631728 | F35: 3919 | G35: 28 | H35: 1376 | I35: 10 | J35: 8 | K35: 644 | L35: 3 | M35: 1078 | N35: 381 | O35: 9 | P35: 69 | Q35: 16 | R35: 92 | S35: 205 | T35: 82 | U35: 7 | V35: 1640 | W35: 29.0368272
A36: SANTO DOMINGO | B36: 5 | C36: 2179 | D36: 1524 | E36: 69.94033961 | F36: 1507 | G36: 9 | H36: 535 | I36: 0 | J36: 3 | K36: 177 | L36: 0 | M36: 467 | N36: 145 | O36: 3 | P36: 14 | Q36: 8 | R36: 36 | S36: 110 | T36: 15 | U36: 2 | V36: 655 | W36: 30.05966039
A37: PURABÁ | B37: 6 | C37: 2824 | D37: 2031 | E37: 71.91926346 | F37: 1989 | G37: 3 | H37: 729 | I37: 7 | J37: 1 | K37: 323 | L37: 3 | M37: 561 | N37: 190 | O37: 4 | P37: 19 | Q37: 4 | R37: 28 | S37: 117 | T37: 38 | U37: 4 | V37: 793 | W37: 28.08073654
A38: CANTÓN 5 SAN RAFAEL | B38: 60 | C38: 32186 | D38: 23079 | E38: 71.70508917 | F38: 22729 | G38: 126 | H38: 9127 | I38: 44 | J38: 48 | K38: 4262 | L38: 21 | M38: 5325 | N38: 2031 | O38: 73 | P38: 350 | Q38: 57 | R38: 248 | S38: 1017 | T38: 313 | U38: 37 | V38: 9107 | W38: 28.29491083
A39: SAN RAFAEL | B39: 16 | C39: 8768 | D39: 6457 | E39: 73.64279197 | F39: 6376 | G39: 30 | H39: 2688 | I39: 14 | J39: 18 | K39: 1192 | L39: 6 | M39: 1502 | N39: 469 | O39: 18 | P39: 127 | Q39: 13 | R39: 39 | S39: 260 | T39: 74 | U39: 7 | V39: 2311 | W39: 26.35720803
A40: SAN JOSECITO | B40: 13 | C40: 7252 | D40: 4951 | E40: 68.27082184 | F40: 4867 | G40: 32 | H40: 1876 | I40: 3 | J40: 9 | K40: 950 | L40: 7 | M40: 1174 | N40: 434 | O40: 13 | P40: 79 | Q40: 12 | R40: 75 | S40: 203 | T40: 75 | U40: 9 | V40: 2301 | W40: =V40/C40*100 -> 31.72917816
A41: SANTIAGO | B41: 11 | C41: 5277 | D41: 3970 | E41: 75.23213947 | F41: 3916 | G41: 17 | H41: 1623 | I41: 13 | J41: 7 | K41: 809 | L41: 1 | M41: 815 | N41: 334 | O41: 18 | P41: 53 | Q41: 11 | R41: 59 | S41: 156 | T41: 49 | U41: 5 | V41: 1307 | W41: 24.76786053
A42: LOS ÁNGELES | B42: 15 | C42: 8253 | D42: 5835 | E42: 70.70156307 | F42: 5726 | G42: 36 | H42: 2226 | I42: 12 | J42: 12 | K42: 971 | L42: 6 | M42: 1334 | N42: 643 | O42: 19 | P42: 74 | Q42: 19 | R42: 64 | S42: 310 | T42: 94 | U42: 15 | V42: 2418 | W42: 29.29843693
A43: CONCEPCIÓN | B43: 5 | C43: 2636 | D43: 1866 | E43: 70.78907436 | F43: 1844 | G43: 11 | H43: 714 | I43: 2 | J43: 2 | K43: 340 | L43: 1 | M43: 500 | N43: 151 | O43: 5 | P43: 17 | Q43: 2 | R43: 11 | S43: 88 | T43: 21 | U43: 1 | V43: 770 | W43: 29.21092564
A44: CANTÓN 6 SAN ISIDRO | B44: 28 | C44: 14503 | D44: 10822 | E44: 74.61904434 | F44: 10671 | G44: 45 | H44: 4312 | I44: 8 | J44: 26 | K44: 1655 | L44: 11 | M44: 2861 | N44: 901 | O44: 40 | P44: 127 | Q44: 40 | R44: 119 | S44: 526 | T44: 128 | U44: 23 | V44: 3681 | W44: 25.38095566
A45: SAN ISIDRO | B45: 14 | C45: 7466 | D45: 5627 | E45: 75.36833646 | F45: 5562 | G45: 21 | H45: 2280 | I45: 2 | J45: 16 | K45: 956 | L45: 5 | M45: 1485 | N45: 391 | O45: 20 | P45: 67 | Q45: 17 | R45: 57 | S45: 245 | T45: 56 | U45: 9 | V45: 1839 | W45: 24.63166354
A46: SAN JOSÉ | B46: 7 | C46: 3538 | D46: 2631 | E46: 74.36404748 | F46: 2601 | G46: 10 | H46: 1105 | I46: 4 | J46: 5 | K46: 319 | L46: 1 | M46: 667 | N46: 278 | O46: 6 | P46: 32 | Q46: 13 | R46: 35 | S46: 126 | T46: 26 | U46: 4 | V46: 907 | W46: 25.63595252
A47: CONCEPCIÓN | B47: 4 | C47: 1865 | D47: 1359 | E47: 72.86863271 | F47: 1328 | G47: 5 | H47: 433 | I47: 1 | J47: 3 | K47: 161 | L47: 4 | M47: 433 | N47: 149 | O47: 5 | P47: 11 | Q47: 3 | R47: 16 | S47: 104 | T47: 24 | U47: 7 | V47: 506 | W47: 27.13136729
A48: SAN FRANCISCO | B48: 3 | C48: 1634 | D48: 1205 | E48: 73.74541004 | F48: 1180 | G48: 9 | H48: 494 | I48: 1 | J48: 2 | K48: 219 | L48: 1 | M48: 276 | N48: 83 | O48: 9 | P48: 17 | Q48: 7 | R48: 11 | S48: 51 | T48: 22 | U48: 3 | V48: 429 | W48: 26.25458996
A49: CANTÓN 7 BELÉN | B49: 33 | C49: 17266 | D49: 13281 | E49: 76.9199583 | F49: 13130 | G49: 33 | H49: 4749 | I49: 12 | J49: 23 | K49: 1781 | L49: 11 | M49: 3829 | N49: 1414 | O49: 32 | P49: 110 | Q49: 19 | R49: 45 | S49: 1072 | T49: 129 | U49: 22 | V49: 3985 | W49: 23.0800417
A50: SAN ANTONIO | B50: 15 | C50: 7974 | D50: 6086 | E50: 76.32304991 | F50: 6023 | G50: 13 | H50: 2209 | I50: 7 | J50: 8 | K50: 976 | L50: 3 | M50: 1713 | N50: 525 | O50: 16 | P50: 52 | Q50: 10 | R50: 20 | S50: 471 | T50: 58 | U50: 5 | V50: 1888 | W50: 23.67695009
A51: LA RIBERA | B51: 11 | C51: 5886 | D51: 4471 | E51: 75.95990486 | F51: 4411 | G51: 12 | H51: 1580 | I51: 3 | J51: 8 | K51: 570 | L51: 4 | M51: 1319 | N51: 488 | O51: 10 | P51: 40 | Q51: 8 | R51: 20 | S51: 349 | T51: 49 | U51: 11 | V51: 1415 | W51: 24.04009514
A52: LA ASUNCIÓN | B52: 7 | C52: 3406 | D52: 2724 | E52: 79.97651204 | F52: 2696 | G52: 8 | H52: 960 | I52: 2 | J52: 7 | K52: 235 | L52: 4 | M52: 797 | N52: 401 | O52: 6 | P52: 18 | Q52: 1 | R52: 5 | S52: 252 | T52: 22 | U52: 6 | V52: 682 | W52: 20.02348796
A53: CANTÓN 8 FLORES | B53: 29 | C53: 15087 | D53: 11641 | E53: 77.15914363 | F53: 11512 | G53: 39 | H53: 5086 | I53: 9 | J53: 15 | K53: 1349 | L53: 14 | M53: 3106 | N53: 1011 | O53: 43 | P53: 111 | Q53: 24 | R53: 91 | S53: 614 | T53: 118 | U53: 11 | V53: 3446 | W53: 22.84085637
A54: SAN JOAQUÍN | B54: 15 | C54: 7862 | D54: 6102 | E54: 77.61383872 | F54: 6047 | G54: 15 | H54: 2817 | I54: 7 | J54: 9 | K54: 713 | L54: 4 | M54: 1526 | N54: 538 | O54: 27 | P54: 56 | Q54: 14 | R54: 42 | S54: 279 | T54: 49 | U54: 6 | V54: 1760 | W54: 22.38616128
A55: BARRANTES | B55: 5 | C55: 2343 | D55: 1966 | E55: 83.90951771 | F55: 1946 | G55: 7 | H55: 920 | I55: 0 | J55: 0 | K55: 211 | L55: 5 | M55: 539 | N55: 150 | O55: 2 | P55: 16 | Q55: 4 | R55: 5 | S55: 87 | T55: 17 | U55: 3 | V55: 377 | W55: 16.09048229
A56: LLORENTE | B56: 9 | C56: 4882 | D56: 3573 | E56: 73.18721835 | F56: 3519 | G56: 17 | H56: 1349 | I56: 2 | J56: 6 | K56: 425 | L56: 5 | M56: 1041 | N56: 323 | O56: 14 | P56: 39 | Q56: 6 | R56: 44 | S56: 248 | T56: 52 | U56: 2 | V56: 1309 | W56: 26.81278165
A57: CANTÓN 9 SAN PABLO | B57: 38 | C57: 20119 | D57: 15109 | E57: 75.09816591 | F57: 14890 | G57: 52 | H57: 6208 | I57: 23 | J57: 21 | K57: 2392 | L57: 12 | M57: 3473 | N57: 1125 | O57: 58 | P57: 186 | Q57: 57 | R57: 136 | S57: 1147 | T57: 190 | U57: 29 | V57: 5010 | W57: 24.90183409
A58: PARACITO | B58: 28 | C58: 15176 | D58: 11430 | E58: 75.31628888 | F58: 11282 | G58: 39 | H58: 4775 | I58: 18 | J58: 15 | K58: 1784 | L58: 9 | M58: 2632 | N58: 839 | O58: 43 | P58: 132 | Q58: 31 | R58: 96 | S58: 869 | T58: 130 | U58: 18 | V58: 3746 | W58: 24.68371112
A59: RINCÓN DE SABANILLA | B59: 10 | C59: 4943 | D59: 3679 | E59: 74.42848473 | F59: 3608 | G59: 13 | H59: 1433 | I59: 5 | J59: 6 | K59: 608 | L59: 3 | M59: 841 | N59: 286 | O59: 15 | P59: 54 | Q59: 26 | R59: 40 | S59: 278 | T59: 60 | U59: 11 | V59: 1264 | W59: 25.57151527
A60: CANTÓN 10 SARAPIQUÍ | B60: 74 | C60: 29767 | D60: 18577 | E60: 62.40803574 | F60: 18040 | G60: 143 | H60: 2799 | I60: 28 | J60: 58 | K60: 4617 | L60: 19 | M60: 5201 | N60: 3122 | O60: 48 | P60: 140 | Q60: 293 | R60: 640 | S60: 932 | T60: 458 | U60: 79 | V60: 11190 | W60: 37.59196426
A61: PUERTO VIEJO | B61: 23 | C61: 9100 | D61: 5248 | E61: 57.67032967 | F61: 5098 | G61: 26 | H61: 736 | I61: 5 | J61: 15 | K61: 1083 | L61: 3 | M61: 1531 | N61: 1231 | O61: 9 | P61: 35 | Q61: 64 | R61: 102 | S61: 258 | T61: 118 | U61: 32 | V61: 3852 | W61: 42.32967033
A62: LA VIRGEN | B62: 15 | C62: 5446 | D62: 3443 | E62: 63.22071245 | F62: 3359 | G62: 21 | H62: 635 | I62: 5 | J62: 5 | K62: 657 | L62: 5 | M62: 962 | N62: 572 | O62: 4 | P62: 28 | Q62: 58 | R62: 191 | S62: 216 | T62: 72 | U62: 12 | V62: 2003 | W62: 36.77928755
A63: HORQUETAS | B63: 33 | C63: 14586 | D63: 9512 | E63: 65.21321815 | F63: 9214 | G63: 95 | H63: 1389 | I63: 18 | J63: 38 | K63: 2796 | L63: 11 | M63: 2579 | N63: 1238 | O63: 35 | P63: 75 | Q63: 154 | R63: 347 | S63: 439 | T63: 263 | U63: 35 | V63: 5074 | W63: 34.78678185
A64: LLANURAS DEL GASPAR | B64: 1 | C64: 357 | D64: 219 | E64: 61.34453782 | F64: 217 | G64: 1 | H64: 12 | I64: 0 | J64: 0 | K64: 62 | L64: 0 | M64: 73 | N64: 49 | O64: 0 | P64: 0 | Q64: 17 | R64: 0 | S64: 3 | T64: 2 | U64: 0 | V64: 138 | W64: 38.65546218
A65: CUREÑA | B65: 2 | C65: 278 | D65: 155 | E65: 55.75539568 | F65: 152 | G65: 0 | H65: 27 | I65: 0 | J65: 0 | K65: 19 | L65: 0 | M65: 56 | N65: 32 | O65: 0 | P65: 2 | Q65: 0 | R65: 0 | S65: 16 | T65: 3 | U65: 0 | V65: 123 | W65: 44.24460432
A68: FUENTE: Tribunal Supremo de Elecciones.

Sheet C1.7
A2: CUADRO 1.7 GUANACASTE: JUNTAS, ELECTORADO, PARTICIPACIÓN, VOTOS POR PARTIDO, NULOS, BLANCOS Y ABSTENCIONISMO, PARA PRESIDENCIA Y VICEPRESIDENCIAS DE LA REPÚBLICA, SEGÚN CANTÓN Y DISTRITO ADMINISTRATIVO ELECCIONES 2 DE FEBRERO 2014
A4: CANTÓN Y DISTRITO ADMINISTRATIVO | B4: JUNTAS | C4: ELECTORADO | D4: VOTOS RECIBIDOS | V4: ABSTENCIONISMO
D5: TOTAL GENERAL | E5: % PARTICIPACIÓN | F5: VOTOS VÁLIDOS | T5: NULOS | U5: BLANCOS | V5: ABSOLUTO | W5: %
F6: TOTAL | G6: ACCESIBILIDAD SIN EXCLUSIÓN | H6: ACCIÓN CIUDADANA | I6: AVANCE NACIONAL | J6: DE LOS TRABAJADORES | K6: FRENTE AMPLIO | L6: INTEGRACIÓN NACIONAL | M6: LIBERACIÓN NACIONAL | N6: MOVIMIENTO LIBERTARIO | O6: NUEVA GENERACIÓN | P6: PATRIA NUEVA | Q6: RENOVACIÓN COSTARRICENSE | R6: RESTAURACIÓN NACIONAL | S6: UNIDAD SOCIAL CRISTIANA
A8: PROVINCIA GUANACASTE | B8: =+B9+B15+B23+B33+B38+B43+B49+B54+B62+B69+B74 -> 542 | C8: =+C9+C15+C23+C33+C38+C43+C49+C54+C62+C69+C74 -> 221688 | D8: 140138 | E8: =D8/C8*100 -> 63.21406662 | F8: =+F9+F15+F23+F33+F38+F43+F49+F54+F62+F69+F74 -> 136325 | G8: =+G9+G15+G23+G33+G38+G43+G49+G54+G62+G69+G74 -> 495 | H8: =+H9+H15+H23+H33+H38+H43+H49+H54+H62+H69+H74 -> 20277 | I8: =+I9+I15+I23+I33+I38+I43+I49+I54+I62+I69+I74 -> 271 | J8: =+J9+J15+J23+J33+J38+J43+J49+J54+J62+J69+J74 -> 284 | K8: =+K9+K15+K23+K33+K38+K43+K49+K54+K62+K69+K74 -> 26099 | L8: =+L9+L15+L23+L33+L38+L43+L49+L54+L62+L69+L74 -> 153 | M8: =+M9+M15+M23+M33+M38+M43+M49+M54+M62+M69+M74 -> 55598 | N8: =+N9+N15+N23+N33+N38+N43+N49+N54+N62+N69+N74 -> 17413 | O8: =+O9+O15+O23+O33+O38+O43+O49+O54+O62+O69+O74 -> 247 | P8: =+P9+P15+P23+P33+P38+P43+P49+P54+P62+P69+P74 -> 1212 | Q8: =+Q9+Q15+Q23+Q33+Q38+Q43+Q49+Q54+Q62+Q69+Q74 -> 1854 | R8: =+R9+R15+R23+R33+R38+R43+R49+R54+R62+R69+R74 -> 1732 | S8: =+S9+S15+S23+S33+S38+S43+S49+S54+S62+S69+S74 -> 10690 | T8: =+T9+T15+T23+T33+T38+T43+T49+T54+T62+T69+T74 -> 3174 | U8: =+U9+U15+U23+U33+U38+U43+U49+U54+U62+U69+U74 -> 639 | V8: =+V9+V15+V23+V33+V38+V43+V49+V54+V62+V69+V74 -> 81550 | W8: =V8/C8*100 -> 36.78593338
A9: CANTÓN 1 LIBERIA | B9: 81 | C9: 41245 | D9: 24524 | E9: =D9/C9*100 -> 59.4593284 | F9: 24023 | G9: 101 | H9: 4554 | I9: 38 | J9: 57 | K9: 4356 | L9: 20 | M9: 8734 | N9: 2960 | O9: 55 | P9: 203 | Q9: 487 | R9: 311 | S9: 2147 | T9: 406 | U9: 95 | V9: 16721 | W9: =V9/C9*100 -> 40.5406716
A10: LIBERIA | B10: 67 | C10: 35159 | D10: 20966 | E10: 59.63195768 | F10: 20575 | G10: 90 | H10: 4133 | I10: 32 | J10: 47 | K10: 3820 | L10: 19 | M10: 7345 | N10: 2485 | O10: 46 | P10: 184 | Q10: 276 | R10: 281 | S10: 1817 | T10: 315 | U10: 76 | V10: 14193 | W10: 40.36804232
A11: CAÑAS DULCES | B11: 5 | C11: 2014 | D11: 1262 | E11: 62.66137041 | F11: 1225 | G11: 3 | H11: 161 | I11: 0 | J11: 4 | K11: 165 | L11: 1 | M11: 451 | N11: 137 | O11: 2 | P11: 4 | Q11: 153 | R11: 13 | S11: 131 | T11: 32 | U11: 5 | V11: 752 | W11: 37.33862959
A12: MAYORGA | B12: 2 | C12: 969 | D12: 505 | E12: 52.11558308 | F12: 489 | G12: 2 | H12: 44 | I12: 4 | J12: 1 | K12: 68 | L12: 0 | M12: 241 | N12: 56 | O12: 0 | P12: 2 | Q12: 16 | R12: 6 | S12: 49 | T12: 12 | U12: 4 | V12: 464 | W12: 47.88441692
A13: NACASCOLO | B13: 3 | C13: 1523 | D13: 823 | E13: 54.03808273 | F13: 786 | G13: 3 | H13: 100 | I13: 1 | J13: 1 | K13: 144 | L13: 0 | M13: 307 | N13: 130 | O13: 4 | P13: 8 | Q13: 6 | R13: 5 | S13: 77 | T13: 30 | U13: 7 | V13: 700 | W13: 45.96191727
A14: CURUBANDÉ | B14: 4 | C14: 1580 | D14: 968 | E14: 61.26582278 | F14: 948 | G14: 3 | H14: 116 | I14: 1 | J14: 4 | K14: 159 | L14: 0 | M14: 390 | N14: 152 | O14: 3 | P14: 5 | Q14: 36 | R14: 6 | S14: 73 | T14: 17 | U14: 3 | V14: 612 | W14: 38.73417722
A15: CANTÓN 2 NICOYA | B15: 105 | C15: 38300 | D15: 26008 | E15: 67.90600522 | F15: 25268 | G15: 73 | H15: 2800 | I15: 33 | J15: 52 | K15: 5186 | L15: 36 | M15: 11069 | N15: 3321 | O15: 61 | P15: 192 | Q15: 205 | R15: 227 | S15: 2013 | T15: 625 | U15: 115 | V15: 12292 | W15: 32.09399478
A16: NICOYA | B16: 45 | C16: 19717 | D16: 13522 | E16: 68.58041284 | F16: 13178 | G16: 26 | H16: 1924 | I16: 12 | J16: 22 | K16: 2597 | L16: 13 | M16: 5422 | N16: 1727 | O16: 21 | P16: 128 | Q16: 101 | R16: 125 | S16: 1060 | T16: 297 | U16: 47 | V16: 6195 | W16: 31.41958716
A17: MANSIÓN | B17: 12 | C17: 3946 | D17: 2602 | E17: 65.9401926 | F17: 2539 | G17: 11 | H17: 252 | I17: 4 | J17: 7 | K17: 501 | L17: 5 | M17: 1136 | N17: 309 | O17: 2 | P17: 18 | Q17: 38 | R17: 27 | S17: 229 | T17: 58 | U17: 5 | V17: 1344 | W17: 34.0598074
A18: SAN ANTONIO | B18: 17 | C18: 5321 | D18: 3687 | E18: 69.29148656 | F18: 3556 | G18: 16 | H18: 185 | I18: 6 | J18: 9 | K18: 690 | L18: 7 | M18: 1817 | N18: 455 | O18: 25 | P18: 21 | Q18: 24 | R18: 24 | S18: 277 | T18: 113 | U18: 18 | V18: 1634 | W18: 30.70851344
A19: QUEBRADA HONDA | B19: 7 | C19: 2121 | D19: 1517 | E19: 71.52286657 | F19: 1476 | G19: 2 | H19: 127 | I19: 1 | J19: 3 | K19: 441 | L19: 2 | M19: 559 | N19: 159 | O19: 2 | P19: 1 | Q19: 11 | R19: 10 | S19: 158 | T19: 34 | U19: 7 | V19: 604 | W19: 28.47713343
A20: SÁMARA | B20: 7 | C20: 2362 | D20: 1417 | E20: 59.9915326 | F20: 1353 | G20: 6 | H20: 104 | I20: 9 | J20: 3 | K20: 422 | L20: 2 | M20: 489 | N20: 168 | O20: 2 | P20: 4 | Q20: 7 | R20: 17 | S20: 120 | T20: 49 | U20: 15 | V20: 945 | W20: 40.0084674
A21: NOSARA | B21: 8 | C21: 2915 | D21: 1873 | E21: 64.25385935 | F21: 1814 | G21: 7 | H21: 113 | I21: 0 | J21: 5 | K21: 273 | L21: 4 | M21: 963 | N21: 310 | O21: 7 | P21: 12 | Q21: 20 | R21: 18 | S21: 82 | T21: 45 | U21: 14 | V21: 1042 | W21: 35.74614065
A22: BELÉN DE NOSARITA | B22: 9 | C22: 1918 | D22: 1390 | E22: 72.4713243 | F22: 1352 | G22: 5 | H22: 95 | I22: 1 | J22: 3 | K22: 262 | L22: 3 | M22: 683 | N22: 193 | O22: 2 | P22: 8 | Q22: 4 | R22: 6 | S22: 87 | T22: 29 | U22: 9 | V22: 528 | W22: 27.5286757
A23: CANTÓN 3 SANTA CRUZ | B23: 88 | C23: 37832 | D23: 23337 | E23: 61.68587439 | F23: 22601 | G23: 93 | H23: 2791 | I23: 91 | J23: 54 | K23: 4629 | L23: 29 | M23: 9345 | N23: 2752 | O23: 39 | P23: 206 | Q23: 260 | R23: 213 | S23: 2099 | T23: 599 | U23: 137 | V23: 14495 | W23: 38.31412561
A24: SANTA CRUZ | B24: 33 | C24: 16411 | D24: 10371 | E24: 63.19541771 | F24: 10097 | G24: 44 | H24: 1474 | I24: 32 | J24: 20 | K24: 2279 | L24: 10 | M24: 4098 | N24: 1006 | O24: 17 | P24: 80 | Q24: 67 | R24: 104 | S24: 866 | T24: 233 | U24: 41 | V24: 6040 | W24: 36.80458229
A25: BOLSÓN | B25: 3 | C25: 1300 | D25: 840 | E25: 64.61538462 | F25: 811 | G25: 6 | H25: 35 | I25: 1 | J25: 1 | K25: 131 | L25: 2 | M25: 460 | N25: 78 | O25: 1 | P25: 4 | Q25: 8 | R25: 6 | S25: 78 | T25: 24 | U25: 5 | V25: 460 | W25: 35.38461538
A26: VEINTISIETE DE ABRIL | B26: 13 | C26: 4886 | D26: 2886 | E26: 59.06672124 | F26: 2771 | G26: 13 | H26: 251 | I26: 14 | J26: 5 | K26: 428 | L26: 4 | M26: 1300 | N26: 404 | O26: 2 | P26: 11 | Q26: 27 | R26: 52 | S26: 260 | T26: 95 | U26: 20 | V26: 2000 | W26: 40.93327876
A27: TEMPATE | B27: 8 | C27: 2986 | D27: 1724 | E27: 57.73610181 | F27: 1659 | G27: 10 | H27: 150 | I27: 12 | J27: 4 | K27: 232 | L27: 3 | M27: 710 | N27: 264 | O27: 6 | P27: 12 | Q27: 32 | R27: 10 | S27: 214 | T27: 47 | U27: 18 | V27: 1262 | W27: 42.26389819
A28: CARTAGENA | B28: 6 | C28: 2750 | D28: 1764 | E28: 64.14545455 | F28: 1716 | G28: 2 | H28: 242 | I28: 16 | J28: 5 | K28: 436 | L28: 2 | M28: 635 | N28: 198 | O28: 2 | P28: 10 | Q28: 59 | R28: 9 | S28: 100 | T28: 43 | U28: 5 | V28: 986 | W28: 35.85454545
A29: CUAJINIQUIL | B29: 6 | C29: 1244 | D29: 778 | E29: 62.54019293 | F29: 745 | G29: 3 | H29: 27 | I29: 3 | J29: 4 | K29: 258 | L29: 0 | M29: 255 | N29: 130 | O29: 1 | P29: 9 | Q29: 2 | R29: 4 | S29: 49 | T29: 22 | U29: 11 | V29: 466 | W29: 37.45980707
A30: DIRIÁ | B30: 7 | C30: 2968 | D30: 1924 | E30: 64.82479784 | F30: 1853 | G30: 6 | H30: 194 | I30: 5 | J30: 8 | K30: 415 | L30: 2 | M30: 750 | N30: 156 | O30: 5 | P30: 54 | Q30: 30 | R30: 11 | S30: 217 | T30: 54 | U30: 17 | V30: 1044 | W30: 35.17520216
A31: CABO VELAS | B31: 4 | C31: 1859 | D31: 1057 | E31: 56.85852609 | F31: 1027 | G31: 4 | H31: 119 | I31: 4 | J31: 0 | K31: 180 | L31: 1 | M31: 439 | N31: 174 | O31: 1 | P31: 6 | Q31: 18 | R31: 2 | S31: 79 | T31: 24 | U31: 6 | V31: 802 | W31: 43.14147391
A32: TAMARINDO | B32: 8 | C32: 3428 | D32: 1993 | E32: 58.13885648 | F32: 1922 | G32: 5 | H32: 299 | I32: 4 | J32: 7 | K32: 270 | L32: 5 | M32: 698 | N32: 342 | O32: 4 | P32: 20 | Q32: 17 | R32: 15 | S32: 236 | T32: 57 | U32: 14 | V32: 1435 | W32: 41.86114352
A33: CANTÓN 4 BAGACES | B33: 31 | C33: 12446 | D33: 7582 | E33: 60.91917082 | F33: 7332 | G33: 33 | H33: 1618 | I33: 13 | J33: 22 | K33: 1377 | L33: 15 | M33: 2492 | N33: 937 | O33: 12 | P33: 55 | Q33: 127 | R33: 110 | S33: 521 | T33: 216 | U33: 34 | V33: 4864 | W33: 39.08082918
A34: BAGACES | B34: 18 | C34: 7363 | D34: 4210 | E34: 57.1777808 | F34: 4069 | G34: 18 | H34: 674 | I34: 9 | J34: 15 | K34: 667 | L34: 6 | M34: 1488 | N34: 697 | O34: 7 | P34: 36 | Q34: 54 | R34: 72 | S34: 326 | T34: 119 | U34: 22 | V34: 3153 | W34: 42.8222192
A35: LA FORTUNA | B35: 5 | C35: 1996 | D35: 1331 | E35: 66.68336673 | F35: 1296 | G35: 6 | H35: 385 | I35: 1 | J35: 5 | K35: 266 | L35: 5 | M35: 438 | N35: 89 | O35: 1 | P35: 4 | Q35: 7 | R35: 20 | S35: 69 | T35: 32 | U35: 3 | V35: 665 | W35: 33.31663327
A36: MOGOTE | B36: 6 | C36: 2369 | D36: 1545 | E36: 65.2173913 | F36: 1486 | G36: 8 | H36: 491 | I36: 3 | J36: 2 | K36: 365 | L36: 3 | M36: 351 | N36: 101 | O36: 3 | P36: 11 | Q36: 65 | R36: 10 | S36: 73 | T36: 52 | U36: 7 | V36: 824 | W36: 34.7826087
A37: RÍO NARANJO | B37: 2 | C37: 718 | D37: 496 | E37: 69.08077994 | F37: 481 | G37: 1 | H37: 68 | I37: 0 | J37: 0 | K37: 79 | L37: 1 | M37: 215 | N37: 50 | O37: 1 | P37: 4 | Q37: 1 | R37: 8 | S37: 53 | T37: 13 | U37: 2 | V37: 222 | W37: 30.91922006
A38: CANTÓN 5 CARRILLO | B38: 47 | C38: 22180 | D38: 13097 | E38: 59.04869252 | F38: 12741 | G38: 44 | H38: 1336 | I38: 40 | J38: 15 | K38: 1542 | L38: 7 | M38: 5827 | N38: 2216 | O38: 12 | P38: 95 | Q38: 241 | R38: 118 | S38: 1248 | T38: 279 | U38: 77 | V38: 9083 | W38: 40.95130748
A39: FILADELFIA | B39: 11 | C39: 5491 | D39: 3367 | E39: 61.31852122 | F39: 3276 | G39: 4 | H39: 410 | I39: 12 | J39: 6 | K39: 391 | L39: 2 | M39: 1503 | N39: 362 | O39: 3 | P39: 30 | Q39: 58 | R39: 27 | S39: 468 | T39: 71 | U39: 20 | V39: 2124 | W39: 38.68147878
A40: PALMIRA | B40: 6 | C40: 3015 | D40: 1806 | E40: 59.90049751 | F40: 1765 | G40: 8 | H40: 221 | I40: 6 | J40: 2 | K40: 202 | L40: 1 | M40: 895 | N40: 214 | O40: 2 | P40: 29 | Q40: 18 | R40: 11 | S40: 156 | T40: 30 | U40: 11 | V40: 1209 | W40: 40.09950249
A41: SARDINAL | B41: 18 | C41: 8246 | D41: 4712 | E41: 57.14285714 | F41: 4620 | G41: 17 | H41: 502 | I41: 8 | J41: 3 | K41: 663 | L41: 2 | M41: 1861 | N41: 1065 | O41: 3 | P41: 24 | Q41: 101 | R41: 33 | S41: 338 | T41: 68 | U41: 24 | V41: 3534 | W41: 42.85714286
A42: BELÉN | B42: 12 | C42: 5428 | D42: 3212 | E42: 59.17464996 | F42: 3080 | G42: 15 | H42: 203 | I42: 14 | J42: 4 | K42: 286 | L42: 2 | M42: 1568 | N42: 575 | O42: 4 | P42: 12 | Q42: 64 | R42: 47 | S42: 286 | T42: 110 | U42: 22 | V42: 2216 | W42: 40.82535004
A43: CANTÓN 6 CAÑAS | B43: 39 | C43: 18440 | D43: 11409 | E43: 61.87093275 | F43: 11052 | G43: 33 | H43: 2025 | I43: 16 | J43: 25 | K43: 2084 | L43: 13 | M43: 4516 | N43: 1148 | O43: 15 | P43: 68 | Q43: 58 | R43: 410 | S43: 641 | T43: 317 | U43: 40 | V43: 7031 | W43: 38.12906725
A44: CAÑAS | B44: 28 | C44: 14913 | D44: 9192 | E44: 61.63749749 | F44: 8917 | G44: 24 | H44: 1788 | I44: 8 | J44: 20 | K44: 1669 | L44: 10 | M44: 3513 | N44: 884 | O44: 12 | P44: 57 | Q44: 44 | R44: 359 | S44: 529 | T44: 240 | U44: 35 | V44: 5721 | W44: 38.36250251
A45: PALMIRA | B45: 2 | C45: 678 | D45: 474 | E45: 69.91150442 | F45: 458 | G45: 2 | H45: 42 | I45: 4 | J45: 3 | K45: 120 | L45: 2 | M45: 188 | N45: 62 | O45: 2 | P45: 1 | Q45: 3 | R45: 5 | S45: 24 | T45: 16 | U45: 0 | V45: 204 | W45: 30.08849558
A46: SAN MIGUEL | B46: 5 | C46: 1175 | D46: 760 | E46: 64.68085106 | F46: 726 | G46: 1 | H46: 94 | I46: 1 | J46: 1 | K46: 130 | L46: 1 | M46: 368 | N46: 76 | O46: 0 | P46: 2 | Q46: 5 | R46: 10 | S46: 37 | T46: 32 | U46: 2 | V46: 415 | W46: 35.31914894
A47: BEBEDERO | B47: 2 | C47: 1204 | D47: 647 | E47: 53.73754153 | F47: 626 | G47: 5 | H47: 82 | I47: 3 | J47: 1 | K47: 100 | L47: 0 | M47: 275 | N47: 87 | O47: 1 | P47: 5 | Q47: 1 | R47: 34 | S47: 32 | T47: 18 | U47: 3 | V47: 557 | W47: 46.26245847
A48: POROZAL | B48: 2 | C48: 470 | D48: 336 | E48: 71.4893617 | F48: 325 | G48: 1 | H48: 19 | I48: 0 | J48: 0 | K48: 65 | L48: 0 | M48: 172 | N48: 39 | O48: 0 | P48: 3 | Q48: 5 | R48: 2 | S48: 19 | T48: 11 | U48: 0 | V48: 134 | W48: 28.5106383
A49: CANTÓN 7 ABANGARES | B49: 37 | C49: 12801 | D49: 8442 | E49: 65.94797281 | F49: 8203 | G49: 37 | H49: 1228 | I49: 7 | J49: 10 | K49: 1896 | L49: 10 | M49: 3365 | N49: 981 | O49: 11 | P49: 46 | Q49: 67 | R49: 102 | S49: 443 | T49: 209 | U49: 30 | V49: 4359 | W49: 34.05202719
A50: LAS JUNTAS | B50: 16 | C50: 6813 | D50: 4441 | E50: 65.18420666 | F50: 4327 | G50: 16 | H50: 790 | I50: 2 | J50: 7 | K50: 820 | L50: 5 | M50: 1813 | N50: 482 | O50: 7 | P50: 23 | Q50: 29 | R50: 67 | S50: 266 | T50: 102 | U50: 12 | V50: 2372 | W50: 34.81579334
A51: SIERRA | B51: 7 | C51: 1560 | D51: 1052 | E51: 67.43589744 | F51: 1025 | G51: 5 | H51: 140 | I51: 0 | J51: 2 | K51: 286 | L51: 1 | M51: 405 | N51: 107 | O51: 1 | P51: 13 | Q51: 16 | R51: 5 | S51: 44 | T51: 25 | U51: 2 | V51: 508 | W51: 32.56410256
A52: SAN JUAN | B52: 4 | C52: 1327 | D52: 840 | E52: 63.30067822 | F52: 811 | G52: 3 | H52: 161 | I52: 2 | J52: 0 | K52: 136 | L52: 1 | M52: 346 | N52: 96 | O52: 0 | P52: 6 | Q52: 9 | R52: 4 | S52: 47 | T52: 24 | U52: 5 | V52: 487 | W52: 36.69932178
A53: COLORADO | B53: 10 | C53: 3101 | D53: 2109 | E53: 68.01031925 | F53: 2040 | G53: 13 | H53: 137 | I53: 3 | J53: 1 | K53: 654 | L53: 3 | M53: 801 | N53: 296 | O53: 3 | P53: 4 | Q53: 13 | R53: 26 | S53: 86 | T53: 58 | U53: 11 | V53: 992 | W53: 31.98968075
A54: CANTÓN 8 TILARÁN | B54: 39 | C54: 14132 | D54: 9941 | E54: 70.34390037 | F54: 9763 | G54: 32 | H54: 2382 | I54: 5 | J54: 17 | K54: 1908 | L54: 7 | M54: 3287 | N54: 1000 | O54: 12 | P54: 143 | Q54: 110 | R54: 84 | S54: 776 | T54: 148 | U54: 30 | V54: 4191 | W54: 29.65609963
A55: TILARÁN | B55: 15 | C55: 6725 | D55: 4803 | E55: 71.42007435 | F55: 4737 | G55: 12 | H55: 1403 | I55: 2 | J55: 9 | K55: 944 | L55: 0 | M55: 1464 | N55: 393 | O55: 5 | P55: 92 | Q55: 47 | R55: 40 | S55: 326 | T55: 50 | U55: 16 | V55: 1922 | W55: 28.57992565
A56: QUEBRADA GRANDE | B56: 6 | C56: 1862 | D56: 1331 | E56: 71.48227712 | F56: 1305 | G56: 5 | H56: 286 | I56: 2 | J56: 2 | K56: 247 | L56: 2 | M56: 469 | N56: 141 | O56: 1 | P56: 11 | Q56: 36 | R56: 17 | S56: 86 | T56: 21 | U56: 5 | V56: 531 | W56: 28.51772288
A57: TRONADORA | B57: 4 | C57: 1217 | D57: 893 | E57: 73.37715694 | F57: 876 | G57: 2 | H57: 210 | I57: 1 | J57: 3 | K57: 181 | L57: 0 | M57: 265 | N57: 61 | O57: 1 | P57: 9 | Q57: 5 | R57: 1 | S57: 137 | T57: 15 | U57: 2 | V57: 324 | W57: 26.62284306
A58: SANTA ROSA | B58: 3 | C58: 1177 | D58: 787 | E58: 66.86491079 | F58: 763 | G58: 3 | H58: 156 | I58: 0 | J58: 2 | K58: 148 | L58: 0 | M58: 309 | N58: 76 | O58: 0 | P58: 10 | Q58: 4 | R58: 19 | S58: 36 | T58: 23 | U58: 1 | V58: 390 | W58: 33.13508921
A59: LÍBANO | B59: 3 | C59: 610 | D59: 429 | E59: 70.32786885 | F59: 418 | G59: 1 | H59: 56 | I59: 0 | J59: 0 | K59: 93 | L59: 1 | M59: 173 | N59: 37 | O59: 1 | P59: 2 | Q59: 3 | R59: 1 | S59: 50 | T59: 11 | U59: 0 | V59: 181 | W59: 29.67213115
A60: TIERRAS MORENAS | B60: 4 | C60: 982 | D60: 681 | E60: 69.34826884 | F60: 665 | G60: 2 | H60: 96 | I60: 0 | J60: 1 | K60: 108 | L60: 2 | M60: 303 | N60: 101 | O60: 0 | P60: 4 | Q60: 2 | R60: 3 | S60: 43 | T60: 11 | U60: 5 | V60: 301 | W60: 30.65173116
A61: ARENAL | B61: 4 | C61: 1559 | D61: 1017 | E61: 65.23412444 | F61: 999 | G61: 7 | H61: 175 | I61: 0 | J61: 0 | K61: 187 | L61: 2 | M61: 304 | N61: 191 | O61: 4 | P61: 15 | Q61: 13 | R61: 3 | S61: 98 | T61: 17 | U61: 1 | V61: 542 | W61: 34.76587556
A62: CANTÓN 9 NANDAYURE | B62: 29 | C62: 7979 | D62: 5647 | E62: 70.77327986 | F62: 5470 | G62: 18 | H62: 482 | I62: 8 | J62: 9 | K62: 1376 | L62: 8 | M62: 2550 | N62: 486 | O62: 10 | P62: 164 | Q62: 77 | R62: 90 | S62: 192 | T62: 141 | U62: 36 | V62: 2332 | W62: 29.22672014
A63: CARMONA | B63: 4 | C63: 1771 | D63: 1372 | E63: 77.47035573 | F63: 1337 | G63: 2 | H63: 206 | I63: 1 | J63: 2 | K63: 420 | L63: 2 | M63: 561 | N63: 36 | O63: 7 | P63: 21 | Q63: 5 | R63: 34 | S63: 40 | T63: 28 | U63: 7 | V63: 399 | W63: 22.52964427
A64: SANTA RITA | B64: 4 | C64: 1243 | D64: 876 | E64: 70.47465809 | F64: 847 | G64: 1 | H64: 82 | I64: 0 | J64: 0 | K64: 236 | L64: 1 | M64: 388 | N64: 80 | O64: 0 | P64: 13 | Q64: 13 | R64: 9 | S64: 24 | T64: 24 | U64: 5 | V64: 367 | W64: 29.52534191
A65: ZAPOTAL | B65: 5 | C65: 867 | D65: 633 | E65: 73.01038062 | F65: 614 | G65: 2 | H65: 47 | I65: 3 | J65: 2 | K65: 165 | L65: 1 | M65: 302 | N65: 58 | O65: 1 | P65: 9 | Q65: 3 | R65: 2 | S65: 19 | T65: 15 | U65: 4 | V65: 234 | W65: 26.98961938
A66: SAN PABLO | B66: 3 | C66: 1328 | D66: 899 | E66: 67.69578313 | F66: 866 | G66: 7 | H66: 30 | I66: 0 | J66: 1 | K66: 261 | L66: 0 | M66: 343 | N66: 108 | O66: 2 | P66: 2 | Q66: 34 | R66: 20 | S66: 58 | T66: 24 | U66: 9 | V66: 429 | W66: 32.30421687
A67: PORVENIR | B67: 4 | C67: 729 | D67: 527 | E67: 72.29080933 | F67: 518 | G67: 2 | H67: 39 | I67: 0 | J67: 0 | K67: 66 | L67: 0 | M67: 335 | N67: 44 | O67: 0 | P67: 15 | Q67: 2 | R67: 8 | S67: 7 | T67: 6 | U67: 3 | V67: 202 | W67: 27.70919067
A68: BEJUCO | B68: 9 | C68: 2041 | D68: 1340 | E68: 65.65409113 | F68: 1288 | G68: 4 | H68: 78 | I68: 4 | J68: 4 | K68: 228 | L68: 4 | M68: 621 | N68: 160 | O68: 0 | P68: 104 | Q68: 20 | R68: 17 | S68: 44 | T68: 44 | U68: 8 | V68: 701 | W68: 34.34590887
A69: CANTÓN 10 LA CRUZ | B69: 28 | C69: 10846 | D69: 6165 | E69: 56.84123179 | F69: 5966 | G69: 10 | H69: 411 | I69: 16 | J69: 10 | K69: 1100 | L69: 5 | M69: 2547 | N69: 1255 | O69: 5 | P69: 16 | Q69: 130 | R69: 41 | S69: 420 | T69: 166 | U69: 33 | V69: 4681 | W69: 43.15876821
A70: LA CRUZ | B70: 14 | C70: 5934 | D70: 3595 | E70: 60.58308055 | F70: 3504 | G70: 5 | H70: 285 | I70: 4 | J70: 4 | K70: 799 | L70: 3 | M70: 1584 | N70: 551 | O70: 3 | P70: 13 | Q70: 46 | R70: 26 | S70: 181 | T70: 80 | U70: 11 | V70: 2339 | W70: 39.41691945
A71: SANTA CECILIA | B71: 9 | C71: 3058 | D71: 1533 | E71: 50.13080445 | F71: 1472 | G71: 4 | H71: 84 | I71: 2 | J71: 4 | K71: 188 | L71: 2 | M71: 543 | N71: 455 | O71: 2 | P71: 1 | Q71: 52 | R71: 12 | S71: 123 | T71: 49 | U71: 12 | V71: 1525 | W71: 49.86919555
A72: LA GARITA | B72: 3 | C72: 679 | D72: 406 | E72: 59.79381443 | F72: 386 | G72: 0 | H72: 17 | I72: 2 | J72: 0 | K72: 30 | L72: 0 | M72: 172 | N72: 113 | O72: 0 | P72: 2 | Q72: 4 | R72: 1 | S72: 45 | T72: 12 | U72: 8 | V72: 273 | W72: 40.20618557
A73: SANTA ELENA | B73: 2 | C73: 1175 | D73: 631 | E73: =D73/C73*100 -> 53.70212766 | F73: 604 | G73: 1 | H73: 25 | I73: 8 | J73: 2 | K73: 83 | L73: 0 | M73: 248 | N73: 136 | O73: 0 | P73: 0 | Q73: 28 | R73: 2 | S73: 71 | T73: 25 | U73: 2 | V73: 544 | W73: =V73/C73*100 -> 46.29787234
A74: CANTÓN 11 HOJANCHA | B74: 18 | C74: 5487 | D74: 3986 | E74: 72.64443229 | F74: 3906 | G74: 21 | H74: 650 | I74: 4 | J74: 13 | K74: 645 | L74: 3 | M74: 1866 | N74: 357 | O74: 15 | P74: 24 | Q74: 92 | R74: 26 | S74: 190 | T74: 68 | U74: 12 | V74: 1501 | W74: 27.35556771
A75: HOJANCHA | B75: 8 | C75: 3381 | D75: 2442 | E75: 72.22715173 | F75: 2401 | G75: 9 | H75: 496 | I75: 2 | J75: 2 | K75: 428 | L75: 3 | M75: 1085 | N75: 168 | O75: 4 | P75: 18 | Q75: 63 | R75: 22 | S75: 101 | T75: 36 | U75: 5 | V75: 939 | W75: 27.77284827
A76: MONTE ROMO | B76: 3 | C76: 524 | D76: 385 | E76: 73.47328244 | F76: 376 | G76: 0 | H76: 63 | I76: 0 | J76: 0 | K76: 79 | L76: 0 | M76: 172 | N76: 24 | O76: 11 | P76: 1 | Q76: 13 | R76: 1 | S76: 12 | T76: 8 | U76: 1 | V76: 139 | W76: 26.52671756
A77: PUERTO CARRILLO | B77: 5 | C77: 1079 | D77: 775 | E77: 71.8257646 | F77: 748 | G77: 11 | H77: 63 | I77: 2 | J77: 8 | K77: 115 | L77: 0 | M77: 348 | N77: 125 | O77: 0 | P77: 4 | Q77: 15 | R77: 2 | S77: 55 | T77: 22 | U77: 5 | V77: 304 | W77: 28.1742354
A78: HUACAS | B78: 2 | C78: 503 | D78: 384 | E78: 76.34194831 | F78: 381 | G78: 1 | H78: 28 | I78: 0 | J78: 3 | K78: 23 | L78: 0 | M78: 261 | N78: 40 | O78: 0 | P78: 1 | Q78: 1 | R78: 1 | S78: 22 | T78: 2 | U78: 1 | V78: 119 | W78: 23.65805169
A81: FUENTE: Tribunal Supremo de Elecciones.

Sheet C1.8
A2: CUADRO 1.8 PUNTARENAS: JUNTAS, ELECTORADO, PARTICIPACIÓN, VOTOS POR PARTIDO, NULOS, BLANCOS Y ABSTENCIONISMO, PARA PRESIDENCIA Y VICEPRESIDENCIAS DE LA REPÚBLICA, SEGÚN CANTÓN Y DISTRITO ADMINISTRATIVO ELECCIONES 2 DE FEBRERO 2014
A4: CANTÓN Y DISTRITO ADMINISTRATIVO | B4: JUNTAS | C4: ELECTORADO | D4: VOTOS RECIBIDOS | V4: ABSTENCIONISMO
D5: TOTAL GENERAL | E5: % PARTICIPACIÓN | F5: VOTOS VÁLIDOS | T5: NULOS | U5: BLANCOS | V5: ABSOLUTO | W5: %
F6: TOTAL | G6: ACCESIBILIDAD SIN EXCLUSIÓN | H6: ACCIÓN CIUDADANA | I6: AVANCE NACIONAL | J6: DE LOS TRABAJADORES | K6: FRENTE AMPLIO | L6: INTEGRACIÓN NACIONAL | M6: LIBERACIÓN NACIONAL | N6: MOVIMIENTO LIBERTARIO | O6: NUEVA GENERACIÓN | P6: PATRIA NUEVA | Q6: RENOVACIÓN COSTARRICENSE | R6: RESTAURACIÓN NACIONAL | S6: UNIDAD SOCIAL CRISTIANA
A8: PROVINCIA PUNTARENAS | B8: =+B9+B26+B32+B42+B46+B53+B57+B62+B68+B70+B75 -> 692 | C8: =+C9+C26+C32+C42+C46+C53+C57+C62+C68+C70+C75 -> 287254 | D8: =+D9+D26+D32+D42+D46+D53+D57+D62+D68+D70+D75 -> 167515 | E8: =D8/C8*100 -> 58.31598516 | F8: =+F9+F26+F32+F42+F46+F53+F57+F62+F68+F70+F75 -> 162771 | G8: =+G9+G26+G32+G42+G46+G53+G57+G62+G68+G70+G75 -> 963 | H8: 22956 | I8: 345 | J8: 357 | K8: 37762 | L8: 246 | M8: 55963 | N8: 23735 | O8: 449 | P8: 1169 | Q8: 1797 | R8: 3260 | S8: 13769 | T8: 4008 | U8: 736 | V8: 119739 | W8: =V8/C8*100 -> 41.68401484
A9: CANTÓN 1 PUNTARENAS | B9: 191 | C9: 82240 | D9: 49618 | E9: =D9/C9*100 -> 60.33317121 | F9: 48387 | G9: 245 | H9: 6341 | I9: 122 | J9: 109 | K9: 10535 | L9: 71 | M9: 17146 | N9: 7057 | O9: 102 | P9: 383 | Q9: 444 | R9: 600 | S9: 5232 | T9: 1049 | U9: 182 | V9: 32622 | W9: =V9/C9*100 -> 39.66682879
A10: PUNTARENAS | B10: 16 | C10: 7878 | D10: 5344 | E10: 67.83447576 | F10: 5281 | G10: 16 | H10: 994 | I10: 17 | J10: 8 | K10: 1243 | L10: 3 | M10: 1937 | N10: 464 | O10: 12 | P10: 51 | Q10: 32 | R10: 25 | S10: 479 | T10: 53 | U10: 10 | V10: 2534 | W10: 32.16552424
A11: PITAHAYA | B11: 4 | C11: 1284 | D11: 809 | E11: 63.00623053 | F11: 783 | G11: 2 | H11: 39 | I11: 1 | J11: 4 | K11: 92 | L11: 2 | M11: 359 | N11: 145 | O11: 0 | P11: 3 | Q11: 3 | R11: 7 | S11: 126 | T11: 24 | U11: 2 | V11: 475 | W11: 36.99376947
A12: CHOMES | B12: 10 | C12: 3481 | D12: 1914 | E12: 54.98419994 | F12: 1855 | G12: 13 | H12: 180 | I12: 7 | J12: 4 | K12: 244 | L12: 4 | M12: 641 | N12: 402 | O12: 1 | P12: 10 | Q12: 24 | R12: 12 | S12: 313 | T12: 53 | U12: 6 | V12: 1567 | W12: 45.01580006
A13: LEPANTO | B13: 25 | C13: 7655 | D13: 4888 | E13: 63.8536904 | F13: 4738 | G13: 17 | H13: 553 | I13: 3 | J13: 7 | K13: 1016 | L13: 4 | M13: 2260 | N13: 354 | O13: 7 | P13: 34 | Q13: 74 | R13: 33 | S13: 376 | T13: 123 | U13: 27 | V13: 2767 | W13: 36.1463096
A14: PAQUERA | B14: 16 | C14: 4438 | D14: 2573 | E14: 57.97656602 | F14: 2491 | G14: 17 | H14: 312 | I14: 6 | J14: 6 | K14: 444 | L14: 5 | M14: 970 | N14: 370 | O14: 5 | P14: 32 | Q14: 24 | R14: 59 | S14: 241 | T14: 73 | U14: 9 | V14: 1865 | W14: 42.02343398
A15: MANZANILLO | B15: 6 | C15: 2252 | D15: 1317 | E15: 58.48134991 | F15: 1255 | G15: 9 | H15: 101 | I15: 2 | J15: 16 | K15: 143 | L15: 3 | M15: 467 | N15: 286 | O15: 0 | P15: 17 | Q15: 20 | R15: 30 | S15: 161 | T15: 50 | U15: 12 | V15: 935 | W15: 41.51865009
A16: GUACIMAL | B16: 2 | C16: 692 | D16: 471 | E16: 68.06358382 | F16: 467 | G16: 3 | H16: 94 | I16: 0 | J16: 1 | K16: 66 | L16: 1 | M16: 196 | N16: 55 | O16: 2 | P16: 1 | Q16: 1 | R16: 4 | S16: 43 | T16: 3 | U16: 1 | V16: 221 | W16: 31.93641618
A17: BARRANCA | B17: 38 | C17: 20876 | D17: 12161 | E17: 58.25349684 | F17: 11869 | G17: 61 | H17: 1328 | I17: 37 | J17: 21 | K17: 2822 | L17: 19 | M17: 3703 | N17: 2176 | O17: 32 | P17: 92 | Q17: 78 | R17: 207 | S17: 1293 | T17: 252 | U17: 40 | V17: 8715 | W17: 41.74650316
A18: MONTE VERDE | B18: 6 | C18: 2944 | D18: 1894 | E18: 64.33423913 | F18: 1848 | G18: 9 | H18: 562 | I18: 0 | J18: 7 | K18: 368 | L18: 2 | M18: 553 | N18: 198 | O18: 1 | P18: 11 | Q18: 25 | R18: 14 | S18: 98 | T18: 42 | U18: 4 | V18: 1050 | W18: 35.66576087
A19: ISLA DEL COCO | B19: 1 | C19: 28 | D19: 5 | E19: 17.85714286 | F19: 5 | G19: 1 | H19: 1 | I19: 0 | J19: 0 | K19: 2 | L19: 0 | M19: 1 | N19: 0 | O19: 0 | P19: 0 | Q19: 0 | R19: 0 | S19: 0 | T19: 0 | U19: 0 | V19: 23 | W19: 82.14285714
A20: COBANO | B20: 14 | C20: 4575 | D20: 2443 | E20: 53.3989071 | F20: 2379 | G20: 15 | H20: 368 | I20: 4 | J20: 6 | K20: 529 | L20: 6 | M20: 760 | N20: 365 | O20: 4 | P20: 25 | Q20: 18 | R20: 21 | S20: 258 | T20: 54 | U20: 10 | V20: 2132 | W20: 46.6010929
A21: CHACARITA | B21: 22 | C21: 12622 | D21: 7224 | E21: 57.233402 | F21: 6997 | G21: 43 | H21: 598 | I21: 13 | J21: 14 | K21: 1688 | L21: 11 | M21: 2249 | N21: 1252 | O21: 20 | P21: 31 | Q21: 77 | R21: 97 | S21: 904 | T21: 193 | U21: 34 | V21: 5398 | W21: 42.766598
A22: CHIRA | B22: 3 | C22: 1160 | D22: 705 | E22: 60.77586207 | F22: 687 | G22: 3 | H22: 32 | I22: 2 | J22: 0 | K22: 68 | L22: 2 | M22: 329 | N22: 111 | O22: 0 | P22: 4 | Q22: 4 | R22: 5 | S22: 127 | T22: 11 | U22: 7 | V22: 455 | W22: 39.22413793
A23: ACAPULCO | B23: 3 | C23: 959 | D23: 613 | E23: 63.92075078 | F23: 604 | G23: 5 | H23: 63 | I23: 2 | J23: 1 | K23: 105 | L23: 0 | M23: 239 | N23: 71 | O23: 0 | P23: 4 | Q23: 5 | R23: 12 | S23: 97 | T23: 8 | U23: 1 | V23: 346 | W23: 36.07924922
A24: EL ROBLE | B24: 22 | C24: 10830 | D24: 6841 | E24: 63.16712835 | F24: 6722 | G24: 29 | H24: 1065 | I24: 28 | J24: 12 | K24: 1628 | L24: 9 | M24: 2306 | N24: 761 | O24: 17 | P24: 67 | Q24: 59 | R24: 71 | S24: 670 | T24: 102 | U24: 17 | V24: 3989 | W24: 36.83287165
A25: ARANCIBIA | B25: 3 | C25: 566 | D25: 416 | E25: 73.49823322 | F25: 406 | G25: 2 | H25: 51 | I25: 0 | J25: 2 | K25: 77 | L25: 0 | M25: 176 | N25: 47 | O25: 1 | P25: 1 | Q25: 0 | R25: 3 | S25: 46 | T25: 8 | U25: 2 | V25: 150 | W25: 26.50176678
A26: CANTÓN 2 ESPARZA | B26: 46 | C26: 20599 | D26: 14141 | E26: 68.64896354 | F26: 13928 | G26: 51 | H26: 2393 | I26: 36 | J26: 18 | K26: 2890 | L26: 12 | M26: 5016 | N26: 2165 | O26: 22 | P26: 134 | Q26: 80 | R26: 98 | S26: 1013 | T26: 190 | U26: 23 | V26: 6458 | W26: 31.35103646
A27: ESPÍRITU SANTO | B27: 26 | C27: 13550 | D27: 9373 | E27: 69.17343173 | F27: 9264 | G27: 31 | H27: 1700 | I27: 21 | J27: 12 | K27: 2018 | L27: 6 | M27: 3274 | N27: 1249 | O27: 12 | P27: 101 | Q27: 64 | R27: 68 | S27: 708 | T27: 103 | U27: 6 | V27: 4177 | W27: 30.82656827
A28: SAN JUAN GRANDE | B28: 8 | C28: 3275 | D28: 2029 | E28: 61.95419847 | F28: 1973 | G28: 6 | H28: 230 | I28: 6 | J28: 3 | K28: 346 | L28: 4 | M28: 670 | N28: 516 | O28: 6 | P28: 7 | Q28: 8 | R28: 18 | S28: 153 | T28: 43 | U28: 13 | V28: 1246 | W28: 38.04580153
A29: MACACONA | B29: 5 | C29: 2164 | D29: 1552 | E29: 71.71903882 | F29: 1526 | G29: 13 | H29: 287 | I29: 7 | J29: 2 | K29: 308 | L29: 2 | M29: 573 | N29: 216 | O29: 2 | P29: 15 | Q29: 6 | R29: 7 | S29: 88 | T29: 25 | U29: 1 | V29: 612 | W29: 28.28096118
A30: SAN RAFAEL | B30: 3 | C30: 976 | D30: 731 | E30: 74.89754098 | F30: 713 | G30: 1 | H30: 124 | I30: 1 | J30: 1 | K30: 119 | L30: 0 | M30: 292 | N30: 130 | O30: 1 | P30: 5 | Q30: 0 | R30: 5 | S30: 34 | T30: 15 | U30: 3 | V30: 245 | W30: 25.10245902
A31: SAN JERÓNIMO | B31: 4 | C31: 634 | D31: 456 | E31: 71.92429022 | F31: 452 | G31: 0 | H31: 52 | I31: 1 | J31: 0 | K31: 99 | L31: 0 | M31: 207 | N31: 54 | O31: 1 | P31: 6 | Q31: 2 | R31: 0 | S31: 30 | T31: 4 | U31: 0 | V31: 178 | W31: 28.07570978
A32: CANTÓN 3 BUENOS AIRES | B32: 79 | C32: 29985 | D32: 16994 | E32: 56.67500417 | F32: 16491 | G32: 100 | H32: 2156 | I32: 28 | J32: 35 | K32: 3877 | L32: 23 | M32: 5742 | N32: 2735 | O32: 90 | P32: 102 | Q32: 153 | R32: 357 | S32: 1093 | T32: 419 | U32: 84 | V32: 12991 | W32: 43.32499583
A33: BUENOS AIRES | B33: 33 | C33: 14761 | D33: 8414 | E33: 57.00155816 | F33: 8161 | G33: 40 | H33: 1309 | I33: 17 | J33: 15 | K33: 2129 | L33: 4 | M33: 2635 | N33: 1175 | O33: 62 | P33: 46 | Q33: 75 | R33: 180 | S33: 474 | T33: 208 | U33: 45 | V33: 6347 | W33: 42.99844184
A34: VOLCÁN | B34: 5 | C34: 2447 | D34: 1422 | E34: 58.11197385 | F34: 1385 | G34: 10 | H34: 149 | I34: 1 | J34: 4 | K34: 239 | L34: 5 | M34: 522 | N34: 312 | O34: 5 | P34: 9 | Q34: 10 | R34: 32 | S34: 87 | T34: 30 | U34: 7 | V34: 1025 | W34: 41.88802615
A35: POTRERO GRANDE | B35: 11 | C35: 3770 | D35: 2069 | E35: 54.8806366 | F35: 2005 | G35: 19 | H35: 171 | I35: 3 | J35: 3 | K35: 439 | L35: 1 | M35: 670 | N35: 376 | O35: 7 | P35: 12 | Q35: 32 | R35: 61 | S35: 211 | T35: 53 | U35: 11 | V35: 1701 | W35: 45.1193634
A36: BORUCA | B36: 5 | C36: 1912 | D36: 1120 | E36: 58.57740586 | F36: 1089 | G36: 11 | H36: 64 | I36: 3 | J36: 1 | K36: 411 | L36: 3 | M36: 314 | N36: 231 | O36: 2 | P36: 1 | Q36: 2 | R36: 8 | S36: 38 | T36: 30 | U36: 1 | V36: 792 | W36: 41.42259414
A37: PILAS | B37: 4 | C37: 1118 | D37: 654 | E37: 58.49731664 | F37: 631 | G37: 3 | H37: 114 | I37: 0 | J37: 3 | K37: 106 | L37: 1 | M37: 203 | N37: 108 | O37: 1 | P37: 4 | Q37: 3 | R37: 17 | S37: 68 | T37: 18 | U37: 5 | V37: 464 | W37: 41.50268336
A38: COLINAS | B38: 3 | C38: 936 | D38: 486 | E38: 51.92307692 | F38: 473 | G38: 1 | H38: 84 | I38: 1 | J38: 1 | K38: 125 | L38: 2 | M38: 117 | N38: 73 | O38: 2 | P38: 6 | Q38: 2 | R38: 4 | S38: 55 | T38: 11 | U38: 2 | V38: 450 | W38: 48.07692308
A39: CHÁNGUENA | B39: 8 | C39: 1450 | D39: 790 | E39: 54.48275862 | F39: 761 | G39: 1 | H39: 77 | I39: 1 | J39: 2 | K39: 82 | L39: 2 | M39: 369 | N39: 165 | O39: 1 | P39: 2 | Q39: 7 | R39: 5 | S39: 47 | T39: 24 | U39: 5 | V39: 660 | W39: 45.51724138
A40: BIOLLEY | B40: 5 | C40: 1618 | D40: 859 | E40: 53.09023486 | F40: 830 | G40: 3 | H40: 107 | I40: 1 | J40: 3 | K40: 197 | L40: 3 | M40: 352 | N40: 90 | O40: 0 | P40: 6 | Q40: 10 | R40: 21 | S40: 37 | T40: 28 | U40: 1 | V40: 759 | W40: 46.90976514
A41: BRUNKA | B41: 5 | C41: 1973 | D41: 1180 | E41: 59.8073999 | F41: 1156 | G41: 12 | H41: 81 | I41: 1 | J41: 3 | K41: 149 | L41: 2 | M41: 560 | N41: 205 | O41: 10 | P41: 16 | Q41: 12 | R41: 29 | S41: 76 | T41: 17 | U41: 7 | V41: 793 | W41: 40.1926001
A42: CANTÓN 4 MONTES DE ORO | B42: 24 | C42: 9616 | D42: 6664 | E42: 69.30116473 | F42: 6530 | G42: 23 | H42: 1225 | I42: 5 | J42: 11 | K42: 1492 | L42: 10 | M42: 2247 | N42: 662 | O42: 12 | P42: 57 | Q42: 65 | R42: 182 | S42: 539 | T42: 115 | U42: 19 | V42: 2952 | W42: 30.69883527
A43: MIRAMAR | B43: 15 | C43: 6363 | D43: 4377 | E43: 68.7883074 | F43: 4294 | G43: 10 | H43: 875 | I43: 3 | J43: 6 | K43: 1114 | L43: 7 | M43: 1383 | N43: 320 | O43: 8 | P43: 45 | Q43: 32 | R43: 121 | S43: 370 | T43: 74 | U43: 9 | V43: 1986 | W43: 31.2116926
A44: LA UNIÓN | B44: 4 | C44: 939 | D44: 720 | E44: 76.67731629 | F44: 696 | G44: 0 | H44: 112 | I44: 1 | J44: 1 | K44: 123 | L44: 1 | M44: 355 | N44: 25 | O44: 1 | P44: 4 | Q44: 9 | R44: 41 | S44: 23 | T44: 17 | U44: 7 | V44: 219 | W44: 23.32268371
A45: SAN ISIDRO | B45: 5 | C45: 2314 | D45: 1567 | E45: 67.71823682 | F45: 1540 | G45: 13 | H45: 238 | I45: 1 | J45: 4 | K45: 255 | L45: 2 | M45: 509 | N45: 317 | O45: 3 | P45: 8 | Q45: 24 | R45: 20 | S45: 146 | T45: 24 | U45: 3 | V45: 747 | W45: 32.28176318
A46: CANTÓN 5 OSA | B46: 54 | C46: 20090 | D46: 11213 | E46: 55.81383773 | F46: 10785 | G46: 98 | H46: 1435 | I46: 23 | J46: 30 | K46: 2690 | L46: 22 | M46: 3308 | N46: 2038 | O46: 27 | P46: 91 | Q46: 135 | R46: 238 | S46: 650 | T46: 360 | U46: 68 | V46: 8877 | W46: 44.18616227
A47: PUERTO CORTÉS | B47: 13 | C47: 5623 | D47: 3208 | E47: 57.05139605 | F47: 3088 | G47: 24 | H47: 396 | I47: 2 | J47: 2 | K47: 804 | L47: 5 | M47: 1206 | N47: 390 | O47: 3 | P47: 32 | Q47: 20 | R47: 33 | S47: 171 | T47: 105 | U47: 15 | V47: 2415 | W47: 42.94860395
A48: PALMAR | B48: 17 | C48: 6838 | D48: 3909 | E48: 57.16583796 | F48: 3795 | G48: 32 | H48: 407 | I48: 9 | J48: 11 | K48: 1078 | L48: 7 | M48: 1071 | N48: 801 | O48: 15 | P48: 26 | Q48: 57 | R48: 68 | S48: 213 | T48: 97 | U48: 17 | V48: 2929 | W48: 42.83416204
A49: SIERPE | B49: 9 | C49: 1783 | D49: 974 | E49: 54.62703309 | F49: 927 | G49: 15 | H49: 140 | I49: 4 | J49: 3 | K49: 183 | L49: 1 | M49: 256 | N49: 201 | O49: 2 | P49: 5 | Q49: 16 | R49: 12 | S49: 89 | T49: 35 | U49: 12 | V49: 809 | W49: 45.37296691
A50: BAHÍA BALLENA | B50: 4 | C50: 2023 | D50: 1144 | E50: 56.5496787 | F50: 1112 | G50: 7 | H50: 270 | I50: 3 | J50: 5 | K50: 225 | L50: 6 | M50: 264 | N50: 183 | O50: 5 | P50: 8 | Q50: 20 | R50: 75 | S50: 41 | T50: 26 | U50: 6 | V50: 879 | W50: 43.4503213
A51: PIEDRAS BLANCAS | B51: 7 | C51: 2856 | D51: 1468 | E51: 51.40056022 | F51: 1383 | G51: 17 | H51: 172 | I51: 5 | J51: 4 | K51: 296 | L51: 2 | M51: 417 | N51: 330 | O51: 1 | P51: 7 | Q51: 14 | R51: 37 | S51: 81 | T51: 76 | U51: 9 | V51: 1388 | W51: 48.59943978
A52: BAHÍA DRAKE | B52: 4 | C52: 967 | D52: 510 | E52: 52.74043433 | F52: 480 | G52: 3 | H52: 50 | I52: 0 | J52: 5 | K52: 104 | L52: 1 | M52: 94 | N52: 133 | O52: 1 | P52: 13 | Q52: 8 | R52: 13 | S52: 55 | T52: 21 | U52: 9 | V52: 457
A53: CANTÓN 6 AGUIRRE | B53: 42 | C53: 18025 | D53: 10010 | E53: 55.53398058 | F53: 9726 | G53: 140 | H53: 1457 | I53: 20 | J53: 35 | K53: 1640 | L53: 12 | M53: 3161 | N53: 1844 | O53: 45 | P53: 55 | Q53: 145 | R53: 388 | S53: 784 | T53: 237 | U53: 47 | V53: 8015 | W53: 44.46601942
A54: QUEPOS | B54: 26 | C54: 13490 | D54: 7266 | E54: 53.86212009 | F54: 7061 | G54: 103 | H54: 1123 | I54: 11 | J54: 23 | K54: 1251 | L54: 8 | M54: 2151 | N54: 1342 | O54: 37 | P54: 38 | Q54: 104 | R54: 316 | S54: 554 | T54: 177 | U54: 28 | V54: 6224 | W54: 46.13787991
A55: SAVEGRE | B55: 10 | C55: 2138 | D55: 1328 | E55: 62.11412535 | F55: 1281 | G55: 15 | H55: 137 | I55: 2 | J55: 8 | K55: 181 | L55: 1 | M55: 481 | N55: 304 | O55: 7 | P55: 8 | Q55: 15 | R55: 29 | S55: 93 | T55: 38 | U55: 9 | V55: 810 | W55: 37.88587465
A56: NARANJITO | B56: 6 | C56: 2397 | D56: 1416 | E56: 59.0738423 | F56: 1384 | G56: 22 | H56: 197 | I56: 7 | J56: 4 | K56: 208 | L56: 3 | M56: 529 | N56: 198 | O56: 1 | P56: 9 | Q56: 26 | R56: 43 | S56: 137 | T56: 22 | U56: 10 | V56: 981 | W56: 40.9261577
A57: CANTÓN 7 GOLFITO | B57: 66 | C57: 27210 | D57: 14592 | E57: 53.62734289 | F57: 14058 | G57: 82 | H57: 1353 | I57: 29 | J57: 31 | K57: 4568 | L57: 33 | M57: 4409 | N57: 1585 | O57: 52 | P57: 127 | Q57: 111 | R57: 490 | S57: 1188 | T57: 465 | U57: 69 | V57: 12618 | W57: 46.37265711
A58: GOLFITO | B58: 19 | C58: 8445 | D58: 4100 | E58: 48.54943754 | F58: 3961 | G58: 17 | H58: 400 | I58: 4 | J58: 4 | K58: 1312 | L58: 3 | M58: 1305 | N58: 320 | O58: 23 | P58: 56 | Q58: 23 | R58: 165 | S58: 329 | T58: 121 | U58: 18 | V58: 4345 | W58: 51.45056246
A59: PUERTO JIMÉNEZ | B59: 11 | C59: 5432 | D59: 2956 | E59: 54.41826215 | F59: 2841 | G59: 24 | H59: 192 | I59: 8 | J59: 9 | K59: 1139 | L59: 9 | M59: 622 | N59: 332 | O59: 7 | P59: 20 | Q59: 19 | R59: 155 | S59: 305 | T59: 103 | U59: 12 | V59: 2476 | W59: 45.58173785
A60: GUAYCARÁ | B60: 22 | C60: 9262 | D60: 5256 | E60: 56.74800259 | F60: 5078 | G60: 26 | H60: 610 | I60: 11 | J60: 12 | K60: 1339 | L60: 18 | M60: 1825 | N60: 635 | O60: 15 | P60: 41 | Q60: 35 | R60: 117 | S60: 394 | T60: 160 | U60: 18 | V60: 4006 | W60: 43.25199741
A61: PAVÓN | B61: 14 | C61: 4071 | D61: 2280 | E61: 56.00589536 | F61: 2178 | G61: 15 | H61: 151 | I61: 6 | J61: 6 | K61: 778 | L61: 3 | M61: 657 | N61: 298 | O61: 7 | P61: 10 | Q61: 34 | R61: 53 | S61: 160 | T61: 81 | U61: 21 | V61: 1791 | W61: 43.99410464
A62: CANTÓN 8 COTO BRUS | B62: 70 | C62: 27667 | D62: 15743 | E62: 56.90172408 | F62: 15235 | G62: 67 | H62: 2838 | I62: 25 | J62: 30 | K62: 4018 | L62: 25 | M62: 5385 | N62: 1220 | O62: 44 | P62: 96 | Q62: 191 | R62: 304 | S62: 992 | T62: 421 | U62: 87 | V62: 11924 | W62: 43.09827592
A63: SAN VITO | B63: 26 | C63: 11190 | D63: 6685 | E63: 59.74084004 | F63: 6478 | G63: 39 | H63: 1264 | I63: 9 | J63: 11 | K63: 1428 | L63: 7 | M63: 2437 | N63: 534 | O63: 20 | P63: 28 | Q63: 109 | R63: 145 | S63: 447 | T63: 168 | U63: 39 | V63: 4505 | W63: 40.25915996
A64: SABALITO | B64: 17 | C64: 7464 | D64: 3756 | E64: 50.32154341 | F64: 3650 | G64: 7 | H64: 573 | I64: 6 | J64: 6 | K64: 1134 | L64: 11 | M64: 1235 | N64: 324 | O64: 16 | P64: 33 | Q64: 19 | R64: 45 | S64: 241 | T64: 83 | U64: 23 | V64: 3708 | W64: 49.67845659
A65: AGUA BUENA | B65: 12 | C65: 4613 | D65: 2771 | E65: 60.06936917 | F65: 2650 | G65: 6 | H65: 588 | I65: 5 | J65: 9 | K65: 850 | L65: 2 | M65: 784 | N65: 156 | O65: 4 | P65: 23 | Q65: 17 | R65: 60 | S65: 146 | T65: 107 | U65: 14 | V65: 1842 | W65: 39.93063083
A66: LIMONCITO | B66: 9 | C66: 2680 | D66: 1564 | E66: 58.35820896 | F66: 1518 | G66: 10 | H66: 293 | I66: 2 | J66: 3 | K66: 378 | L66: 4 | M66: 561 | N66: 88 | O66: 4 | P66: 4 | Q66: 30 | R66: 21 | S66: 120 | T66: 36 | U66: 10 | V66: 1116 | W66: 41.64179104
A67: PITTIER | B67: 6 | C67: 1720 | D67: 967 | E67: 56.22093023 | F67: 939 | G67: 5 | H67: 120 | I67: 3 | J67: 1 | K67: 228 | L67: 1 | M67: 368 | N67: 118 | O67: 0 | P67: 8 | Q67: 16 | R67: 33 | S67: 38 | T67: 27 | U67: 1 | V67: 753 | W67: 43.77906977
A68: CANTÓN 9 PARRITA | B68: 33 | C68: 10844 | D68: 6448 | E68: 59.46145334 | F68: 6261 | G68: 55 | H68: 668 | I68: 6 | J68: 7 | K68: 647 | L68: 9 | M68: 2292 | N68: 1649 | O68: 10 | P68: 25 | Q68: 128 | R68: 135 | S68: 630 | T68: 155 | U68: 32 | V68: 4396 | W68: 40.53854666
A69: PARRITA | B69: 33 | C69: 10844 | D69: 6448 | E69: 59.46145334 | F69: 6261 | G69: 55 | H69: 668 | I69: 6 | J69: 7 | K69: 647 | L69: 9 | M69: 2292 | N69: 1649 | O69: 10 | P69: 25 | Q69: 128 | R69: 135 | S69: 630 | T69: 155 | U69: 32 | V69: 4396 | W69: 40.53854666
A70: CANTÓN 10 CORREDORES | B70: 67 | C70: 31122 | D70: 16761 | E70: 53.85579333 | F70: 16194 | G70: 87 | H70: 2204 | I70: 40 | J70: 41 | K70: 4679 | L70: 23 | M70: 5303 | N70: 1801 | O70: 40 | P70: 75 | Q70: 328 | R70: 412 | S70: 1161 | T70: 460 | U70: 107 | V70: 14361 | W70: 46.14420667
A71: CORREDOR | B71: 31 | C71: 13753 | D71: 7908 | E71: 57.50018178 | F71: 7664 | G71: 39 | H71: 1255 | I71: 19 | J71: 19 | K71: 2258 | L71: 9 | M71: 2355 | N71: 876 | O71: 15 | P71: 35 | Q71: 86 | R71: 152 | S71: 546 | T71: 196 | U71: 48 | V71: 5845 | W71: 42.49981822
A72: LA CUESTA | B72: 5 | C72: 2996 | D72: 1539 | E72: 51.36849132 | F72: 1494 | G72: 14 | H72: 153 | I72: 2 | J72: 3 | K72: 452 | L72: 1 | M72: 580 | N72: 98 | O72: 2 | P72: 6 | Q72: 19 | R72: 15 | S72: 149 | T72: 37 | U72: 8 | V72: 1457 | W72: 48.63150868
A73: CANOAS | B73: 17 | C73: 7894 | D73: 3630 | E73: 45.98429187 | F73: 3528 | G73: 15 | H73: 432 | I73: 7 | J73: 12 | K73: 1028 | L73: 4 | M73: 1176 | N73: 350 | O73: 11 | P73: 20 | Q73: 149 | R73: 63 | S73: 261 | T73: 89 | U73: 13 | V73: 4264 | W73: 54.01570813
A74: LAUREL | B74: 14 | C74: 6479 | D74: 3684 | E74: =D74/C74*100 -> 56.86062664 | F74: 3508 | G74: 19 | H74: 364 | I74: 12 | J74: 7 | K74: 941 | L74: 9 | M74: 1192 | N74: 477 | O74: 12 | P74: 14 | Q74: 74 | R74: 182 | S74: 205 | T74: 138 | U74: 38 | V74: 2795 | W74: =V74/C74*100 -> 43.13937336
A75: CANTÓN 11 GARABITO | B75: 20 | C75: 9856 | D75: 5331 | E75: =D75/C75*100 -> 54.08887987 | F75: 5176 | G75: 15 | H75: 886 | I75: 11 | J75: 10 | K75: 726 | L75: 6 | M75: 1954 | N75: 979 | O75: 5 | P75: 24 | Q75: 17 | R75: 56 | S75: 487 | T75: 137 | U75: 18 | V75: 4525 | W75: =V75/C75*100 -> 45.91112013
A76: JACÓ | B76: 13 | C76: 6393 | D76: 3293 | E76: =D76/C76*100 -> 51.50946348 | F76: 3206 | G76: 8 | H76: 575 | I76: 2 | J76: 4 | K76: 404 | L76: 3 | M76: 1210 | N76: 603 | O76: 3 | P76: 16 | Q76: 10 | R76: 44 | S76: 324 | T76: 76 | U76: 11 | V76: 3100 | W76: =V76/C76*100 -> 48.49053652
A77: TÁRCOLES | B77: 7 | C77: 3463 | D77: 2038 | E77: =D77/C77*100 -> 58.85070748 | F77: 1970 | G77: 7 | H77: 311 | I77: 9 | J77: 6 | K77: 322 | L77: 3 | M77: 744 | N77: 376 | O77: 2 | P77: 8 | Q77: 7 | R77: 12 | S77: 163 | T77: 61 | U77: 7 | V77: 1425 | W77: =V77/C77*100 -> 41.14929252
A80: FUENTE: Tribunal Supremo de Elecciones.

Sheet C1.9
A2: CUADRO 1.9 LIMÓN: JUNTAS, ELECTORADO, PARTICIPACIÓN, VOTOS POR PARTIDO, NULOS, BLANCOS Y ABSTENCIONISMO, PARA PRESIDENCIA Y VICEPRESIDENCIAS DE LA REPÚBLICA, SEGÚN CANTÓN Y DISTRITO ADMINISTRATIVO ELECCIONES 2 DE FEBRERO 2014
A4: CANTÓN Y DISTRITO ADMINISTRATIVO | B4: JUNTAS | C4: ELECTORADO | D4: VOTOS RECIBIDOS | V4: ABSTENCIONISMO
D5: TOTAL GENERAL | E5: % PARTICIPACIÓN | F5: VOTOS VÁLIDOS | T5: NULOS | U5: BLANCOS | V5: ABSOLUTO | W5: %
F6: TOTAL | G6: ACCESIBILIDAD SIN EXCLUSIÓN | H6: ACCIÓN CIUDADANA | I6: AVANCE NACIONAL | J6: DE LOS TRABAJADORES | K6: FRENTE AMPLIO | L6: INTEGRACIÓN NACIONAL | M6: LIBERACIÓN NACIONAL | N6: MOVIMIENTO LIBERTARIO | O6: NUEVA GENERACIÓN | P6: PATRIA NUEVA | Q6: RENOVACIÓN COSTARRICENSE | R6: RESTAURACIÓN NACIONAL | S6: UNIDAD SOCIAL CRISTIANA
A8: PROVINCIA LIMÓN | B8: =+B9+B14+B22+B29+B34+B38 -> 512 | C8: =+C9+C14+C22+C29+C34+C38 -> 249285 | D8: =+D9+D14+D22+D29+D34+D38 -> 146717 | E8: =D8/C8*100 -> 58.85512566 | F8: =+F9+F14+F22+F29+F34+F38 -> 141489 | G8: =+G9+G14+G22+G29+G34+G38 -> 1157 | H8: 20619 | I8: 506 | J8: 519 | K8: 31367 | L8: 200 | M8: 41368 | N8: 25640 | O8: 504 | P8: 1112 | Q8: 4902 | R8: 2666 | S8: 10929 | T8: 4402 | U8: 826 | V8: 102568 | W8: =V8/C8*100 -> 41.14487434
A9: CANTÓN 1 LIMÓN | B9: 131 | C9: 64961 | D9: 36263 | E9: =D9/C9*100 -> 55.8227244 | F9: 34844 | G9: 333 | H9: 4367 | I9: 128 | J9: 148 | K9: 7713 | L9: 58 | M9: 11408 | N9: 5397 | O9: 119 | P9: 413 | Q9: 986 | R9: 706 | S9: 3068 | T9: 1137 | U9: 282 | V9: 28698 | W9: =V9/C9*100 -> 44.1772756
A10: LIMÓN | B10: 83 | C10: 45426 | D10: 25712 | E10: 56.60194602 | F10: 24875 | G10: 246 | H10: 3678 | I10: 103 | J10: 98 | K10: 6074 | L10: 42 | M10: 8204 | N10: 3081 | O10: 92 | P10: 331 | Q10: 530 | R10: 585 | S10: 1811 | T10: 674 | U10: 163 | V10: 19714 | W10: 43.39805398
A11: VALLE LA ESTRELLA | B11: 24 | C11: 9742 | D11: 5250 | E11: 53.89037159 | F11: 4906 | G11: 42 | H11: 230 | I11: 15 | J11: 35 | K11: 641 | L11: 8 | M11: 1628 | N11: 1282 | O11: 19 | P11: 41 | Q11: 248 | R11: 44 | S11: 673 | T11: 264 | U11: 80 | V11: 4492 | W11: 46.10962841
A12: RÍO BLANCO | B12: 13 | C12: 5097 | D12: 2686 | E12: 52.69766529 | F12: 2567 | G12: 25 | H12: 265 | I12: 5 | J12: 10 | K12: 502 | L12: 3 | M12: 815 | N12: 453 | O12: 4 | P12: 24 | Q12: 117 | R12: 34 | S12: 310 | T12: 103 | U12: 16 | V12: 2411 | W12: 47.30233471
A13: MATAMA | B13: 11 | C13: 4696 | D13: 2615 | E13: 55.68568995 | F13: 2496 | G13: 20 | H13: 194 | I13: 5 | J13: 5 | K13: 496 | L13: 5 | M13: 761 | N13: 581 | O13: 4 | P13: 17 | Q13: 91 | R13: 43 | S13: 274 | T13: 96 | U13: 23 | V13: 2081 | W13: 44.31431005
A14: CANTÓN 2 POCOCÍ | B14: 164 | C14: 83344 | D14: 52283 | E14: 62.73157036 | F14: 50718 | G14: 408 | H14: 10180 | I14: 207 | J14: 197 | K14: 11995 | L14: 65 | M14: 12965 | N14: 8988 | O14: 175 | P14: 381 | Q14: 1712 | R14: 759 | S14: 2686 | T14: 1383 | U14: 182 | V14: 31061 | W14: 37.26842964
A15: GUÁPILES | B15: 38 | C15: 21562 | D15: 14450 | E15: 67.01604675 | F15: 14180 | G15: 74 | H15: 4198 | I15: 60 | J15: 41 | K15: 2728 | L15: 15 | M15: 3730 | N15: 2007 | O15: 53 | P15: 138 | Q15: 231 | R15: 240 | S15: 665 | T15: 242 | U15: 28 | V15: 7112 | W15: 32.98395325
A16: JIMÉNEZ | B16: 14 | C16: 6802 | D16: 4595 | E16: 67.55366069 | F16: 4463 | G16: 29 | H16: 933 | I16: 9 | J16: 10 | K16: 935 | L16: 7 | M16: 1234 | N16: 782 | O16: 15 | P16: 48 | Q16: 147 | R16: 67 | S16: 247 | T16: 118 | U16: 14 | V16: 2207 | W16: 32.44633931
A17: RITA | B17: 33 | C17: 15551 | D17: 9720 | E17: 62.50401903 | F17: 9388 | G17: 93 | H17: 1315 | I17: 42 | J17: 49 | K17: 2486 | L17: 8 | M17: 2287 | N17: 1941 | O17: 49 | P17: 71 | Q17: 388 | R17: 107 | S17: 552 | T17: 288 | U17: 44 | V17: 5831 | W17: 37.49598097
A18: ROXANA | B18: 21 | C18: 9697 | D18: 5303 | E18: 54.6870166 | F18: 5077 | G18: 64 | H18: 646 | I18: 32 | J18: 24 | K18: 1252 | L18: 11 | M18: 1229 | N18: 1047 | O18: 10 | P18: 21 | Q18: 295 | R18: 132 | S18: 314 | T18: 186 | U18: 40 | V18: 4394 | W18: 45.3129834
A19: CARIARI | B19: 43 | C19: 22835 | D19: 13936 | E19: 61.02912196 | F19: 13421 | G19: 125 | H19: 2168 | I19: 45 | J19: 67 | K19: 3660 | L19: 19 | M19: 3337 | N19: 2524 | O19: 44 | P19: 66 | Q19: 511 | R19: 170 | S19: 685 | T19: 467 | U19: 48 | V19: 8899 | W19: 38.97087804
A20: COLORADO | B20: 4 | C20: 1482 | D20: 708 | E20: 47.77327935 | F20: 690 | G20: 3 | H20: 111 | I20: 0 | J20: 0 | K20: 157 | L20: 1 | M20: 182 | N20: 161 | O20: 2 | P20: 1 | Q20: 23 | R20: 9 | S20: 40 | T20: 15 | U20: 3 | V20: 774 | W20: 52.22672065
A21: LA COLONIA | B21: 11 | C21: 5415 | D21: 3571 | E21: 65.94644506 | F21: 3499 | G21: 20 | H21: 809 | I21: 19 | J21: 6 | K21: 777 | L21: 4 | M21: 966 | N21: 526 | O21: 2 | P21: 36 | Q21: 117 | R21: 34 | S21: 183 | T21: 67 | U21: 5 | V21: 1844
A22: CANTÓN 3 SIQUIRRES | B22: 82 | C22: 37389 | D22: 21514 | E22: 57.54098799 | F22: 20757 | G22: 173 | H22: 2529 | I22: 61 | J22: 63 | K22: 4218 | L22: 27 | M22: 6748 | N22: 3896 | O22: 95 | P22: 147 | Q22: 723 | R22: 485 | S22: 1592 | T22: 646 | U22: 111 | V22: 15875 | W22: 42.45901201
A23: SIQUIRRES | B23: 44 | C23: 21655 | D23: 12177 | E23: 56.23181713 | F23: 11753 | G23: 101 | H23: 1536 | I23: 39 | J23: 35 | K23: 2656 | L23: 18 | M23: 3771 | N23: 1929 | O23: 42 | P23: 86 | Q23: 302 | R23: 367 | S23: 871 | T23: 363 | U23: 61 | V23: 9478 | W23: 43.76818287
A24: PACUARITO | B24: 12 | C24: 4890 | D24: 2582 | E24: 52.80163599 | F24: 2492 | G24: 23 | H24: 231 | I24: 5 | J24: 7 | K24: 431 | L24: 1 | M24: 823 | N24: 601 | O24: 3 | P24: 10 | Q24: 149 | R24: 26 | S24: 182 | T24: 75 | U24: 15 | V24: 2308 | W24: 47.19836401
A25: FLORIDA | B25: 5 | C25: 1375 | D25: 917 | E25: 66.69090909 | F25: 890 | G25: 5 | H25: 133 | I25: 3 | J25: 3 | K25: 146 | L25: 1 | M25: 293 | N25: 139 | O25: 22 | P25: 4 | Q25: 25 | R25: 10 | S25: 106 | T25: 21 | U25: 6 | V25: 458 | W25: 33.30909091
A26: GERMANIA | B26: 5 | C26: 1968 | D26: 1222 | E26: 62.09349593 | F26: 1187 | G26: 6 | H26: 122 | I26: 2 | J26: 1 | K26: 225 | L26: 2 | M26: 379 | N26: 260 | O26: 3 | P26: 11 | Q26: 59 | R26: 19 | S26: 98 | T26: 30 | U26: 5 | V26: 746 | W26: 37.90650407
A27: EL CAIRO | B27: 9 | C27: 4117 | D27: 2390 | E27: 58.0519796 | F27: 2290 | G27: 22 | H27: 193 | I27: 6 | J27: 6 | K27: 394 | L27: 1 | M27: 671 | N27: 626 | O27: 13 | P27: 24 | Q27: 116 | R27: 38 | S27: 180 | T27: 86 | U27: 14 | V27: 1727 | W27: 41.9480204
A28: LA ALEGRÍA | B28: 7 | C28: 3384 | D28: 2226 | E28: 65.78014184 | F28: 2145 | G28: 16 | H28: 314 | I28: 6 | J28: 11 | K28: 366 | L28: 4 | M28: 811 | N28: 341 | O28: 12 | P28: 12 | Q28: 72 | R28: 25 | S28: 155 | T28: 71 | U28: 10 | V28: 1158 | W28: 34.21985816
A29: CANTÓN 4 TALAMANCA | B29: 40 | C29: 17572 | D29: 9298 | E29: 52.91372638 | F29: 8936 | G29: 36 | H29: 618 | I29: 14 | J29: 33 | K29: 2198 | L29: 8 | M29: 2527 | N29: 1478 | O29: 30 | P29: 47 | Q29: 432 | R29: 112 | S29: 1403 | T29: 273 | U29: 89 | V29: 8274 | W29: 47.08627362
A30: BRATSI | B30: 11 | C30: 4930 | D30: 2752 | E30: 55.82150101 | F30: 2646 | G30: 18 | H30: 166 | I30: 4 | J30: 9 | K30: 736 | L30: 2 | M30: 834 | N30: 419 | O30: 10 | P30: 14 | Q30: 108 | R30: 19 | S30: 307 | T30: 73 | U30: 33 | V30: 2178 | W30: 44.17849899
A31: SIXAOLA | B31: 8 | C31: 3898 | D31: 2061 | E31: 52.87326834 | F31: 1962 | G31: 5 | H31: 160 | I31: 5 | J31: 8 | K31: 489 | L31: 1 | M31: 446 | N31: 387 | O31: 6 | P31: 13 | Q31: 186 | R31: 16 | S31: 240 | T31: 83 | U31: 16 | V31: 1837 | W31: 47.12673166
A32: CAHUITA | B32: 11 | C32: 4645 | D32: 2484 | E32: 53.47685684 | F32: 2390 | G32: 5 | H32: 227 | I32: 3 | J32: 14 | K32: 387 | L32: 2 | M32: 774 | N32: 493 | O32: 5 | P32: 14 | Q32: 80 | R32: 41 | S32: 345 | T32: 77 | U32: 17 | V32: 2161 | W32: 46.52314316
A33: TELIRE | B33: 10 | C33: 4099 | D33: 2001 | E33: 48.81678458 | F33: 1938 | G33: 8 | H33: 65 | I33: 2 | J33: 2 | K33: 586 | L33: 3 | M33: 473 | N33: 179 | O33: 9 | P33: 6 | Q33: 58 | R33: 36 | S33: 511 | T33: 40 | U33: 23 | V33: 2098 | W33: 51.18321542
A34: CANTÓN 5 MATINA | B34: 43 | C34: 19837 | D34: 11705 | E34: 59.00589807 | F34: 11173 | G34: 66 | H34: 719 | I34: 22 | J34: 25 | K34: 2008 | L34: 17 | M34: 3765 | N34: 2784 | O34: 27 | P34: 43 | Q34: 506 | R34: 132 | S34: 1059 | T34: 448 | U34: 84 | V34: 8132 | W34: 40.99410193
A35: MATINA | B35: 12 | C35: 4839 | D35: 2744 | E35: 56.70593098 | F35: 2631 | G35: 17 | H35: 114 | I35: 5 | J35: 6 | K35: 474 | L35: 1 | M35: 982 | N35: 682 | O35: 6 | P35: 8 | Q35: 103 | R35: 25 | S35: 208 | T35: 89 | U35: 24 | V35: 2095 | W35: 43.29406902
A36: BATÁN | B36: 21 | C36: 9824 | D36: 5884 | E36: 59.89413681 | F36: 5623 | G36: 27 | H36: 428 | I36: 10 | J36: 13 | K36: 1099 | L36: 9 | M36: 1815 | N36: 1327 | O36: 16 | P36: 27 | Q36: 223 | R36: 70 | S36: 559 | T36: 219 | U36: 42 | V36: 3940 | W36: 40.10586319
A37: CARRANDI | B37: 10 | C37: 5174 | D37: 3077 | E37: 59.47042907 | F37: 2919 | G37: 22 | H37: 177 | I37: 7 | J37: 6 | K37: 435 | L37: 7 | M37: 968 | N37: 775 | O37: 5 | P37: 8 | Q37: 180 | R37: 37 | S37: 292 | T37: 140 | U37: 18 | V37: 2097 | W37: 40.52957093
A38: CANTÓN 6 GUÁCIMO | B38: 52 | C38: 26182 | D38: 15654 | E38: 59.78916813 | F38: 15061 | G38: 141 | H38: 2206 | I38: 74 | J38: 53 | K38: 3235 | L38: 25 | M38: 3955 | N38: 3097 | O38: 58 | P38: 81 | Q38: 543 | R38: 472 | S38: 1121 | T38: 515 | U38: 78 | V38: 10528 | W38: 40.21083187
A39: GUÁCIMO | B39: 23 | C39: 11823 | D39: 6915 | E39: 58.48769348 | F39: 6660 | G39: 50 | H39: 1245 | I39: 31 | J39: 25 | K39: 1403 | L39: 7 | M39: 1846 | N39: 1236 | O39: 25 | P39: 45 | Q39: 126 | R39: 190 | S39: 431 | T39: 219 | U39: 36 | V39: 4908 | W39: 41.51230652
A40: MERCEDES | B40: 2 | C40: 836 | D40: 589 | E40: 70.45454545 | F40: 571 | G40: 5 | H40: 131 | I40: 3 | J40: 1 | K40: 107 | L40: 1 | M40: 137 | N40: 79 | O40: 4 | P40: 5 | Q40: 16 | R40: 35 | S40: 47 | T40: 18 | U40: 0 | V40: 247 | W40: 29.54545455
A41: POCORA | B41: 10 | C41: 4158 | D41: 2606 | E41: 62.67436267 | F41: 2526 | G41: 23 | H41: 294 | I41: 7 | J41: 13 | K41: 467 | L41: 2 | M41: 690 | N41: 605 | O41: 17 | P41: 12 | Q41: 115 | R41: 42 | S41: 239 | T41: 69 | U41: 11 | V41: 1552 | W41: 37.32563733
A42: RÍO JIMÉNEZ | B42: 10 | C42: 5729 | D42: 3442 | E42: 60.08029324 | F42: 3284 | G42: 38 | H42: 279 | I42: 28 | J42: 7 | K42: 746 | L42: 10 | M42: 766 | N42: 756 | O42: 9 | P42: 11 | Q42: 207 | R42: 188 | S42: 239 | T42: 136 | U42: 22 | V42: 2287 | W42: 39.91970676
A43: DUACARÍ | B43: 7 | C43: 3636 | D43: 2102 | E43: 57.81078108 | F43: 2020 | G43: 25 | H43: 257 | I43: 5 | J43: 7 | K43: 512 | L43: 5 | M43: 516 | N43: 421 | O43: 3 | P43: 8 | Q43: 79 | R43: 17 | S43: 165 | T43: 73 | U43: 9 | V43: 1534 | W43: 42.18921892
A46: FUENTE: Tribunal Supremo de Elecciones.

Sheet C1.10
A2: CUADRO 1.10 EXTRANJERO: JUNTAS, ELECTORADO, PARTICIPACIÓN, VOTOS POR PARTIDO, NULOS, BLANCOS Y ABSTENCIONISMO, PARA PRESIDENCIA Y VICEPRESIDENCIAS DE LA REPÚBLICA, SEGÚN CONTINENTE Y PAÍS ELECCIONES 2 DE FEBRERO 2014
A4: CONTINENTE Y PAÍS | B4: JUNTAS | C4: ELECTORADO | D4: VOTOS RECIBIDOS | V4: ABSTENCIONISMO
D5: TOTAL GENERAL | E5: % PARTICIPACIÓN | F5: VOTOS VÁLIDOS | T5: NULOS | U5: BLANCOS | V5: ABSOLUTO | W5: %
F6: TOTAL | G6: ACCESIBILIDAD SIN EXCLUSIÓN | H6: ACCIÓN CIUDADANA | I6: AVANCE NACIONAL | J6: DE LOS TRABAJADORES | K6: FRENTE AMPLIO | L6: INTEGRACIÓN NACIONAL | M6: LIBERACIÓN NACIONAL | N6: MOVIMIENTO LIBERTARIO | O6: NUEVA GENERACIÓN | P6: PATRIA NUEVA | Q6: RENOVACIÓN COSTARRICENSE | R6: RESTAURACIÓN NACIONAL | S6: UNIDAD SOCIAL CRISTIANA
A8: TOTAL EXTRANJERO | B8: =+B9+B32+B44+B52 -> 61 | C8: =+C9+C32+C44+C52 -> 12654 | D8: =+D9+D32+D44+D52 -> 2771 | E8: =D8/C8*100 -> 21.898214 | F8: =+F9+F32+F44+F52 -> 2717 | G8: 3 | H8: 1147 | I8: 5 | J8: 6 | K8: 403 | L8: 2 | M8: 737 | N8: 245 | O8: 4 | P8: 31 | Q8: 5 | R8: 16 | S8: 113 | T8: 52 | U8: 2 | V8: 9883 | W8: =V8/C8*100 -> 78.101786
A9: AMÉRICA | B9: 42 | C9: 10991 | D9: 2025 | E9: =D9/C9*100 -> 18.42416523 | F9: 1981 | G9: 3 | H9: 786 | I9: 3 | J9: 4 | K9: 259 | L9: 2 | M9: 580 | N9: 208 | O9: 4 | P9: 24 | Q9: 5 | R9: 14 | S9: 89 | T9: 44 | U9: 0 | V9: 8966 | W9: 81.57583477
A10: ARGENTINA | B10: 1 | C10: 128 | D10: 68 | E10: 53.125 | F10: 67 | G10: 0 | H10: 25 | I10: 0 | J10: 0 | K10: 24 | L10: 0 | M10: 12 | N10: 4 | O10: 0 | P10: 0 | Q10: 0 | R10: 0 | S10: 2 | T10: 1 | U10: 0 | V10: 60 | W10: 46.875
A11: BELICE | B11: 1 | C11: 3 | D11: 1 | E11: 33.33333333 | F11: 1 | G11: 0 | H11: 0 | I11: 0 | J11: 0 | K11: 0 | L11: 0 | M11: 1 | N11: 0 | O11: 0 | P11: 0 | Q11: 0 | R11: 0 | S11: 0 | T11: 0 | U11: 0 | V11: 2 | W11: 66.66666667
A12: BRASIL | B12: 1 | C12: 33 | D12: 11 | E12: 33.33333333 | F12: 11 | G12: 0 | H12: 6 | I12: 0 | J12: 0 | K12: 1 | L12: 0 | M12: 2 | N12: 2 | O12: 0 | P12: 0 | Q12: 0 | R12: 0 | S12: 0 | T12: 0 | U12: 0 | V12: 22 | W12: 66.66666667
A13: CANADÁ | B13: 2 | C13: 484 | D13: 99 | E13: 20.45454545 | F13: 97 | G13: 1 | H13: 41 | I13: 0 | J13: 1 | K13: 15 | L13: 1 | M13: 24 | N13: 8 | O13: 1 | P13: 0 | Q13: 0 | R13: 0 | S13: 5 | T13: 2 | U13: 0 | V13: 385 | W13: 79.54545455
A14: CHILE | B14: 1 | C14: 115 | D14: 70 | E14: 60.86956522 | F14: 68 | G14: 0 | H14: 28 | I14: 0 | J14: 0 | K14: 10 | L14: 0 | M14: 14 | N14: 12 | O14: 0 | P14: 2 | Q14: 1 | R14: 0 | S14: 1 | T14: 2 | U14: 0 | V14: 45 | W14: 39.13043478
A15: COLOMBIA | B15: 1 | C15: 138 | D15: 27 | E15: 19.56521739 | F15: 27 | G15: 0 | H15: 10 | I15: 0 | J15: 0 | K15: 5 | L15: 0 | M15: 10 | N15: 1 | O15: 0 | P15: 0 | Q15: 0 | R15: 0 | S15: 1 | T15: 0 | U15: 0 | V15: 111 | W15: 80.43478261
A16: CUBA | B16: 1 | C16: 31 | D16: 19 | E16: 61.29032258 | F16: 19 | G16: 0 | H16: 4 | I16: 0 | J16: 1 | K16: 8 | L16: 0 | M16: 5 | N16: 0 | O16: 0 | P16: 0 | Q16: 1 | R16: 0 | S16: 0 | T16: 0 | U16: 0 | V16: 12 | W16: 38.70967742
A17: ECUADOR | B17: 1 | C17: 47 | D17: 14 | E17: 29.78723404 | F17: 14 | G17: 0 | H17: 4 | I17: 0 | J17: 0 | K17: 5 | L17: 0 | M17: 4 | N17: 0 | O17: 0 | P17: 1 | Q17: 0 | R17: 0 | S17: 0 | T17: 0 | U17: 0 | V17: 33 | W17: 70.21276596
A18: ESTADOS UNIDOS | B18: 16 | C18: 8316 | D18: 993 | E18: 11.94083694 | F18: 970 | G18: 1 | H18: 400 | I18: 3 | J18: 0 | K18: 120 | L18: 0 | M18: 258 | N18: 108 | O18: 2 | P18: 14 | Q18: 2 | R18: 8 | S18: 54 | T18: 23 | U18: 0 | V18: 7323 | W18: 88.05916306
A19: SALVADOR | B19: 1 | C19: 169 | D19: 95 | E19: 56.21301775 | F19: 95 | G19: 1 | H19: 28 | I19: 0 | J19: 0 | K19: 14 | L19: 0 | M19: 42 | N19: 10 | O19: 0 | P19: 0 | Q19: 0 | R19: 0 | S19: 0 | T19: 0 | U19: 0 | V19: 74 | W19: 43.78698225
A20: GUATEMALA | B20: 1 | C20: 227 | D20: 124 | E20: 54.62555066 | F20: 122 | G20: 0 | H20: 38 | I20: 0 | J20: 0 | K20: 10 | L20: 1 | M20: 45 | N20: 19 | O20: 0 | P20: 0 | Q20: 0 | R20: 0 | S20: 9 | T20: 2 | U20: 0 | V20: 103 | W20: 45.37444934
A21: HONDURAS | B21: 1 | C21: 146 | D21: 73 | E21: 50 | F21: 71 | G21: 0 | H21: 28 | I21: 0 | J21: 0 | K21: 4 | L21: 0 | M21: 29 | N21: 7 | O21: 0 | P21: 0 | Q21: 0 | R21: 1 | S21: 2 | T21: 2 | U21: 0 | V21: 73 | W21: 50
A22: MÉXICO | B22: 2 | C22: 418 | D22: 155 | E22: 37.08133971 | F22: 153 | G22: 0 | H22: 70 | I22: 0 | J22: 1 | K22: 20 | L22: 0 | M22: 36 | N22: 15 | O22: 1 | P22: 5 | Q22: 0 | R22: 0 | S22: 5 | T22: 2 | U22: 0 | V22: 263 | W22: 62.91866029
A23: NICARAGUA | B23: 3 | C23: 130 | D23: 52 | E23: 40 | F23: 47 | G23: 0 | H23: 16 | I23: 0 | J23: 0 | K23: 4 | L23: 0 | M23: 19 | N23: 5 | O23: 0 | P23: 0 | Q23: 0 | R23: 1 | S23: 2 | T23: 5 | U23: 0 | V23: 78 | W23: 60
A24: PANAMÁ | B24: 2 | C24: 212 | D24: 76 | E24: 35.8490566 | F24: 74 | G24: 0 | H24: 33 | I24: 0 | J24: 0 | K24: 4 | L24: 0 | M24: 27 | N24: 5 | O24: 0 | P24: 1 | Q24: 0 | R24: 0 | S24: 4 | T24: 2 | U24: 0 | V24: 136 | W24: 64.1509434
A25: PERÚ | B25: 1 | C25: 89 | D25: 39 | E25: 43.82022472 | F25: 38 | G25: 0 | H25: 13 | I25: 0 | J25: 0 | K25: 5 | L25: 0 | M25: 14 | N25: 2 | O25: 0 | P25: 0 | Q25: 1 | R25: 1 | S25: 2 | T25: 1 | U25: 0 | V25: 50 | W25: 56.17977528
A26: REPÚBLICA DOMINICANA | B26: 1 | C26: 83 | D26: 44 | E26: 53.01204819 | F26: 42 | G26: 0 | H26: 15 | I26: 0 | J26: 0 | K26: 2 | L26: 0 | M26: 14 | N26: 6 | O26: 0 | P26: 1 | Q26: 0 | R26: 2 | S26: 2 | T26: 2 | U26: 0 | V26: 39 | W26: 46.98795181
A27: TRINIDAD Y TOBAGO | B27: 1 | C27: 4 | D27: 2 | E27: 50 | F27: 2 | G27: 0 | H27: 1 | I27: 0 | J27: 0 | K27: 0 | L27: 0 | M27: 1 | N27: 0 | O27: 0 | P27: 0 | Q27: 0 | R27: 0 | S27: 0 | T27: 0 | U27: 0 | V27: 2 | W27: 50
A28: URUGUAY | B28: 1 | C28: 15 | D28: 8 | E28: 53.33333333 | F28: 8 | G28: 0 | H28: 6 | I28: 0 | J28: 0 | K28: 1 | L28: 0 | M28: 1 | N28: 0 | O28: 0 | P28: 0 | Q28: 0 | R28: 0 | S28: 0 | T28: 0 | U28: 0 | V28: 7 | W28: 46.66666667
A29: VENEZUELA | B29: 1 | C29: 162 | D29: 33 | E29: 20.37037037 | F29: 33 | G29: 0 | H29: 12 | I29: 0 | J29: 0 | K29: 3 | L29: 0 | M29: 15 | N29: 3 | O29: 0 | P29: 0 | Q29: 0 | R29: 0 | S29: 0 | T29: 0 | U29: 0 | V29: 129 | W29: 79.62962963
A30: BOLIVIA | B30: 1 | C30: 31 | D30: 13 | E30: 41.93548387 | F30: 13 | G30: 0 | H30: 7 | I30: 0 | J30: 0 | K30: 2 | L30: 0 | M30: 3 | N30: 1 | O30: 0 | P30: 0 | Q30: 0 | R30: 0 | S30: 0 | T30: 0 | U30: 0 | V30: 18 | W30: 58.06451613
A31: PARAGUAY | B31: 1 | C31: 10 | D31: 9 | E31: 90 | F31: 9 | G31: 0 | H31: 1 | I31: 0 | J31: 1 | K31: 2 | L31: 0 | M31: 4 | N31: 0 | O31: 0 | P31: 0 | Q31: 0 | R31: 1 | S31: 0 | T31: 0 | U31: 0 | V31: 1 | W31: 10
A32: EUROPA | B32: 11 | C32: 1382 | D32: 615 | E32: 44.50072359 | F32: 607 | G32: 0 | H32: 299 | I32: 1 | J32: 2 | K32: 133 | L32: 0 | M32: 117 | N32: 29 | O32: 0 | P32: 7 | Q32: 0 | R32: 0 | S32: 19 | T32: 6 | U32: 2 | V32: 767 | W32: 55.49927641
A33: ALEMANIA | B33: 1 | C33: 166 | D33: 75 | E33: 45.18072289 | F33: 75 | G33: 0 | H33: 40 | I33: 0 | J33: 0 | K33: 23 | L33: 0 | M33: 8 | N33: 1 | O33: 0 | P33: 2 | Q33: 0 | R33: 0 | S33: 1 | T33: 0 | U33: 0 | V33: 91 | W33: 54.81927711
A34: AUSTRIA | B34: 1 | C34: 51 | D34: 24 | E34: 47.05882353 | F34: 24 | G34: 0 | H34: 11 | I34: 0 | J34: 0 | K34: 6 | L34: 0 | M34: 6 | N34: 1 | O34: 0 | P34: 0 | Q34: 0 | R34: 0 | S34: 0 | T34: 0 | U34: 0 | V34: 27 | W34: 52.94117647
A35: BÉLGICA | B35: 1 | C35: 53 | D35: 38 | E35: 71.69811321 | F35: 38 | G35: 0 | H35: 21 | I35: 0 | J35: 0 | K35: 8 | L35: 0 | M35: 6 | N35: 3 | O35: 0 | P35: 0 | Q35: 0 | R35: 0 | S35: 0 | T35: 0 | U35: 0 | V35: 15 | W35: 28.30188679
A36: ESPAÑA | B36: 1 | C36: 368 | D36: 111 | E36: 30.16304348 | F36: 108 | G36: 0 | H36: 53 | I36: 0 | J36: 0 | K36: 18 | L36: 0 | M36: 26 | N36: 7 | O36: 0 | P36: 2 | Q36: 0 | R36: 0 | S36: 2 | T36: 3 | U36: 0 | V36: 257 | W36: 69.83695652
A37: FRANCIA | B37: 1 | C37: 191 | D37: 102 | E37: 53.40314136 | F37: 100 | G37: 0 | H37: 41 | I37: 0 | J37: 1 | K37: 29 | L37: 0 | M37: 18 | N37: 5 | O37: 0 | P37: 0 | Q37: 0 | R37: 0 | S37: 6 | T37: 0 | U37: 2 | V37: 89 | W37: 46.59685864
A38: ITALIA | B38: 1 | C38: 114 | D38: 52 | E38: 45.61403509 | F38: 50 | G38: 0 | H38: 20 | I38: 0 | J38: 0 | K38: 3 | L38: 0 | M38: 21 | N38: 1 | O38: 0 | P38: 2 | Q38: 0 | R38: 0 | S38: 3 | T38: 2 | U38: 0 | V38: 62 | W38: 54.38596491
A39: NORUEGA | B39: 1 | C39: 40 | D39: 21 | E39: 52.5 | F39: 21 | G39: 0 | H39: 7 | I39: 0 | J39: 1 | K39: 9 | L39: 0 | M39: 2 | N39: 1 | O39: 0 | P39: 0 | Q39: 0 | R39: 0 | S39: 1 | T39: 0 | U39: 0 | V39: 19 | W39: 47.5
A40: PAÍSES BAJOS (HOLANDA) | B40: 1 | C40: 100 | D40: 53 | E40: 53 | F40: 53 | G40: 0 | H40: 38 | I40: 0 | J40: 0 | K40: 10 | L40: 0 | M40: 5 | N40: 0 | O40: 0 | P40: 0 | Q40: 0 | R40: 0 | S40: 0 | T40: 0 | U40: 0 | V40: 47 | W40: 47
A41: INGLATERRA | B41: 1 | C41: 111 | D41: 64 | E41: 57.65765766 | F41: 63 | G41: 0 | H41: 35 | I41: 0 | J41: 0 | K41: 10 | L41: 0 | M41: 8 | N41: 5 | O41: 0 | P41: 0 | Q41: 0 | R41: 0 | S41: 5 | T41: 1 | U41: 0 | V41: 47 | W41: 42.34234234
A42: RUSIA | B42: 1 | C42: 26 | D42: 10 | E42: 38.46153846 | F42: 10 | G42: 0 | H42: 3 | I42: 1 | J42: 0 | K42: 4 | L42: 0 | M42: 1 | N42: 1 | O42: 0 | P42: 0 | Q42: 0 | R42: 0 | S42: 0 | T42: 0 | U42: 0 | V42: 16 | W42: 61.53846154
A43: SUIZA | B43: 1 | C43: 162 | D43: 65 | E43: 40.12345679 | F43: 65 | G43: 0 | H43: 30 | I43: 0 | J43: 0 | K43: 13 | L43: 0 | M43: 16 | N43: 4 | O43: 0 | P43: 1 | Q43: 0 | R43: 0 | S43: 1 | T43: 0 | U43: 0 | V43: 97 | W43: 59.87654321
A44: ASIA | B44: 7 | C44: 225 | D44: 104 | E44: 46.22222222 | F44: 102 | G44: 0 | H44: 46 | I44: 0 | J44: 0 | K44: 6 | L44: 0 | M44: 36 | N44: 8 | O44: 0 | P44: 0 | Q44: 0 | R44: 2 | S44: 4 | T44: 2 | U44: 0 | V44: 121 | W44: 53.77777778
A45: CHINA | B45: 1 | C45: 71 | D45: 29 | E45: 40.84507042 | F45: 27 | G45: 0 | H45: 17 | I45: 0 | J45: 0 | K45: 2 | L45: 0 | M45: 3 | N45: 3 | O45: 0 | P45: 0 | Q45: 0 | R45: 0 | S45: 2 | T45: 2 | U45: 0 | V45: 42 | W45: 59.15492958
A46: COREA | B46: 1 | C46: 21 | D46: 15 | E46: 71.42857143 | F46: 15 | G46: 0 | H46: 11 | I46: 0 | J46: 0 | K46: 0 | L46: 0 | M46: 4 | N46: 0 | O46: 0 | P46: 0 | Q46: 0 | R46: 0 | S46: 0 | T46: 0 | U46: 0 | V46: 6 | W46: 28.57142857
A47: ISRAEL | B47: 1 | C47: 41 | D47: 17 | E47: 41.46341463 | F47: 17 | G47: 0 | H47: 2 | I47: 0 | J47: 0 | K47: 0 | L47: 0 | M47: 12 | N47: 3 | O47: 0 | P47: 0 | Q47: 0 | R47: 0 | S47: 0 | T47: 0 | U47: 0 | V47: 24 | W47: 58.53658537
A48: JAPÓN | B48: 1 | C48: 39 | D48: 15 | E48: 38.46153846 | F48: 15 | G48: 0 | H48: 6 | I48: 0 | J48: 0 | K48: 3 | L48: 0 | M48: 3 | N48: 0 | O48: 0 | P48: 0 | Q48: 0 | R48: 2 | S48: 1 | T48: 0 | U48: 0 | V48: 24 | W48: 61.53846154
A49: SINGAPUR | B49: 1 | C49: 28 | D49: 13 | E49: 46.42857143 | F49: 13 | G49: 0 | H49: 4 | I49: 0 | J49: 0 | K49: 0 | L49: 0 | M49: 7 | N49: 1 | O49: 0 | P49: 0 | Q49: 0 | R49: 0 | S49: 1 | T49: 0 | U49: 0 | V49: 15 | W49: 53.57142857
A50: INDIA | B50: 1 | C50: 6 | D50: 4 | E50: 66.66666667 | F50: 4 | G50: 0 | H50: 3 | I50: 0 | J50: 0 | K50: 1 | L50: 0 | M50: 0 | N50: 0 | O50: 0 | P50: 0 | Q50: 0 | R50: 0 | S50: 0 | T50: 0 | U50: 0 | V50: 2 | W50: 33.33333333
A51: QATAR | B51: 1 | C51: 19 | D51: 11 | E51: 57.89473684 | F51: 11 | G51: 0 | H51: 3 | I51: 0 | J51: 0 | K51: 0 | L51: 0 | M51: 7 | N51: 1 | O51: 0 | P51: 0 | Q51: 0 | R51: 0 | S51: 0 | T51: 0 | U51: 0 | V51: 8 | W51: 42.10526316
A52: OCEANÍA | B52: 1 | C52: 56 | D52: 27 | E52: 48.21428571 | F52: 27 | G52: 0 | H52: 16 | I52: 1 | J52: 0 | K52: 5 | L52: 0 | M52: 4 | N52: 0 | O52: 0 | P52: 0 | Q52: 0 | R52: 0 | S52: 1 | T52: 0 | U52: 0 | V52: 29 | W52: 51.78571429
A53: AUSTRALIA | B53: 1 | C53: 56 | D53: 27 | E53: 48.21428571 | F53: 27 | G53: 0 | H53: 16 | I53: 1 | J53: 0 | K53: 5 | L53: 0 | M53: 4 | N53: 0 | O53: 0 | P53: 0 | Q53: 0 | R53: 0 | S53: 1 | T53: 0 | U53: 0 | V53: 29 | W53: 51.78571429
A56: FUENTE: Tribunal Supremo de Elecciones.

Sheet M1.1
A3: MAPA 1.1 COSTA RICA: PARTIDO QUE OBTUVO MAYORIA DE VOTOS, PARA PRESIDENCIA Y VICEPRESIDENCIAS DE LA REPÚBLICA, SEGÚN DISTRITO ADMINISTRATIVO ELECCIONES 2 DE FEBRERO 2014
A63: Nota: Mapa elaborado con fines ilustrativos por el SIGE-DGRE a partir de coberturas digitales del TSE e IGN. Datum WGS 84, sistema de proyección de coordenadas CRTM05, setiembre de 2014
A65: FUENTE: Cuadros 1.3 al 1.9

Sheet M1.2
A2: MAPA 1.2 COSTA RICA: PARTICIPACIÓN RELATIVA, PARA PRESIDENCIA Y VICEPRESIDENCIAS DE LA REPÚBLICA, SEGÚN DISTRITO ADMINISTRATIVO ELECCIONES 2 DE FEBRERO 2014
A63: Nota: Mapa elaborado con fines ilustrativos por el SIGE-DGRE a partir de coberturas digitales del TSE e IGN. Datum WGS 84, sistema de proyección de coordenadas CRTM05, setiembre de 2014
A65: FUENTE: Cuadros 1,3 al 1,9

Sheet M1.3
A2: MAPA 1.3 COSTA RICA: ABSTENCIONISMO RELATIVO PARA PRESIDENCIA Y VICEPRESIDENCIAS DE LA REPÚBLICA, SEGÚN DISTRITO ADMINISTRATIVO ELECCIONES 2 DE FEBRERO 2014
A63: Nota: Mapa elaborado con fines ilustrativos por el SIGE-DGRE a partir de coberturas digitales del TSE e IGN. Datum WGS 84, sistema de proyección de coordenadas CRTM05, setiembre de 2014
A65: FUENTE: Cuadros 1.3 al 1.9

Sheet C1.11
A2: CUADRO 1.11 SAN JOSÉ: JUNTAS, ELECTORADO, PARTICIPACIÓN, VOTOS POR PARTIDO, NULOS, BLANCOS Y ABSTENCIONISMO, PARA PRESIDENCIA Y VICEPRESIDENCIAS DE LA REPÚBLICA, SEGÚN CANTÓN, DISTRITO ADMINISTRATIVO Y DISTRITO ELECTORAL ELECCIONES 2 DE FEBRERO 2014
A4: CANTÓN, DISTRITO ADMINISTRATIVO Y DISTRITO ELECTORAL | B4: JUNTAS | C4: ELECTORADO | D4: VOTOS RECIBIDOS | V4: ABSTENCIONISMO
D5: TOTAL GENERAL | E5: % PARTICIPACIÓN | F5: VOTOS VÁLIDOS | T5: NULOS | U5: BLANCOS | V5: ABSOLUTO | W5: %
F6: TOTAL | G6: ACCESIBILIDAD SIN EXCLUSIÓN | H6: ACCIÓN CIUDADANA | I6: AVANCE NACIONAL | J6: DE LOS TRABAJADORES | K6: FRENTE AMPLIO | L6: INTEGRACIÓN NACIONAL | M6: LIBERACIÓN NACIONAL | N6: MOVIMIENTO LIBERTARIO | O6: NUEVA GENERACIÓN | P6: PATRIA NUEVA | Q6: RENOVACIÓN COSTARRICENSE | R6: RESTAURACIÓN NACIONAL | S6: UNIDAD SOCIAL CRISTIANA
A8: PROVINCIA SAN JOSÉ | B8: 2104 | C8: 1063061 | D8: 745771 | E8: =D8/C8*100 -> 70.15317089 | F8: 733256 | G8: 3471 | H8: 265637 | I8: 1767 | J8: 1452 | K8: 111109 | L8: 1333 | M8: 209006 | N8: 73552 | O8: 2221 | P8: 10621 | Q8: 3857 | R8: 10416 | S8: 38814 | T8: 11097 | U8: 1418 | V8: 317290 | W8: =V8/C8*100 -> 29.84682911
A9: CANTÓN 1 SAN JOSÉ | B9: 414 | C9: 228847 | D9: 157773 | E9: =D9/C9*100 -> 68.94256862 | F9: 155226 | G9: 682 | H9: 53830 | I9: 428 | J9: 279 | K9: 23528 | L9: 266 | M9: 45998 | N9: 16014 | O9: 464 | P9: 2613 | Q9: 890 | R9: 2254 | S9: 7980 | T9: 2341 | U9: 206 | V9: 71074 | W9: =V9/C9*100 -> 31.05743138
A10: DISTRITO 1 CARMEN | B10: 8 | C10: 4592 | D10: 3034 | E10: =D10/C10*100 -> 66.07142857 | F10: 2998 | G10: 4 | H10: 1035 | I10: 8 | J10: 2 | K10: 452 | L10: 14 | M10: 935 | N10: 318 | O10: 15 | P10: 35 | Q10: 5 | R10: 16 | S10: 159 | T10: 31 | U10: 5 | V10: 1558 | W10: =V10/C10*100 -> 33.92857143
A11: CARMEN | B11: 2 | C11: 1118 | D11: 695 | E11: =D11/C11*100 -> 62.16457961 | F11: 686 | G11: 0 | H11: 236 | I11: 2 | J11: 0 | K11: 118 | L11: 3 | M11: 194 | N11: 85 | O11: 4 | P11: 5 | Q11: 2 | R11: 3 | S11: 34 | T11: 6 | U11: 3 | V11: 423 | W11: =V11/C11*100 -> 37.83542039
A12: ARANJUEZ | B12: 6 | C12: 3474 | D12: 2339 | E12: 67.32872769 | F12: 2312 | G12: 4 | H12: 799 | I12: 6 | J12: 2 | K12: 334 | L12: 11 | M12: 741 | N12: 233 | O12: 11 | P12: 30 | Q12: 3 | R12: 13 | S12: 125 | T12: 25 | U12: 2 | V12: 1135 | W12: 32.67127231
A13: DISTRITO 2 MERCED | B13: 17 | C13: 9763 | D13: 6311 | E13: 64.64201577 | F13: 6200 | G13: 17 | H13: 1929 | I13: 19 | J13: 10 | K13: 1052 | L13: 15 | M13: 1968 | N13: 606 | O13: 16 | P13: 127 | Q13: 25 | R13: 86 | S13: 330 | T13: 98 | U13: 13 | V13: 3452 | W13: 35.35798423
A14: BARRIO MÉXICO | B14: 14 | C14: 8215 | D14: 5255 | E14: 63.96835058 | F14: 5166 | G14: 17 | H14: 1581 | I14: 18 | J14: 8 | K14: 893 | L14: 12 | M14: 1641 | N14: 508 | O14: 12 | P14: 101 | Q14: 23 | R14: 75 | S14: 277 | T14: 76 | U14: 13 | V14: 2960 | W14: 36.03164942
A15: PITAHAYA | B15: 3 | C15: 1548 | D15: 1056 | E15: 68.21705426 | F15: 1034 | G15: 0 | H15: 348 | I15: 1 | J15: 2 | K15: 159 | L15: 3 | M15: 327 | N15: 98 | O15: 4 | P15: 26 | Q15: 2 | R15: 11 | S15: 53 | T15: 22 | U15: 0 | V15: 492 | W15: 31.78294574
A16: DISTRITO 3 HOSPITAL | B16: 34 | C16: 18788 | D16: 11959 | E16: 63.65233128 | F16: 11706 | G16: 66 | H16: 3375 | I16: 50 | J16: 38 | K16: 1960 | L16: 11 | M16: 3762 | N16: 1325 | O16: 27 | P16: 222 | Q16: 64 | R16: 167 | S16: 639 | T16: 237 | U16: 16 | V16: 6829 | W16: 36.34766872
A17: HOSPITAL | B17: 3 | C17: 1472 | D17: 826 | E17: 56.11413043 | F17: 803 | G17: 2 | H17: 225 | I17: 1 | J17: 1 | K17: 152 | L17: 0 | M17: 264 | N17: 96 | O17: 0 | P17: 11 | Q17: 3 | R17: 9 | S17: 39 | T17: 19 | U17: 4 | V17: 646 | W17: 43.88586957
A18: CRISTO REY | B18: 7 | C18: 4114 | D18: 2681 | E18: 65.16771998 | F18: 2626 | G18: 15 | H18: 720 | I18: 12 | J18: 4 | K18: 490 | L18: 2 | M18: 836 | N18: 279 | O18: 7 | P18: 55 | Q18: 18 | R18: 39 | S18: 149 | T18: 52 | U18: 3 | V18: 1433 | W18: 34.83228002
A19: OMAR DENGO | B19: 17 | C19: 9881 | D19: 6439 | E19: 65.16546908 | F19: 6305 | G19: 39 | H19: 1799 | I19: 25 | J19: 28 | K19: 1057 | L19: 8 | M19: 2009 | N19: 693 | O19: 15 | P19: 112 | Q19: 33 | R19: 112 | S19: 375 | T19: 129 | U19: 5 | V19: 3442 | W19: 34.83453092
A20: SAN BOSCO | B20: 5 | C20: 2669 | D20: 1914 | E20: 71.71225178 | F20: 1876 | G20: 10 | H20: 618 | I20: 12 | J20: 5 | K20: 232 | L20: 1 | M20: 628 | N20: 229 | O20: 5 | P20: 44 | Q20: 10 | R20: 7 | S20: 75 | T20: 34 | U20: 4 | V20: 755 | W20: 28.28774822
A21: C P CRISTO REY | B21: 2 | C21: 652 | D21: 99 | E21: 15.18404908 | F21: 96 | G21: 0 | H21: 13 | I21: 0 | J21: 0 | K21: 29 | L21: 0 | M21: 25 | N21: 28 | O21: 0 | P21: 0 | Q21: 0 | R21: 0 | S21: 1 | T21: 3 | U21: 0 | V21: 553 | W21: 84.81595092
A22: DISTRITO 4 CATEDRAL | B22: 29 | C22: 15258 | D22: 10514 | E22: 68.90811378 | F22: 10379 | G22: 38 | H22: 3641 | I22: 19 | J22: 16 | K22: 1889 | L22: 19 | M22: 2918 | N22: 923 | O22: 30 | P22: 217 | Q22: 38 | R22: 113 | S22: 518 | T22: 117 | U22: 18 | V22: 4744 | W22: 31.09188622
A23: CATEDRAL | B23: 3 | C23: 1466 | D23: 886 | E23: 60.43656207 | F23: 874 | G23: 6 | H23: 307 | I23: 1 | J23: 2 | K23: 169 | L23: 0 | M23: 230 | N23: 94 | O23: 2 | P23: 14 | Q23: 3 | R23: 8 | S23: 38 | T23: 9 | U23: 3 | V23: 580 | W23: 39.56343793
A24: GONZÁLEZ VÍQUEZ | B24: 12 | C24: 6718 | D24: 4557 | E24: 67.8326883 | F24: 4506 | G24: 20 | H24: 1596 | I24: 6 | J24: 4 | K24: 889 | L24: 10 | M24: 1226 | N24: 342 | O24: 13 | P24: 105 | Q24: 19 | R24: 60 | S24: 216 | T24: 45 | U24: 6 | V24: 2161 | W24: 32.1673117
A25: NACIONES UNIDAS | B25: 4 | C25: 1831 | D25: 1324 | E25: 72.310213 | F25: 1305 | G25: 3 | H25: 484 | I25: 2 | J25: 3 | K25: 210 | L25: 5 | M25: 370 | N25: 109 | O25: 6 | P25: 26 | Q25: 3 | R25: 18 | S25: 66 | T25: 16 | U25: 3 | V25: 507 | W25: 27.689787
A26: BARRIO LUJÁN | B26: 10 | C26: 5243 | D26: 3747 | E26: 71.46671753 | F26: 3694 | G26: 9 | H26: 1254 | I26: 10 | J26: 7 | K26: 621 | L26: 4 | M26: 1092 | N26: 378 | O26: 9 | P26: 72 | Q26: 13 | R26: 27 | S26: 198 | T26: 47 | U26: 6 | V26: 1496 | W26: 28.53328247
A27: DISTRITO 5 ZAPOTE | B27: 33 | C27: 17937 | D27: 13442 | E27: 74.94006802 | F27: 13300 | G27: 41 | H27: 5740 | I27: 21 | J27: 23 | K27: 1821 | L27: 23 | M27: 3649 | N27: 1031 | O27: 42 | P27: 262 | Q27: 42 | R27: 127 | S27: 478 | T27: 132 | U27: 10 | V27: 4495 | W27: 25.05993198
A28: ZAPOTE | B28: 25 | C28: 13516 | D28: 9970 | E28: 73.76442735 | F28: 9854 | G28: 34 | H28: 4187 | I28: 18 | J28: 21 | K28: 1354 | L28: 16 | M28: 2754 | N28: 759 | O28: 30 | P28: 193 | Q28: 34 | R28: 102 | S28: 352 | T28: 108 | U28: 8 | V28: 3546 | W28: 26.23557265
A29: CÓRDOBA | B29: 8 | C29: 4421 | D29: 3472 | E29: 78.53426827 | F29: 3446 | G29: 7 | H29: 1553 | I29: 3 | J29: 2 | K29: 467 | L29: 7 | M29: 895 | N29: 272 | O29: 12 | P29: 69 | Q29: 8 | R29: 25 | S29: 126 | T29: 24 | U29: 2 | V29: 949 | W29: 21.46573173
A30: DISTRITO 6 SAN FRANCISCO DE DOS RÍOS | B30: 35 | C30: 18430 | D30: 13973 | E30: 75.81660336 | F30: 13845 | G30: 21 | H30: 6407 | I30: 26 | J30: 10 | K30: 1701 | L30: 26 | M30: 3760 | N30: 987 | O30: 22 | P30: 240 | Q30: 25 | R30: 93 | S30: 527 | T30: 115 | U30: 13 | V30: 4457 | W30: 24.18339664
A31: SAN FRANCISCO DE DOS RÍOS | B31: 22 | C31: 11577 | D31: 8770 | E31: =D31/C31*100 -> 75.75364948 | F31: 8689 | G31: 12 | H31: 3955 | I31: 13 | J31: 4 | K31: 1027 | L31: 18 | M31: 2436 | N31: 632 | O31: 12 | P31: 162 | Q31: 18 | R31: 49 | S31: 351 | T31: 72 | U31: 9 | V31: 2807 | W31: =V31/C31*100 -> 24.24635052
A32: SANTA MARTA | B32: 13 | C32: 6853 | D32: 5203 | E32: 75.92295345 | F32: 5156 | G32: 9 | H32: 2452 | I32: 13 | J32: 6 | K32: 674 | L32: 8 | M32: 1324 | N32: 355 | O32: 10 | P32: 78 | Q32: 7 | R32: 44 | S32: 176 | T32: 43 | U32: 4 | V32: 1650 | W32: 24.07704655
A33: DISTRITO 7 URUCA | B33: 28 | C33: 14190 | D33: 9498 | E33: 66.93446089 | F33: 9316 | G33: 56 | H33: 2995 | I33: 19 | J33: 28 | K33: 1227 | L33: 4 | M33: 2732 | N33: 1383 | O33: 22 | P33: 144 | Q33: 68 | R33: 105 | S33: 533 | T33: 162 | U33: 20 | V33: 4692 | W33: 33.06553911
A34: URUCA | B34: 6 | C34: 3130 | D34: 2083 | E34: 66.54952077 | F34: 2061 | G34: 7 | H34: 759 | I34: 5 | J34: 5 | K34: 245 | L34: 3 | M34: 599 | N34: 251 | O34: 5 | P34: 33 | Q34: 11 | R34: 21 | S34: 117 | T34: 21 | U34: 1 | V34: 1047 | W34: 33.45047923
A35: LA CAJA | B35: 6 | C35: 2926 | D35: 2233 | E35: 76.31578947 | F35: 2207 | G35: 1 | H35: 909 | I35: 2 | J35: 2 | K35: 192 | L35: 1 | M35: 570 | N35: 378 | O35: 3 | P35: 34 | Q35: 5 | R35: 6 | S35: 104 | T35: 23 | U35: 3 | V35: 693 | W35: 23.68421053
A36: CORAZÓN DE JESÚS | B36: 2 | C36: 882 | D36: 575 | E36: 65.19274376 | F36: 560 | G36: 6 | H36: 133 | I36: 1 | J36: 3 | K36: 48 | L36: 0 | M36: 217 | N36: 72 | O36: 2 | P36: 16 | Q36: 1 | R36: 8 | S36: 53 | T36: 13 | U36: 2 | V36: 307 | W36: 34.80725624
A37: ROSSITER CARBALLO [LAS BRISAS] | B37: 2 | C37: 924 | D37: 625 | E37: 67.64069264 | F37: 602 | G37: 8 | H37: 110 | I37: 3 | J37: 7 | K37: 67 | L37: 0 | M37: 191 | N37: 130 | O37: 4 | P37: 4 | Q37: 16 | R37: 21 | S37: 41 | T37: 22 | U37: 1 | V37: 299 | W37: 32.35930736
A38: LA CARPIO | B38: 6 | C38: 3328 | D38: 1774 | E38: 53.30528846 | F38: 1709 | G38: 17 | H38: 291 | I38: 2 | J38: 8 | K38: 344 | L38: 0 | M38: 537 | N38: 345 | O38: 2 | P38: 9 | Q38: 16 | R38: 18 | S38: 120 | T38: 55 | U38: 10 | V38: 1554 | W38: 46.69471154
A39: PEREGRINA | B39: 6 | C39: 3000 | D39: 2208 | E39: 73.6 | F39: 2177 | G39: 17 | H39: 793 | I39: 6 | J39: 3 | K39: 331 | L39: 0 | M39: 618 | N39: 207 | O39: 6 | P39: 48 | Q39: 19 | R39: 31 | S39: 98 | T39: 28 | U39: 3 | V39: 792 | W39: 26.4
A40: DISTRITO 8 MATA REDONDA | B40: 14 | C40: 7290 | D40: 5274 | E40: 72.34567901 | F40: 5219 | G40: 12 | H40: 1740 | I40: 8 | J40: 4 | K40: 483 | L40: 4 | M40: 1795 | N40: 738 | O40: 10 | P40: 88 | Q40: 18 | R40: 28 | S40: 291 | T40: 47 | U40: 8 | V40: 2016 | W40: 27.65432099
A41: MATA REDONDA | B41: 7 | C41: 3725 | D41: 2666 | E41: 71.5704698 | F41: 2641 | G41: 4 | H41: 814 | I41: 4 | J41: 1 | K41: 194 | L41: 2 | M41: 949 | N41: 444 | O41: 5 | P41: 47 | Q41: 10 | R41: 13 | S41: 154 | T41: 22 | U41: 3 | V41: 1059 | W41: 28.4295302
A42: PERPETUO SOCORRO | B42: 7 | C42: 3565 | D42: 2608 | E42: 73.15568022 | F42: 2578 | G42: 8 | H42: 926 | I42: 4 | J42: 3 | K42: 289 | L42: 2 | M42: 846 | N42: 294 | O42: 5 | P42: 41 | Q42: 8 | R42: 15 | S42: 137 | T42: 25 | U42: 5 | V42: 957 | W42: 26.84431978
A43: DISTRITO 9 PAVAS | B43: 87 | C43: 49009 | D43: 33004 | E43: 67.34273297 | F43: 32363 | G43: 151 | H43: 9575 | I43: 166 | J43: 65 | K43: 4176 | L43: 42 | M43: 10102 | N43: 4681 | O43: 121 | P43: 500 | Q43: 287 | R43: 685 | S43: 1812 | T43: 595 | U43: 46 | V43: 16005 | W43: 32.65726703
A44: PAVAS | B44: 27 | C44: 14560 | D44: 10591 | E44: 72.74038462 | F44: 10489 | G44: 22 | H44: 3804 | I44: 25 | J44: 9 | K44: 1035 | L44: 5 | M44: 3346 | N44: 1463 | O44: 36 | P44: 178 | Q44: 25 | R44: 90 | S44: 451 | T44: 92 | U44: 10 | V44: 3969 | W44: 27.25961538
A45: RINCÓN GRANDE | B45: 33 | C45: 19670 | D45: 12153 | E45: 61.78444331 | F45: 11817 | G45: 74 | H45: 2662 | I45: 67 | J45: 32 | K45: 1744 | L45: 24 | M45: 3688 | N45: 1968 | O45: 45 | P45: 144 | Q45: 183 | R45: 423 | S45: 763 | T45: 318 | U45: 18 | V45: 7517 | W45: 38.21555669
A46: MARÍA REINA | B46: 11 | C46: 5721 | D46: 4293 | E46: 75.03932879 | F46: 4265 | G46: 10 | H46: 1735 | I46: 11 | J46: 5 | K46: 489 | L46: 4 | M46: 1215 | N46: 471 | O46: 17 | P46: 85 | Q46: 20 | R46: 29 | S46: 174 | T46: 26 | U46: 2 | V46: 1428 | W46: 24.96067121
A47: VILLA ESPERANZA | B47: 16 | C47: 9058 | D47: 5967 | E47: 65.8754692 | F47: 5792 | G47: 45 | H47: 1374 | I47: 63 | J47: 19 | K47: 908 | L47: 9 | M47: 1853 | N47: 779 | O47: 23 | P47: 93 | Q47: 59 | R47: 143 | S47: 424 | T47: 159 | U47: 16 | V47: 3091 | W47: 34.1245308
A48: DISTRITO 10 HATILLO | B48: 75 | C48: 43653 | D48: 29751 | E48: 68.15339152 | F48: 29213 | G48: 175 | H48: 9645 | I48: 55 | J48: 61 | K48: 5166 | L48: 54 | M48: 8863 | N48: 2349 | O48: 109 | P48: 447 | Q48: 215 | R48: 519 | S48: 1555 | T48: 500 | U48: 38 | V48: 13902 | W48: 31.84660848
A49: HATILLO | B49: 31 | C49: 18273 | D49: 12882 | E49: 70.49745526 | F49: 12713 | G49: 65 | H49: 4520 | I49: 24 | J49: 23 | K49: 2286 | L49: 26 | M49: 3814 | N49: 871 | O49: 44 | P49: 236 | Q49: 75 | R49: 164 | S49: 565 | T49: 158 | U49: 11 | V49: 5391 | W49: 29.50254474
A50: SAGRADA FAMILIA | B50: 10 | C50: 5824 | D50: 3430 | E50: 58.89423077 | F50: 3331 | G50: 35 | H50: 773 | I50: 6 | J50: 7 | K50: 491 | L50: 2 | M50: 1159 | N50: 450 | O50: 11 | P50: 26 | Q50: 26 | R50: 86 | S50: 259 | T50: 89 | U50: 10 | V50: 2394 | W50: 41.10576923
A51: INVU # 8 | B51: 26 | C51: 15060 | D51: 10464 | E51: 69.48207171 | F51: 10274 | G51: 57 | H51: 3534 | I51: 15 | J51: 23 | K51: 1862 | L51: 15 | M51: 3090 | N51: 732 | O51: 42 | P51: 155 | Q51: 61 | R51: 174 | S51: 514 | T51: 179 | U51: 11 | V51: 4596 | W51: 30.51792829
A52: COLONIA 15 DE SETIEMBRE | B52: 8 | C52: 4496 | D52: 2975 | E52: 66.16992883 | F52: 2895 | G52: 18 | H52: 818 | I52: 10 | J52: 8 | K52: 527 | L52: 11 | M52: 800 | N52: 296 | O52: 12 | P52: 30 | Q52: 53 | R52: 95 | S52: 217 | T52: 74 | U52: 6 | V52: 1521 | W52: 33.83007117
A53: DISTRITO 11 SAN SEBASTIÁN | B53: 54 | C53: 29937 | D53: 21013 | E53: 70.19073387 | F53: 20687 | G53: 101 | H53: 7748 | I53: 37 | J53: 22 | K53: 3601 | L53: 54 | M53: 5514 | N53: 1673 | O53: 50 | P53: 331 | Q53: 103 | R53: 315 | S53: 1138 | T53: 307 | U53: 19 | V53: 8924 | W53: 29.80926613
A54: SAN SEBASTIÁN | B54: 19 | C54: 11304 | D54: 7723 | E54: 68.32094834 | F54: 7585 | G54: 52 | H54: 2724 | I54: 15 | J54: 12 | K54: 1243 | L54: 21 | M54: 2147 | N54: 605 | O54: 25 | P54: 99 | Q54: 47 | R54: 129 | S54: 466 | T54: 131 | U54: 7 | V54: 3581 | W54: 31.67905166
A55: PASO ANCHO SUR | B55: 18 | C55: 9549 | D55: 6878 | E55: 72.02848466 | F55: 6781 | G55: 22 | H55: 2668 | I55: 12 | J55: 2 | K55: 1211 | L55: 22 | M55: 1691 | N55: 522 | O55: 13 | P55: 125 | Q55: 24 | R55: 100 | S55: 369 | T55: 94 | U55: 3 | V55: 2671 | W55: 27.97151534
A56: PASO ANCHO NORTE | B56: 11 | C56: 6164 | D56: 4293 | E56: 69.64633355 | F56: 4230 | G56: 16 | H56: 1542 | I56: 6 | J56: 6 | K56: 804 | L56: 9 | M56: 1104 | N56: 353 | O56: 8 | P56: 76 | Q56: 24 | R56: 73 | S56: 209 | T56: 57 | U56: 6 | V56: 1871 | W56: 30.35366645
A57: COLONIA KENNEDY | B57: 6 | C57: 2920 | D57: 2119 | E57: 72.56849315 | F57: 2091 | G57: 11 | H57: 814 | I57: 4 | J57: 2 | K57: 343 | L57: 2 | M57: 572 | N57: 193 | O57: 4 | P57: 31 | Q57: 8 | R57: 13 | S57: 94 | T57: 25 | U57: 3 | V57: 801 | W57: 27.43150685
A58: CANTÓN 2 ESCAZÚ | B58: 81 | C58: 43354 | D58: 31702 | E58: =D58/C58*100 -> 73.12358721 | F58: 31285 | G58: 150 | H58: 10490 | I58: 53 | J58: 69 | K58: 3314 | L58: 27 | M58: 9661 | N58: 5069 | O58: 123 | P58: 460 | Q58: 145 | R58: 219 | S58: 1505 | T58: 381 | U58: 36 | V58: 11652 | W58: =V58/C58*100 -> 26.87641279
A59: DISTRITO 1 ESCAZÚ | B59: 22 | C59: 11896 | D59: 8817 | E59: 74.11735037 | F59: 8694 | G59: 35 | H59: 3122 | I59: 18 | J59: 18 | K59: 1017 | L59: 7 | M59: 2718 | N59: 1057 | O59: 31 | P59: 148 | Q59: 36 | R59: 65 | S59: 422 | T59: 109 | U59: 14 | V59: 3079 | W59: 25.88264963
A60: ESCAZÚ | B60: 22 | C60: 11896 | D60: 8817 | E60: =D60/C60*100 -> 74.11735037 | F60: 8694 | G60: 35 | H60: 3122 | I60: 18 | J60: 18 | K60: 1017 | L60: 7 | M60: 2718 | N60: 1057 | O60: 31 | P60: 148 | Q60: 36 | R60: 65 | S60: 422 | T60: 109 | U60: 14 | V60: 3079 | W60: =V60/C60*100 -> 25.88264963
A61: DISTRITO 2 SAN ANTONIO | B61: 26 | C61: 13934 | D61: 9756 | E61: 70.01578872 | F61: 9575 | G61: 91 | H61: 3473 | I61: 23 | J61: 31 | K61: 1407 | L61: 11 | M61: 2619 | N61: 1033 | O61: 62 | P61: 188 | Q61: 69 | R61: 87 | S61: 481 | T61: 167 | U61: 14 | V61: 4178 | W61: 29.98421128
A62: SAN ANTONIO | B62: 20 | C62: 10896 | D62: 7754 | E62: 71.16372981 | F62: 7619 | G62: 72 | H62: 2843 | I62: 21 | J62: 22 | K62: 1106 | L62: 8 | M62: 2004 | N62: 823 | O62: 49 | P62: 138 | Q62: 58 | R62: 75 | S62: 400 | T62: 126 | U62: 9 | V62: 3142 | W62: 28.83627019
A63: BEBEDERO O SAN FRANCISCO | B63: 1 | C63: 480 | D63: 292 | E63: 60.83333333 | F63: 287 | G63: 1 | H63: 80 | I63: 1 | J63: 1 | K63: 33 | L63: 0 | M63: 98 | N63: 41 | O63: 4 | P63: 18 | Q63: 1 | R63: 2 | S63: 7 | T63: 4 | U63: 1 | V63: 188 | W63: 39.16666667
A64: CARMEN [CHIVERRAL] | B64: 5 | C64: 2558 | D64: 1710 | E64: 66.84910086 | F64: 1669 | G64: 18 | H64: 550 | I64: 1 | J64: 8 | K64: 268 | L64: 3 | M64: 517 | N64: 169 | O64: 9 | P64: 32 | Q64: 10 | R64: 10 | S64: 74 | T64: 37 | U64: 4 | V64: 848 | W64: 33.15089914
A65: DISTRITO 3 SAN RAFAEL | B65: 33 | C65: 17524 | D65: 13129 | E65: 74.92010956 | F65: 13016 | G65: 24 | H65: 3895 | I65: 12 | J65: 20 | K65: 890 | L65: 9 | M65: 4324 | N65: 2979 | O65: 30 | P65: 124 | Q65: 40 | R65: 67 | S65: 602 | T65: 105 | U65: 8 | V65: 4395 | W65: 25.07989044
A66: SAN RAFAEL | B66: 16 | C66: 8690 | D66: 6446 | E66: 74.17721519 | F66: 6398 | G66: 3 | H66: 1740 | I66: 5 | J66: 11 | K66: 356 | L66: 3 | M66: 2279 | N66: 1588 | O66: 16 | P66: 55 | Q66: 9 | R66: 20 | S66: 313 | T66: 45 | U66: 3 | V66: 2244 | W66: 25.82278481
A67: GUACHIPELÍN [SAN GABRIEL] | B67: 10 | C67: 5180 | D67: 4000 | E67: 77.22007722 | F67: 3958 | G67: 9 | H67: 1254 | I67: 5 | J67: 6 | K67: 239 | L67: 4 | M67: 1254 | N67: 922 | O67: 10 | P67: 38 | Q67: 14 | R67: 23 | S67: 180 | T67: 38 | U67: 4 | V67: 1180 | W67: 22.77992278
A68: BELO HORIZONTE NORTE | B68: 7 | C68: 3654 | D68: 2683 | E68: 73.42638205 | F68: 2660 | G68: 12 | H68: 901 | I68: 2 | J68: 3 | K68: 295 | L68: 2 | M68: 791 | N68: 469 | O68: 4 | P68: 31 | Q68: 17 | R68: 24 | S68: 109 | T68: 22 | U68: 1 | V68: 971 | W68: 26.57361795
A69: CANTÓN 3 DESAMPARADOS | B69: 291 | C69: 152242 | D69: 106570 | E69: =D69/C69*100 -> 70.00039411 | F69: 104722 | G69: 557 | H69: 37446 | I69: 221 | J69: 227 | K69: 16785 | L69: 298 | M69: 29244 | N69: 9961 | O69: 314 | P69: 1421 | Q69: 630 | R69: 1693 | S69: 5925 | T69: 1657 | U69: 191 | V69: 45672 | W69: 29.99960589
A70: DISTRITO 1 DESAMPARADOS | B70: 57 | C70: 30394 | D70: 22026 | E70: =D70/C70*100 -> 72.46825031 | F70: 21729 | G70: 88 | H70: 8519 | I70: 48 | J70: 31 | K70: 3652 | L70: 42 | M70: 5840 | N70: 1601 | O70: 63 | P70: 343 | Q70: 103 | R70: 296 | S70: 1103 | T70: 265 | U70: 32 | V70: 8368 | W70: 27.53174969
A71: DESAMPARADOS | B71: 18 | C71: 9914 | D71: 7391 | E71: =D71/C71*100 -> 74.5511398 | F71: 7320 | G71: 16 | H71: 2929 | I71: 14 | J71: 6 | K71: 1104 | L71: 18 | M71: 2155 | N71: 507 | O71: 20 | P71: 125 | Q71: 20 | R71: 76 | S71: 330 | T71: 60 | U71: 11 | V71: 2523 | W71: =V71/C71*100 -> 25.4488602
A72: CALLE FALLAS | B72: 26 | C72: 14002 | D72: 9954 | E72: 71.08984431 | F72: 9810 | G72: 47 | H72: 3816 | I72: 23 | J72: 18 | K72: 1723 | L72: 18 | M72: 2536 | N72: 725 | O72: 34 | P72: 144 | Q72: 61 | R72: 144 | S72: 521 | T72: 132 | U72: 12 | V72: 4048 | W72: 28.91015569
A73: SAN JERÓNIMO | B73: 12 | C73: 6407 | D73: 4638 | E73: 72.3895739 | F73: 4556 | G73: 24 | H73: 1763 | I73: 11 | J73: 7 | K73: 817 | L73: 6 | M73: 1134 | N73: 367 | O73: 9 | P73: 73 | Q73: 22 | R73: 76 | S73: 247 | T73: 73 | U73: 9 | V73: 1769 | W73: 27.6104261
A74: H A OFELIA CARVAJAL DE NARANJO | B74: 1 | C74: 71 | D74: 43 | E74: 60.56338028 | F74: 43 | G74: 1 | H74: 11 | I74: 0 | J74: 0 | K74: 8 | L74: 0 | M74: 15 | N74: 2 | O74: 0 | P74: 1 | Q74: 0 | R74: 0 | S74: 5 | T74: 0 | U74: 0 | V74: 28 | W74: 39.43661972
A75: DISTRITO 2 SAN MIGUEL | B75: 48 | C75: 26276 | D75: 17758 | E75: 67.58258487 | F75: 17437 | G75: 113 | H75: 5897 | I75: 20 | J75: 41 | K75: 2750 | L75: 103 | M75: 4840 | N75: 1910 | O75: 64 | P75: 183 | Q75: 106 | R75: 336 | S75: 1074 | T75: 299 | U75: 22 | V75: 8518 | W75: 32.41741513
A76: SAN MIGUEL | B76: 14 | C76: 8241 | D76: 5567 | E76: 67.55248149 | F76: 5458 | G76: 30 | H76: 1978 | I76: 7 | J76: 9 | K76: 857 | L76: 51 | M76: 1456 | N76: 538 | O76: 21 | P76: 58 | Q76: 34 | R76: 102 | S76: 317 | T76: 102 | U76: 7 | V76: 2674 | W76: 32.44751851
A77: JERICÓ | B77: 2 | C77: 830 | D77: 558 | E77: 67.22891566 | F77: 548 | G77: 1 | H77: 187 | I77: 0 | J77: 0 | K77: 86 | L77: 5 | M77: 188 | N77: 53 | O77: 0 | P77: 10 | Q77: 1 | R77: 3 | S77: 14 | T77: 10 | U77: 0 | V77: 272 | W77: 32.77108434
A78: HIGUITO | B78: 15 | C78: 8407 | D78: 5591 | E78: 66.50410372 | F78: 5473 | G78: 30 | H78: 1888 | I78: 9 | J78: 17 | K78: 888 | L78: 28 | M78: 1512 | N78: 587 | O78: 17 | P78: 59 | Q78: 27 | R78: 127 | S78: 284 | T78: 110 | U78: 8 | V78: 2816 | W78: 33.49589628
A79: PACAYA | B79: 1 | C79: 79 | D79: 61 | E79: 77.21518987 | F79: 61 | G79: 0 | H79: 13 | I79: 0 | J79: 0 | K79: 1 | L79: 0 | M79: 45 | N79: 1 | O79: 0 | P79: 0 | Q79: 0 | R79: 0 | S79: 1 | T79: 0 | U79: 0 | V79: 18 | W79: 22.78481013
A80: EL LLANO | B80: 5 | C80: 2928 | D80: 2033 | E80: 69.43306011 | F80: 2000 | G80: 10 | H80: 609 | I80: 0 | J80: 3 | K80: 314 | L80: 10 | M80: 683 | N80: 187 | O80: 11 | P80: 16 | Q80: 12 | R80: 38 | S80: 107 | T80: 31 | U80: 2 | V80: 895 | W80: 30.56693989
A81: MANZANO [MANZANILLO] | B81: 1 | C81: 167 | D81: 116 | E81: 69.46107784 | F81: 115 | G81: 0 | H81: 43 | I81: 0 | J81: 0 | K81: 16 | L81: 1 | M81: 28 | N81: 8 | O81: 0 | P81: 1 | Q81: 1 | R81: 0 | S81: 17 | T81: 0 | U81: 1 | V81: 51 | W81: 30.53892216
A82: LAS LOMAS | B82: 2 | C82: 869 | D82: 595 | E82: 68.46950518 | F82: 581 | G82: 6 | H82: 181 | I82: 1 | J82: 2 | K82: 118 | L82: 1 | M82: 116 | N82: 64 | O82: 7 | P82: 9 | Q82: 1 | R82: 12 | S82: 63 | T82: 14 | U82: 0 | V82: 274 | W82: 31.53049482
A83: LA CAPRI | B83: 8 | C83: 4755 | D83: 3237 | E83: 68.07570978 | F83: 3201 | G83: 36 | H83: 998 | I83: 3 | J83: 10 | K83: 470 | L83: 7 | M83: 812 | N83: 472 | O83: 8 | P83: 30 | Q83: 30 | R83: 54 | S83: 271 | T83: 32 | U83: 4 | V83: 1518 | W83: 31.92429022
A84: DISTRITO 3 SAN JUAN DE DIOS | B84: 21 | C84: 12232 | D84: 8218 | E84: 67.18443427 | F84: 8070 | G84: 66 | H84: 2551 | I84: 17 | J84: 15 | K84: 1443 | L84: 25 | M84: 2084 | N84: 992 | O84: 26 | P84: 124 | Q84: 57 | R84: 114 | S84: 556 | T84: 131 | U84: 17 | V84: 4014 | W84: 32.81556573
A85: SAN JUAN DE DIOS | B85: 21 | C85: 12232 | D85: 8218 | E85: 67.18443427 | F85: 8070 | G85: 66 | H85: 2551 | I85: 17 | J85: 15 | K85: 1443 | L85: 25 | M85: 2084 | N85: 992 | O85: 26 | P85: 124 | Q85: 57 | R85: 114 | S85: 556 | T85: 131 | U85: 17 | V85: 4014 | W85: 32.81556573
A86: DISTRITO 4 SAN RAFAEL ARRIBA | B86: 23 | C86: 11083 | D86: 7731 | E86: 69.75548137 | F86: 7615 | G86: 24 | H86: 2739 | I86: 20 | J86: 14 | K86: 1206 | L86: 16 | M86: 2161 | N86: 730 | O86: 25 | P86: 97 | Q86: 53 | R86: 105 | S86: 425 | T86: 100 | U86: 16 | V86: 3352 | W86: 30.24451863
A87: SAN RAFAEL ARRIBA | B87: 20 | C87: 10505 | D87: 7500 | E87: 71.39457401 | F87: 7391 | G87: 20 | H87: 2712 | I87: 13 | J87: 11 | K87: 1173 | L87: 16 | M87: 2086 | N87: 679 | O87: 24 | P87: 97 | Q87: 51 | R87: 103 | S87: 406 | T87: 94 | U87: 15 | V87: 3005 | W87: 28.60542599
A88: C P SAN RAFAEL ARRIBA | B88: 2 | C88: 528 | D88: 197 | E88: 37.31060606 | F88: 193 | G88: 4 | H88: 20 | I88: 6 | J88: 2 | K88: 31 | L88: 0 | M88: 63 | N88: 48 | O88: 1 | P88: 0 | Q88: 2 | R88: 2 | S88: 14 | T88: 4 | U88: 0 | V88: 331 | W88: 62.68939394
A89: H A SAN CAYETANO | B89: 1 | C89: 50 | D89: 34 | E89: 68 | F89: 31 | G89: 0 | H89: 7 | I89: 1 | J89: 1 | K89: 2 | L89: 0 | M89: 12 | N89: 3 | O89: 0 | P89: 0 | Q89: 0 | R89: 0 | S89: 5 | T89: 2 | U89: 1 | V89: 16 | W89: 32
A90: DISTRITO 5 SAN ANTONIO | B90: 17 | C90: 8792 | D90: 6760 | E90: 76.88808007 | F90: 6688 | G90: 16 | H90: 2941 | I90: 12 | J90: 6 | K90: 951 | L90: 12 | M90: 1889 | N90: 451 | O90: 8 | P90: 81 | Q90: 16 | R90: 54 | S90: 251 | T90: 69 | U90: 3 | V90: 2032 | W90: 23.11191993
A91: SAN ANTONIO | B91: 17 | C91: 8792 | D91: 6760 | E91: 76.88808007 | F91: 6688 | G91: 16 | H91: 2941 | I91: 12 | J91: 6 | K91: 951 | L91: 12 | M91: 1889 | N91: 451 | O91: 8 | P91: 81 | Q91: 16 | R91: 54 | S91: 251 | T91: 69 | U91: 3 | V91: 2032 | W91: 23.11191993
A92: DISTRITO 6 FRAILES | B92: 7 | C92: 2776 | D92: 1956 | E92: 70.4610951 | F92: 1902 | G92: 6 | H92: 487 | I92: 20 | J92: 5 | K92: 299 | L92: 18 | M92: 833 | N92: 75 | O92: 9 | P92: 25 | Q92: 4 | R92: 25 | S92: 96 | T92: 45 | U92: 9 | V92: 820 | W92: 29.5389049
A93: FRAILES | B93: 4 | C93: 1730 | D93: 1242 | E93: 71.79190751 | F93: 1203 | G93: 3 | H93: 309 | I93: 9 | J93: 4 | K93: 222 | L93: 9 | M93: 515 | N93: 43 | O93: 3 | P93: 20 | Q93: 4 | R93: 17 | S93: 45 | T93: 32 | U93: 7 | V93: 488 | W93: 28.20809249
A94: BUSTAMANTE O ALCIRA | B94: 2 | C94: 874 | D94: 589 | E94: 67.39130435 | F94: 575 | G94: 3 | H94: 159 | I94: 1 | J94: 1 | K94: 59 | L94: 9 | M94: 270 | N94: 27 | O94: 6 | P94: 4 | Q94: 0 | R94: 4 | S94: 32 | T94: 12 | U94: 2 | V94: 285 | W94: 32.60869565
A95: VIOLETA [RINCÓN MORALES] | B95: 1 | C95: 172 | D95: 125 | E95: 72.6744186 | F95: 124 | G95: 0 | H95: 19 | I95: 10 | J95: 0 | K95: 18 | L95: 0 | M95: 48 | N95: 5 | O95: 0 | P95: 1 | Q95: 0 | R95: 4 | S95: 19 | T95: 1 | U95: 0 | V95: 47 | W95: 27.3255814
A96: DISTRITO 7 PATARRÁ | B96: 12 | C96: 6141 | D96: 4094 | E96: 66.66666667 | F96: 3985 | G96: 34 | H96: 1338 | I96: 4 | J96: 14 | K96: 588 | L96: 8 | M96: 1147 | N96: 426 | O96: 16 | P96: 55 | Q96: 19 | R96: 67 | S96: 269 | T96: 100 | U96: 9 | V96: 2047 | W96: 33.33333333
A97: PATARRÁ | B97: 6 | C97: 3016 | D97: 2159 | E97: 71.58488064 | F97: 2122 | G97: 14 | H97: 763 | I97: 2 | J97: 8 | K97: 287 | L97: 5 | M97: 663 | N97: 164 | O97: 8 | P97: 25 | Q97: 7 | R97: 24 | S97: 152 | T97: 29 | U97: 8 | V97: 857 | W97: 28.41511936
A98: GUATUSO | B98: 6 | C98: 3125 | D98: 1935 | E98: 61.92 | F98: 1863 | G98: 20 | H98: 575 | I98: 2 | J98: 6 | K98: 301 | L98: 3 | M98: 484 | N98: 262 | O98: 8 | P98: 30 | Q98: 12 | R98: 43 | S98: 117 | T98: 71 | U98: 1 | V98: 1190 | W98: 38.08
A99: DISTRITO 8 SAN CRISTÓBAL | B99: 7 | C99: 3016 | D99: 2236 | E99: 74.13793103 | F99: 2189 | G99: 12 | H99: 713 | I99: 8 | J99: 7 | K99: 230 | L99: 10 | M99: 941 | N99: 123 | O99: 8 | P99: 30 | Q99: 13 | R99: 15 | S99: 79 | T99: 36 | U99: 11 | V99: 780 | W99: 25.86206897
A100: SAN CRISTÓBAL SUR | B100: 2 | C100: 771 | D100: 579 | E100: 75.09727626 | F100: 568 | G100: 4 | H100: 176 | I100: 5 | J100: 3 | K100: 81 | L100: 6 | M100: 231 | N100: 32 | O100: 3 | P100: 6 | Q100: 3 | R100: 1 | S100: 17 | T100: 8 | U100: 3 | V100: 192 | W100: 24.90272374
A101: SAN CRISTÓBAL NORTE | B101: 2 | C101: 784 | D101: 593 | E101: 75.6377551 | F101: 584 | G101: 0 | H101: 148 | I101: 1 | J101: 2 | K101: 62 | L101: 2 | M101: 296 | N101: 33 | O101: 1 | P101: 6 | Q101: 6 | R101: 2 | S101: 25 | T101: 5 | U101: 4 | V101: 191 | W101: 24.3622449
A102: CRISTO REY | B102: 2 | C102: 995 | D102: 731 | E102: 73.46733668 | F102: 710 | G102: 5 | H102: 297 | I102: 0 | J102: 0 | K102: 62 | L102: 1 | M102: 277 | N102: 27 | O102: 3 | P102: 6 | Q102: 2 | R102: 11 | S102: 19 | T102: 19 | U102: 2 | V102: 264 | W102: 26.53266332
A103: EMPALME ARRIBA GUARIA [PARTE OESTE] | B103: 1 | C103: 466 | D103: 333 | E103: 71.45922747 | F103: 327 | G103: 3 | H103: 92 | I103: 2 | J103: 2 | K103: 25 | L103: 1 | M103: 137 | N103: 31 | O103: 1 | P103: 12 | Q103: 2 | R103: 1 | S103: 18 | T103: 4 | U103: 2 | V103: 133 | W103: 28.54077253
A104: DISTRITO 9 ROSARIO | B104: 9 | C104: 2708 | D104: 1911 | E104: 70.56868538 | F104: 1860 | G104: 17 | H104: 359 | I104: 6 | J104: 10 | K104: 347 | L104: 2 | M104: 821 | N104: 137 | O104: 6 | P104: 17 | Q104: 6 | R104: 4 | S104: 128 | T104: 41 | U104: 10 | V104: 797 | W104: 29.43131462
A105: ROSARIO | B105: 3 | C105: 1284 | D105: 921 | E105: 71.72897196 | F105: 890 | G105: 10 | H105: 183 | I105: 4 | J105: 5 | K105: 171 | L105: 2 | M105: 368 | N105: 50 | O105: 3 | P105: 5 | Q105: 5 | R105: 0 | S105: 84 | T105: 22 | U105: 9 | V105: 363 | W105: 28.27102804
A106: GUADARRAMA | B106: 1 | C106: 340 | D106: 221 | E106: 65 | F106: 219 | G106: 2 | H106: 42 | I106: 0 | J106: 2 | K106: 32 | L106: 0 | M106: 118 | N106: 11 | O106: 0 | P106: 1 | Q106: 0 | R106: 2 | S106: 9 | T106: 2 | U106: 0 | V106: 119 | W106: 35
A107: LA JOYA | B107: 1 | C107: 145 | D107: 86 | E107: 59.31034483 | F107: 86 | G107: 0 | H107: 10 | I107: 0 | J107: 0 | K107: 13 | L107: 0 | M107: 53 | N107: 4 | O107: 1 | P107: 3 | Q107: 1 | R107: 0 | S107: 1 | T107: 0 | U107: 0 | V107: 59 | W107: 40.68965517
A108: TRINIDAD [PARTE ESTE] | B108: 2 | C108: 637 | D108: 430 | E108: 67.50392465 | F108: 418 | G108: 1 | H108: 88 | I108: 2 | J108: 2 | K108: 88 | L108: 0 | M108: 139 | N108: 60 | O108: 2 | P108: 4 | Q108: 0 | R108: 2 | S108: 30 | T108: 12 | U108: 0 | V108: 207 | W108: 32.49607535
A109: LLANO BONITO | B109: 1 | C109: 104 | D109: 83 | E109: 79.80769231 | F109: 81 | G109: 0 | H109: 13 | I109: 0 | J109: 0 | K109: 7 | L109: 0 | M109: 50 | N109: 8 | O109: 0 | P109: 2 | Q109: 0 | R109: 0 | S109: 1 | T109: 2 | U109: 0 | V109: 21 | W109: 20.19230769
A110: CHIROGRES | B110: 1 | C110: 198 | D110: 170 | E110: 85.85858586 | F110: 166 | G110: 4 | H110: 23 | I110: 0 | J110: 1 | K110: 36 | L110: 0 | M110: 93 | N110: 4 | O110: 0 | P110: 2 | Q110: 0 | R110: 0 | S110: 3 | T110: 3 | U110: 1 | V110: 28 | W110: 14.14141414
A111: DISTRITO 10 DAMAS | B111: 17 | C111: 8924 | D111: 6514 | E111: 72.99417302 | F111: 6396 | G111: 32 | H111: 2536 | I111: 6 | J111: 10 | K111: 1042 | L111: 15 | M111: 1553 | N111: 604 | O111: 21 | P111: 97 | Q111: 39 | R111: 121 | S111: 320 | T111: 102 | U111: 16 | V111: 2410 | W111: 27.00582698
A112: FÁTIMA DE DAMAS | B112: 5 | C112: 2449 | D112: 1902 | E112: 77.6643528 | F112: 1881 | G112: 3 | H112: 790 | I112: 3 | J112: 3 | K112: 288 | L112: 5 | M112: 514 | N112: 110 | O112: 9 | P112: 33 | Q112: 6 | R112: 24 | S112: 93 | T112: 19 | U112: 2 | V112: 547 | W112: 22.3356472
A113: SAN LORENZO | B113: 12 | C113: 6475 | D113: 4612 | E113: 71.22779923 | F113: 4515 | G113: 29 | H113: 1746 | I113: 3 | J113: 7 | K113: 754 | L113: 10 | M113: 1039 | N113: 494 | O113: 12 | P113: 64 | Q113: 33 | R113: 97 | S113: 227 | T113: 83 | U113: 14 | V113: 1863 | W113: 28.77220077
A114: DISTRITO 11 SAN RAFAEL ABAJO | B114: 29 | C114: 15403 | D114: 11064 | E114: 71.83016296 | F114: 10887 | G114: 43 | H114: 4107 | I114: 19 | J114: 27 | K114: 1854 | L114: 23 | M114: 2772 | N114: 1011 | O114: 31 | P114: 142 | Q114: 71 | R114: 162 | S114: 625 | T114: 157 | U114: 20 | V114: 4339 | W114: 28.16983704
A115: SAN RAFAEL ABAJO | B115: 20 | C115: 10734 | D115: 7712 | E115: 71.84646916 | F115: 7605 | G115: 27 | H115: 2865 | I115: 16 | J115: 17 | K115: 1335 | L115: 14 | M115: 1947 | N115: 677 | O115: 20 | P115: 107 | Q115: 52 | R115: 114 | S115: 414 | T115: 92 | U115: 15 | V115: 3022 | W115: 28.15353084
A116: VALENCIA | B116: 9 | C116: 4669 | D116: 3352 | E116: 71.79267509 | F116: 3282 | G116: 16 | H116: 1242 | I116: 3 | J116: 10 | K116: 519 | L116: 9 | M116: 825 | N116: 334 | O116: 11 | P116: 35 | Q116: 19 | R116: 48 | S116: 211 | T116: 65 | U116: 5 | V116: 1317 | W116: 28.20732491
A117: DISTRITO 12 GRAVILIAS | B117: 24 | C117: 12630 | D117: 9569 | E117: 75.76405384 | F117: 9452 | G117: 34 | H117: 3871 | I117: 13 | J117: 20 | K117: 1464 | L117: 19 | M117: 2598 | N117: 679 | O117: 17 | P117: 170 | Q117: 31 | R117: 96 | S117: 440 | T117: 109 | U117: 8 | V117: 3061 | W117: 24.23594616
A118: GRAVILIAS | B118: 13 | C118: 7131 | D118: 5387 | E118: 75.54340205 | F118: 5316 | G118: 16 | H118: 2084 | I118: 8 | J118: 13 | K118: 855 | L118: 6 | M118: 1511 | N118: 390 | O118: 10 | P118: 99 | Q118: 14 | R118: 64 | S118: 246 | T118: 68 | U118: 3 | V118: 1744 | W118: 24.45659795
A119: EL PORVENIR | B119: 11 | C119: 5499 | D119: 4182 | E119: 76.05019094 | F119: 4136 | G119: 18 | H119: 1787 | I119: 5 | J119: 7 | K119: 609 | L119: 13 | M119: 1087 | N119: 289 | O119: 7 | P119: 71 | Q119: 17 | R119: 32 | S119: 194 | T119: 41 | U119: 5 | V119: 1317 | W119: 23.94980906
A120: DISTRITO 13 LOS GUIDO | B120: 20 | C120: 11867 | D120: 6733 | E120: 56.7371703 | F120: 6512 | G120: 72 | H120: 1388 | I120: 28 | J120: 27 | K120: 959 | L120: 5 | M120: 1765 | N120: 1222 | O120: 20 | P120: 57 | Q120: 112 | R120: 298 | S120: 559 | T120: 203 | U120: 18 | V120: 5134 | W120: 43.2628297
A121: LOS GUIDO | B121: 20 | C121: 11867 | D121: 6733 | E121: 56.7371703 | F121: 6512 | G121: 72 | H121: 1388 | I121: 28 | J121: 27 | K121: 959 | L121: 5 | M121: 1765 | N121: 1222 | O121: 20 | P121: 57 | Q121: 112 | R121: 298 | S121: 559 | T121: 203 | U121: 18 | V121: 5134 | W121: 43.2628297
A122: CANTÓN 4 PURISCAL | B122: 71 | C122: 26459 | D122: 18908 | E122: =D122/C122*100 -> 71.46150648 | F122: 18544 | G122: 77 | H122: 5445 | I122: 35 | J122: 42 | K122: 2880 | L122: 24 | M122: 7255 | N122: 1247 | O122: 37 | P122: 179 | Q122: 66 | R122: 128 | S122: 1129 | T122: 282 | U122: 82 | V122: 7551 | W122: 28.53849352
A123: DISTRITO 1 SANTIAGO | B123: 22 | C123: 10045 | D123: 7356 | E123: 73.23046292 | F123: 7247 | G123: 30 | H123: 2618 | I123: 11 | J123: 26 | K123: 1024 | L123: 6 | M123: 2535 | N123: 397 | O123: 14 | P123: 91 | Q123: 20 | R123: 37 | S123: 438 | T123: 86 | U123: 23 | V123: 2689 | W123: 26.76953708
A124: SANTIAGO | B124: 15 | C124: 7874 | D124: 5818 | E124: 73.88874778 | F124: 5732 | G124: 23 | H124: 2096 | I124: 8 | J124: 21 | K124: 796 | L124: 5 | M124: 2019 | N124: 309 | O124: 11 | P124: 78 | Q124: 15 | R124: 33 | S124: 318 | T124: 69 | U124: 17 | V124: 2056 | W124: 26.11125222
A125: POZOS | B125: 2 | C125: 824 | D125: 516 | E125: 62.62135922 | F125: 509 | G125: 4 | H125: 138 | I125: 1 | J125: 2 | K125: 109 | L125: 1 | M125: 167 | N125: 40 | O125: 0 | P125: 3 | Q125: 0 | R125: 2 | S125: 42 | T125: 5 | U125: 2 | V125: 308 | W125: 37.37864078
A126: CARIT | B126: 1 | C126: 598 | D126: 474 | E126: 79.26421405 | F126: 463 | G126: 0 | H126: 177 | I126: 0 | J126: 0 | K126: 63 | L126: 0 | M126: 169 | N126: 13 | O126: 0 | P126: 2 | Q126: 2 | R126: 0 | S126: 37 | T126: 10 | U126: 1 | V126: 124 | W126: 20.73578595
A127: BAJO BADILLA | B127: 1 | C127: 71 | D127: 36 | E127: 50.70422535 | F127: 34 | G127: 0 | H127: 7 | I127: 0 | J127: 0 | K127: 15 | L127: 0 | M127: 4 | N127: 7 | O127: 0 | P127: 0 | Q127: 0 | R127: 0 | S127: 1 | T127: 1 | U127: 1 | V127: 35 | W127: 49.29577465
A128: H A CORAZÓN DE JESÚS | B128: 1 | C128: 53 | D128: 39 | E128: 73.58490566 | F128: 38 | G128: 0 | H128: 5 | I128: 0 | J128: 0 | K128: 0 | L128: 0 | M128: 24 | N128: 1 | O128: 0 | P128: 0 | Q128: 0 | R128: 0 | S128: 8 | T128: 0 | U128: 1 | V128: 14 | W128: 26.41509434
A129: SANTA CECILIA | B129: 2 | C129: 625 | D129: 473 | E129: 75.68 | F129: 471 | G129: 3 | H129: 195 | I129: 2 | J129: 3 | K129: 41 | L129: 0 | M129: 152 | N129: 27 | O129: 3 | P129: 8 | Q129: 3 | R129: 2 | S129: 32 | T129: 1 | U129: 1 | V129: 152 | W129: 24.32
A130: DISTRITO 2 MERCEDES SUR | B130: 13 | C130: 4062 | D130: 2925 | E130: 72.00886263 | F130: 2856 | G130: 16 | H130: 743 | I130: 7 | J130: 3 | K130: 576 | L130: 5 | M130: 1132 | N130: 175 | O130: 9 | P130: 19 | Q130: 9 | R130: 16 | S130: 146 | T130: 55 | U130: 14 | V130: 1137 | W130: 27.99113737
A131: MERCEDES SUR | B131: 1 | C131: 523 | D131: 381 | E131: 72.84894837 | F131: 368 | G131: 1 | H131: 100 | I131: 1 | J131: 0 | K131: 73 | L131: 0 | M131: 163 | N131: 8 | O131: 1 | P131: 1 | Q131: 3 | R131: 1 | S131: 16 | T131: 10 | U131: 3 | V131: 142 | W131: 27.15105163
A132: MERCEDES NORTE | B132: 2 | C132: 1066 | D132: 808 | E132: 75.79737336 | F132: 801 | G132: 2 | H132: 218 | I132: 3 | J132: 1 | K132: 134 | L132: 0 | M132: 318 | N132: 52 | O132: 2 | P132: 8 | Q132: 4 | R132: 7 | S132: 52 | T132: 5 | U132: 2 | V132: 258 | W132: 24.20262664
A133: BOCANA | B133: 1 | C133: 102 | D133: 68 | E133: 66.66666667 | F133: 67 | G133: 1 | H133: 14 | I133: 0 | J133: 0 | K133: 11 | L133: 0 | M133: 30 | N133: 1 | O133: 0 | P133: 1 | Q133: 0 | R133: 0 | S133: 9 | T133: 0 | U133: 1 | V133: 34 | W133: 33.33333333
A134: JILGUERAL | B134: 1 | C134: 168 | D134: 124 | E134: 73.80952381 | F134: 122 | G134: 2 | H134: 25 | I134: 0 | J134: 0 | K134: 17 | L134: 0 | M134: 66 | N134: 6 | O134: 0 | P134: 0 | Q134: 0 | R134: 0 | S134: 6 | T134: 2 | U134: 0 | V134: 44 | W134: 26.19047619
A135: TÚFARES | B135: 1 | C135: 86 | D135: 44 | E135: 51.1627907 | F135: 44 | G135: 1 | H135: 7 | I135: 0 | J135: 0 | K135: 3 | L135: 0 | M135: 24 | N135: 4 | O135: 0 | P135: 1 | Q135: 0 | R135: 0 | S135: 4 | T135: 0 | U135: 0 | V135: 42 | W135: 48.8372093
A136: SALITRALES | B136: 1 | C136: 176 | D136: 110 | E136: 62.5 | F136: 106 | G136: 1 | H136: 23 | I136: 1 | J136: 0 | K136: 17 | L136: 0 | M136: 44 | N136: 17 | O136: 0 | P136: 1 | Q136: 1 | R136: 0 | S136: 1 | T136: 4 | U136: 0 | V136: 66 | W136: 37.5
A137: ALTO LA PALMA | B137: 1 | C137: 281 | D137: 199 | E137: 70.81850534 | F137: 193 | G137: 2 | H137: 39 | I137: 0 | J137: 2 | K137: 48 | L137: 1 | M137: 69 | N137: 14 | O137: 0 | P137: 1 | Q137: 0 | R137: 1 | S137: 16 | T137: 5 | U137: 1 | V137: 82 | W137: 29.18149466
A138: LLANO GRANDE | B138: 1 | C138: 95 | D138: 55 | E138: 57.89473684 | F138: 53 | G138: 0 | H138: 2 | I138: 1 | J138: 0 | K138: 1 | L138: 0 | M138: 33 | N138: 9 | O138: 0 | P138: 0 | Q138: 0 | R138: 2 | S138: 5 | T138: 1 | U138: 1 | V138: 40 | W138: 42.10526316
A139: SANTA MARTA | B139: 1 | C139: 331 | D139: 257 | E139: 77.64350453 | F139: 251 | G139: 2 | H139: 43 | I139: 1 | J139: 0 | K139: 69 | L139: 0 | M139: 109 | N139: 15 | O139: 1 | P139: 2 | Q139: 0 | R139: 1 | S139: 8 | T139: 5 | U139: 1 | V139: 74 | W139: 22.35649547
A140: CERBATANA | B140: 3 | C140: 1234 | D140: 879 | E140: 71.23176661 | F140: 851 | G140: 4 | H140: 272 | I140: 0 | J140: 0 | K140: 203 | L140: 4 | M140: 276 | N140: 49 | O140: 5 | P140: 4 | Q140: 1 | R140: 4 | S140: 29 | T140: 23 | U140: 5 | V140: 355 | W140: 28.76823339
A141: DISTRITO 3 BARBACOAS | B141: 8 | C141: 3272 | D141: 2367 | E141: 72.34107579 | F141: 2332 | G141: 5 | H141: 596 | I141: 7 | J141: 3 | K141: 354 | L141: 2 | M141: 987 | N141: 186 | O141: 4 | P141: 24 | Q141: 11 | R141: 9 | S141: 144 | T141: 23 | U141: 12 | V141: 905 | W141: 27.65892421
A142: BARBACOAS [SAN ISIDRO] | B142: 3 | C142: 1211 | D142: 891 | E142: 73.57555739 | F142: 872 | G142: 1 | H142: 287 | I142: 3 | J142: 0 | K142: 142 | L142: 1 | M142: 300 | N142: 60 | O142: 3 | P142: 6 | Q142: 2 | R142: 2 | S142: 65 | T142: 16 | U142: 3 | V142: 320 | W142: 26.42444261
A143: PIEDADES | B143: 2 | C143: 725 | D143: 523 | E143: 72.13793103 | F143: 518 | G143: 1 | H143: 103 | I143: 3 | J143: 1 | K143: 65 | L143: 1 | M143: 214 | N143: 66 | O143: 1 | P143: 6 | Q143: 1 | R143: 3 | S143: 53 | T143: 3 | U143: 2 | V143: 202 | W143: 27.86206897
A144: SAN JUAN | B144: 2 | C144: 1006 | D144: 748 | E144: 74.35387674 | F144: 738 | G144: 3 | H144: 180 | I144: 1 | J144: 0 | K144: 124 | L144: 0 | M144: 351 | N144: 39 | O144: 0 | P144: 11 | Q144: 8 | R144: 4 | S144: 17 | T144: 4 | U144: 6 | V144: 258 | W144: 25.64612326
A145: CORTEZAL | B145: 1 | C145: 330 | D145: 205 | E145: 62.12121212 | F145: 204 | G145: 0 | H145: 26 | I145: 0 | J145: 2 | K145: 23 | L145: 0 | M145: 122 | N145: 21 | O145: 0 | P145: 1 | Q145: 0 | R145: 0 | S145: 9 | T145: 0 | U145: 1 | V145: 125 | W145: 37.87878788
A146: DISTRITO 4 GRIFO ALTO | B146: 3 | C146: 908 | D146: 694 | E146: 76.43171806 | F146: 683 | G146: 2 | H146: 168 | I146: 1 | J146: 0 | K146: 122 | L146: 0 | M146: 298 | N146: 32 | O146: 1 | P146: 4 | Q146: 3 | R146: 4 | S146: 48 | T146: 10 | U146: 1 | V146: 214 | W146: 23.56828194
A147: GRIFO ALTO | B147: 2 | C147: 767 | D147: 588 | E147: 76.66232073 | F147: 580 | G147: 2 | H147: 150 | I147: 1 | J147: 0 | K147: 90 | L147: 0 | M147: 262 | N147: 25 | O147: 1 | P147: 4 | Q147: 3 | R147: 4 | S147: 38 | T147: 7 | U147: 1 | V147: 179 | W147: 23.33767927
A148: GRIFO BAJO | B148: 1 | C148: 141 | D148: 106 | E148: 75.17730496 | F148: 103 | G148: 0 | H148: 18 | I148: 0 | J148: 0 | K148: 32 | L148: 0 | M148: 36 | N148: 7 | O148: 0 | P148: 0 | Q148: 0 | R148: 0 | S148: 10 | T148: 3 | U148: 0 | V148: 35 | W148: 24.82269504
A149: DISTRITO 5 SAN RAFAEL | B149: 3 | C149: 1246 | D149: 847 | E149: 67.97752809 | F149: 816 | G149: 5 | H149: 217 | I149: 2 | J149: 0 | K149: 126 | L149: 1 | M149: 330 | N149: 31 | O149: 2 | P149: 9 | Q149: 0 | R149: 7 | S149: 86 | T149: 21 | U149: 10 | V149: 399 | W149: 32.02247191
A150: SAN RAFAEL ARRIBA | B150: 2 | C150: 925 | D150: 629 | E150: 68 | F150: 605 | G150: 5 | H150: 175 | I150: 2 | J150: 0 | K150: 91 | L150: 1 | M150: 245 | N150: 27 | O150: 1 | P150: 6 | Q150: 0 | R150: 7 | S150: 45 | T150: 17 | U150: 7 | V150: 296 | W150: 32
A151: FLORALIA | B151: 1 | C151: 321 | D151: 218 | E151: 67.91277259 | F151: 211 | G151: 0 | H151: 42 | I151: 0 | J151: 0 | K151: 35 | L151: 0 | M151: 85 | N151: 4 | O151: 1 | P151: 3 | Q151: 0 | R151: 0 | S151: 41 | T151: 4 | U151: 3 | V151: 103 | W151: 32.08722741
A152: DISTRITO 6 CANDELARITA | B152: 4 | C152: 1368 | D152: 1003 | E152: 73.31871345 | F152: 971 | G152: 3 | H152: 165 | I152: 1 | J152: 1 | K152: 113 | L152: 3 | M152: 546 | N152: 65 | O152: 1 | P152: 8 | Q152: 3 | R152: 4 | S152: 58 | T152: 25 | U152: 7 | V152: 365 | W152: 26.68128655
A153: CANDELARITA | B153: 2 | C153: 727 | D153: 528 | E153: 72.62723521 | F153: 503 | G153: 1 | H153: 54 | I153: 1 | J153: 1 | K153: 62 | L153: 1 | M153: 293 | N153: 39 | O153: 0 | P153: 4 | Q153: 3 | R153: 2 | S153: 42 | T153: 19 | U153: 6 | V153: 199 | W153: 27.37276479
A154: PEDERNAL O SAN PEDRO | B154: 2 | C154: 641 | D154: 475 | E154: 74.10296412 | F154: 468 | G154: 2 | H154: 111 | I154: 0 | J154: 0 | K154: 51 | L154: 2 | M154: 253 | N154: 26 | O154: 1 | P154: 4 | Q154: 0 | R154: 2 | S154: 16 | T154: 6 | U154: 1 | V154: 166 | W154: 25.89703588
A155: DISTRITO 7 DESAMPARADITOS | B155: 1 | C155: 542 | D155: 411 | E155: 75.8302583 | F155: 406 | G155: 4 | H155: 145 | I155: 0 | J155: 1 | K155: 70 | L155: 1 | M155: 131 | N155: 15 | O155: 0 | P155: 1 | Q155: 0 | R155: 2 | S155: 36 | T155: 5 | U155: 0 | V155: 131 | W155: 24.1697417
A156: DESAMPARADITOS | B156: 1 | C156: 542 | D156: 411 | E156: 75.8302583 | F156: 406 | G156: 4 | H156: 145 | I156: 0 | J156: 1 | K156: 70 | L156: 1 | M156: 131 | N156: 15 | O156: 0 | P156: 1 | Q156: 0 | R156: 2 | S156: 36 | T156: 5 | U156: 0 | V156: 131 | W156: 24.1697417
A157: DISTRITO 8 SAN ANTONIO | B157: 6 | C157: 2825 | D157: 1914 | E157: 67.75221239 | F157: 1878 | G157: 6 | H157: 623 | I157: 2 | J157: 5 | K157: 318 | L157: 6 | M157: 643 | N157: 152 | O157: 3 | P157: 12 | Q157: 9 | R157: 23 | S157: 76 | T157: 27 | U157: 9 | V157: 911 | W157: 32.24778761
A158: SAN ANTONIO | B158: 5 | C158: 2636 | D158: 1790 | E158: 67.90591806 | F158: 1759 | G158: 5 | H158: 591 | I158: 2 | J158: 5 | K158: 299 | L158: 5 | M158: 599 | N158: 133 | O158: 3 | P158: 12 | Q158: 8 | R158: 23 | S158: 74 | T158: 25 | U158: 6 | V158: 846 | W158: 32.09408194
A159: CHARCÓN [RÍO VIEJO] | B159: 1 | C159: 189 | D159: 124 | E159: 65.60846561 | F159: 119 | G159: 1 | H159: 32 | I159: 0 | J159: 0 | K159: 19 | L159: 1 | M159: 44 | N159: 19 | O159: 0 | P159: 0 | Q159: 1 | R159: 0 | S159: 2 | T159: 2 | U159: 3 | V159: 65 | W159: 34.39153439
A160: DISTRITO 9 CHIRES | B160: 11 | C160: 2191 | D160: 1391 | E160: 63.48699224 | F160: 1355 | G160: 6 | H160: 170 | I160: 4 | J160: 3 | K160: 177 | L160: 0 | M160: 653 | N160: 194 | O160: 3 | P160: 11 | Q160: 11 | R160: 26 | S160: 97 | T160: 30 | U160: 6 | V160: 800 | W160: 36.51300776
A161: GUARUMAL | B161: 1 | C161: 216 | D161: 144 | E161: 66.66666667 | F161: 140 | G161: 2 | H161: 19 | I161: 1 | J161: 1 | K161: 14 | L161: 0 | M161: 91 | N161: 4 | O161: 0 | P161: 0 | Q161: 0 | R161: 1 | S161: 7 | T161: 3 | U161: 1 | V161: 72 | W161: 33.33333333
A162: ZAPATÓN [SAN CARLOS] | B162: 1 | C162: 328 | D162: 224 | E162: 68.29268293 | F162: 217 | G162: 2 | H162: 1 | I162: 1 | J162: 1 | K162: 25 | L162: 0 | M162: 108 | N162: 53 | O162: 0 | P162: 1 | Q162: 1 | R162: 1 | S162: 23 | T162: 6 | U162: 1 | V162: 104 | W162: 31.70731707
A163: GAMALOTILLO | B163: 1 | C163: 263 | D163: 164 | E163: 62.35741445 | F163: 159 | G163: 0 | H163: 43 | I163: 0 | J163: 0 | K163: 23 | L163: 0 | M163: 48 | N163: 28 | O163: 2 | P163: 1 | Q163: 2 | R163: 0 | S163: 12 | T163: 5 | U163: 0 | V163: 99 | W163: 37.64258555
A164: LOS ÁNGELES | B164: 1 | C164: 131 | D164: 79 | E164: 60.30534351 | F164: 79 | G164: 1 | H164: 13 | I164: 0 | J164: 0 | K164: 15 | L164: 0 | M164: 32 | N164: 7 | O164: 0 | P164: 0 | Q164: 1 | R164: 2 | S164: 8 | T164: 0 | U164: 0 | V164: 52 | W164: 39.69465649
A165: LA GLORIA | B165: 1 | C165: 201 | D165: 112 | E165: 55.72139303 | F165: 109 | G165: 1 | H165: 20 | I165: 0 | J165: 0 | K165: 15 | L165: 0 | M165: 47 | N165: 14 | O165: 0 | P165: 4 | Q165: 0 | R165: 1 | S165: 7 | T165: 3 | U165: 0 | V165: 89 | W165: 44.27860697
A166: MASTATAL | B166: 1 | C166: 108 | D166: 73 | E166: 67.59259259 | F166: 71 | G166: 0 | H166: 7 | I166: 1 | J166: 0 | K166: 1 | L166: 0 | M166: 46 | N166: 7 | O166: 0 | P166: 3 | Q166: 1 | R166: 3 | S166: 2 | T166: 1 | U166: 1 | V166: 35 | W166: 32.40740741
A167: SAN MARTÍN | B167: 1 | C167: 115 | D167: 77 | E167: 66.95652174 | F167: 76 | G167: 0 | H167: 8 | I167: 0 | J167: 0 | K167: 27 | L167: 0 | M167: 29 | N167: 3 | O167: 0 | P167: 0 | Q167: 1 | R167: 0 | S167: 8 | T167: 1 | U167: 0 | V167: 38 | W167: 33.04347826
A168: CRISTO REY | B168: 1 | C168: 427 | D168: 276 | E168: 64.63700234 | F168: 265 | G168: 0 | H168: 21 | I168: 1 | J168: 1 | K168: 37 | L168: 0 | M168: 143 | N168: 21 | O168: 1 | P168: 1 | Q168: 2 | R168: 18 | S168: 19 | T168: 10 | U168: 1 | V168: 151 | W168: 35.36299766
A169: SAN MIGUEL | B169: 1 | C169: 141 | D169: 80 | E169: 56.73758865 | F169: 78 | G169: 0 | H169: 4 | I169: 0 | J169: 0 | K169: 2 | L169: 0 | M169: 32 | N169: 30 | O169: 0 | P169: 1 | Q169: 2 | R169: 0 | S169: 7 | T169: 1 | U169: 1 | V169: 61 | W169: 43.26241135
A170: VISTA DE MAR NORTE | B170: 1 | C170: 216 | D170: 135 | E170: 62.5 | F170: 134 | G170: 0 | H170: 33 | I170: 0 | J170: 0 | K170: 13 | L170: 0 | M170: 62 | N170: 22 | O170: 0 | P170: 0 | Q170: 1 | R170: 0 | S170: 3 | T170: 0 | U170: 1 | V170: 81 | W170: 37.5
A171: BAJO REY | B171: 1 | C171: 45 | D171: 27 | E171: 60 | F171: 27 | G171: 0 | H171: 1 | I171: 0 | J171: 0 | K171: 5 | L171: 0 | M171: 15 | N171: 5 | O171: 0 | P171: 0 | Q171: 0 | R171: 0 | S171: 1 | T171: 0 | U171: 0 | V171: 18 | W171: 40
A172: CANTÓN 5 TARRAZÚ | B172: 27 | C172: 11458 | D172: 7499 | E172: 65.44772212 | F172: 7336 | G172: 43 | H172: 1976 | I172: 24 | J172: 16 | K172: 1594 | L172: 10 | M172: 2365 | N172: 488 | O172: 15 | P172: 68 | Q172: 30 | R172: 45 | S172: 662 | T172: 131 | U172: 32 | V172: 3959 | W172: 34.55227788
A173: DISTRITO 1 SAN MARCOS | B173: 14 | C173: 7290 | D173: 4905 | E173: 67.28395062 | F173: 4803 | G173: 32 | H173: 1523 | I173: 12 | J173: 9 | K173: 1015 | L173: 8 | M173: 1422 | N173: 292 | O173: 12 | P173: 38 | Q173: 20 | R173: 17 | S173: 403 | T173: 77 | U173: 25 | V173: 2385 | W173: 32.71604938
A174: SAN MARCOS | B174: 8 | C174: 4643 | D174: 3189 | E174: 68.68404049 | F174: 3128 | G174: 22 | H174: 1053 | I174: 11 | J174: 6 | K174: 661 | L174: 4 | M174: 869 | N174: 193 | O174: 10 | P174: 30 | Q174: 13 | R174: 11 | S174: 245 | T174: 42 | U174: 19 | V174: 1454 | W174: 31.31595951
A175: SAN PEDRO | B175: 1 | C175: 428 | D175: 315 | E175: 73.59813084 | F175: 310 | G175: 2 | H175: 90 | I175: 1 | J175: 1 | K175: 86 | L175: 2 | M175: 74 | N175: 8 | O175: 1 | P175: 0 | Q175: 0 | R175: 2 | S175: 43 | T175: 5 | U175: 0 | V175: 113 | W175: 26.40186916
A176: GUADALUPE | B176: 2 | C176: 1028 | D176: 669 | E176: 65.07782101 | F176: 644 | G176: 6 | H176: 222 | I176: 0 | J176: 0 | K176: 130 | L176: 1 | M176: 197 | N176: 31 | O176: 0 | P176: 7 | Q176: 6 | R176: 3 | S176: 41 | T176: 21 | U176: 4 | V176: 359 | W176: 34.92217899
A177: RODEO NORTE | B177: 2 | C177: 1127 | D177: 696 | E177: 61.75687666 | F177: 686 | G177: 2 | H177: 155 | I177: 0 | J177: 2 | K177: 136 | L177: 1 | M177: 266 | N177: 59 | O177: 1 | P177: 1 | Q177: 1 | R177: 1 | S177: 61 | T177: 9 | U177: 1 | V177: 431 | W177: 38.24312334
A178: H A LOS SANTOS | B178: 1 | C178: 64 | D178: 36 | E178: 56.25 | F178: 35 | G178: 0 | H178: 3 | I178: 0 | J178: 0 | K178: 2 | L178: 0 | M178: 16 | N178: 1 | O178: 0 | P178: 0 | Q178: 0 | R178: 0 | S178: 13 | T178: 0 | U178: 1 | V178: 28 | W178: 43.75
A179: DISTRITO 2 SAN LORENZO | B179: 10 | C179: 2826 | D179: 1773 | E179: =D179/C179*100 -> 62.7388535 | F179: 1734 | G179: 5 | H179: 337 | I179: 9 | J179: 3 | K179: 357 | L179: 1 | M179: 647 | N179: 132 | O179: 3 | P179: 24 | Q179: 5 | R179: 27 | S179: 184 | T179: 34 | U179: 5 | V179: 1053 | W179: 37.2611465
A180: SAN MARTÍN | B180: 1 | C180: 120 | D180: 70 | E180: 58.33333333 | F180: 68 | G180: 0 | H180: 6 | I180: 0 | J180: 0 | K180: 12 | L180: 0 | M180: 21 | N180: 22 | O180: 0 | P180: 3 | Q180: 1 | R180: 0 | S180: 3 | T180: 0 | U180: 2 | V180: 50 | W180: 41.66666667
A181: SAN LORENZO | B181: 4 | C181: 2024 | D181: 1246 | E181: 61.56126482 | F181: 1219 | G181: 4 | H181: 290 | I181: 6 | J181: 1 | K181: 260 | L181: 0 | M181: 427 | N181: 84 | O181: 3 | P181: 9 | Q181: 3 | R181: 7 | S181: 125 | T181: 25 | U181: 2 | V181: 778 | W181: 38.43873518
A182: ESQUIPULAS | B182: 1 | C182: 31 | D182: 16 | E182: 51.61290323 | F182: 14 | G182: 0 | H182: 0 | I182: 0 | J182: 1 | K182: 1 | L182: 0 | M182: 4 | N182: 4 | O182: 0 | P182: 0 | Q182: 1 | R182: 0 | S182: 3 | T182: 2 | U182: 0 | V182: 15 | W182: 48.38709677
A183: SAN MIGUEL O SALADO | B183: 1 | C183: 119 | D183: 77 | E183: 64.70588235 | F183: 75 | G183: 0 | H183: 12 | I183: 0 | J183: 0 | K183: 13 | L183: 0 | M183: 41 | N183: 2 | O183: 0 | P183: 0 | Q183: 0 | R183: 0 | S183: 7 | T183: 2 | U183: 0 | V183: 42 | W183: 35.29411765
A184: ZAPOTAL | B184: 1 | C184: 206 | D184: 135 | E184: 65.53398058 | F184: 134 | G184: 1 | H184: 12 | I184: 1 | J184: 1 | K184: 19 | L184: 0 | M184: 79 | N184: 5 | O184: 0 | P184: 9 | Q184: 0 | R184: 0 | S184: 7 | T184: 1 | U184: 0 | V184: 71 | W184: 34.46601942
A185: NÁPOLES | B185: 1 | C185: 278 | D185: 189 | E185: 67.98561151 | F185: 184 | G185: 0 | H185: 16 | I185: 2 | J185: 0 | K185: 49 | L185: 1 | M185: 70 | N185: 7 | O185: 0 | P185: 3 | Q185: 0 | R185: 1 | S185: 35 | T185: 4 | U185: 1 | V185: 89 | W185: 32.01438849
A186: QUEBRADA ARROYO | B186: 1 | C186: 48 | D186: 40 | E186: 83.33333333 | F186: 40 | G186: 0 | H186: 1 | I186: 0 | J186: 0 | K186: 3 | L186: 0 | M186: 5 | N186: 8 | O186: 0 | P186: 0 | Q186: 0 | R186: 19 | S186: 4 | T186: 0 | U186: 0 | V186: 8 | W186: 16.66666667
A187: DISTRITO 3 SAN CARLOS | B187: 3 | C187: 1342 | D187: 821 | E187: 61.17734724 | F187: 799 | G187: 6 | H187: 116 | I187: 3 | J187: 4 | K187: 222 | L187: 1 | M187: 296 | N187: 64 | O187: 0 | P187: 6 | Q187: 5 | R187: 1 | S187: 75 | T187: 20 | U187: 2 | V187: 521 | W187: 38.82265276
A188: SAN CARLOS | B188: 2 | C188: 861 | D188: 521 | E188: 60.51103368 | F188: 504 | G188: 4 | H188: 85 | I188: 1 | J188: 2 | K188: 163 | L188: 1 | M188: 164 | N188: 41 | O188: 0 | P188: 4 | Q188: 1 | R188: 0 | S188: 38 | T188: 16 | U188: 1 | V188: 340 | W188: 39.48896632
A189: SAN JERÓNIMO | B189: 1 | C189: 481 | D189: 300 | E189: 62.37006237 | F189: 295 | G189: 2 | H189: 31 | I189: 2 | J189: 2 | K189: 59 | L189: 0 | M189: 132 | N189: 23 | O189: 0 | P189: 2 | Q189: 4 | R189: 1 | S189: 37 | T189: 4 | U189: 1 | V189: 181 | W189: 37.62993763
A190: CANTÓN 6 ASERRÍ | B190: 81 | C190: 40321 | D190: 27861 | E190: =D190/C190*100 -> 69.09798864 | F190: 27278 | G190: 201 | H190: 8409 | I190: 81 | J190: 56 | K190: 4841 | L190: 41 | M190: 8889 | N190: 2455 | O190: 74 | P190: 362 | Q190: 139 | R190: 228 | S190: 1502 | T190: 521 | U190: 62 | V190: 12460 | W190: 30.90201136
A191: DISTRITO 1 ASERRÍ | B191: 40 | C191: 22902 | D191: 15903 | E191: =D191/C191*100 -> 69.43935028 | F191: 15594 | G191: 96 | H191: 5080 | I191: 25 | J191: 31 | K191: 2855 | L191: 23 | M191: 4649 | N191: 1432 | O191: 43 | P191: 233 | Q191: 71 | R191: 152 | S191: 904 | T191: 280 | U191: 29 | V191: 6999 | W191: 30.56064972
A192: ASERRÍ | B192: 30 | C192: 17703 | D192: 12434 | E192: =D192/C192*100 -> 70.23668305 | F192: 12203 | G192: 67 | H192: 4209 | I192: 20 | J192: 24 | K192: 2178 | L192: 15 | M192: 3660 | N192: 1019 | O192: 33 | P192: 189 | Q192: 42 | R192: 108 | S192: 639 | T192: 213 | U192: 18 | V192: 5269 | W192: =V192/C192*100 -> 29.76331695
A193: POÁS | B193: 9 | C193: 5162 | D193: 3438 | E193: 66.60209221 | F193: 3360 | G193: 28 | H193: 870 | I193: 5 | J193: 7 | K193: 675 | L193: 8 | M193: 981 | N193: 411 | O193: 10 | P193: 44 | Q193: 28 | R193: 44 | S193: 249 | T193: 67 | U193: 11 | V193: 1724 | W193: 33.39790779
A194: H A SAN FRANCISCO DE ASÍS | B194: 1 | C194: 37 | D194: 31 | E194: 83.78378378 | F194: 31 | G194: 1 | H194: 1 | I194: 0 | J194: 0 | K194: 2 | L194: 0 | M194: 8 | N194: 2 | O194: 0 | P194: 0 | Q194: 1 | R194: 0 | S194: 16 | T194: 0 | U194: 0 | V194: 6 | W194: 16.21621622
A195: DISTRITO 2 TARBACA | B195: 4 | C195: 1650 | D195: 1142 | E195: 69.21212121 | F195: 1103 | G195: 16 | H195: 315 | I195: 36 | J195: 3 | K195: 163 | L195: 1 | M195: 390 | N195: 99 | O195: 1 | P195: 15 | Q195: 2 | R195: 4 | S195: 58 | T195: 34 | U195: 5 | V195: 508 | W195: 30.78787879
A196: TARBACA O PRAGA | B196: 2 | C196: 1179 | D196: 792 | E196: 67.17557252 | F196: 767 | G196: 11 | H196: 255 | I196: 3 | J196: 2 | K196: 117 | L196: 1 | M196: 257 | N196: 76 | O196: 0 | P196: 12 | Q196: 1 | R196: 1 | S196: 31 | T196: 24 | U196: 1 | V196: 387 | W196: 32.82442748
A197: EL TIGRE | B197: 1 | C197: 180 | D197: 134 | E197: 74.44444444 | F197: 131 | G197: 1 | H197: 35 | I197: 0 | J197: 0 | K197: 15 | L197: 0 | M197: 58 | N197: 11 | O197: 0 | P197: 0 | Q197: 1 | R197: 2 | S197: 8 | T197: 2 | U197: 1 | V197: 46 | W197: 25.55555556
A198: CEDRAL | B198: 1 | C198: 291 | D198: 216 | E198: 74.22680412 | F198: 205 | G198: 4 | H198: 25 | I198: 33 | J198: 1 | K198: 31 | L198: 0 | M198: 75 | N198: 12 | O198: 1 | P198: 3 | Q198: 0 | R198: 1 | S198: 19 | T198: 8 | U198: 3 | V198: 75 | W198: 25.77319588
A199: DISTRITO 3 VUELTA DE JORCO | B199: 11 | C199: 4707 | D199: 3340 | E199: 70.95814744 | F199: 3270 | G199: 29 | H199: 1061 | I199: 6 | J199: 5 | K199: 508 | L199: 5 | M199: 1190 | N199: 235 | O199: 9 | P199: 37 | Q199: 8 | R199: 11 | S199: 166 | T199: 61 | U199: 9 | V199: 1367 | W199: 29.04185256
A200: JOCOTAL ABAJO | B200: 1 | C200: 208 | D200: 144 | E200: 69.23076923 | F200: 143 | G200: 0 | H200: 39 | I200: 0 | J200: 1 | K200: 44 | L200: 0 | M200: 41 | N200: 7 | O200: 0 | P200: 2 | Q200: 0 | R200: 1 | S200: 8 | T200: 1 | U200: 0 | V200: 64 | W200: 30.76923077
A201: VUELTA DE JORCO | B201: 6 | C201: 3077 | D201: 2252 | E201: 73.1881703 | F201: 2212 | G201: 18 | H201: 863 | I201: 5 | J201: 3 | K201: 315 | L201: 2 | M201: 699 | N201: 154 | O201: 8 | P201: 22 | Q201: 6 | R201: 7 | S201: 110 | T201: 34 | U201: 6 | V201: 825 | W201: 26.8118297
A202: MONTE REDONDO | B202: 2 | C202: 630 | D202: 455 | E202: 72.22222222 | F202: 438 | G202: 7 | H202: 93 | I202: 0 | J202: 0 | K202: 77 | L202: 2 | M202: 193 | N202: 29 | O202: 0 | P202: 10 | Q202: 1 | R202: 1 | S202: 25 | T202: 14 | U202: 3 | V202: 175 | W202: 27.77777778
A203: LEGUA DE LOS NARANJOS | B203: 1 | C203: 328 | D203: 169 | E203: 51.52439024 | F203: 165 | G203: 2 | H203: 18 | I203: 1 | J203: 0 | K203: 24 | L203: 1 | M203: 100 | N203: 14 | O203: 0 | P203: 2 | Q203: 0 | R203: 0 | S203: 3 | T203: 4 | U203: 0 | V203: 159 | W203: 48.47560976
... 386 more rows

Sheet C1.12
A2: CUADRO 1.12 ALAJUELA: JUNTAS, ELECTORADO, PARTICIPACIÓN, VOTOS POR PARTIDO, NULOS, BLANCOS Y ABSTENCIONISMO, PARA PRESIDENCIA Y VICEPRESIDENCIAS DE LA REPÚBLICA, SEGÚN CANTÓN, DISTRITO ADMINISTRATIVO Y DISTRITO ELECTORAL ELECCIONES 2 DE FEBRERO 2014
A4: CANTÓN, DISTRITO ADMINISTRATIVO Y DISTRITO ELECTORAL | B4: JUNTAS | C4: ELECTORADO | D4: VOTOS RECIBIDOS | V4: ABSTENCIONISMO
D5: TOTAL GENERAL | E5: % PARTICIPACIÓN | F5: VOTOS VÁLIDOS | T5: NULOS | U5: BLANCOS | V5: ABSOLUTO | W5: %
F6: TOTAL | G6: ACCESIBILIDAD SIN EXCLUSIÓN | H6: ACCIÓN CIUDADANA | I6: AVANCE NACIONAL | J6: DE LOS TRABAJADORES | K6: FRENTE AMPLIO | L6: INTEGRACIÓN NACIONAL | M6: LIBERACIÓN NACIONAL | N6: MOVIMIENTO LIBERTARIO | O6: NUEVA GENERACIÓN | P6: PATRIA NUEVA | Q6: RENOVACIÓN COSTARRICENSE | R6: RESTAURACIÓN NACIONAL | S6: UNIDAD SOCIAL CRISTIANA
A7: PROVINCIA ALAJUELA | B7: 1259 | C7: 577493 | D7: 407823 | E7: =D7/C7*100 -> 70.61955729 | F7: 399846 | G7: 1729 | H7: 124172 | I7: 639 | J7: 1059 | K7: 73333 | L7: 458 | M7: 119081 | N7: 41389 | O7: 863 | P7: 8511 | Q7: 2592 | R7: 4577 | S7: 21443 | T7: 7029 | U7: 948 | V7: 169670 | W7: =V7/C7*100 -> 29.38044271
A8: CANTÓN 1 ALAJUELA | B8: 365 | C8: 185688 | D8: 128287 | E8: =D8/C8*100 -> 69.08739391 | F8: 125921 | G8: 685 | H8: 42861 | I8: 216 | J8: 308 | K8: 20403 | L8: 149 | M8: 35541 | N8: 14668 | O8: 322 | P8: 1476 | Q8: 790 | R8: 1496 | S8: 7006 | T8: 2184 | U8: 182 | V8: 57401 | W8: =V8/C8*100 -> 30.91260609
A9: DISTRITO 1 ALAJUELA | B9: 73 | C9: 39008 | D9: 27744 | E9: =D9/C9*100 -> 71.12387203 | F9: 27366 | G9: 132 | H9: 9963 | I9: 36 | J9: 65 | K9: 4470 | L9: 33 | M9: 7973 | N9: 2507 | O9: 72 | P9: 334 | Q9: 130 | R9: 285 | S9: 1366 | T9: 351 | U9: 27 | V9: 11264 | W9: =V9/C9*100 -> 28.87612797
A10: ALAJUELA | B10: 17 | C10: 9276 | D10: 6713 | E10: 72.36955584 | F10: 6659 | G10: 20 | H10: 2549 | I10: 11 | J10: 11 | K10: 949 | L10: 5 | M10: 2104 | N10: 543 | O10: 11 | P10: 94 | Q10: 15 | R10: 48 | S10: 299 | T10: 51 | U10: 3 | V10: 2563 | W10: 27.63044416
A11: CONCEPCIÓN O EL LLANO | B11: 18 | C11: 9777 | D11: 7272 | E11: 74.37864376 | F11: 7174 | G11: 30 | H11: 2713 | I11: 6 | J11: 14 | K11: 1240 | L11: 6 | M11: 1972 | N11: 630 | O11: 23 | P11: 93 | Q11: 39 | R11: 74 | S11: 334 | T11: 90 | U11: 8 | V11: 2505 | W11: 25.62135624
A12: CANOAS | B12: 16 | C12: 8440 | D12: 5759 | E12: 68.23459716 | F12: 5663 | G12: 35 | H12: 2116 | I12: 8 | J12: 16 | K12: 928 | L12: 5 | M12: 1518 | N12: 527 | O12: 20 | P12: 52 | Q12: 31 | R12: 65 | S12: 342 | T12: 91 | U12: 5 | V12: 2681 | W12: 31.76540284
A13: MONTECILLOS [PARTE NORTE] | B13: 8 | C13: 4671 | D13: 3078 | E13: 65.89595376 | F13: 3004 | G13: 27 | H13: 893 | I13: 4 | J13: 12 | K13: 556 | L13: 8 | M13: 877 | N13: 345 | O13: 8 | P13: 38 | Q13: 30 | R13: 62 | S13: 144 | T13: 64 | U13: 10 | V13: 1593 | W13: 34.10404624
A14: H A SANTIAGO CRESPO CALVO | B14: 1 | C14: 190 | D14: 95 | E14: 50 | F14: 93 | G14: 0 | H14: 7 | I14: 3 | J14: 0 | K14: 6 | L14: 2 | M14: 52 | N14: 4 | O14: 1 | P14: 0 | Q14: 2 | R14: 1 | S14: 15 | T14: 1 | U14: 1 | V14: 95 | W14: 50
A15: CORAZÓN DE JESÚS | B15: 2 | C15: 1029 | D15: 756 | E15: 73.46938776 | F15: 752 | G15: 6 | H15: 283 | I15: 2 | J15: 1 | K15: 131 | L15: 1 | M15: 206 | N15: 63 | O15: 1 | P15: 10 | Q15: 5 | R15: 2 | S15: 41 | T15: 4 | U15: 0 | V15: 273 | W15: 26.53061224
A16: EL ARROYO | B16: 3 | C16: 1222 | D16: 954 | E16: 78.06873977 | F16: 944 | G16: 1 | H16: 350 | I16: 0 | J16: 2 | K16: 129 | L16: 1 | M16: 304 | N16: 83 | O16: 1 | P16: 12 | Q16: 1 | R16: 18 | S16: 42 | T16: 10 | U16: 0 | V16: 268 | W16: 21.93126023
A17: EL CARMEN | B17: 8 | C17: 4403 | D17: 3117 | E17: 70.79264138 | F17: 3077 | G17: 13 | H17: 1052 | I17: 2 | J17: 9 | K17: 531 | L17: 5 | M17: 940 | N17: 312 | O17: 7 | P17: 35 | Q17: 7 | R17: 15 | S17: 149 | T17: 40 | U17: 0 | V17: 1286 | W17: 29.20735862
A18: DISTRITO 2 SAN JOSÉ | B18: 57 | C18: 31198 | D18: 21745 | E18: 69.69998077 | F18: 21402 | G18: 98 | H18: 7971 | I18: 32 | J18: 56 | K18: 3444 | L18: 16 | M18: 5619 | N18: 2413 | O18: 55 | P18: 267 | Q18: 96 | R18: 303 | S18: 1032 | T18: 325 | U18: 18 | V18: 9453 | W18: 30.30001923
A19: SAN JOSÉ | B19: 15 | C19: 8936 | D19: 5855 | E19: 65.52148612 | F19: 5754 | G19: 37 | H19: 1905 | I19: 6 | J19: 16 | K19: 936 | L19: 6 | M19: 1561 | N19: 797 | O19: 13 | P19: 82 | Q19: 29 | R19: 82 | S19: 284 | T19: 96 | U19: 5 | V19: 3081 | W19: 34.47851388
A20: EL COYOL | B20: 12 | C20: 6134 | D20: 4375 | E20: 71.32376916 | F20: 4305 | G20: 13 | H20: 1655 | I20: 6 | J20: 9 | K20: 749 | L20: 3 | M20: 1098 | N20: 476 | O20: 14 | P20: 31 | Q20: 21 | R20: 57 | S20: 173 | T20: 68 | U20: 2 | V20: 1759 | W20: 28.67623084
A21: TUETAL SUR | B21: 3 | C21: 1421 | D21: 899 | E21: 63.26530612 | F21: 878 | G21: 7 | H21: 255 | I21: 1 | J21: 6 | K21: 92 | L21: 2 | M21: 307 | N21: 124 | O21: 1 | P21: 9 | Q21: 7 | R21: 15 | S21: 52 | T21: 20 | U21: 1 | V21: 522 | W21: 36.73469388
A22: PUEBLO NUEVO | B22: 7 | C22: 3742 | D22: 2611 | E22: 69.77552111 | F22: 2577 | G22: 11 | H22: 905 | I22: 5 | J22: 4 | K22: 452 | L22: 2 | M22: 667 | N22: 282 | O22: 14 | P22: 58 | Q22: 10 | R22: 31 | S22: 136 | T22: 32 | U22: 2 | V22: 1131 | W22: 30.22447889
A23: PACTO DEL JOCOTE | B23: 20 | C23: 10965 | D23: 8005 | E23: 73.00501596 | F23: 7888 | G23: 30 | H23: 3251 | I23: 14 | J23: 21 | K23: 1215 | L23: 3 | M23: 1986 | N23: 734 | O23: 13 | P23: 87 | Q23: 29 | R23: 118 | S23: 387 | T23: 109 | U23: 8 | V23: 2960 | W23: 26.99498404
A24: DISTRITO 3 CARRIZAL | B24: 10 | C24: 4360 | D24: 2843 | E24: 65.20642202 | F24: 2778 | G24: 10 | H24: 933 | I24: 2 | J24: 12 | K24: 385 | L24: 3 | M24: 802 | N24: 250 | O24: 8 | P24: 16 | Q24: 16 | R24: 47 | S24: 294 | T24: 61 | U24: 4 | V24: 1517 | W24: 34.79357798
A25: CARRIZAL | B25: 5 | C25: 2372 | D25: 1590 | E25: 67.03204047 | F25: 1554 | G25: 5 | H25: 521 | I25: 1 | J25: 5 | K25: 217 | L25: 2 | M25: 444 | N25: 132 | O25: 6 | P25: 11 | Q25: 5 | R25: 15 | S25: 190 | T25: 35 | U25: 1 | V25: 782 | W25: 32.96795953
A26: CINCO ESQUINAS | B26: 2 | C26: 760 | D26: 445 | E26: 58.55263158 | F26: 436 | G26: 2 | H26: 158 | I26: 0 | J26: 3 | K26: 48 | L26: 0 | M26: 123 | N26: 32 | O26: 0 | P26: 2 | Q26: 7 | R26: 17 | S26: 44 | T26: 8 | U26: 1 | V26: 315 | W26: 41.44736842
A27: PAVAS [GUARARÍ] | B27: 3 | C27: 1228 | D27: 808 | E27: 65.7980456 | F27: 788 | G27: 3 | H27: 254 | I27: 1 | J27: 4 | K27: 120 | L27: 1 | M27: 235 | N27: 86 | O27: 2 | P27: 3 | Q27: 4 | R27: 15 | S27: 60 | T27: 18 | U27: 2 | V27: 420 | W27: 34.2019544
A28: DISTRITO 4 SAN ANTONIO | B28: 37 | C28: 20632 | D28: 14311 | E28: 69.36312524 | F28: 14027 | G28: 73 | H28: 4859 | I28: 17 | J28: 39 | K28: 2208 | L28: 21 | M28: 3845 | N28: 1800 | O28: 40 | P28: 151 | Q28: 123 | R28: 182 | S28: 669 | T28: 269 | U28: 15 | V28: 6321 | W28: 30.63687476
A29: SAN ANTONIO DEL TEJAR | B29: 5 | C29: 2528 | D29: 1832 | E29: 72.46835443 | F29: 1814 | G29: 5 | H29: 666 | I29: 3 | J29: 5 | K29: 293 | L29: 4 | M29: 507 | N29: 191 | O29: 1 | P29: 23 | Q29: 7 | R29: 13 | S29: 96 | T29: 17 | U29: 1 | V29: 696 | W29: 27.53164557
A30: EL ROBLE | B30: 14 | C30: 8307 | D30: 5730 | E30: 68.97797039 | F30: 5605 | G30: 28 | H30: 2031 | I30: 4 | J30: 8 | K30: 908 | L30: 6 | M30: 1451 | N30: 695 | O30: 20 | P30: 50 | Q30: 46 | R30: 83 | S30: 275 | T30: 122 | U30: 3 | V30: 2577 | W30: 31.02202961
A31: VILLA BONITA [PARTE SUR] | B31: 11 | C31: 6075 | D31: 4187 | E31: 68.9218107 | F31: 4102 | G31: 26 | H31: 1419 | I31: 4 | J31: 21 | K31: 645 | L31: 3 | M31: 1183 | N31: 478 | O31: 13 | P31: 49 | Q31: 42 | R31: 44 | S31: 175 | T31: 78 | U31: 7 | V31: 1888 | W31: 31.0781893
A32: CIRUELAS | B32: 7 | C32: 3722 | D32: 2562 | E32: 68.83396024 | F32: 2506 | G32: 14 | H32: 743 | I32: 6 | J32: 5 | K32: 362 | L32: 8 | M32: 704 | N32: 436 | O32: 6 | P32: 29 | Q32: 28 | R32: 42 | S32: 123 | T32: 52 | U32: 4 | V32: 1160 | W32: 31.16603976
A33: DISTRITO 5 GUÁCIMA | B33: 26 | C33: 12637 | D33: 8982 | E33: 71.07699612 | F33: 8782 | G33: 46 | H33: 2786 | I33: 22 | J33: 18 | K33: 1333 | L33: 8 | M33: 2435 | N33: 1229 | O33: 22 | P33: 90 | Q33: 98 | R33: 84 | S33: 611 | T33: 177 | U33: 23 | V33: 3655 | W33: 28.92300388
A34: GUÁCIMA [SANTIAGO OESTE] | B34: 9 | C34: 4495 | D34: 3241 | E34: 72.10233593 | F34: 3180 | G34: 15 | H34: 1188 | I34: 7 | J34: 6 | K34: 445 | L34: 6 | M34: 902 | N34: 344 | O34: 6 | P34: 42 | Q34: 24 | R34: 17 | S34: 178 | T34: 54 | U34: 7 | V34: 1254 | W34: 27.89766407
A35: EL COCO | B35: 4 | C35: 1812 | D35: 1253 | E35: 69.15011038 | F35: 1221 | G35: 4 | H35: 353 | I35: 0 | J35: 4 | K35: 217 | L35: 1 | M35: 336 | N35: 174 | O35: 5 | P35: 5 | Q35: 8 | R35: 15 | S35: 99 | T35: 29 | U35: 3 | V35: 559 | W35: 30.84988962
A36: LAS VUELTAS | B36: 2 | C36: 1053 | D36: 805 | E36: 76.44824311 | F36: 792 | G36: 1 | H36: 224 | I36: 3 | J36: 0 | K36: 129 | L36: 0 | M36: 290 | N36: 91 | O36: 2 | P36: 3 | Q36: 3 | R36: 3 | S36: 43 | T36: 12 | U36: 1 | V36: 248 | W36: 23.55175689
A37: NUESTRO AMO | B37: 3 | C37: 1468 | D37: 1135 | E37: 77.31607629 | F37: 1119 | G37: 5 | H37: 285 | I37: 3 | J37: 2 | K37: 189 | L37: 1 | M37: 342 | N37: 148 | O37: 0 | P37: 9 | Q37: 3 | R37: 6 | S37: 126 | T37: 15 | U37: 1 | V37: 333 | W37: 22.68392371
A38: RINCÓN CHIQUITO | B38: 4 | C38: 2000 | D38: 1329 | E38: 66.45 | F38: 1287 | G38: 15 | H38: 404 | I38: 6 | J38: 3 | K38: 184 | L38: 0 | M38: 280 | N38: 232 | O38: 6 | P38: 19 | Q38: 48 | R38: 27 | S38: 63 | T38: 37 | U38: 5 | V38: 671 | W38: 33.55
A39: RINCÓN DE HERRERA | B39: 4 | C39: 1809 | D39: 1219 | E39: 67.38529574 | F39: 1183 | G39: 6 | H39: 332 | I39: 3 | J39: 3 | K39: 169 | L39: 0 | M39: 285 | N39: 240 | O39: 3 | P39: 12 | Q39: 12 | R39: 16 | S39: 102 | T39: 30 | U39: 6 | V39: 590 | W39: 32.61470426
A40: DISTRITO 6 SAN ISIDRO | B40: 21 | C40: 10895 | D40: 7416 | E40: 68.06792106 | F40: 7266 | G40: 50 | H40: 2447 | I40: 16 | J40: 16 | K40: 1193 | L40: 11 | M40: 2038 | N40: 761 | O40: 14 | P40: 117 | Q40: 38 | R40: 86 | S40: 479 | T40: 140 | U40: 10 | V40: 3479 | W40: 31.93207894
A41: SAN ISIDRO | B41: 3 | C41: 1756 | D41: 1194 | E41: 67.99544419 | F41: 1173 | G41: 10 | H41: 410 | I41: 3 | J41: 2 | K41: 165 | L41: 3 | M41: 362 | N41: 103 | O41: 3 | P41: 10 | Q41: 5 | R41: 9 | S41: 88 | T41: 20 | U41: 1 | V41: 562 | W41: 32.00455581
A42: ITIQUÍS | B42: 5 | C42: 2978 | D42: 1948 | E42: 65.41302888 | F42: 1906 | G42: 8 | H42: 577 | I42: 4 | J42: 4 | K42: 378 | L42: 1 | M42: 544 | N42: 190 | O42: 2 | P42: 36 | Q42: 8 | R42: 27 | S42: 127 | T42: 39 | U42: 3 | V42: 1030 | W42: 34.58697112
A43: DULCE NOMBRE DE LAGUNA | B43: 3 | C43: 1334 | D43: 876 | E43: 65.66716642 | F43: 839 | G43: 7 | H43: 213 | I43: 1 | J43: 2 | K43: 156 | L43: 2 | M43: 259 | N43: 118 | O43: 0 | P43: 5 | Q43: 8 | R43: 15 | S43: 53 | T43: 37 | U43: 0 | V43: 458 | W43: 34.33283358
A44: SAN MARTÍN | B44: 4 | C44: 2097 | D44: 1532 | E44: 73.05674773 | F44: 1512 | G44: 5 | H44: 593 | I44: 5 | J44: 1 | K44: 237 | L44: 3 | M44: 400 | N44: 136 | O44: 4 | P44: 27 | Q44: 1 | R44: 9 | S44: 91 | T44: 16 | U44: 4 | V44: 565 | W44: 26.94325227
A45: TACACORÍ | B45: 3 | C45: 1547 | D45: 1070 | E45: 69.16612799 | F45: 1056 | G45: 12 | H45: 348 | I45: 2 | J45: 5 | K45: 146 | L45: 2 | M45: 276 | N45: 133 | O45: 3 | P45: 28 | Q45: 13 | R45: 21 | S45: 67 | T45: 13 | U45: 1 | V45: 477 | W45: 30.83387201
A46: CERRILLAL | B46: 1 | C46: 301 | D46: 181 | E46: 60.13289037 | F46: 174 | G46: 6 | H46: 54 | I46: 0 | J46: 2 | K46: 40 | L46: 0 | M46: 41 | N46: 11 | O46: 0 | P46: 2 | Q46: 0 | R46: 2 | S46: 16 | T46: 6 | U46: 1 | V46: 120 | W46: 39.86710963
A47: LAS PILAS | B47: 2 | C47: 882 | D47: 615 | E47: 69.72789116 | F47: 606 | G47: 2 | H47: 252 | I47: 1 | J47: 0 | K47: 71 | L47: 0 | M47: 156 | N47: 70 | O47: 2 | P47: 9 | Q47: 3 | R47: 3 | S47: 37 | T47: 9 | U47: 0 | V47: 267 | W47: 30.27210884
A48: DISTRITO 7 SABANILLA | B48: 12 | C48: 4949 | D48: 3417 | E48: 69.04425136 | F48: 3344 | G48: 22 | H48: 886 | I48: 10 | J48: 7 | K48: 471 | L48: 3 | M48: 1198 | N48: 467 | O48: 10 | P48: 25 | Q48: 11 | R48: 40 | S48: 194 | T48: 68 | U48: 5 | V48: 1532 | W48: 30.95574864
A49: SABANILLA | B49: 3 | C49: 1186 | D49: 862 | E49: 72.68128162 | F49: 845 | G49: 4 | H49: 230 | I49: 5 | J49: 3 | K49: 134 | L49: 0 | M49: 326 | N49: 81 | O49: 7 | P49: 7 | Q49: 2 | R49: 8 | S49: 38 | T49: 17 | U49: 0 | V49: 324 | W49: 27.31871838
A50: SAN LUIS | B50: 2 | C50: 934 | D50: 677 | E50: 72.48394004 | F50: 665 | G50: 5 | H50: 160 | I50: 0 | J50: 2 | K50: 102 | L50: 2 | M50: 287 | N50: 61 | O50: 0 | P50: 4 | Q50: 1 | R50: 8 | S50: 33 | T50: 11 | U50: 1 | V50: 257 | W50: 27.51605996
A51: LOS ÁNGELES | B51: 2 | C51: 893 | D51: 563 | E51: 63.04591265 | F51: 548 | G51: 3 | H51: 115 | I51: 2 | J51: 1 | K51: 91 | L51: 0 | M51: 184 | N51: 108 | O51: 1 | P51: 4 | Q51: 2 | R51: 6 | S51: 31 | T51: 14 | U51: 1 | V51: 330 | W51: 36.95408735
A52: FRAIJANES | B52: 2 | C52: 711 | D52: 448 | E52: 63.00984529 | F52: 440 | G52: 4 | H52: 134 | I52: 2 | J52: 0 | K52: 48 | L52: 0 | M52: 142 | N52: 77 | O52: 0 | P52: 4 | Q52: 3 | R52: 2 | S52: 24 | T52: 7 | U52: 1 | V52: 263 | W52: 36.99015471
A53: POASITO | B53: 2 | C53: 712 | D53: 510 | E53: 71.62921348 | F53: 497 | G53: 2 | H53: 145 | I53: 0 | J53: 1 | K53: 48 | L53: 0 | M53: 162 | N53: 80 | O53: 2 | P53: 2 | Q53: 2 | R53: 6 | S53: 47 | T53: 13 | U53: 0 | V53: 202 | W53: 28.37078652
A54: EL CERRO | B54: 1 | C54: 513 | D54: 357 | E54: 69.59064327 | F54: 349 | G54: 4 | H54: 102 | I54: 1 | J54: 0 | K54: 48 | L54: 1 | M54: 97 | N54: 60 | O54: 0 | P54: 4 | Q54: 1 | R54: 10 | S54: 21 | T54: 6 | U54: 2 | V54: 156 | W54: 30.40935673
A55: DISTRITO 8 SAN RAFAEL | B55: 35 | C55: 16471 | D55: 10490 | E55: 63.68769352 | F55: 10257 | G55: 75 | H55: 2857 | I55: 16 | J55: 27 | K55: 1750 | L55: 10 | M55: 3060 | N55: 1496 | O55: 21 | P55: 138 | Q55: 74 | R55: 61 | S55: 672 | T55: 210 | U55: 23 | V55: 5981 | W55: 36.31230648
A56: SAN RAFAEL ESTE | B56: 12 | C56: 6526 | D56: 4622 | E56: 70.82439473 | F56: 4549 | G56: 24 | H56: 1331 | I56: 5 | J56: 10 | K56: 746 | L56: 3 | M56: 1402 | N56: 623 | O56: 9 | P56: 66 | Q56: 28 | R56: 17 | S56: 285 | T56: 67 | U56: 6 | V56: 1904 | W56: 29.17560527
A57: SAN RAFAEL OESTE | B57: 13 | C57: 7140 | D57: 5044 | E57: 70.6442577 | F57: 4921 | G57: 35 | H57: 1464 | I57: 9 | J57: 12 | K57: 755 | L57: 6 | M57: 1397 | N57: 763 | O57: 10 | P57: 66 | Q57: 36 | R57: 33 | S57: 335 | T57: 114 | U57: 9 | V57: 2096 | W57: 29.3557423
A58: C P TALLERES INDUSTRIALES | B58: 1 | C58: 169 | D58: 59 | E58: 34.9112426 | F58: 59 | G58: 0 | H58: 4 | I58: 0 | J58: 0 | K58: 20 | L58: 0 | M58: 18 | N58: 8 | O58: 0 | P58: 2 | Q58: 1 | R58: 1 | S58: 5 | T58: 0 | U58: 0 | V58: 110 | W58: 65.0887574
A59: C P SAN RAFAEL | B59: 1 | C59: 415 | D59: 105 | E59: 25.30120482 | F59: 99 | G59: 5 | H59: 10 | I59: 1 | J59: 1 | K59: 21 | L59: 0 | M59: 41 | N59: 8 | O59: 0 | P59: 1 | Q59: 0 | R59: 0 | S59: 11 | T59: 6 | U59: 0 | V59: 310 | W59: 74.69879518
A60: C P ÁMBITO B [MÍNIMA] | B60: 2 | C60: 459 | D60: 124 | E60: 27.01525054 | F60: 115 | G60: 2 | H60: 8 | I60: 0 | J60: 0 | K60: 36 | L60: 0 | M60: 42 | N60: 14 | O60: 0 | P60: 0 | Q60: 0 | R60: 1 | S60: 12 | T60: 7 | U60: 2 | V60: 335 | W60: 72.98474946
A61: C P ÁMBITO C [MEDIANA ABIERTA] | B61: 1 | C61: 434 | D61: 120 | E61: 27.64976959 | F61: 117 | G61: 4 | H61: 16 | I61: 0 | J61: 0 | K61: 36 | L61: 0 | M61: 39 | N61: 12 | O61: 2 | P61: 0 | Q61: 2 | R61: 2 | S61: 4 | T61: 1 | U61: 2 | V61: 314 | W61: 72.35023041
A62: C P ÁMBITOS D [MED CERRADA] E [MÁXIMA] | B62: 1 | C62: 380 | D62: 113 | E62: 29.73684211 | F62: 109 | G62: 3 | H62: 8 | I62: 0 | J62: 0 | K62: 39 | L62: 1 | M62: 35 | N62: 22 | O62: 0 | P62: 0 | Q62: 0 | R62: 1 | S62: 0 | T62: 4 | U62: 0 | V62: 267 | W62: 70.26315789
A63: C P GERARDO RODRÍGUEZ ECHEVERRÍA | B63: 2 | C63: 744 | D63: 227 | E63: 30.51075269 | F63: 219 | G63: 2 | H63: 12 | I63: 0 | J63: 4 | K63: 79 | L63: 0 | M63: 62 | N63: 35 | O63: 0 | P63: 3 | Q63: 4 | R63: 6 | S63: 12 | T63: 6 | U63: 2 | V63: 517 | W63: 69.48924731
A64: C P ADULTO MAYOR | B64: 1 | C64: 138 | D64: 73 | E64: 52.89855072 | F64: 67 | G64: 0 | H64: 4 | I64: 1 | J64: 0 | K64: 18 | L64: 0 | M64: 23 | N64: 10 | O64: 0 | P64: 0 | Q64: 3 | R64: 0 | S64: 8 | T64: 4 | U64: 2 | V64: 65 | W64: 47.10144928
A65: C P ADULTO JOVEN | B65: 1 | C65: 66 | D65: 3 | E65: 4.545454545 | F65: 2 | G65: 0 | H65: 0 | I65: 0 | J65: 0 | K65: 0 | L65: 0 | M65: 1 | N65: 1 | O65: 0 | P65: 0 | Q65: 0 | R65: 0 | S65: 0 | T65: 1 | U65: 0 | V65: 63 | W65: 95.45454545
A66: DISTRITO 9 RÍO SEGUNDO | B66: 17 | C66: 8725 | D66: 5950 | E66: 68.19484241 | F66: 5813 | G66: 42 | H66: 2038 | I66: 19 | J66: 14 | K66: 827 | L66: 12 | M66: 1682 | N66: 665 | O66: 11 | P66: 77 | Q66: 42 | R66: 70 | S66: 314 | T66: 119 | U66: 18 | V66: 2775 | W66: 31.80515759
A67: RÍO SEGUNDO [SANTIAGO ESTE] | B67: 9 | C67: 4518 | D67: 3164 | E67: 70.03098716 | F67: 3109 | G67: 18 | H67: 1145 | I67: 11 | J67: 6 | K67: 420 | L67: 5 | M67: 852 | N67: 388 | O67: 5 | P67: 48 | Q67: 24 | R67: 38 | S67: 149 | T67: 45 | U67: 10 | V67: 1354 | W67: 29.96901284
A68: CACIQUE | B68: 4 | C68: 2325 | D68: 1575 | E68: 67.74193548 | F68: 1536 | G68: 12 | H68: 527 | I68: 5 | J68: 2 | K68: 254 | L68: 5 | M68: 469 | N68: 135 | O68: 3 | P68: 17 | Q68: 9 | R68: 19 | S68: 79 | T68: 37 | U68: 2 | V68: 750 | W68: 32.25806452
A69: VILLA HELIA [FINCA HELIA] | B69: 2 | C69: 953 | D69: 671 | E69: 70.409234 | F69: 650 | G69: 5 | H69: 234 | I69: 2 | J69: 2 | K69: 78 | L69: 1 | M69: 191 | N69: 68 | O69: 1 | P69: 7 | Q69: 4 | R69: 7 | S69: 50 | T69: 20 | U69: 1 | V69: 282 | W69: 29.590766
A70: CALIFORNIA | B70: 2 | C70: 929 | D70: 540 | E70: 58.1270183 | F70: 518 | G70: 7 | H70: 132 | I70: 1 | J70: 4 | K70: 75 | L70: 1 | M70: 170 | N70: 74 | O70: 2 | P70: 5 | Q70: 5 | R70: 6 | S70: 36 | T70: 17 | U70: 5 | V70: 389 | W70: 41.8729817
A71: DISTRITO 10 DESAMPARADOS | B71: 32 | C71: 16820 | D71: 11625 | E71: 69.11414982 | F71: 11409 | G71: 56 | H71: 3840 | I71: 23 | J71: 38 | K71: 1850 | L71: 17 | M71: 2991 | N71: 1529 | O71: 38 | P71: 143 | Q71: 94 | R71: 132 | S71: 658 | T71: 199 | U71: 17 | V71: 5195 | W71: 30.88585018
A72: DESAMPARADOS | B72: 17 | C72: 9126 | D72: 6402 | E72: 70.15121631 | F72: 6288 | G72: 33 | H72: 2178 | I72: 12 | J72: 25 | K72: 1046 | L72: 10 | M72: 1559 | N72: 888 | O72: 22 | P72: 61 | Q72: 45 | R72: 51 | S72: 358 | T72: 106 | U72: 8 | V72: 2724 | W72: 29.84878369
A73: INVU LOS RODRÍGUEZ | B73: 13 | C73: 6749 | D73: 4588 | E73: =D73/C73*100 -> 67.98044155 | F73: 4502 | G73: 22 | H73: 1486 | I73: 10 | J73: 13 | K73: 721 | L73: 6 | M73: 1214 | N73: 543 | O73: 13 | P73: 62 | Q73: 46 | R73: 80 | S73: 286 | T73: 77 | U73: 9 | V73: 2161 | W73: =V73/C73*100 -> 32.01955845
A74: ROSALES | B74: 2 | C74: 945 | D74: 635 | E74: 67.1957672 | F74: 619 | G74: 1 | H74: 176 | I74: 1 | J74: 0 | K74: 83 | L74: 1 | M74: 218 | N74: 98 | O74: 3 | P74: 20 | Q74: 3 | R74: 1 | S74: 14 | T74: 16 | U74: 0 | V74: 310 | W74: 32.8042328
A75: DISTRITO 11 TURRÚCARES | B75: 12 | C75: 5075 | D75: 3541 | E75: 69.77339901 | F75: 3467 | G75: 15 | H75: 1055 | I75: 6 | J75: 3 | K75: 839 | L75: 1 | M75: 938 | N75: 332 | O75: 13 | P75: 12 | Q75: 20 | R75: 63 | S75: 170 | T75: 69 | U75: 5 | V75: 1534 | W75: 30.22660099
A76: TURRÚCARES | B76: 7 | C76: 3383 | D76: 2408 | E76: 71.17942654 | F76: 2358 | G76: 9 | H76: 771 | I76: 3 | J76: 2 | K76: 548 | L76: 0 | M76: 617 | N76: 206 | O76: 9 | P76: 7 | Q76: 12 | R76: 47 | S76: 127 | T76: 48 | U76: 2 | V76: 975 | W76: 28.82057346
A77: CEBADILLA | B77: 2 | C77: 818 | D77: 560 | E77: 68.4596577 | F77: 545 | G77: 2 | H77: 142 | I77: 1 | J77: 1 | K77: 183 | L77: 1 | M77: 123 | N77: 42 | O77: 3 | P77: 5 | Q77: 5 | R77: 12 | S77: 25 | T77: 14 | U77: 1 | V77: 258 | W77: 31.5403423
A78: SAN MIGUEL O CERRILLOS | B78: 2 | C78: 680 | D78: 426 | E78: 62.64705882 | F78: 418 | G78: 3 | H78: 103 | I78: 2 | J78: 0 | K78: 86 | L78: 0 | M78: 139 | N78: 62 | O78: 0 | P78: 0 | Q78: 2 | R78: 4 | S78: 17 | T78: 6 | U78: 2 | V78: 254 | W78: 37.35294118
A79: SIQUIARES | B79: 1 | C79: 194 | D79: 147 | E79: 75.77319588 | F79: 146 | G79: 1 | H79: 39 | I79: 0 | J79: 0 | K79: 22 | L79: 0 | M79: 59 | N79: 22 | O79: 1 | P79: 0 | Q79: 1 | R79: 0 | S79: 1 | T79: 1 | U79: 0 | V79: 47 | W79: 24.22680412
A80: DISTRITO 12 TAMBOR | B80: 18 | C80: 8637 | D80: 5919 | E80: 68.53073984 | F80: 5799 | G80: 35 | H80: 1897 | I80: 10 | J80: 9 | K80: 922 | L80: 10 | M80: 1725 | N80: 679 | O80: 9 | P80: 63 | Q80: 28 | R80: 93 | S80: 319 | T80: 112 | U80: 8 | V80: 2718 | W80: 31.46926016
A81: TAMBOR [SANTA ANA] | B81: 4 | C81: 1924 | D81: 1410 | E81: 73.28482328 | F81: 1396 | G81: 8 | H81: 541 | I81: 3 | J81: 4 | K81: 206 | L81: 1 | M81: 357 | N81: 133 | O81: 2 | P81: 21 | Q81: 4 | R81: 21 | S81: 95 | T81: 13 | U81: 1 | V81: 514 | W81: 26.71517672
A82: CACAO | B82: 6 | C82: 2911 | D82: 1974 | E82: 67.81174854 | F82: 1928 | G82: 18 | H82: 460 | I82: 6 | J82: 2 | K82: 342 | L82: 5 | M82: 626 | N82: 315 | O82: 2 | P82: 9 | Q82: 9 | R82: 49 | S82: 85 | T82: 41 | U82: 5 | V82: 937 | W82: 32.18825146
A83: TUETAL NORTE [PARTE] | B83: 5 | C83: 2616 | D83: 1655 | E83: 63.26452599 | F83: 1617 | G83: 6 | H83: 548 | I83: 0 | J83: 2 | K83: 250 | L83: 3 | M83: 496 | N83: 177 | O83: 2 | P83: 12 | Q83: 13 | R83: 16 | S83: 92 | T83: 37 | U83: 1 | V83: 961 | W83: 36.73547401
A84: QUEBRADAS | B84: 3 | C84: 1186 | D84: 880 | E84: 74.1989882 | F84: 858 | G84: 3 | H84: 348 | I84: 1 | J84: 1 | K84: 124 | L84: 1 | M84: 246 | N84: 54 | O84: 3 | P84: 21 | Q84: 2 | R84: 7 | S84: 47 | T84: 21 | U84: 1 | V84: 306 | W84: 25.8010118
A85: DISTRITO 13 GARITA | B85: 9 | C85: 4505 | D85: 3133 | E85: 69.54495006 | F85: 3065 | G85: 19 | H85: 1025 | I85: 6 | J85: 1 | K85: 538 | L85: 3 | M85: 880 | N85: 376 | O85: 8 | P85: 31 | Q85: 9 | R85: 34 | S85: 135 | T85: 59 | U85: 9 | V85: 1372 | W85: 30.45504994
A86: GARITA | B86: 6 | C86: 3060 | D86: 2082 | E86: 68.03921569 | F86: 2047 | G86: 11 | H86: 699 | I86: 5 | J86: 1 | K86: 366 | L86: 2 | M86: 544 | N86: 265 | O86: 4 | P86: 18 | Q86: 6 | R86: 28 | S86: 98 | T86: 31 | U86: 4 | V86: 978 | W86: 31.96078431
A87: DULCE NOMBRE O LAS ÁNIMAS | B87: 3 | C87: 1445 | D87: 1051 | E87: 72.73356401 | F87: 1018 | G87: 8 | H87: 326 | I87: 1 | J87: 0 | K87: 172 | L87: 1 | M87: 336 | N87: 111 | O87: 4 | P87: 13 | Q87: 3 | R87: 6 | S87: 37 | T87: 28 | U87: 5 | V87: 394 | W87: 27.26643599
A88: DISTRITO 14 SARAPIQUÍ | B88: 6 | C88: 1776 | D88: 1171 | E88: 65.93468468 | F88: 1146 | G88: 12 | H88: 304 | I88: 1 | J88: 3 | K88: 173 | L88: 1 | M88: 355 | N88: 164 | O88: 1 | P88: 12 | Q88: 11 | R88: 16 | S88: 93 | T88: 25 | U88: 0 | V88: 605 | W88: 34.06531532
A89: UJARRÁS | B89: 2 | C89: 708 | D89: 436 | E89: 61.5819209 | F89: 428 | G89: 5 | H89: 88 | I89: 0 | J89: 1 | K89: 36 | L89: 0 | M89: 177 | N89: 81 | O89: 0 | P89: 2 | Q89: 4 | R89: 1 | S89: 33 | T89: 8 | U89: 0 | V89: 272 | W89: 38.4180791
A90: SAN MIGUEL DE SARAPIQUÍ | B90: 2 | C90: 913 | D90: 632 | E90: 69.22234392 | F90: 617 | G90: 7 | H90: 189 | I90: 1 | J90: 1 | K90: 121 | L90: 1 | M90: 144 | N90: 69 | O90: 1 | P90: 10 | Q90: 5 | R90: 14 | S90: 54 | T90: 15 | U90: 0 | V90: 281 | W90: 30.77765608
A91: CORAZÓN DE JESÚS | B91: 1 | C91: 77 | D91: 55 | E91: 71.42857143 | F91: 53 | G91: 0 | H91: 21 | I91: 0 | J91: 0 | K91: 8 | L91: 0 | M91: 17 | N91: 4 | O91: 0 | P91: 0 | Q91: 0 | R91: 1 | S91: 2 | T91: 2 | U91: 0 | V91: 22 | W91: 28.57142857
A92: EL PARAÍSO | B92: 1 | C92: 78 | D92: 48 | E92: 61.53846154 | F92: 48 | G92: 0 | H92: 6 | I92: 0 | J92: 1 | K92: 8 | L92: 0 | M92: 17 | N92: 10 | O92: 0 | P92: 0 | Q92: 2 | R92: 0 | S92: 4 | T92: 0 | U92: 0 | V92: 30 | W92: 38.46153846
A93: CANTÓN 2 SAN RAMÓN | B93: 130 | C93: 58067 | D93: 42476 | E93: =D93/C93*100 -> 73.14998192 | F93: 41689 | G93: 144 | H93: 14112 | I93: 62 | J93: 130 | K93: 11614 | L93: 48 | M93: 9903 | N93: 2303 | O93: 84 | P93: 1284 | Q93: 200 | R93: 345 | S93: 1460 | T93: 663 | U93: 124 | V93: 15591 | W93: =V93/C93*100 -> 26.85001808
A94: DISTRITO 1 SAN RAMÓN | B94: 24 | C94: 13093 | D94: 10206 | E94: 77.95004964 | F94: 10102 | G94: 20 | H94: 4157 | I94: 4 | J94: 18 | K94: 2628 | L94: 7 | M94: 2258 | N94: 392 | O94: 15 | P94: 251 | Q94: 43 | R94: 45 | S94: 264 | T94: 94 | U94: 10 | V94: 2887 | W94: 22.04995036
A95: SAN RAMÓN | B95: 24 | C95: 13093 | D95: 10206 | E95: 77.95004964 | F95: 10102 | G95: 20 | H95: 4157 | I95: 4 | J95: 18 | K95: 2628 | L95: 7 | M95: 2258 | N95: 392 | O95: 15 | P95: 251 | Q95: 43 | R95: 45 | S95: 264 | T95: 94 | U95: 10 | V95: 2887 | W95: 22.04995036
A96: DISTRITO 2 SANTIAGO | B96: 8 | C96: 3258 | D96: 2453 | E96: 75.29158993 | F96: 2400 | G96: 8 | H96: 784 | I96: 2 | J96: 8 | K96: 619 | L96: 2 | M96: 659 | N96: 102 | O96: 6 | P96: 97 | Q96: 12 | R96: 16 | S96: 85 | T96: 44 | U96: 9 | V96: 805 | W96: 24.70841007
A97: SANTIAGO | B97: 4 | C97: 2083 | D97: 1590 | E97: 76.33221315 | F97: 1560 | G97: 5 | H97: 534 | I97: 1 | J97: 5 | K97: 381 | L97: 1 | M97: 433 | N97: 58 | O97: 4 | P97: 78 | Q97: 7 | R97: 7 | S97: 46 | T97: 24 | U97: 6 | V97: 493 | W97: 23.66778685
A98: SAN JOSÉ [RÍO JESÚS] | B98: 1 | C98: 372 | D98: 268 | E98: 72.04301075 | F98: 263 | G98: 0 | H98: 88 | I98: 1 | J98: 1 | K98: 73 | L98: 0 | M98: 71 | N98: 4 | O98: 0 | P98: 9 | Q98: 2 | R98: 1 | S98: 13 | T98: 5 | U98: 0 | V98: 104 | W98: 27.95698925
A99: ANGOSTURA | B99: 1 | C99: 158 | D99: 131 | E99: 82.91139241 | F99: 128 | G99: 0 | H99: 46 | I99: 0 | J99: 0 | K99: 18 | L99: 0 | M99: 41 | N99: 10 | O99: 1 | P99: 3 | Q99: 0 | R99: 1 | S99: 8 | T99: 3 | U99: 0 | V99: 27 | W99: 17.08860759
A100: CALLE LEÓN | B100: 1 | C100: 278 | D100: 207 | E100: 74.46043165 | F100: 203 | G100: 2 | H100: 67 | I100: 0 | J100: 1 | K100: 67 | L100: 1 | M100: 41 | N100: 9 | O100: 1 | P100: 2 | Q100: 0 | R100: 4 | S100: 8 | T100: 3 | U100: 1 | V100: 71 | W100: 25.53956835
A101: EMPALME | B101: 1 | C101: 367 | D101: 257 | E101: 70.02724796 | F101: 246 | G101: 1 | H101: 49 | I101: 0 | J101: 1 | K101: 80 | L101: 0 | M101: 73 | N101: 21 | O101: 0 | P101: 5 | Q101: 3 | R101: 3 | S101: 10 | T101: 9 | U101: 2 | V101: 110 | W101: 29.97275204
A102: DISTRITO 3 SAN JUAN | B102: 18 | C102: 8855 | D102: 6262 | E102: 70.71710898 | F102: 6165 | G102: 21 | H102: 2346 | I102: 12 | J102: 11 | K102: 1681 | L102: 6 | M102: 1282 | N102: 345 | O102: 19 | P102: 135 | Q102: 24 | R102: 52 | S102: 231 | T102: 81 | U102: 16 | V102: 2593 | W102: 29.28289102
A103: SAN JUAN | B103: 17 | C103: 8801 | D103: 6227 | E103: 70.75332349 | F103: 6130 | G103: 21 | H103: 2339 | I103: 10 | J103: 11 | K103: 1679 | L103: 6 | M103: 1270 | N103: 342 | O103: 19 | P103: 135 | Q103: 23 | R103: 52 | S103: 223 | T103: 81 | U103: 16 | V103: 2574 | W103: 29.24667651
A104: H A SAN RAMÓN | B104: 1 | C104: 54 | D104: 35 | E104: 64.81481481 | F104: 35 | G104: 0 | H104: 7 | I104: 2 | J104: 0 | K104: 2 | L104: 0 | M104: 12 | N104: 3 | O104: 0 | P104: 0 | Q104: 1 | R104: 0 | S104: 8 | T104: 0 | U104: 0 | V104: 19 | W104: 35.18518519
A105: DISTRITO 4 PIEDADES NORTE | B105: 12 | C105: 5028 | D105: 3656 | E105: 72.71280827 | F105: 3567 | G105: 15 | H105: 1103 | I105: 2 | J105: 13 | K105: 1099 | L105: 4 | M105: 866 | N105: 214 | O105: 8 | P105: 80 | Q105: 8 | R105: 25 | S105: 130 | T105: 76 | U105: 13 | V105: 1372 | W105: 27.28719173
A106: PIEDADES NORTE | B106: 2 | C106: 943 | D106: 651 | E106: 69.0349947 | F106: 625 | G106: 3 | H106: 176 | I106: 0 | J106: 2 | K106: 182 | L106: 2 | M106: 150 | N106: 48 | O106: 1 | P106: 22 | Q106: 0 | R106: 3 | S106: 36 | T106: 21 | U106: 5 | V106: 292 | W106: 30.9650053
A107: PIEDADES NOROESTE | B107: 1 | C107: 236 | D107: 195 | E107: 82.62711864 | F107: 193 | G107: 1 | H107: 68 | I107: 0 | J107: 0 | K107: 44 | L107: 1 | M107: 62 | N107: 5 | O107: 1 | P107: 6 | Q107: 0 | R107: 0 | S107: 5 | T107: 2 | U107: 0 | V107: 41 | W107: 17.37288136
A108: BOLÍVAR [ESPERANZA] | B108: 5 | C108: 2553 | D108: 1821 | E108: 71.32784959 | F108: 1782 | G108: 6 | H108: 592 | I108: 2 | J108: 9 | K108: 594 | L108: 1 | M108: 364 | N108: 101 | O108: 3 | P108: 31 | Q108: 7 | R108: 15 | S108: 57 | T108: 38 | U108: 1 | V108: 732 | W108: 28.67215041
A109: LA ESPERANZA | B109: 2 | C109: 633 | D109: 436 | E109: 68.87835703 | F109: 422 | G109: 5 | H109: 95 | I109: 0 | J109: 2 | K109: 148 | L109: 0 | M109: 103 | N109: 39 | O109: 2 | P109: 10 | Q109: 1 | R109: 2 | S109: 15 | T109: 10 | U109: 4 | V109: 197 | W109: 31.12164297
A110: LA PAZ | B110: 2 | C110: 663 | D110: 553 | E110: 83.40874811 | F110: 545 | G110: 0 | H110: 172 | I110: 0 | J110: 0 | K110: 131 | L110: 0 | M110: 187 | N110: 21 | O110: 1 | P110: 11 | Q110: 0 | R110: 5 | S110: 17 | T110: 5 | U110: 3 | V110: 110 | W110: 16.59125189
